Workbook

Sheet DADOS
A1: 27476 | B1: PO - Planilha Orçamentária / PLQ - Planilha de Levantamento de Quantidades / CFF - Cronograma Físico Financeiro
A2: v006
A4: INSTRUÇÕES DE USO E PREENCHIMENTO
A6: 1. Este documento somente pode ser utilizado nas versões do Excel 2003 ou superior. Não deve ser utilizado versões do BROffice. O Documento deve ser salvo SOMENTE em extensão habilitada para macros (.xls ou .xlsm). Se o documento for salvo na extensão .xlsx, o arquivo será INUTILIZADO.
A8: 2. Para funcionamento pleno desse arquivo, a Segurança de Macros do Excel deve ser habilitada.
A10: 2.1 Na Versão Excel 2003, selecione na Faixa de Opções: Ferramentas --> Macro --> Segurança --> Na aba Nível de Segurança selecione a Opção "Baixo" --> Clique em OK --> Feche e abra o Excel novamente para utilizar a Planilha.
A12: 2.2 Na Versão Excel 2007 ou superior, selecione na Faixa de Opções: Arquivo --> Opções --> Central de Confiabilidade --> Configurações da Central de Confiabilidade --> Configurações de Macro --> Habilitar todas as Macros --> Clique em OK --> Feche e abra o excel novamente para utilizar a Planilha.
A14: 3. O Preenchimento deve ser feito somente nas células em amarelo. As outras células são de preenchimento Automático.
A16: 4. Preferências de Elaboração do Orçamento
A18: 4.1. Preenchimento de Quantidades
A22: 5. Ordem de Preenchimento
A24: 5.1. na Aba DADOS
A26: 5.1.1. Preencha no Quadro abaixo os Dados do TC/CR:
A28: Nº OPERAÇÃO | C28: GESTOR | F28: PROGRAMA | J28: AÇÃO / MODALIDADE | P28: OBJETO
A29: 1.041.962-43/2017 | C29: MAPA | F29: PRODESA | J29: CONSTRUÇÃO DE EDIFICAÇÃO | P29: CONSTRUÇÃO DA CASA DO PRODUTOR
A31: PROPONENTE / TOMADOR | G31: MUNICÍPIO / UF | K31: LOCALIDADE / ENDEREÇO | Q31: APELIDO DO EMPREENDIMENTO
A32: PREFEITURA MUNICIPAL DE VARGEM BONITA/SC | G32: VARGEM BONITA/SC | K32: TRAVESSA LUIZ SALVADOR/ CENTRO | Q32: CASA DO PRODUTOR_VBO
A35: 5.1.2. Preencha no quadro abaixo as informações sobre o orçamento:
A37: DATA BASE | C37: DESON. | D37: LOCALIDADE DO SINAPI | G37: DESCRIÇÃO DO LOTE | T37: BDI 1 | U37: BDI 2 | V37: BDI 3 | W37: BDI 4 | X37: BDI 5
A38: 2018-06-01 | C38: Sim | D38: Florianópolis / SC | T38: =IF(ISERROR(INDIRECT("'BDI ("&RIGHT(T37,1)&")'!N27")),"",INDIRECT("'BDI ("&RIGHT(T37,1)&")'!N27")) -> 0.2652 | U38: =IF(ISERROR(INDIRECT("'BDI ("&RIGHT(U37,1)&")'!N27")),"",INDIRECT("'BDI ("&RIGHT(U37,1)&")'!N27")) -> 0 | V38: =IF(ISERROR(INDIRECT("'BDI ("&RIGHT(V37,1)&")'!N27")),"",INDIRECT("'BDI ("&RIGHT(V37,1)&")'!N27")) -> 0 | W38: =IF(ISERROR(INDIRECT("'BDI ("&RIGHT(W37,1)&")'!N27")),"",INDIRECT("'BDI ("&RIGHT(W37,1)&")'!N27")) ->  | X38: =IF(ISERROR(INDIRECT("'BDI ("&RIGHT(X37,1)&")'!N27")),"",INDIRECT("'BDI ("&RIGHT(X37,1)&")'!N27")) -> 
A40: 4.1.2. Preencha no quadro abaixo as informações sobre o orçamento licitado:
A42: CTEF n.º | C42: NOME DA EMPRESA | H42: DATA BASE | J42: DESON. | K42: REGIME DE EXECUÇÃO | N42: ACOMP. | O42: OBJETO CTEF | U42: DATA ASSINATURA | W42: VIGÊNCIA
A45: 5.1.3. Preencha a data de Início da Obra:
A47: DATA INÍCIO
A48: 2018-11-01
A50: 5.1.4. Preencha no(s) Quadro(s) abaixo os Dados do(s) Responsável(is) Técnico(s) pela elaboração do Orçamento:
G52: Exibir o 2° Quadro de Assinatura? | K52: NÃO
A54: Nome: | B54: MAX MOOSHAMMER | G54: Nome:
A55: =IF(OR(TipoOrçamento="BASE",TipoOrçamento="REPROGRAMADONPL"),"Título:","Cargo:") -> Título: | B55: ENGENHEIRO CIVIL | G55: =A55 -> Título:
A56: =IF(OR(TipoOrçamento="BASE",TipoOrçamento="REPROGRAMADONPL"),"CREA/CAU:","Empresa:") -> CREA/CAU: | B56: 139.164-0 | G56: =A56 -> CREA/CAU:
A57: =IF(OR(TipoOrçamento="BASE",TipoOrçamento="REPROGRAMADONPL"),"ART/RRT:","CNPJ:") -> ART/RRT: | B57: 6699689-7 | G57: =A57 -> ART/RRT:
A60: 5.2. Legenda das Abas
A62: 5.2.1. LARANJA: Aba DADOS. Preenchimento Obrigatório. Impressão Dispensada.
A63: 5.2.2. AMARELO: Abas BDI, PO, PLQ e CFF. Preenchimento e Impressão Obrigatórias. O preenchimento da Aba BDI é dispensada para os casos de Aquisição Direta de Materiais e Equipamentos. A Impressão da Aba PLQ pode ser dispensada para casos de Frente de Obra Única.
A65: 5.3. na Aba BDI (Bonificações e Despesas Indiretas):
A67: 5.3.1. Escolha o tipo de empreendimento.
A68: 5.3.2. Escolha se o BDI será do tipo desonerado ou não (aba DADOS)
A69: 5.3.3. Informe a base de cálculo do ISS (0 a 100%).
A70: 5.3.4. Informe a alíquota do ISS (Normalmente de 2 a 5%).
A71: 5.3.5. Defina na tabela os percentuais a serem adotados para cada item que compõe o BDI nos campos em amarelo.
A72: 5.3.6. Preencha o campo observações se necessário (recomendado para os orçamentos que utilizam mais de um BDI).
A74: 5.4. na Aba PO (Planilha Orçamentária):
A76: 5.4.1. Primeiramente, selecione os níveis de cada item do orçamento na coluna NÍVEL.
A77: 5.4.1.1: O nível de "Serviço" serve tanto para serviços ou insumos (mão-de-obra / material / equipamento / veículo / máquina / ferramenta / etc). Um "nível 2/3/4" é um título (é preenchida apenas a coluna descrição) utilizado para organizar melhor a planilha orçamentária e engloba (agrupa) serviços e agrupadores de nível inferior.
A78: 5.4.2. Após a seleção dos níveis, preencha, para cada serviço, as informações sobre a Fonte de Referência, (SINAPI, SICRO, SIURB, etc) e o respectivo Código de Referência.
A79: 5.4.3. Esta planilha é compatível com o arquivo REFERÊNCIA distribuído pela CAIXA. Caso o arquivo REFERÊNCIA esteja aberto, será possível buscar um código através do botão "Buscar Código". Desta forma a descrição dos serviços será preenchida automaticamente (podendo ser substituída). Caso contrário, seu preenchimento deve ser manual.
A80: 5.4.3.1. As descrições e unidades preenchidas automaticamente ficarão vinculadas ao arquivo REFERÊNCIA até que se use o botão "Fixar Descrições", que quebra a fórmula e transforma as descrições em texto.
A81: 5.4.4. Preencher o custo unitário do serviço/insumo na Coluna CUSTO UNITÁRIO. ATENÇÃO: o custo unitário adotado deve ser menor ou igual ao contido na tabela de referência ou mediana das cotações de mercado.
A82: 5.4.5. Indicar o BDI adotado para cada serviço/insumo na Coluna BDI. Preferencialmente selecione uma das opções da lista suspensa que aparecerá na célula, esta lista contém os 05 BDIs que podem ser preenchidos na Aba BDI (conforme item 5.2 das instruções). Caso seja necessária a adoção de mais de 05 valores diferentes de BDI, digite o percentual diretamente na célula.
A83: 5.4.6. Conforme selecionado no item 4.1. desta Aba, a Coluna Quantidade pode ser preenchida diretamente na PO, ou representar a soma das quantidades de cada Frente de Obra, informadas na aba PLQ (Planilha de Levantamento de Quantitativos).
A84: 5.4.7. OBSERVAÇÃO: As demais colunas (Item / Quantidade / Preço Unitário / Preço Total) são de preenchimento automático. Não tente preenche-las ou alterá-las na Aba PO.
A85: 5.4.8. Se for necessário acrescentar ou excluir linhas da Planilha Orçamentária, utilize o Botão EDITAR PLANILHA e selecione as opções no quadro. ATENÇÃO: quanto maior o número de linhas mais lento será o processamento dos dados, então acrescente apenas o número necessário ou um pouco a mais.
A86: 5.4.8.1. Evite deixar linhas em branco no corpo da Planilha Orçamentária.
A87: 5.4.9. Caso deseje importar os dados de outro arquivo utilize apenas a opção COLAR ESPECIAL ==> VALORES.
A88: 5.4.10. Clique no Botão LICITAR / REPROGRAMAR para preencher o Orçamento Licitado ou Reprogramado.
A90: 5.5. na Aba PLQ (Planilha de Levantamento de Quantitativos):
A92: 5.5.1. Preencha primeiramente as Frentes de Obra.
A93: 5.5.1.1. Exemplos de Frentes de Obra (Rua A trecho 01 / Rua A trecho 02 / Rua B ; UH 01 / UH 02 / UH 03).
A94: 5.5.2. Preencha as quantidades dos serviços por frente de obra. A soma das quantidades de todas as frentes de um determinado serviço será a quantidade exibida na Planilha Orçamentária.
A95: 5.5.3. Caso deseje incluir ou excluir frentes, utilize os botões ADICIONAR e EXCLUIR.
A97: 5.6. na Aba CFF (Cronograma Físico-Financeiro):
A99: 5.6.1. Preencha a data de início da obra na aba Dados.
A100: 5.6.2. Preencha as porcentagens previstas por parcela para cada meta ou macrosserviço.
A101: 5.6.3. Para atualizar o Cronograma conforme o Orçamento e incluir ou excluir parcelas, utilize o botão EDITAR / ATUALIZAR CRONOGRAMA.
L107: (Selecione uma Localidade)
L108: Aracaju / SE | S108: =T38 -> 0.2652
L109: Belém / PA | S109: =U38 -> 0
L110: Belo Horizonte / MG | S110: =V38 -> 0
L111: Boa Vista / RR | S111: =W38 -> 
L112: Brasília / DF | S112: =X38 -> 
L113: Campo Grande / MS
L114: Cuiabá / MT
L115: Curitiba / PR | P115: Empreitada Preço Global
L116: Florianópolis / SC | P116: Empreitada Preço Unitário
L117: Fortaleza / CE | P117: Empreitada Integral
L118: Goiânia / GO | P118: Tarefa
L119: João Pessoa / PB | P119: Contratação Integrada
L120: Macapá / AP | P120: Não se aplica
L121: Maceió / AL
L122: Manaus / AM | P122: BM
L123: Natal / RN | P123: PLE
L124: Palmas / TO
L125: Porto Alegre / RS
L126: Porto Velho / RO
L127: Recife / PE
L128: Rio Branco / AC
L129: Rio de Janeiro / RJ
L130: Salvador / BA
L131: São Luís / MA
L132: São Paulo / SP
L133: Teresina / PI
L134: Vitória / ES
A220: =A28 -> Nº OPERAÇÃO | C220: =C28 -> GESTOR | F220: =F28 -> PROGRAMA | J220: =J28 -> AÇÃO / MODALIDADE | P220: =P28 -> OBJETO
A221: =IF(A29="","",A29) -> 1.041.962-43/2017 | C221: =IF(C29="","",C29) -> MAPA | F221: =IF(F29="","",F29) -> PRODESA | J221: =IF(J29="","",J29) -> CONSTRUÇÃO DE EDIFICAÇÃO | L221: =IF(#REF!="","",#REF!) ->  | N221: =IF(#REF!="","",#REF!) ->  | P221: =IF(P29="","",P29) -> CONSTRUÇÃO DA CASA DO PRODUTOR
A223: =A31 -> PROPONENTE / TOMADOR | G223: =G31 -> MUNICÍPIO / UF | K223: =K31 -> LOCALIDADE / ENDEREÇO | Q223: =Q31 -> APELIDO DO EMPREENDIMENTO
A224: =IF(A32="","",A32) -> PREFEITURA MUNICIPAL DE VARGEM BONITA/SC | G224: =IF(G32="","",G32) -> VARGEM BONITA/SC | H224: =IF(I32="","",I32) ->  | J224: =IF(#REF!="","",#REF!) ->  | K224: =IF(K32="","",K32) -> TRAVESSA LUIZ SALVADOR/ CENTRO | Q224: =IF(Q32="","",Q32) -> CASA DO PRODUTOR_VBO
A226: =A37 -> DATA BASE | C226: =C37 -> DESON. | D226: =D37 -> LOCALIDADE DO SINAPI | G226: =G37 -> DESCRIÇÃO DO LOTE | T226: =T37 -> BDI 1 | U226: =U37 -> BDI 2 | V226: =V37 -> BDI 3 | W226: =W37 -> BDI 4 | X226: =X37 -> BDI 5
A227: =IF(A38="","",A38) -> 2018-06-01 | C227: =IF(C38="","",C38) -> Sim | D227: Florianópolis / SC | T227: 0.2652 | U227: 0 | V227: 0
A229: CTEF n.º | C229: NOME DA EMPRESA / CNPJ: | H229: DATA BASE | J229: DESON. | K229: REGIME DE EXECUÇÃO | N229: ACOMP. | O229: OBJETO CTEF | U229: DATA ASSINATURA | W229: VIGÊNCIA
A230: =IF(A43="","",A43) ->  | C230: =IF(C43="","",C43) ->  | E230: =IF(E43="","",E43) ->  | G230: =IF(G43="","",G43) ->  | H230: =IF(H43="","",H43) ->  | I230: =IF(I43="","",I43) ->  | J230: =IF(J43="","",J43) ->  | K230: =IF(K43="","",K43) ->  | M230: =IF(M43="","",M43) ->  | N230: =IF(N43="","",N43) ->  | O230: =IF(O43="","",O43) ->  | Q230: =IF(Q43="","",Q43) ->  | S230: =IF(S43="","",S43) ->  | U230: =IF(U43="","",U43) ->  | W230: =IF(W43="","",W43) -> 

Sheet BDI (1)
E1: MIN | F1: MED | G1: MAX | N1: ="Quadro de Composição do BDI "&MID(CELL("nome.arquivo",N1),5+FIND("BDI (",CELL("nome.arquivo",N1)),1) -> Quadro de Composição do BDI 1
A2: Construção e Reforma de Edifícios | B2: AC | C2: =CONCATENATE(A2,"-",B2) -> Construção e Reforma de Edifícios-AC | E2: 0.03 | F2: 0.04 | G2: 0.055
A3: =A2 -> Construção e Reforma de Edifícios | B3: SG | C3: Construção e Reforma de Edifícios-SG | E3: 0.008 | F3: 0.008 | G3: 0.01
A4: =A3 -> Construção e Reforma de Edifícios | B4: R | C4: Construção e Reforma de Edifícios-R | E4: 0.0097 | F4: 0.0127 | G4: 0.0127 | I4: Nº TC/CR | K4: PROPONENTE / TOMADOR
A5: =A4 -> Construção e Reforma de Edifícios | B5: DF | C5: Construção e Reforma de Edifícios-DF | E5: 0.0059 | F5: 0.0123 | G5: 0.0139 | I5: =DADOS!A29 -> 1.041.962-43/2017 | K5: =DADOS!A32 -> PREFEITURA MUNICIPAL DE VARGEM BONITA/SC
A6: =A5 -> Construção e Reforma de Edifícios | B6: L | C6: Construção e Reforma de Edifícios-L | E6: 0.0616 | F6: 0.074 | G6: 0.0896
A7: =A6 -> Construção e Reforma de Edifícios | B7: BDI PAD | C7: Construção e Reforma de Edifícios-BDI PAD | E7: 0.2034 | F7: 0.2212 | G7: 0.25 | I7: OBJETO
A8: Construção de Praças Urbanas, Rodovias, Ferrovias e recapeamento e pavimentação de vias urbanas | B8: AC | C8: Construção de Praças Urbanas, Rodovias, Ferrovias e recapeamento e pavimentação de vias urbanas-AC | E8: 0.038 | F8: 0.0401 | G8: 0.0467 | I8: =DADOS!P29 -> CONSTRUÇÃO DA CASA DO PRODUTOR
A9: Construção de Praças Urbanas, Rodovias, Ferrovias e recapeamento e pavimentação de vias urbanas | B9: SG | C9: Construção de Praças Urbanas, Rodovias, Ferrovias e recapeamento e pavimentação de vias urbanas-SG | E9: 0.0032 | F9: 0.004 | G9: 0.0074
A10: Construção de Praças Urbanas, Rodovias, Ferrovias e recapeamento e pavimentação de vias urbanas | B10: R | C10: Construção de Praças Urbanas, Rodovias, Ferrovias e recapeamento e pavimentação de vias urbanas-R | E10: 0.005 | F10: 0.0056 | G10: 0.0097 | I10: TIPO DE OBRA DO EMPREENDIMENTO | Q10: DESONERAÇÃO
A11: Construção de Praças Urbanas, Rodovias, Ferrovias e recapeamento e pavimentação de vias urbanas | B11: DF | C11: Construção de Praças Urbanas, Rodovias, Ferrovias e recapeamento e pavimentação de vias urbanas-DF | E11: 0.0102 | F11: 0.0111 | G11: 0.0121 | I11: Construção e Reforma de Edifícios | Q11: =DADOS!$C$38 -> Sim
A12: Construção de Praças Urbanas, Rodovias, Ferrovias e recapeamento e pavimentação de vias urbanas | B12: L | C12: Construção de Praças Urbanas, Rodovias, Ferrovias e recapeamento e pavimentação de vias urbanas-L | E12: 0.0664 | F12: 0.073 | G12: 0.0869
A13: Construção de Praças Urbanas, Rodovias, Ferrovias e recapeamento e pavimentação de vias urbanas | B13: BDI PAD | C13: Construção de Praças Urbanas, Rodovias, Ferrovias e recapeamento e pavimentação de vias urbanas-BDI PAD | E13: 0.196 | F13: 0.2097 | G13: 0.2423 | I13: Conforme legislação tributária municipal, definir estimativa de percentual da base de cálculo para o ISS: | Q13: 1
A14: Construção de Redes de Abastecimento de Água, Coleta de Esgoto | B14: AC | C14: Construção de Redes de Abastecimento de Água, Coleta de Esgoto-AC | E14: 0.0343 | F14: 0.0493 | G14: 0.0671 | I14: Sobre a base de cálculo, definir a respectiva alíquota do ISS (entre 2% e 5%): | Q14: 0.03
A15: =A14 -> Construção de Redes de Abastecimento de Água, Coleta de Esgoto | B15: SG | C15: Construção de Redes de Abastecimento de Água, Coleta de Esgoto-SG | E15: 0.0028 | F15: 0.0049 | G15: 0.0075
I16: Itens | M16: Siglas | N16: % Adotado | O16: Situação | P16: 1º Quartil | Q16: Médio | R16: 3º Quartil | T16: =IF(V27,"Para BDI fora do intervalo estatístico, deve ser apresentado Relatório Técnico Circunstanciado justificando a adoção do percentual de cada parcela do BDI.","") -> 
A17: =A15 -> Construção de Redes de Abastecimento de Água, Coleta de Esgoto | B17: R | C17: Construção de Redes de Abastecimento de Água, Coleta de Esgoto-R | E17: 0.01 | F17: 0.0139 | G17: 0.0174
A18: =A17 -> Construção de Redes de Abastecimento de Água, Coleta de Esgoto | B18: DF | C18: Construção de Redes de Abastecimento de Água, Coleta de Esgoto-DF | E18: 0.0094 | F18: 0.0099 | G18: 0.0117 | I18: =IF($I$11=$A$59,"Encargos Sociais incidentes sobre a mão de obra","Administração Central") -> Administração Central | M18: =IF($I$11=$A$59,"K1","AC") -> AC | N18: 0.0348 | O18: - | P18: =VLOOKUP(CONCATENATE(I$11,"-",M18),$C$2:$G$49,3,FALSE) -> 0.03 | Q18: =VLOOKUP(CONCATENATE(I$11,"-",M18),$C$2:$G$49,4,FALSE) -> 0.04 | R18: =VLOOKUP(CONCATENATE(I$11,"-",M18),$C$2:$G$49,5,FALSE) -> 0.055
A19: =A18 -> Construção de Redes de Abastecimento de Água, Coleta de Esgoto | B19: L | C19: Construção de Redes de Abastecimento de Água, Coleta de Esgoto-L | E19: 0.0674 | F19: 0.0804 | G19: 0.094 | I19: =IF($I$11=$A$59,"Administração Central da empresa ou consultoria - overhead","Seguro e Garantia") -> Seguro e Garantia | M19: =IF($I$11=$A$59,"K2","SG") -> SG | N19: 0.008 | O19: - | P19: =VLOOKUP(CONCATENATE(I$11,"-",M19),$C$2:$G$49,3,FALSE) -> 0.008 | Q19: =VLOOKUP(CONCATENATE(I$11,"-",M19),$C$2:$G$49,4,FALSE) -> 0.008 | R19: =VLOOKUP(CONCATENATE(I$11,"-",M19),$C$2:$G$49,5,FALSE) -> 0.01
A20: =A19 -> Construção de Redes de Abastecimento de Água, Coleta de Esgoto | B20: BDI PAD | C20: Construção de Redes de Abastecimento de Água, Coleta de Esgoto-BDI PAD | E20: 0.2076 | F20: 0.2418 | G20: 0.2644 | I20: =IF($I$11=$A$59,"","Risco") -> Risco | M20: =IF($I$11=$A$59,"","R") -> R | N20: 0.0097 | O20: - | P20: =VLOOKUP(CONCATENATE(I$11,"-",M20),$C$2:$G$49,3,FALSE) -> 0.0097 | Q20: =VLOOKUP(CONCATENATE(I$11,"-",M20),$C$2:$G$49,4,FALSE) -> 0.0127 | R20: =VLOOKUP(CONCATENATE(I$11,"-",M20),$C$2:$G$49,5,FALSE) -> 0.0127
A21: Construção e Manutenção de Estações e Redes de Distribuição de Energia Elétrica | B21: AC | C21: Construção e Manutenção de Estações e Redes de Distribuição de Energia Elétrica-AC | E21: 0.0529 | F21: 0.0592 | G21: 0.0793 | I21: =IF($I$11=$A$59,"","Despesas Financeiras") -> Despesas Financeiras | M21: =IF($I$11=$A$59,"","DF") -> DF | N21: 0.006 | O21: - | P21: =VLOOKUP(CONCATENATE(I$11,"-",M21),$C$2:$G$49,3,FALSE) -> 0.0059 | Q21: =VLOOKUP(CONCATENATE(I$11,"-",M21),$C$2:$G$49,4,FALSE) -> 0.0123 | R21: =VLOOKUP(CONCATENATE(I$11,"-",M21),$C$2:$G$49,5,FALSE) -> 0.0139
A22: =A21 -> Construção e Manutenção de Estações e Redes de Distribuição de Energia Elétrica | B22: SG | C22: Construção e Manutenção de Estações e Redes de Distribuição de Energia Elétrica-SG | E22: 0.0025 | F22: 0.0051 | G22: 0.0056 | I22: =IF($I$11=$A$59,"Margem bruta da empresa de consultoria","Lucro") -> Lucro | M22: =IF($I$11=$A$59,"K3","L") -> L | N22: 0.0617 | O22: - | P22: =VLOOKUP(CONCATENATE(I$11,"-",M22),$C$2:$G$49,3,FALSE) -> 0.0616 | Q22: =VLOOKUP(CONCATENATE(I$11,"-",M22),$C$2:$G$49,4,FALSE) -> 0.074 | R22: =VLOOKUP(CONCATENATE(I$11,"-",M22),$C$2:$G$49,5,FALSE) -> 0.0896
A23: =A22 -> Construção e Manutenção de Estações e Redes de Distribuição de Energia Elétrica | B23: R | C23: Construção e Manutenção de Estações e Redes de Distribuição de Energia Elétrica-R | E23: 0.01 | F23: 0.0148 | G23: 0.0197 | I23: Tributos (impostos COFINS 3%, e PIS 0,65%) | M23: CP | N23: 0.0365 | O23: - | P23: 0.0365 | Q23: 0.0365 | R23: 0.0365
A24: =A23 -> Construção e Manutenção de Estações e Redes de Distribuição de Energia Elétrica | B24: DF | C24: Construção e Manutenção de Estações e Redes de Distribuição de Energia Elétrica-DF | E24: 0.0101 | F24: 0.0107 | G24: 0.0111 | I24: Tributos (ISS, variável de acordo com o município) | M24: ISS | N24: =IF($I$11<>$A$58,Q14*Q13,0) -> 0.03 | O24: - | P24: 0 | Q24: 0.025 | R24: 0.05
A25: =A24 -> Construção e Manutenção de Estações e Redes de Distribuição de Energia Elétrica | B25: L | C25: Construção e Manutenção de Estações e Redes de Distribuição de Energia Elétrica-L | E25: 0.08 | F25: 0.0831 | G25: 0.0951 | I25: Tributos (Contribuição Previdenciária sobre a Receita Bruta - 0% ou 4,5% - Desoneração) | M25: CPRB | N25: =IF(AND($I$11<>$A$58,Q11="Sim"),4.5%,0%) -> 0.045 | O25: =IF(AND(N25>=P25, N25<=R25), "OK", "Não OK") -> OK | P25: 0 | Q25: 0.045 | R25: 0.045
A26: =A25 -> Construção e Manutenção de Estações e Redes de Distribuição de Energia Elétrica | B26: BDI PAD | C26: Construção e Manutenção de Estações e Redes de Distribuição de Energia Elétrica-BDI PAD | E26: 0.24 | F26: 0.2584 | G26: 0.2786 | I26: BDI SEM desoneração (Fórmula Acórdão TCU) | M26: BDI PAD | N26: =IF($I$11=$A$58,0,ROUND((((1+N18+N19+N20)*(1+N21)*(1+N22)/(1-(N23+N24)))-1),4)) -> 0.2042 | O26: =IF(OR($I$11=$A$59,$I$11=$A$58,AND(N26>=P26, N26<=R26)), "OK", "FORA DO INTERVALO") -> OK | P26: =IF($I$11=$A$58,0,VLOOKUP(CONCATENATE($I$11,"-",$M26),$C$2:$G$49,3,FALSE)) -> 0.2034 | Q26: =IF($I$11=$A$58,0,VLOOKUP(CONCATENATE($I$11,"-",$M26),$C$2:$G$49,4,FALSE)) -> 0.2212 | R26: =IF($I$11=$A$58,0,VLOOKUP(CONCATENATE($I$11,"-",$M26),$C$2:$G$49,5,FALSE)) -> 0.25
A27: Obras Portuárias, Marítimas e Fluviais | B27: AC | C27: Obras Portuárias, Marítimas e Fluviais-AC | E27: 0.04 | F27: 0.0552 | G27: 0.0785 | I27: BDI COM desoneração | M27: BDI DES | N27: =IF($I$11=$A$58,0,ROUND((((1+N18+N19+N20)*(1+N21)*(1+N22)/(1-(N23+N24+N25)))-1),4)) -> 0.2652 | O27: =IF(Q11<>"Sim","",O26) -> OK | V27: =AND(COUNTA(N18:N23)=6,O26<>"ok",NOT(V29)) -> FALSE | W27: pedir anexo
A28: =A27 -> Obras Portuárias, Marítimas e Fluviais | B28: SG | C28: Obras Portuárias, Marítimas e Fluviais-SG | E28: 0.0081 | F28: 0.0122 | G28: 0.0199
A29: =A28 -> Obras Portuárias, Marítimas e Fluviais | B29: R | C29: Obras Portuárias, Marítimas e Fluviais-R | E29: 0.0146 | F29: 0.0232 | G29: 0.0316 | I29: =IF(V29,"X","") ->  | J29: Anexo: Relatório Técnico Circunstanciado justificando a adoção do percentual de cada parcela do BDI. | V29: FALSE | W29: anexo apresentado
I31: Os valores de BDI foram calculados com o emprego da fórmula:
A32: =A29 -> Obras Portuárias, Marítimas e Fluviais | B32: DF | C32: Obras Portuárias, Marítimas e Fluviais-DF | E32: 0.0094 | F32: 0.0102 | G32: 0.0133 | L32: =IF(Q11="Sim","BDI.DES =","BDI.PAD =") -> BDI.DES = | M32: =IF($I$11=$A$59,"(1+K1+K2)*(1+K3)","(1+AC + S + R + G)*(1 + DF)*(1+L)") -> (1+AC + S + R + G)*(1 + DF)*(1+L) | P32: - 1
A33: =A32 -> Obras Portuárias, Marítimas e Fluviais | B33: L | C33: Obras Portuárias, Marítimas e Fluviais-L | E33: 0.0714 | F33: 0.084 | G33: 0.1043 | M33: =IF(Q11="Sim","(1-CP-ISS-CRPB)","(1-CP-ISS)") -> (1-CP-ISS-CRPB)
A34: =A33 -> Obras Portuárias, Marítimas e Fluviais | B34: BDI PAD | C34: Obras Portuárias, Marítimas e Fluviais-BDI PAD | E34: 0.228 | F34: 0.2748 | G34: 0.3095
I35: =CONCATENATE("Declaro para os devidos fins que, conforme legislação tributária municipal, a base de cálculo para ",I11,", é de ",Q13*100,"%, com a respectiva alíquota de ",Q14*100,"%.") -> Declaro para os devidos fins que, conforme legislação tributária municipal, a base de cálculo para Construção e Reforma de Edifícios, é de 100%, com a respectiva alíquota de 3%.
I37: =CONCATENATE("Declaro para os devidos fins que o regime de Contribuição Previdenciária sobre a Receita Bruta adotado para elaboração do orçamento foi ",IF(Q11="Sim","COM","SEM")," Desoneração, e que esta é a alternativa mais adequada para a Administração Pública.") -> Declaro para os devidos fins que o regime de Contribuição Previdenciária sobre a Receita Bruta adotado para elaboração do orçamento foi COM Desoneração, e que esta é a alternativa mais adequada para a Administração Pública.
A38: Fornecimento de Materiais e Equipamentos (aquisição indireta - em conjunto com licitação de obras) | B38: AC | C38: Fornecimento de Materiais e Equipamentos (aquisição indireta - em conjunto com licitação de obras)-AC | E38: 0.015 | F38: 0.0345 | G38: 0.0449
A39: =A38 -> Fornecimento de Materiais e Equipamentos (aquisição indireta - em conjunto com licitação de obras) | B39: SG | C39: Fornecimento de Materiais e Equipamentos (aquisição indireta - em conjunto com licitação de obras)-SG | E39: 0.003 | F39: 0.0048 | G39: 0.0082 | I39: Observações:
A40: =A39 -> Fornecimento de Materiais e Equipamentos (aquisição indireta - em conjunto com licitação de obras) | B40: R | C40: Fornecimento de Materiais e Equipamentos (aquisição indireta - em conjunto com licitação de obras)-R | E40: 0.0056 | F40: 0.0085 | G40: 0.0089
A41: =A40 -> Fornecimento de Materiais e Equipamentos (aquisição indireta - em conjunto com licitação de obras) | B41: DF | C41: Fornecimento de Materiais e Equipamentos (aquisição indireta - em conjunto com licitação de obras)-DF | E41: 0.0085 | F41: 0.0085 | G41: 0.0111
A42: =A41 -> Fornecimento de Materiais e Equipamentos (aquisição indireta - em conjunto com licitação de obras) | B42: L | C42: Fornecimento de Materiais e Equipamentos (aquisição indireta - em conjunto com licitação de obras)-L | E42: 0.035 | F42: 0.0511 | G42: 0.0622 | I42: =PO!K178 -> VARGEM BONITA/SC | O42: =PO!K181 -> 2019-03-18
A43: =A42 -> Fornecimento de Materiais e Equipamentos (aquisição indireta - em conjunto com licitação de obras) | B43: BDI PAD | C43: Fornecimento de Materiais e Equipamentos (aquisição indireta - em conjunto com licitação de obras)-BDI PAD | E43: 0.111 | F43: 0.1402 | G43: 0.168 | I43: Local | O43: Data
A44: Estudos e Projetos, Planos e Gerenciamento e outros correlatos | B44: K1 | C44: Estudos e Projetos, Planos e Gerenciamento e outros correlatos-K1 | E44: - | F44: - | G44: -
A45: =A44 -> Estudos e Projetos, Planos e Gerenciamento e outros correlatos | B45: K2 | C45: Estudos e Projetos, Planos e Gerenciamento e outros correlatos-K2 | E45: - | F45: 0.2 | G45: -
A46: =A45 -> Estudos e Projetos, Planos e Gerenciamento e outros correlatos | C46: Estudos e Projetos, Planos e Gerenciamento e outros correlatos- | E46: - | F46: - | G46: - | I46: Responsável Técnico | O46: Responsável Tomador
A47: =A46 -> Estudos e Projetos, Planos e Gerenciamento e outros correlatos | C47: Estudos e Projetos, Planos e Gerenciamento e outros correlatos- | E47: - | F47: - | G47: - | I47: Nome: | J47: =DADOS!B54 -> MAX MOOSHAMMER | O47: Nome: | P47: MELÂNIA AP. ROMAN MENEGHINI
A48: =A47 -> Estudos e Projetos, Planos e Gerenciamento e outros correlatos | B48: K3 | C48: Estudos e Projetos, Planos e Gerenciamento e outros correlatos-K3 | E48: - | F48: 0.12 | G48: - | I48: Título: | J48: =DADOS!B55 -> ENGENHEIRO CIVIL | O48: Cargo: | P48: PREFEITA MUNICIPAL DE VARGEM BONITA
A49: =A48 -> Estudos e Projetos, Planos e Gerenciamento e outros correlatos | B49: BDI PAD | C49: Estudos e Projetos, Planos e Gerenciamento e outros correlatos-BDI PAD | E49: - | F49: - | G49: - | I49: =DADOS!A56 -> CREA/CAU: | J49: =DADOS!B56 -> 139.164-0
I50: =DADOS!A57 -> ART/RRT: | J50: =DADOS!B57 -> 6699689-7
A52: Construção e Reforma de Edifícios
A53: Construção de Praças Urbanas, Rodovias, Ferrovias e recapeamento e pavimentação de vias urbanas
A54: Construção de Redes de Abastecimento de Água, Coleta de Esgoto
A55: Construção e Manutenção de Estações e Redes de Distribuição de Energia Elétrica
A56: Obras Portuárias, Marítimas e Fluviais
A57: Fornecimento de Materiais e Equipamentos (aquisição indireta - em conjunto com licitação de obras)
A58: Fornecimento de Materiais e Equipamentos (aquisição direta)
A59: Estudos e Projetos, Planos e Gerenciamento e outros correlatos

Sheet BDI (2)
E1: MIN | F1: MED | G1: MAX | N1: ="Quadro de Composição do BDI "&MID(CELL("nome.arquivo",N1),5+FIND("BDI (",CELL("nome.arquivo",N1)),1) -> Quadro de Composição do BDI 2
A2: Construção e Reforma de Edifícios | B2: AC | C2: =CONCATENATE(A2,"-",B2) -> Construção e Reforma de Edifícios-AC | E2: 0.03 | F2: 0.04 | G2: 0.055
A3: =A2 -> Construção e Reforma de Edifícios | B3: SG | C3: Construção e Reforma de Edifícios-SG | E3: 0.008 | F3: 0.008 | G3: 0.01
A4: =A3 -> Construção e Reforma de Edifícios | B4: R | C4: Construção e Reforma de Edifícios-R | E4: 0.0097 | F4: 0.0127 | G4: 0.0127 | I4: Nº TC/CR | K4: PROPONENTE / TOMADOR
A5: =A4 -> Construção e Reforma de Edifícios | B5: DF | C5: Construção e Reforma de Edifícios-DF | E5: 0.0059 | F5: 0.0123 | G5: 0.0139 | I5: =DADOS!A29 -> 1.041.962-43/2017 | K5: =DADOS!A32 -> PREFEITURA MUNICIPAL DE VARGEM BONITA/SC
A6: =A5 -> Construção e Reforma de Edifícios | B6: L | C6: Construção e Reforma de Edifícios-L | E6: 0.0616 | F6: 0.074 | G6: 0.0896
A7: =A6 -> Construção e Reforma de Edifícios | B7: BDI PAD | C7: Construção e Reforma de Edifícios-BDI PAD | E7: 0.2034 | F7: 0.2212 | G7: 0.25 | I7: OBJETO
A8: Construção de Praças Urbanas, Rodovias, Ferrovias e recapeamento e pavimentação de vias urbanas | B8: AC | C8: Construção de Praças Urbanas, Rodovias, Ferrovias e recapeamento e pavimentação de vias urbanas-AC | E8: 0.038 | F8: 0.0401 | G8: 0.0467 | I8: =DADOS!P29 -> CONSTRUÇÃO DA CASA DO PRODUTOR
A9: Construção de Praças Urbanas, Rodovias, Ferrovias e recapeamento e pavimentação de vias urbanas | B9: SG | C9: Construção de Praças Urbanas, Rodovias, Ferrovias e recapeamento e pavimentação de vias urbanas-SG | E9: 0.0032 | F9: 0.004 | G9: 0.0074
A10: Construção de Praças Urbanas, Rodovias, Ferrovias e recapeamento e pavimentação de vias urbanas | B10: R | C10: Construção de Praças Urbanas, Rodovias, Ferrovias e recapeamento e pavimentação de vias urbanas-R | E10: 0.005 | F10: 0.0056 | G10: 0.0097 | I10: TIPO DE OBRA DO EMPREENDIMENTO | Q10: DESONERAÇÃO
A11: Construção de Praças Urbanas, Rodovias, Ferrovias e recapeamento e pavimentação de vias urbanas | B11: DF | C11: Construção de Praças Urbanas, Rodovias, Ferrovias e recapeamento e pavimentação de vias urbanas-DF | E11: 0.0102 | F11: 0.0111 | G11: 0.0121 | I11: Fornecimento de Materiais e Equipamentos (aquisição direta) | Q11: =DADOS!$C$38 -> Sim
A12: Construção de Praças Urbanas, Rodovias, Ferrovias e recapeamento e pavimentação de vias urbanas | B12: L | C12: Construção de Praças Urbanas, Rodovias, Ferrovias e recapeamento e pavimentação de vias urbanas-L | E12: 0.0664 | F12: 0.073 | G12: 0.0869
A13: Construção de Praças Urbanas, Rodovias, Ferrovias e recapeamento e pavimentação de vias urbanas | B13: BDI PAD | C13: Construção de Praças Urbanas, Rodovias, Ferrovias e recapeamento e pavimentação de vias urbanas-BDI PAD | E13: 0.196 | F13: 0.2097 | G13: 0.2423 | I13: Conforme legislação tributária municipal, definir estimativa de percentual da base de cálculo para o ISS: | Q13: 1
A14: Construção de Redes de Abastecimento de Água, Coleta de Esgoto | B14: AC | C14: Construção de Redes de Abastecimento de Água, Coleta de Esgoto-AC | E14: 0.0343 | F14: 0.0493 | G14: 0.0671 | I14: Sobre a base de cálculo, definir a respectiva alíquota do ISS (entre 2% e 5%): | Q14: 0.03
A15: =A14 -> Construção de Redes de Abastecimento de Água, Coleta de Esgoto | B15: SG | C15: Construção de Redes de Abastecimento de Água, Coleta de Esgoto-SG | E15: 0.0028 | F15: 0.0049 | G15: 0.0075
I16: Itens | M16: Siglas | N16: % Adotado | O16: Situação | P16: 1º Quartil | Q16: Médio | R16: 3º Quartil | T16: =IF(V27,"Para BDI fora do intervalo estatístico, deve ser apresentado Relatório Técnico Circunstanciado justificando a adoção do percentual de cada parcela do BDI.","") -> 
A17: =A15 -> Construção de Redes de Abastecimento de Água, Coleta de Esgoto | B17: R | C17: Construção de Redes de Abastecimento de Água, Coleta de Esgoto-R | E17: 0.01 | F17: 0.0139 | G17: 0.0174
A18: =A17 -> Construção de Redes de Abastecimento de Água, Coleta de Esgoto | B18: DF | C18: Construção de Redes de Abastecimento de Água, Coleta de Esgoto-DF | E18: 0.0094 | F18: 0.0099 | G18: 0.0117 | I18: =IF($I$11=$A$59,"Encargos Sociais incidentes sobre a mão de obra","Administração Central") -> Administração Central | M18: =IF($I$11=$A$59,"K1","AC") -> AC | N18: 0 | O18: - | P18: =VLOOKUP(CONCATENATE(I$11,"-",M18),$C$2:$G$49,3,FALSE) ->  | Q18: =VLOOKUP(CONCATENATE(I$11,"-",M18),$C$2:$G$49,4,FALSE) ->  | R18: =VLOOKUP(CONCATENATE(I$11,"-",M18),$C$2:$G$49,5,FALSE) -> 
A19: =A18 -> Construção de Redes de Abastecimento de Água, Coleta de Esgoto | B19: L | C19: Construção de Redes de Abastecimento de Água, Coleta de Esgoto-L | E19: 0.0674 | F19: 0.0804 | G19: 0.094 | I19: =IF($I$11=$A$59,"Administração Central da empresa ou consultoria - overhead","Seguro e Garantia") -> Seguro e Garantia | M19: =IF($I$11=$A$59,"K2","SG") -> SG | N19: 0 | O19: - | P19: =VLOOKUP(CONCATENATE(I$11,"-",M19),$C$2:$G$49,3,FALSE) ->  | Q19: =VLOOKUP(CONCATENATE(I$11,"-",M19),$C$2:$G$49,4,FALSE) ->  | R19: =VLOOKUP(CONCATENATE(I$11,"-",M19),$C$2:$G$49,5,FALSE) -> 
A20: =A19 -> Construção de Redes de Abastecimento de Água, Coleta de Esgoto | B20: BDI PAD | C20: Construção de Redes de Abastecimento de Água, Coleta de Esgoto-BDI PAD | E20: 0.2076 | F20: 0.2418 | G20: 0.2644 | I20: =IF($I$11=$A$59,"","Risco") -> Risco | M20: =IF($I$11=$A$59,"","R") -> R | N20: 0 | O20: - | P20: =VLOOKUP(CONCATENATE(I$11,"-",M20),$C$2:$G$49,3,FALSE) ->  | Q20: =VLOOKUP(CONCATENATE(I$11,"-",M20),$C$2:$G$49,4,FALSE) ->  | R20: =VLOOKUP(CONCATENATE(I$11,"-",M20),$C$2:$G$49,5,FALSE) -> 
A21: Construção e Manutenção de Estações e Redes de Distribuição de Energia Elétrica | B21: AC | C21: Construção e Manutenção de Estações e Redes de Distribuição de Energia Elétrica-AC | E21: 0.0529 | F21: 0.0592 | G21: 0.0793 | I21: =IF($I$11=$A$59,"","Despesas Financeiras") -> Despesas Financeiras | M21: =IF($I$11=$A$59,"","DF") -> DF | N21: 0 | O21: - | P21: =VLOOKUP(CONCATENATE(I$11,"-",M21),$C$2:$G$49,3,FALSE) ->  | Q21: =VLOOKUP(CONCATENATE(I$11,"-",M21),$C$2:$G$49,4,FALSE) ->  | R21: =VLOOKUP(CONCATENATE(I$11,"-",M21),$C$2:$G$49,5,FALSE) -> 
A22: =A21 -> Construção e Manutenção de Estações e Redes de Distribuição de Energia Elétrica | B22: SG | C22: Construção e Manutenção de Estações e Redes de Distribuição de Energia Elétrica-SG | E22: 0.0025 | F22: 0.0051 | G22: 0.0056 | I22: =IF($I$11=$A$59,"Margem bruta da empresa de consultoria","Lucro") -> Lucro | M22: =IF($I$11=$A$59,"K3","L") -> L | N22: 0 | O22: - | P22: =VLOOKUP(CONCATENATE(I$11,"-",M22),$C$2:$G$49,3,FALSE) ->  | Q22: =VLOOKUP(CONCATENATE(I$11,"-",M22),$C$2:$G$49,4,FALSE) ->  | R22: =VLOOKUP(CONCATENATE(I$11,"-",M22),$C$2:$G$49,5,FALSE) -> 
A23: =A22 -> Construção e Manutenção de Estações e Redes de Distribuição de Energia Elétrica | B23: R | C23: Construção e Manutenção de Estações e Redes de Distribuição de Energia Elétrica-R | E23: 0.01 | F23: 0.0148 | G23: 0.0197 | I23: Tributos (impostos COFINS 3%, e PIS 0,65%) | M23: CP | N23: 0 | O23: - | P23: 0.0365 | Q23: 0.0365 | R23: 0.0365
A24: =A23 -> Construção e Manutenção de Estações e Redes de Distribuição de Energia Elétrica | B24: DF | C24: Construção e Manutenção de Estações e Redes de Distribuição de Energia Elétrica-DF | E24: 0.0101 | F24: 0.0107 | G24: 0.0111 | I24: Tributos (ISS, variável de acordo com o município) | M24: ISS | N24: =IF($I$11<>$A$58,Q14*Q13,0) -> 0 | O24: - | P24: 0 | Q24: 0.025 | R24: 0.05
A25: =A24 -> Construção e Manutenção de Estações e Redes de Distribuição de Energia Elétrica | B25: L | C25: Construção e Manutenção de Estações e Redes de Distribuição de Energia Elétrica-L | E25: 0.08 | F25: 0.0831 | G25: 0.0951 | I25: Tributos (Contribuição Previdenciária sobre a Receita Bruta - 0% ou 4,5% - Desoneração) | M25: CPRB | N25: =IF(AND($I$11<>$A$58,Q11="Sim"),4.5%,0%) -> 0 | O25: =IF(AND(N25>=P25, N25<=R25), "OK", "Não OK") -> OK | P25: 0 | Q25: 0.045 | R25: 0.045
A26: =A25 -> Construção e Manutenção de Estações e Redes de Distribuição de Energia Elétrica | B26: BDI PAD | C26: Construção e Manutenção de Estações e Redes de Distribuição de Energia Elétrica-BDI PAD | E26: 0.24 | F26: 0.2584 | G26: 0.2786 | I26: BDI SEM desoneração (Fórmula Acórdão TCU) | M26: BDI PAD | N26: =IF($I$11=$A$58,0,ROUND((((1+N18+N19+N20)*(1+N21)*(1+N22)/(1-(N23+N24)))-1),4)) -> 0 | O26: =IF(OR($I$11=$A$59,$I$11=$A$58,AND(N26>=P26, N26<=R26)), "OK", "FORA DO INTERVALO") -> OK | P26: =IF($I$11=$A$58,0,VLOOKUP(CONCATENATE($I$11,"-",$M26),$C$2:$G$49,3,FALSE)) -> 0 | Q26: =IF($I$11=$A$58,0,VLOOKUP(CONCATENATE($I$11,"-",$M26),$C$2:$G$49,4,FALSE)) -> 0 | R26: =IF($I$11=$A$58,0,VLOOKUP(CONCATENATE($I$11,"-",$M26),$C$2:$G$49,5,FALSE)) -> 0
A27: Obras Portuárias, Marítimas e Fluviais | B27: AC | C27: Obras Portuárias, Marítimas e Fluviais-AC | E27: 0.04 | F27: 0.0552 | G27: 0.0785 | I27: BDI COM desoneração | M27: BDI DES | N27: =IF($I$11=$A$58,0,ROUND((((1+N18+N19+N20)*(1+N21)*(1+N22)/(1-(N23+N24+N25)))-1),4)) -> 0 | O27: =IF(Q11<>"Sim","",O26) -> OK | V27: =AND(COUNTA(N18:N23)=6,O26<>"ok",NOT(V29)) -> FALSE | W27: pedir anexo
A28: =A27 -> Obras Portuárias, Marítimas e Fluviais | B28: SG | C28: Obras Portuárias, Marítimas e Fluviais-SG | E28: 0.0081 | F28: 0.0122 | G28: 0.0199
A29: =A28 -> Obras Portuárias, Marítimas e Fluviais | B29: R | C29: Obras Portuárias, Marítimas e Fluviais-R | E29: 0.0146 | F29: 0.0232 | G29: 0.0316 | I29: =IF(V29,"X","") ->  | J29: Anexo: Relatório Técnico Circunstanciado justificando a adoção do percentual de cada parcela do BDI. | V29: FALSE | W29: anexo apresentado
I31: Os valores de BDI foram calculados com o emprego da fórmula:
A32: =A29 -> Obras Portuárias, Marítimas e Fluviais | B32: DF | C32: Obras Portuárias, Marítimas e Fluviais-DF | E32: 0.0094 | F32: 0.0102 | G32: 0.0133 | L32: =IF(Q11="Sim","BDI.DES =","BDI.PAD =") -> BDI.DES = | M32: =IF($I$11=$A$59,"(1+K1+K2)*(1+K3)","(1+AC + S + R + G)*(1 + DF)*(1+L)") -> (1+AC + S + R + G)*(1 + DF)*(1+L) | P32: - 1
A33: =A32 -> Obras Portuárias, Marítimas e Fluviais | B33: L | C33: Obras Portuárias, Marítimas e Fluviais-L | E33: 0.0714 | F33: 0.084 | G33: 0.1043 | M33: =IF(Q11="Sim","(1-CP-ISS-CRPB)","(1-CP-ISS)") -> (1-CP-ISS-CRPB)
A34: =A33 -> Obras Portuárias, Marítimas e Fluviais | B34: BDI PAD | C34: Obras Portuárias, Marítimas e Fluviais-BDI PAD | E34: 0.228 | F34: 0.2748 | G34: 0.3095
I35: =CONCATENATE("Declaro para os devidos fins que, conforme legislação tributária municipal, a base de cálculo para ",I11,", é de ",Q13*100,"%, com a respectiva alíquota de ",Q14*100,"%.") -> Declaro para os devidos fins que, conforme legislação tributária municipal, a base de cálculo para Fornecimento de Materiais e Equipamentos (aquisição direta), é de 100%, com a respectiva alíquota de 3%.
I37: =CONCATENATE("Declaro para os devidos fins que o regime de Contribuição Previdenciária sobre a Receita Bruta adotado para elaboração do orçamento foi ",IF(Q11="Sim","COM","SEM")," Desoneração, e que esta é a alternativa mais adequada para a Administração Pública.") -> Declaro para os devidos fins que o regime de Contribuição Previdenciária sobre a Receita Bruta adotado para elaboração do orçamento foi COM Desoneração, e que esta é a alternativa mais adequada para a Administração Pública.
A38: Fornecimento de Materiais e Equipamentos (aquisição indireta - em conjunto com licitação de obras) | B38: AC | C38: Fornecimento de Materiais e Equipamentos (aquisição indireta - em conjunto com licitação de obras)-AC | E38: 0.015 | F38: 0.0345 | G38: 0.0449
A39: =A38 -> Fornecimento de Materiais e Equipamentos (aquisição indireta - em conjunto com licitação de obras) | B39: SG | C39: Fornecimento de Materiais e Equipamentos (aquisição indireta - em conjunto com licitação de obras)-SG | E39: 0.003 | F39: 0.0048 | G39: 0.0082 | I39: Observações:
A40: =A39 -> Fornecimento de Materiais e Equipamentos (aquisição indireta - em conjunto com licitação de obras) | B40: R | C40: Fornecimento de Materiais e Equipamentos (aquisição indireta - em conjunto com licitação de obras)-R | E40: 0.0056 | F40: 0.0085 | G40: 0.0089 | I40: Bdi apresentado com valor nulo em decorrência de que as cotações de mercado já apresentação o valor final
A41: =A40 -> Fornecimento de Materiais e Equipamentos (aquisição indireta - em conjunto com licitação de obras) | B41: DF | C41: Fornecimento de Materiais e Equipamentos (aquisição indireta - em conjunto com licitação de obras)-DF | E41: 0.0085 | F41: 0.0085 | G41: 0.0111
A42: =A41 -> Fornecimento de Materiais e Equipamentos (aquisição indireta - em conjunto com licitação de obras) | B42: L | C42: Fornecimento de Materiais e Equipamentos (aquisição indireta - em conjunto com licitação de obras)-L | E42: 0.035 | F42: 0.0511 | G42: 0.0622 | I42: =PO!K178 -> VARGEM BONITA/SC | O42: =PO!K181 -> 2019-03-18
A43: =A42 -> Fornecimento de Materiais e Equipamentos (aquisição indireta - em conjunto com licitação de obras) | B43: BDI PAD | C43: Fornecimento de Materiais e Equipamentos (aquisição indireta - em conjunto com licitação de obras)-BDI PAD | E43: 0.111 | F43: 0.1402 | G43: 0.168 | I43: Local | O43: Data
A44: Estudos e Projetos, Planos e Gerenciamento e outros correlatos | B44: K1 | C44: Estudos e Projetos, Planos e Gerenciamento e outros correlatos-K1 | E44: - | F44: - | G44: -
A45: =A44 -> Estudos e Projetos, Planos e Gerenciamento e outros correlatos | B45: K2 | C45: Estudos e Projetos, Planos e Gerenciamento e outros correlatos-K2 | E45: - | F45: 0.2 | G45: -
A46: =A45 -> Estudos e Projetos, Planos e Gerenciamento e outros correlatos | C46: Estudos e Projetos, Planos e Gerenciamento e outros correlatos- | E46: - | F46: - | G46: - | I46: Responsável Técnico | O46: Responsável Tomador
A47: =A46 -> Estudos e Projetos, Planos e Gerenciamento e outros correlatos | C47: Estudos e Projetos, Planos e Gerenciamento e outros correlatos- | E47: - | F47: - | G47: - | I47: Nome: | J47: =DADOS!B54 -> MAX MOOSHAMMER | O47: Nome: | P47: MELÂNIA AP. ROMAN MENEGHINI
A48: =A47 -> Estudos e Projetos, Planos e Gerenciamento e outros correlatos | B48: K3 | C48: Estudos e Projetos, Planos e Gerenciamento e outros correlatos-K3 | E48: - | F48: 0.12 | G48: - | I48: Título: | J48: =DADOS!B55 -> ENGENHEIRO CIVIL | O48: Cargo: | P48: PREFEITA MUNICIPAL DE VARGEM BONITA
A49: =A48 -> Estudos e Projetos, Planos e Gerenciamento e outros correlatos | B49: BDI PAD | C49: Estudos e Projetos, Planos e Gerenciamento e outros correlatos-BDI PAD | E49: - | F49: - | G49: - | I49: =DADOS!A56 -> CREA/CAU: | J49: =DADOS!B56 -> 139.164-0
I50: =DADOS!A57 -> ART/RRT: | J50: =DADOS!B57 -> 6699689-7
A52: Construção e Reforma de Edifícios
A53: Construção de Praças Urbanas, Rodovias, Ferrovias e recapeamento e pavimentação de vias urbanas
A54: Construção de Redes de Abastecimento de Água, Coleta de Esgoto
A55: Construção e Manutenção de Estações e Redes de Distribuição de Energia Elétrica
A56: Obras Portuárias, Marítimas e Fluviais
A57: Fornecimento de Materiais e Equipamentos (aquisição indireta - em conjunto com licitação de obras)
A58: Fornecimento de Materiais e Equipamentos (aquisição direta)
A59: Estudos e Projetos, Planos e Gerenciamento e outros correlatos

Sheet BDI (3)
E1: MIN | F1: MED | G1: MAX | N1: ="Quadro de Composição do BDI "&MID(CELL("nome.arquivo",N1),5+FIND("BDI (",CELL("nome.arquivo",N1)),1) -> Quadro de Composição do BDI 3
A2: Construção e Reforma de Edifícios | B2: AC | C2: =CONCATENATE(A2,"-",B2) -> Construção e Reforma de Edifícios-AC | E2: 0.03 | F2: 0.04 | G2: 0.055
A3: =A2 -> Construção e Reforma de Edifícios | B3: SG | C3: Construção e Reforma de Edifícios-SG | E3: 0.008 | F3: 0.008 | G3: 0.01
A4: =A3 -> Construção e Reforma de Edifícios | B4: R | C4: Construção e Reforma de Edifícios-R | E4: 0.0097 | F4: 0.0127 | G4: 0.0127 | I4: Nº TC/CR | K4: PROPONENTE / TOMADOR
A5: =A4 -> Construção e Reforma de Edifícios | B5: DF | C5: Construção e Reforma de Edifícios-DF | E5: 0.0059 | F5: 0.0123 | G5: 0.0139 | I5: =DADOS!A29 -> 1.041.962-43/2017 | K5: =DADOS!A32 -> PREFEITURA MUNICIPAL DE VARGEM BONITA/SC
A6: =A5 -> Construção e Reforma de Edifícios | B6: L | C6: Construção e Reforma de Edifícios-L | E6: 0.0616 | F6: 0.074 | G6: 0.0896
A7: =A6 -> Construção e Reforma de Edifícios | B7: BDI PAD | C7: Construção e Reforma de Edifícios-BDI PAD | E7: 0.2034 | F7: 0.2212 | G7: 0.25 | I7: OBJETO
A8: Construção de Praças Urbanas, Rodovias, Ferrovias e recapeamento e pavimentação de vias urbanas | B8: AC | C8: Construção de Praças Urbanas, Rodovias, Ferrovias e recapeamento e pavimentação de vias urbanas-AC | E8: 0.038 | F8: 0.0401 | G8: 0.0467 | I8: =DADOS!P29 -> CONSTRUÇÃO DA CASA DO PRODUTOR
A9: Construção de Praças Urbanas, Rodovias, Ferrovias e recapeamento e pavimentação de vias urbanas | B9: SG | C9: Construção de Praças Urbanas, Rodovias, Ferrovias e recapeamento e pavimentação de vias urbanas-SG | E9: 0.0032 | F9: 0.004 | G9: 0.0074
A10: Construção de Praças Urbanas, Rodovias, Ferrovias e recapeamento e pavimentação de vias urbanas | B10: R | C10: Construção de Praças Urbanas, Rodovias, Ferrovias e recapeamento e pavimentação de vias urbanas-R | E10: 0.005 | F10: 0.0056 | G10: 0.0097 | I10: TIPO DE OBRA DO EMPREENDIMENTO | Q10: DESONERAÇÃO
A11: Construção de Praças Urbanas, Rodovias, Ferrovias e recapeamento e pavimentação de vias urbanas | B11: DF | C11: Construção de Praças Urbanas, Rodovias, Ferrovias e recapeamento e pavimentação de vias urbanas-DF | E11: 0.0102 | F11: 0.0111 | G11: 0.0121 | I11: Fornecimento de Materiais e Equipamentos (aquisição direta) | Q11: =DADOS!$C$38 -> Sim
A12: Construção de Praças Urbanas, Rodovias, Ferrovias e recapeamento e pavimentação de vias urbanas | B12: L | C12: Construção de Praças Urbanas, Rodovias, Ferrovias e recapeamento e pavimentação de vias urbanas-L | E12: 0.0664 | F12: 0.073 | G12: 0.0869
A13: Construção de Praças Urbanas, Rodovias, Ferrovias e recapeamento e pavimentação de vias urbanas | B13: BDI PAD | C13: Construção de Praças Urbanas, Rodovias, Ferrovias e recapeamento e pavimentação de vias urbanas-BDI PAD | E13: 0.196 | F13: 0.2097 | G13: 0.2423 | I13: Conforme legislação tributária municipal, definir estimativa de percentual da base de cálculo para o ISS: | Q13: 1
A14: Construção de Redes de Abastecimento de Água, Coleta de Esgoto | B14: AC | C14: Construção de Redes de Abastecimento de Água, Coleta de Esgoto-AC | E14: 0.0343 | F14: 0.0493 | G14: 0.0671 | I14: Sobre a base de cálculo, definir a respectiva alíquota do ISS (entre 2% e 5%): | Q14: 0.03
A15: =A14 -> Construção de Redes de Abastecimento de Água, Coleta de Esgoto | B15: SG | C15: Construção de Redes de Abastecimento de Água, Coleta de Esgoto-SG | E15: 0.0028 | F15: 0.0049 | G15: 0.0075
I16: Itens | M16: Siglas | N16: % Adotado | O16: Situação | P16: 1º Quartil | Q16: Médio | R16: 3º Quartil | T16: =IF(V27,"Para BDI fora do intervalo estatístico, deve ser apresentado Relatório Técnico Circunstanciado justificando a adoção do percentual de cada parcela do BDI.","") -> 
A17: =A15 -> Construção de Redes de Abastecimento de Água, Coleta de Esgoto | B17: R | C17: Construção de Redes de Abastecimento de Água, Coleta de Esgoto-R | E17: 0.01 | F17: 0.0139 | G17: 0.0174
A18: =A17 -> Construção de Redes de Abastecimento de Água, Coleta de Esgoto | B18: DF | C18: Construção de Redes de Abastecimento de Água, Coleta de Esgoto-DF | E18: 0.0094 | F18: 0.0099 | G18: 0.0117 | I18: =IF($I$11=$A$59,"Encargos Sociais incidentes sobre a mão de obra","Administração Central") -> Administração Central | M18: =IF($I$11=$A$59,"K1","AC") -> AC | N18: 0 | O18: - | P18: =VLOOKUP(CONCATENATE(I$11,"-",M18),$C$2:$G$49,3,FALSE) ->  | Q18: =VLOOKUP(CONCATENATE(I$11,"-",M18),$C$2:$G$49,4,FALSE) ->  | R18: =VLOOKUP(CONCATENATE(I$11,"-",M18),$C$2:$G$49,5,FALSE) -> 
A19: =A18 -> Construção de Redes de Abastecimento de Água, Coleta de Esgoto | B19: L | C19: Construção de Redes de Abastecimento de Água, Coleta de Esgoto-L | E19: 0.0674 | F19: 0.0804 | G19: 0.094 | I19: =IF($I$11=$A$59,"Administração Central da empresa ou consultoria - overhead","Seguro e Garantia") -> Seguro e Garantia | M19: =IF($I$11=$A$59,"K2","SG") -> SG | N19: 0 | O19: - | P19: =VLOOKUP(CONCATENATE(I$11,"-",M19),$C$2:$G$49,3,FALSE) ->  | Q19: =VLOOKUP(CONCATENATE(I$11,"-",M19),$C$2:$G$49,4,FALSE) ->  | R19: =VLOOKUP(CONCATENATE(I$11,"-",M19),$C$2:$G$49,5,FALSE) -> 
A20: =A19 -> Construção de Redes de Abastecimento de Água, Coleta de Esgoto | B20: BDI PAD | C20: Construção de Redes de Abastecimento de Água, Coleta de Esgoto-BDI PAD | E20: 0.2076 | F20: 0.2418 | G20: 0.2644 | I20: =IF($I$11=$A$59,"","Risco") -> Risco | M20: =IF($I$11=$A$59,"","R") -> R | N20: 0 | O20: - | P20: =VLOOKUP(CONCATENATE(I$11,"-",M20),$C$2:$G$49,3,FALSE) ->  | Q20: =VLOOKUP(CONCATENATE(I$11,"-",M20),$C$2:$G$49,4,FALSE) ->  | R20: =VLOOKUP(CONCATENATE(I$11,"-",M20),$C$2:$G$49,5,FALSE) -> 
A21: Construção e Manutenção de Estações e Redes de Distribuição de Energia Elétrica | B21: AC | C21: Construção e Manutenção de Estações e Redes de Distribuição de Energia Elétrica-AC | E21: 0.0529 | F21: 0.0592 | G21: 0.0793 | I21: =IF($I$11=$A$59,"","Despesas Financeiras") -> Despesas Financeiras | M21: =IF($I$11=$A$59,"","DF") -> DF | N21: 0 | O21: - | P21: =VLOOKUP(CONCATENATE(I$11,"-",M21),$C$2:$G$49,3,FALSE) ->  | Q21: =VLOOKUP(CONCATENATE(I$11,"-",M21),$C$2:$G$49,4,FALSE) ->  | R21: =VLOOKUP(CONCATENATE(I$11,"-",M21),$C$2:$G$49,5,FALSE) -> 
A22: =A21 -> Construção e Manutenção de Estações e Redes de Distribuição de Energia Elétrica | B22: SG | C22: Construção e Manutenção de Estações e Redes de Distribuição de Energia Elétrica-SG | E22: 0.0025 | F22: 0.0051 | G22: 0.0056 | I22: =IF($I$11=$A$59,"Margem bruta da empresa de consultoria","Lucro") -> Lucro | M22: =IF($I$11=$A$59,"K3","L") -> L | N22: 0 | O22: - | P22: =VLOOKUP(CONCATENATE(I$11,"-",M22),$C$2:$G$49,3,FALSE) ->  | Q22: =VLOOKUP(CONCATENATE(I$11,"-",M22),$C$2:$G$49,4,FALSE) ->  | R22: =VLOOKUP(CONCATENATE(I$11,"-",M22),$C$2:$G$49,5,FALSE) -> 
A23: =A22 -> Construção e Manutenção de Estações e Redes de Distribuição de Energia Elétrica | B23: R | C23: Construção e Manutenção de Estações e Redes de Distribuição de Energia Elétrica-R | E23: 0.01 | F23: 0.0148 | G23: 0.0197 | I23: Tributos (impostos COFINS 3%, e PIS 0,65%) | M23: CP | N23: 0 | O23: - | P23: 0.0365 | Q23: 0.0365 | R23: 0.0365
A24: =A23 -> Construção e Manutenção de Estações e Redes de Distribuição de Energia Elétrica | B24: DF | C24: Construção e Manutenção de Estações e Redes de Distribuição de Energia Elétrica-DF | E24: 0.0101 | F24: 0.0107 | G24: 0.0111 | I24: Tributos (ISS, variável de acordo com o município) | M24: ISS | N24: =IF($I$11<>$A$58,Q14*Q13,0) -> 0 | O24: - | P24: 0 | Q24: 0.025 | R24: 0.05
A25: =A24 -> Construção e Manutenção de Estações e Redes de Distribuição de Energia Elétrica | B25: L | C25: Construção e Manutenção de Estações e Redes de Distribuição de Energia Elétrica-L | E25: 0.08 | F25: 0.0831 | G25: 0.0951 | I25: Tributos (Contribuição Previdenciária sobre a Receita Bruta - 0% ou 4,5% - Desoneração) | M25: CPRB | N25: =IF(AND($I$11<>$A$58,Q11="Sim"),4.5%,0%) -> 0 | O25: =IF(AND(N25>=P25, N25<=R25), "OK", "Não OK") -> OK | P25: 0 | Q25: 0.045 | R25: 0.045
A26: =A25 -> Construção e Manutenção de Estações e Redes de Distribuição de Energia Elétrica | B26: BDI PAD | C26: Construção e Manutenção de Estações e Redes de Distribuição de Energia Elétrica-BDI PAD | E26: 0.24 | F26: 0.2584 | G26: 0.2786 | I26: BDI SEM desoneração (Fórmula Acórdão TCU) | M26: BDI PAD | N26: =IF($I$11=$A$58,0,ROUND((((1+N18+N19+N20)*(1+N21)*(1+N22)/(1-(N23+N24)))-1),4)) -> 0 | O26: =IF(OR($I$11=$A$59,$I$11=$A$58,AND(N26>=P26, N26<=R26)), "OK", "FORA DO INTERVALO") -> OK | P26: =IF($I$11=$A$58,0,VLOOKUP(CONCATENATE($I$11,"-",$M26),$C$2:$G$49,3,FALSE)) -> 0 | Q26: =IF($I$11=$A$58,0,VLOOKUP(CONCATENATE($I$11,"-",$M26),$C$2:$G$49,4,FALSE)) -> 0 | R26: =IF($I$11=$A$58,0,VLOOKUP(CONCATENATE($I$11,"-",$M26),$C$2:$G$49,5,FALSE)) -> 0
A27: Obras Portuárias, Marítimas e Fluviais | B27: AC | C27: Obras Portuárias, Marítimas e Fluviais-AC | E27: 0.04 | F27: 0.0552 | G27: 0.0785 | I27: BDI COM desoneração | M27: BDI DES | N27: =IF($I$11=$A$58,0,ROUND((((1+N18+N19+N20)*(1+N21)*(1+N22)/(1-(N23+N24+N25)))-1),4)) -> 0 | O27: =IF(Q11<>"Sim","",O26) -> OK | V27: =AND(COUNTA(N18:N23)=6,O26<>"ok",NOT(V29)) -> FALSE | W27: pedir anexo
A28: =A27 -> Obras Portuárias, Marítimas e Fluviais | B28: SG | C28: Obras Portuárias, Marítimas e Fluviais-SG | E28: 0.0081 | F28: 0.0122 | G28: 0.0199
A29: =A28 -> Obras Portuárias, Marítimas e Fluviais | B29: R | C29: Obras Portuárias, Marítimas e Fluviais-R | E29: 0.0146 | F29: 0.0232 | G29: 0.0316 | I29: =IF(V29,"X","") ->  | J29: Anexo: Relatório Técnico Circunstanciado justificando a adoção do percentual de cada parcela do BDI. | V29: FALSE | W29: anexo apresentado
I31: Os valores de BDI foram calculados com o emprego da fórmula:
A32: =A29 -> Obras Portuárias, Marítimas e Fluviais | B32: DF | C32: Obras Portuárias, Marítimas e Fluviais-DF | E32: 0.0094 | F32: 0.0102 | G32: 0.0133 | L32: =IF(Q11="Sim","BDI.DES =","BDI.PAD =") -> BDI.DES = | M32: =IF($I$11=$A$59,"(1+K1+K2)*(1+K3)","(1+AC + S + R + G)*(1 + DF)*(1+L)") -> (1+AC + S + R + G)*(1 + DF)*(1+L) | P32: - 1
A33: =A32 -> Obras Portuárias, Marítimas e Fluviais | B33: L | C33: Obras Portuárias, Marítimas e Fluviais-L | E33: 0.0714 | F33: 0.084 | G33: 0.1043 | M33: =IF(Q11="Sim","(1-CP-ISS-CRPB)","(1-CP-ISS)") -> (1-CP-ISS-CRPB)
A34: =A33 -> Obras Portuárias, Marítimas e Fluviais | B34: BDI PAD | C34: Obras Portuárias, Marítimas e Fluviais-BDI PAD | E34: 0.228 | F34: 0.2748 | G34: 0.3095
I35: =CONCATENATE("Declaro para os devidos fins que, conforme legislação tributária municipal, a base de cálculo para ",I11,", é de ",Q13*100,"%, com a respectiva alíquota de ",Q14*100,"%.") -> Declaro para os devidos fins que, conforme legislação tributária municipal, a base de cálculo para Fornecimento de Materiais e Equipamentos (aquisição direta), é de 100%, com a respectiva alíquota de 3%.
I37: =CONCATENATE("Declaro para os devidos fins que o regime de Contribuição Previdenciária sobre a Receita Bruta adotado para elaboração do orçamento foi ",IF(Q11="Sim","COM","SEM")," Desoneração, e que esta é a alternativa mais adequada para a Administração Pública.") -> Declaro para os devidos fins que o regime de Contribuição Previdenciária sobre a Receita Bruta adotado para elaboração do orçamento foi COM Desoneração, e que esta é a alternativa mais adequada para a Administração Pública.
A38: Fornecimento de Materiais e Equipamentos (aquisição indireta - em conjunto com licitação de obras) | B38: AC | C38: Fornecimento de Materiais e Equipamentos (aquisição indireta - em conjunto com licitação de obras)-AC | E38: 0.015 | F38: 0.0345 | G38: 0.0449
A39: =A38 -> Fornecimento de Materiais e Equipamentos (aquisição indireta - em conjunto com licitação de obras) | B39: SG | C39: Fornecimento de Materiais e Equipamentos (aquisição indireta - em conjunto com licitação de obras)-SG | E39: 0.003 | F39: 0.0048 | G39: 0.0082 | I39: Observações:
A40: =A39 -> Fornecimento de Materiais e Equipamentos (aquisição indireta - em conjunto com licitação de obras) | B40: R | C40: Fornecimento de Materiais e Equipamentos (aquisição indireta - em conjunto com licitação de obras)-R | E40: 0.0056 | F40: 0.0085 | G40: 0.0089
A41: =A40 -> Fornecimento de Materiais e Equipamentos (aquisição indireta - em conjunto com licitação de obras) | B41: DF | C41: Fornecimento de Materiais e Equipamentos (aquisição indireta - em conjunto com licitação de obras)-DF | E41: 0.0085 | F41: 0.0085 | G41: 0.0111
A42: =A41 -> Fornecimento de Materiais e Equipamentos (aquisição indireta - em conjunto com licitação de obras) | B42: L | C42: Fornecimento de Materiais e Equipamentos (aquisição indireta - em conjunto com licitação de obras)-L | E42: 0.035 | F42: 0.0511 | G42: 0.0622 | I42: =PO!K178 -> VARGEM BONITA/SC | O42: =PO!K181 -> 2019-03-18
A43: =A42 -> Fornecimento de Materiais e Equipamentos (aquisição indireta - em conjunto com licitação de obras) | B43: BDI PAD | C43: Fornecimento de Materiais e Equipamentos (aquisição indireta - em conjunto com licitação de obras)-BDI PAD | E43: 0.111 | F43: 0.1402 | G43: 0.168 | I43: Local | O43: Data
A44: Estudos e Projetos, Planos e Gerenciamento e outros correlatos | B44: K1 | C44: Estudos e Projetos, Planos e Gerenciamento e outros correlatos-K1 | E44: - | F44: - | G44: -
A45: =A44 -> Estudos e Projetos, Planos e Gerenciamento e outros correlatos | B45: K2 | C45: Estudos e Projetos, Planos e Gerenciamento e outros correlatos-K2 | E45: - | F45: 0.2 | G45: -
A46: =A45 -> Estudos e Projetos, Planos e Gerenciamento e outros correlatos | C46: Estudos e Projetos, Planos e Gerenciamento e outros correlatos- | E46: - | F46: - | G46: - | I46: Responsável Técnico | O46: Responsável Tomador
A47: =A46 -> Estudos e Projetos, Planos e Gerenciamento e outros correlatos | C47: Estudos e Projetos, Planos e Gerenciamento e outros correlatos- | E47: - | F47: - | G47: - | I47: Nome: | J47: =DADOS!B54 -> MAX MOOSHAMMER | O47: Nome: | P47: MELÂNIA AP. ROMAN MENEGHINI
A48: =A47 -> Estudos e Projetos, Planos e Gerenciamento e outros correlatos | B48: K3 | C48: Estudos e Projetos, Planos e Gerenciamento e outros correlatos-K3 | E48: - | F48: 0.12 | G48: - | I48: Título: | J48: =DADOS!B55 -> ENGENHEIRO CIVIL | O48: Cargo: | P48: PREFEITA MUNICIPAL DE VARGEM BONITA
A49: =A48 -> Estudos e Projetos, Planos e Gerenciamento e outros correlatos | B49: BDI PAD | C49: Estudos e Projetos, Planos e Gerenciamento e outros correlatos-BDI PAD | E49: - | F49: - | G49: - | I49: =DADOS!A56 -> CREA/CAU: | J49: =DADOS!B56 -> 139.164-0
I50: =DADOS!A57 -> ART/RRT: | J50: =DADOS!B57 -> 6699689-7
A52: Construção e Reforma de Edifícios
A53: Construção de Praças Urbanas, Rodovias, Ferrovias e recapeamento e pavimentação de vias urbanas
A54: Construção de Redes de Abastecimento de Água, Coleta de Esgoto
A55: Construção e Manutenção de Estações e Redes de Distribuição de Energia Elétrica
A56: Obras Portuárias, Marítimas e Fluviais
A57: Fornecimento de Materiais e Equipamentos (aquisição indireta - em conjunto com licitação de obras)
A58: Fornecimento de Materiais e Equipamentos (aquisição direta)
A59: Estudos e Projetos, Planos e Gerenciamento e outros correlatos

Sheet PO
N1: PO - PLANILHA ORÇAMENTÁRIA | T1: Grau de Sigilo
B2: LOTE | C2: Meta | D2: Nível 2 | E2: Nível 3 | F2: Nível 4 | G2: Serviço | N2: =CHOOSE(1+LOG(1+2*(TipoOrçamento="BASE")+4*(TipoOrçamento="LICITADO")+8*(TipoOrçamento="REPROGRAMADOAC")+16*(TipoOrçamento="REPROGRAMADONPL"),2),"nada","Orçamento Base para Licitação","Orçamento Licitado","Orçamento Licitado Reprogramado","Orçamento Base para Licitação - Reprogramado") -> Orçamento Base para Licitação | T2: #PUBLICO | W2: Arredondamento
W3: Quantidade | X3: TRUE
A4: Nmax | U4: ERRO GERAL | W4: Custo Unitáro | X4: TRUE
A5: =MAX($A$12:$A$167) -> 2 | U5: =IF(COUNTIF($U$12:OFFSET($U$167,-1,0),"DESCRIÇÃO")+COUNTIF($U$12:OFFSET($U$167,-1,0),"UNIDADE")+COUNTIF($U$12:OFFSET($U$167,-1,0),"SEM VALOR")>0,"NÃO OK","OK") -> NÃO OK | W5: BDI | X5: TRUE
W6: Preço Unitário | X6: TRUE
W7: Preço Total | X7: TRUE
P9: =OFFSET(PLQ!$E$12,ROW($P9)-ROW(P$12),0) -> -
A10: Nível | B10: Altura | C10: n1 | D10: n2 | E10: n3 | F10: n4 | G10: n5 | H10: Czero | I10: Cnível | J10: Nível | K10: Item | L10: Fonte | M10: Código | N10: Descrição | O10: Unidade | P10: Quantidade | Q10: =IF(OR(TipoOrçamento="LICITADO",TipoOrçamento="REPROGRAMADOAC"),"Preço Unitário (R$)","Custo Unitário (R$)") -> Custo Unitário (R$) | R10: BDI (%) | S10: Preço Unitário (R$) | T10: Preço Total (R$) | U10: Erro de Dados | V10: Lista Crono | W10: Concatenação Fonte-Código | X10: BancoRef | Y10: =IF(TipoOrçamento="LICITADO","Preço Unitário Edital (R$)","Custo Unitário Referência (R$)") -> Custo Unitário Referência (R$) | Z10: =IF(TipoOrçamento="LICITADO","Valor BDI Edital","Valor BDI") -> Valor BDI
A11: =CHOOSE(1+LOG(1+2*(J11="Meta")+4*(J11="Nível 2")+8*(J11="Nível 3")+16*(J11="Nível 4")+32*(J11="Serviço"),2),0,1,2,3,4,"S") -> S | B11: =IF(OR(A11="S",A11=0),0,IF(ISERROR(I11),H11,SMALL(H11:I11,1))) -> 0 | C11: =IF($A11=1,OFFSET(C11,-1,0)+1,OFFSET(C11,-1,0)) -> n1 | D11: =IF($A11=1,0,IF($A11=2,OFFSET(D11,-1,0)+1,OFFSET(D11,-1,0))) -> n2 | E11: =IF(AND($A11<=2,$A11<>0),0,IF($A11=3,OFFSET(E11,-1,0)+1,OFFSET(E11,-1,0))) -> n3 | F11: =IF(AND($A11<=3,$A11<>0),0,IF($A11=4,OFFSET(F11,-1,0)+1,OFFSET(F11,-1,0))) -> n4 | G11: =IF(AND($A11<=4,$A11<>0),0,IF($A11="S",OFFSET(G11,-1,0)+1,OFFSET(G11,-1,0))) ->  | H11: =IF(OR($A11="S",$A11=0),0,MATCH(0,OFFSET($B11,1,$A11,ROW($A$167)-ROW($A11)),0)) -> 0 | I11: =IF(OR($A11="S",$A11=0),0,MATCH(OFFSET($B11,0,$A11)+1,OFFSET($B11,1,$A11,ROW($A$167)-ROW($A11)),0)) -> 0 | J11: Serviço | K11: =IF($A11=0,"-",CONCATENATE(C11&".",IF(AND($A$5>=2,$A11>=2),D11&".",""),IF(AND($A$5>=3,$A11>=3),E11&".",""),IF(AND($A$5>=4,$A11>=4),F11&".",""),IF($A11="S",G11&".",""))) ->  | N11: =IF($A11="S",Referencia.Descricao,"(digite a descrição aqui)") ->  | O11: =Referencia.Unidade ->  | P11: =OFFSET(PLQ!$E$12,ROW($P11)-ROW(P$12),0) -> 0 | R11: BDI 1 | S11: =IF($A11="S",IF($Q$10="Preço Unitário (R$)",PO.CustoUnitario,ROUND(PO.CustoUnitario*(1+$Z11),15-13*$X$6)),0) -> 0 | T11: =IF($A11="S",VTOTAL1,IF($A11=0,0,ROUND(SomaAgrup,15-13*$X$7))) -> 0 | U11: =IF($J11="","",IF($N11="","DESCRIÇÃO",IF(AND($J11="Serviço",$O11=""),"UNIDADE",IF($T11<=0,"SEM VALOR",IF(AND($Y11<>"",$Q11>$Y11),"ACIMA REF.",""))))) -> DESCRIÇÃO | V11: =IF(OR($A11=0,$A11="S",$A11>CFF!$A$9),"",MAX(V$12:OFFSET(V11,-1,0))+1) ->  | W11: =IF(AND($J11="Serviço",$M11<>""),IF($L11="",$M11,CONCATENATE($L11,"-",$M11))) -> FALSE | X11: =IF(AND(Fonte<>"",Código<>""),MATCH(Fonte&" "&IF(Fonte="sinapi",SUBSTITUTE(SUBSTITUTE(Código,"/00","/"),"/0","/"),Código),INDIRECT("'[Referência "&_xlnm.Database&".xls]Banco'!$a:$a"),0),"X") -> X | Y11: =IF(Import.Desoneracao="sim",Referencia.Desonerado,Referencia.NaoDesonerado) -> 0 | Z11: =ROUND(IF(ISNUMBER(R11),R11,IF(LEFT(R11,3)="BDI",HLOOKUP(R11,DADOS!$T$37:$X$38,2,FALSE),0)),15-11*$X$5) -> 0.2652
A12: 0 | B12: =COUNTA(OFFSET(B12,1,0):B$167) -> 154 | J12: =IF(OR(TipoOrçamento="LICITADO",TipoOrçamento="REPROGRAMADOAC"),"CTEF","LOTE") -> LOTE | K12: 0 | N12: =IF(TipoOrçamento="LICITADO",DADOS!O43,DADOS!G38) -> 0 | T12: =SUMIF(OFFSET($J12,1,0,ROW(T167)-ROW(T12)-1),"Serviço",OFFSET(T12,1,0,ROW(T167)-ROW(T12)-1)) -> 994610.41 | U12: =IF($N12=0,"DESCRIÇÃO","") -> DESCRIÇÃO | V12: 0
A13: =CHOOSE(1+LOG(1+2*(J13="Meta")+4*(J13="Nível 2")+8*(J13="Nível 3")+16*(J13="Nível 4")+32*(J13="Serviço"),2),0,1,2,3,4,"S") -> 1 | B13: =IF(OR(A13="S",A13=0),0,IF(ISERROR(I13),H13,SMALL(H13:I13,1))) -> 154 | C13: =IF($A13=1,OFFSET(C13,-1,0)+1,OFFSET(C13,-1,0)) -> 1 | D13: =IF($A13=1,0,IF($A13=2,OFFSET(D13,-1,0)+1,OFFSET(D13,-1,0))) -> 0 | E13: =IF(AND($A13<=2,$A13<>0),0,IF($A13=3,OFFSET(E13,-1,0)+1,OFFSET(E13,-1,0))) -> 0 | F13: =IF(AND($A13<=3,$A13<>0),0,IF($A13=4,OFFSET(F13,-1,0)+1,OFFSET(F13,-1,0))) -> 0 | G13: =IF(AND($A13<=4,$A13<>0),0,IF($A13="S",OFFSET(G13,-1,0)+1,OFFSET(G13,-1,0))) -> 0 | H13: =IF(OR($A13="S",$A13=0),0,MATCH(0,OFFSET($B13,1,$A13,ROW($A$167)-ROW($A13)),0)) -> 154 | I13: =IF(OR($A13="S",$A13=0),0,MATCH(OFFSET($B13,0,$A13)+1,OFFSET($B13,1,$A13,ROW($A$167)-ROW($A13)),0)) ->  | J13: Meta | K13: =IF($A13=0,"-",CONCATENATE(C13&".",IF(AND($A$5>=2,$A13>=2),D13&".",""),IF(AND($A$5>=3,$A13>=3),E13&".",""),IF(AND($A$5>=4,$A13>=4),F13&".",""),IF($A13="S",G13&".",""))) -> 1. | N13: CASA DO PRODUTOR | O13: =Referencia.Unidade ->  | P13: =OFFSET(PLQ!$E$12,ROW($P13)-ROW(P$12),0) -> 0 | R13: BDI 1 | S13: =IF($A13="S",IF($Q$10="Preço Unitário (R$)",PO.CustoUnitario,ROUND(PO.CustoUnitario*(1+$Z13),15-13*$X$6)),0) -> 0 | T13: =IF($A13="S",VTOTAL1,IF($A13=0,0,ROUND(SomaAgrup,15-13*$X$7))) -> 994610.41 | U13: =IF($J13="","",IF($N13="","DESCRIÇÃO",IF(AND($J13="Serviço",$O13=""),"UNIDADE",IF($T13<=0,"SEM VALOR",IF(AND($Y13<>"",$Q13>$Y13),"ACIMA REF.",""))))) ->  | V13: =IF(OR($A13=0,$A13="S",$A13>CFF!$A$9),"",MAX(V$12:OFFSET(V13,-1,0))+1) -> 1 | W13: =IF(AND($J13="Serviço",$M13<>""),IF($L13="",$M13,CONCATENATE($L13,"-",$M13))) -> FALSE | X13: =IF(AND(Fonte<>"",Código<>""),MATCH(Fonte&" "&IF(Fonte="sinapi",SUBSTITUTE(SUBSTITUTE(Código,"/00","/"),"/0","/"),Código),INDIRECT("'[Referência "&_xlnm.Database&".xls]Banco'!$a:$a"),0),"X") -> X | Y13: =IF(Import.Desoneracao="sim",Referencia.Desonerado,Referencia.NaoDesonerado) -> 0 | Z13: =ROUND(IF(ISNUMBER(R13),R13,IF(LEFT(R13,3)="BDI",HLOOKUP(R13,DADOS!$T$37:$X$38,2,FALSE),0)),15-11*$X$5) -> 0.2652
A14: =CHOOSE(1+LOG(1+2*(J14="Meta")+4*(J14="Nível 2")+8*(J14="Nível 3")+16*(J14="Nível 4")+32*(J14="Serviço"),2),0,1,2,3,4,"S") -> 2 | B14: =IF(OR(A14="S",A14=0),0,IF(ISERROR(I14),H14,SMALL(H14:I14,1))) -> 4 | C14: =IF($A14=1,OFFSET(C14,-1,0)+1,OFFSET(C14,-1,0)) -> 1 | D14: =IF($A14=1,0,IF($A14=2,OFFSET(D14,-1,0)+1,OFFSET(D14,-1,0))) -> 1 | E14: =IF(AND($A14<=2,$A14<>0),0,IF($A14=3,OFFSET(E14,-1,0)+1,OFFSET(E14,-1,0))) -> 0 | F14: =IF(AND($A14<=3,$A14<>0),0,IF($A14=4,OFFSET(F14,-1,0)+1,OFFSET(F14,-1,0))) -> 0 | G14: =IF(AND($A14<=4,$A14<>0),0,IF($A14="S",OFFSET(G14,-1,0)+1,OFFSET(G14,-1,0))) -> 0 | H14: 153 | I14: 4 | J14: Nível 2 | K14: =IF($A14=0,"-",CONCATENATE(C14&".",IF(AND($A$5>=2,$A14>=2),D14&".",""),IF(AND($A$5>=3,$A14>=3),E14&".",""),IF(AND($A$5>=4,$A14>=4),F14&".",""),IF($A14="S",G14&".",""))) -> 1.1. | L14: SINAPI | M14: 74209/001 | N14: SERVIÇOS INICIAIS | O14: =Referencia.Unidade -> M2 | P14: =OFFSET(PLQ!$E$12,ROW($P14)-ROW(P$12),0) -> 0 | R14: BDI 1 | S14: =IF($A14="S",IF($Q$10="Preço Unitário (R$)",PO.CustoUnitario,ROUND(PO.CustoUnitario*(1+$Z14),15-13*$X$6)),0) -> 0 | T14: =IF($A14="S",VTOTAL1,IF($A14=0,0,ROUND(SomaAgrup,15-13*$X$7))) -> 2662.77 | U14: =IF($J14="","",IF($N14="","DESCRIÇÃO",IF(AND($J14="Serviço",$O14=""),"UNIDADE",IF($T14<=0,"SEM VALOR",IF(AND($Y14<>"",$Q14>$Y14),"ACIMA REF.",""))))) ->  | V14: =IF(OR($A14=0,$A14="S",$A14>CFF!$A$9),"",MAX(V$12:OFFSET(V14,-1,0))+1) -> 2 | W14: =IF(AND($J14="Serviço",$M14<>""),IF($L14="",$M14,CONCATENATE($L14,"-",$M14))) -> FALSE | X14: =IF(AND(Fonte<>"",Código<>""),MATCH(Fonte&" "&IF(Fonte="sinapi",SUBSTITUTE(SUBSTITUTE(Código,"/00","/"),"/0","/"),Código),INDIRECT("'[Referência "&_xlnm.Database&".xls]Banco'!$a:$a"),0),"X") -> 5982 | Y14: =IF(Import.Desoneracao="sim",Referencia.Desonerado,Referencia.NaoDesonerado) -> 308.89 | Z14: =ROUND(IF(ISNUMBER(R14),R14,IF(LEFT(R14,3)="BDI",HLOOKUP(R14,DADOS!$T$37:$X$38,2,FALSE),0)),15-11*$X$5) -> 0.2652
A15: =CHOOSE(1+LOG(1+2*(J15="Meta")+4*(J15="Nível 2")+8*(J15="Nível 3")+16*(J15="Nível 4")+32*(J15="Serviço"),2),0,1,2,3,4,"S") -> S | B15: =IF(OR(A15="S",A15=0),0,IF(ISERROR(I15),H15,SMALL(H15:I15,1))) -> 0 | C15: =IF($A15=1,OFFSET(C15,-1,0)+1,OFFSET(C15,-1,0)) -> 1 | D15: =IF($A15=1,0,IF($A15=2,OFFSET(D15,-1,0)+1,OFFSET(D15,-1,0))) -> 1 | E15: =IF(AND($A15<=2,$A15<>0),0,IF($A15=3,OFFSET(E15,-1,0)+1,OFFSET(E15,-1,0))) -> 0 | F15: =IF(AND($A15<=3,$A15<>0),0,IF($A15=4,OFFSET(F15,-1,0)+1,OFFSET(F15,-1,0))) -> 0 | G15: =IF(AND($A15<=4,$A15<>0),0,IF($A15="S",OFFSET(G15,-1,0)+1,OFFSET(G15,-1,0))) -> 1 | H15: 0 | I15: 0 | J15: Serviço | K15: =IF($A15=0,"-",CONCATENATE(C15&".",IF(AND($A$5>=2,$A15>=2),D15&".",""),IF(AND($A$5>=3,$A15>=3),E15&".",""),IF(AND($A$5>=4,$A15>=4),F15&".",""),IF($A15="S",G15&".",""))) -> 1.1.1. | L15: SINAPI | M15: 74209/001 | N15: PLACA DE OBRA EM CHAPA DE ACO GALVANIZADO PADRÃO GOVERNO FEDERAL | O15: M2 | P15: =OFFSET(PLQ!$E$12,ROW($P15)-ROW(P$12),0) -> 2.5 | Q15: 262.56 | R15: BDI 1 | S15: 332.19 | T15: 830.48 | U15: =IF($J15="","",IF($N15="","DESCRIÇÃO",IF(AND($J15="Serviço",$O15=""),"UNIDADE",IF($T15<=0,"SEM VALOR",IF(AND($Y15<>"",$Q15>$Y15),"ACIMA REF.",""))))) ->  | V15: =IF(OR($A15=0,$A15="S",$A15>CFF!$A$9),"",MAX(V$12:OFFSET(V15,-1,0))+1) ->  | W15: =IF(AND($J15="Serviço",$M15<>""),IF($L15="",$M15,CONCATENATE($L15,"-",$M15))) -> SINAPI-74209/001 | X15: 5982 | Y15: =IF(Import.Desoneracao="sim",Referencia.Desonerado,Referencia.NaoDesonerado) -> 308.89 | Z15: =ROUND(IF(ISNUMBER(R15),R15,IF(LEFT(R15,3)="BDI",HLOOKUP(R15,DADOS!$T$37:$X$38,2,FALSE),0)),15-11*$X$5) -> 0.2652
A16: =CHOOSE(1+LOG(1+2*(J16="Meta")+4*(J16="Nível 2")+8*(J16="Nível 3")+16*(J16="Nível 4")+32*(J16="Serviço"),2),0,1,2,3,4,"S") -> S | B16: =IF(OR(A16="S",A16=0),0,IF(ISERROR(I16),H16,SMALL(H16:I16,1))) -> 0 | C16: =IF($A16=1,OFFSET(C16,-1,0)+1,OFFSET(C16,-1,0)) -> 1 | D16: =IF($A16=1,0,IF($A16=2,OFFSET(D16,-1,0)+1,OFFSET(D16,-1,0))) -> 1 | E16: =IF(AND($A16<=2,$A16<>0),0,IF($A16=3,OFFSET(E16,-1,0)+1,OFFSET(E16,-1,0))) -> 0 | F16: =IF(AND($A16<=3,$A16<>0),0,IF($A16=4,OFFSET(F16,-1,0)+1,OFFSET(F16,-1,0))) -> 0 | G16: =IF(AND($A16<=4,$A16<>0),0,IF($A16="S",OFFSET(G16,-1,0)+1,OFFSET(G16,-1,0))) -> 2 | H16: 0 | I16: 0 | J16: Serviço | K16: =IF($A16=0,"-",CONCATENATE(C16&".",IF(AND($A$5>=2,$A16>=2),D16&".",""),IF(AND($A$5>=3,$A16>=3),E16&".",""),IF(AND($A$5>=4,$A16>=4),F16&".",""),IF($A16="S",G16&".",""))) -> 1.1.2. | L16: SINAPI | M16: 74209/001 | N16: PLACA DE OBRA EM CHAPA DE ACO GALVANIZADO PADRÃO AMMOC | O16: M2 | P16: =OFFSET(PLQ!$E$12,ROW($P16)-ROW(P$12),0) -> 2.5 | Q16: 262.56 | R16: BDI 1 | S16: 332.19 | T16: 830.48 | U16: =IF($J16="","",IF($N16="","DESCRIÇÃO",IF(AND($J16="Serviço",$O16=""),"UNIDADE",IF($T16<=0,"SEM VALOR",IF(AND($Y16<>"",$Q16>$Y16),"ACIMA REF.",""))))) ->  | V16: =IF(OR($A16=0,$A16="S",$A16>CFF!$A$9),"",MAX(V$12:OFFSET(V16,-1,0))+1) ->  | W16: =IF(AND($J16="Serviço",$M16<>""),IF($L16="",$M16,CONCATENATE($L16,"-",$M16))) -> SINAPI-74209/001 | X16: 5982 | Y16: =IF(Import.Desoneracao="sim",Referencia.Desonerado,Referencia.NaoDesonerado) -> 308.89 | Z16: =ROUND(IF(ISNUMBER(R16),R16,IF(LEFT(R16,3)="BDI",HLOOKUP(R16,DADOS!$T$37:$X$38,2,FALSE),0)),15-11*$X$5) -> 0.2652
A17: S | B17: 0 | C17: 1 | D17: 1 | E17: 0 | F17: 0 | G17: 3 | H17: 0 | I17: 0 | J17: Serviço | K17: 1.1.3. | L17: SINAPI | M17: 74077/002 | N17: LOCACAO CONVENCIONAL DE OBRA, ATRAVÉS DE GABARITO DE TABUAS CORRIDAS PONTALETADAS | O17: M2 | P17: =OFFSET(PLQ!$E$12,ROW($P17)-ROW(P$12),0) -> 317.03 | Q17: 2.5 | R17: BDI 1 | S17: 3.16 | T17: 1001.81 | V17: =IF(OR($A17=0,$A17="S",$A17>CFF!$A$9),"",MAX(V$12:OFFSET(V17,-1,0))+1) ->  | W17: SINAPI-74077/002 | X17: 11759 | Y17: =IF(Import.Desoneracao="sim",Referencia.Desonerado,Referencia.NaoDesonerado) -> 4.05 | Z17: =ROUND(IF(ISNUMBER(R17),R17,IF(LEFT(R17,3)="BDI",HLOOKUP(R17,DADOS!$T$37:$X$38,2,FALSE),0)),15-11*$X$5) -> 0.2652
A18: 2 | B18: 3 | C18: 1 | D18: 2 | E18: 0 | F18: 0 | G18: 0 | H18: 149 | I18: 3 | J18: Nível 2 | K18: 1.2. | N18: ESCAVAÇÔES E REATERRO | O18: =Referencia.Unidade ->  | P18: =OFFSET(PLQ!$E$12,ROW($P18)-ROW(P$12),0) -> 0 | Q18: =Y18*0.85 -> 0 | R18: BDI 1 | S18: 0 | T18: 624.72 | V18: =IF(OR($A18=0,$A18="S",$A18>CFF!$A$9),"",MAX(V$12:OFFSET(V18,-1,0))+1) -> 3 | W18: FALSE | X18: X | Y18: =IF(Import.Desoneracao="sim",Referencia.Desonerado,Referencia.NaoDesonerado) -> 0 | Z18: =ROUND(IF(ISNUMBER(R18),R18,IF(LEFT(R18,3)="BDI",HLOOKUP(R18,DADOS!$T$37:$X$38,2,FALSE),0)),15-11*$X$5) -> 0.2652
A19: S | B19: 0 | C19: 1 | D19: 2 | E19: 0 | F19: 0 | G19: 1 | H19: 0 | I19: 0 | J19: Serviço | K19: 1.2.1. | L19: SINAPI | M19: 90106 | N19: ESCAVAÇÃO DE VALA COM PROFUNDIDADE ATÉ 1,5 M | O19: M3 | P19: =OFFSET(PLQ!$E$12,ROW($P19)-ROW(P$12),0) -> 59.08 | Q19: 4.48 | R19: BDI 1 | S19: 5.67 | T19: 334.98 | V19: =IF(OR($A19=0,$A19="S",$A19>CFF!$A$9),"",MAX(V$12:OFFSET(V19,-1,0))+1) ->  | W19: SINAPI-90106 | X19: 10402 | Y19: =IF(Import.Desoneracao="sim",Referencia.Desonerado,Referencia.NaoDesonerado) -> 5.27 | Z19: =ROUND(IF(ISNUMBER(R19),R19,IF(LEFT(R19,3)="BDI",HLOOKUP(R19,DADOS!$T$37:$X$38,2,FALSE),0)),15-11*$X$5) -> 0.2652
A20: S | B20: 0 | C20: 1 | D20: 2 | E20: 0 | F20: 0 | G20: 2 | H20: 0 | I20: 0 | J20: Serviço | K20: 1.2.2. | L20: SINAPI | M20: 93382 | N20: REATERRO MANUAL DE VALAS COM COMPACTAÇÃO | O20: M3 | P20: =OFFSET(PLQ!$E$12,ROW($P20)-ROW(P$12),0) -> 13.47 | Q20: 17 | R20: BDI 1 | S20: 21.51 | T20: 289.74 | V20: =IF(OR($A20=0,$A20="S",$A20>CFF!$A$9),"",MAX(V$12:OFFSET(V20,-1,0))+1) ->  | W20: SINAPI-93382 | X20: 10456 | Y20: =IF(Import.Desoneracao="sim",Referencia.Desonerado,Referencia.NaoDesonerado) -> 22.14 | Z20: =ROUND(IF(ISNUMBER(R20),R20,IF(LEFT(R20,3)="BDI",HLOOKUP(R20,DADOS!$T$37:$X$38,2,FALSE),0)),15-11*$X$5) -> 0.2652
A21: 2 | B21: 6 | C21: 1 | D21: 3 | E21: 0 | F21: 0 | G21: 0 | H21: 146 | I21: 6 | J21: Nível 2 | K21: 1.3. | L21: SINAPI | N21: FUNDAÇÕES: BLOCOS E BALDRAMES | O21: =Referencia.Unidade ->  | P21: =OFFSET(PLQ!$E$12,ROW($P21)-ROW(P$12),0) -> 0 | Q21: 0 | R21: BDI 1 | S21: 0 | T21: 73549.06 | V21: =IF(OR($A21=0,$A21="S",$A21>CFF!$A$9),"",MAX(V$12:OFFSET(V21,-1,0))+1) -> 4 | W21: FALSE | X21: X | Y21: =IF(Import.Desoneracao="sim",Referencia.Desonerado,Referencia.NaoDesonerado) -> 0 | Z21: =ROUND(IF(ISNUMBER(R21),R21,IF(LEFT(R21,3)="BDI",HLOOKUP(R21,DADOS!$T$37:$X$38,2,FALSE),0)),15-11*$X$5) -> 0.2652
A22: S | B22: 0 | C22: 1 | D22: 3 | E22: 0 | F22: 0 | G22: 1 | H22: 0 | I22: 0 | J22: Serviço | K22: 1.3.1. | L22: SINAPI | M22: 90883 | N22: ESTACA ESCAVADA MECANICAMENTE, SEM FLUIDO ESTABILIZANTE, COM 40 CM DE DIÂMETRO, ATÉ 9 M DE COMPRIMENTO, CONCRETO LANÇADO POR CAMINHÃO BETONEIRA | O22: M | P22: =OFFSET(PLQ!$E$12,ROW($P22)-ROW(P$12),0) -> 235 | Q22: 52.92 | R22: BDI 1 | S22: 66.95 | T22: 15733.25 | V22: =IF(OR($A22=0,$A22="S",$A22>CFF!$A$9),"",MAX(V$12:OFFSET(V22,-1,0))+1) ->  | W22: SINAPI-90883 | X22: 7527 | Y22: =IF(Import.Desoneracao="sim",Referencia.Desonerado,Referencia.NaoDesonerado) -> 62.26 | Z22: =ROUND(IF(ISNUMBER(R22),R22,IF(LEFT(R22,3)="BDI",HLOOKUP(R22,DADOS!$T$37:$X$38,2,FALSE),0)),15-11*$X$5) -> 0.2652
A23: S | B23: 0 | C23: 1 | D23: 3 | E23: 0 | F23: 0 | G23: 2 | H23: 0 | I23: 0 | J23: Serviço | K23: 1.3.2. | L23: SINAPI-I | M23: 4718 | N23: PEDRA BRITADA N. 2 PARA LASTRO | O23: M3 | P23: =OFFSET(PLQ!$E$12,ROW($P23)-ROW(P$12),0) -> 1.94 | Q23: 51 | R23: BDI 1 | S23: 64.53 | T23: 125.19 | V23: =IF(OR($A23=0,$A23="S",$A23>CFF!$A$9),"",MAX(V$12:OFFSET(V23,-1,0))+1) ->  | W23: SINAPI-I-4718 | X23: 3906 | Y23: =IF(Import.Desoneracao="sim",Referencia.Desonerado,Referencia.NaoDesonerado) -> 60 | Z23: =ROUND(IF(ISNUMBER(R23),R23,IF(LEFT(R23,3)="BDI",HLOOKUP(R23,DADOS!$T$37:$X$38,2,FALSE),0)),15-11*$X$5) -> 0.2652
A24: S | B24: 0 | C24: 1 | D24: 3 | E24: 0 | F24: 0 | G24: 3 | H24: 0 | I24: 0 | J24: Serviço | K24: 1.3.3. | L24: AMMOC | M24: 35 | N24: BLOCOS EM CONCRETO ARMADO, Fck=30 Mpa | O24: M3 | P24: =OFFSET(PLQ!$E$12,ROW($P24)-ROW(P$12),0) -> 17.3 | Q24: 1400 | R24: BDI 1 | S24: 1771.28 | T24: 30643.14 | V24: =IF(OR($A24=0,$A24="S",$A24>CFF!$A$9),"",MAX(V$12:OFFSET(V24,-1,0))+1) ->  | W24: AMMOC-35 | X24: 54 | Y24: =IF(Import.Desoneracao="sim",Referencia.Desonerado,Referencia.NaoDesonerado) -> 1984.12 | Z24: =ROUND(IF(ISNUMBER(R24),R24,IF(LEFT(R24,3)="BDI",HLOOKUP(R24,DADOS!$T$37:$X$38,2,FALSE),0)),15-11*$X$5) -> 0.2652
A25: =CHOOSE(1+LOG(1+2*(J25="Meta")+4*(J25="Nível 2")+8*(J25="Nível 3")+16*(J25="Nível 4")+32*(J25="Serviço"),2),0,1,2,3,4,"S") -> S | B25: =IF(OR(A25="S",A25=0),0,IF(ISERROR(I25),H25,SMALL(H25:I25,1))) -> 0 | C25: =IF($A25=1,OFFSET(C25,-1,0)+1,OFFSET(C25,-1,0)) -> 1 | D25: =IF($A25=1,0,IF($A25=2,OFFSET(D25,-1,0)+1,OFFSET(D25,-1,0))) -> 3 | E25: =IF(AND($A25<=2,$A25<>0),0,IF($A25=3,OFFSET(E25,-1,0)+1,OFFSET(E25,-1,0))) -> 0 | F25: =IF(AND($A25<=3,$A25<>0),0,IF($A25=4,OFFSET(F25,-1,0)+1,OFFSET(F25,-1,0))) -> 0 | G25: =IF(AND($A25<=4,$A25<>0),0,IF($A25="S",OFFSET(G25,-1,0)+1,OFFSET(G25,-1,0))) -> 4 | H25: 0 | I25: 0 | J25: Serviço | K25: =IF($A25=0,"-",CONCATENATE(C25&".",IF(AND($A$5>=2,$A25>=2),D25&".",""),IF(AND($A$5>=3,$A25>=3),E25&".",""),IF(AND($A$5>=4,$A25>=4),F25&".",""),IF($A25="S",G25&".",""))) -> 1.3.4. | L25: AMMOC | M25: 35 | N25: VIGAS BALDRAMES EM CONCRETO ARMADO, Fck=30 Mpa | O25: M3 | P25: =OFFSET(PLQ!$E$12,ROW($P25)-ROW(P$12),0) -> 14.2 | Q25: 1400 | R25: BDI 1 | S25: =IF($A25="S",IF($Q$10="Preço Unitário (R$)",PO.CustoUnitario,ROUND(PO.CustoUnitario*(1+$Z25),15-13*$X$6)),0) -> 1771.28 | T25: =IF($A25="S",VTOTAL1,IF($A25=0,0,ROUND(SomaAgrup,15-13*$X$7))) -> 25152.18 | U25: =IF($J25="","",IF($N25="","DESCRIÇÃO",IF(AND($J25="Serviço",$O25=""),"UNIDADE",IF($T25<=0,"SEM VALOR",IF(AND($Y25<>"",$Q25>$Y25),"ACIMA REF.",""))))) ->  | V25: =IF(OR($A25=0,$A25="S",$A25>CFF!$A$9),"",MAX(V$12:OFFSET(V25,-1,0))+1) ->  | W25: =IF(AND($J25="Serviço",$M25<>""),IF($L25="",$M25,CONCATENATE($L25,"-",$M25))) -> AMMOC-35 | X25: =IF(AND(Fonte<>"",Código<>""),MATCH(Fonte&" "&IF(Fonte="sinapi",SUBSTITUTE(SUBSTITUTE(Código,"/00","/"),"/0","/"),Código),INDIRECT("'[Referência "&_xlnm.Database&".xls]Banco'!$a:$a"),0),"X") -> 54 | Y25: =IF(Import.Desoneracao="sim",Referencia.Desonerado,Referencia.NaoDesonerado) -> 1984.12 | Z25: =ROUND(IF(ISNUMBER(R25),R25,IF(LEFT(R25,3)="BDI",HLOOKUP(R25,DADOS!$T$37:$X$38,2,FALSE),0)),15-11*$X$5) -> 0.2652
A26: S | B26: 0 | C26: 1 | D26: 3 | E26: 0 | F26: 0 | G26: 5 | H26: 0 | I26: 0 | J26: Serviço | K26: 1.3.5. | L26: SINAPI | M26: 74106/001 | N26: IMPERMEABILIZACAO DOS BALDRAMES COM TINTA ASFALTICA, DUAS DEMAOS. | O26: M2 | P26: =OFFSET(PLQ!$E$12,ROW($P26)-ROW(P$12),0) -> 194.99 | Q26: 7.68 | R26: BDI 1 | S26: 9.72 | T26: 1895.3 | V26: =IF(OR($A26=0,$A26="S",$A26>CFF!$A$9),"",MAX(V$12:OFFSET(V26,-1,0))+1) ->  | W26: SINAPI-74106/001 | X26: 8062 | Y26: =IF(Import.Desoneracao="sim",Referencia.Desonerado,Referencia.NaoDesonerado) -> 9.03 | Z26: =ROUND(IF(ISNUMBER(R26),R26,IF(LEFT(R26,3)="BDI",HLOOKUP(R26,DADOS!$T$37:$X$38,2,FALSE),0)),15-11*$X$5) -> 0.2652
A27: 2 | B27: 2 | C27: 1 | D27: 4 | E27: 0 | F27: 0 | G27: 0 | H27: 140 | I27: 2 | J27: Nível 2 | K27: 1.4. | N27: ESTRUTURA: VIGAS | O27: =Referencia.Unidade ->  | P27: =OFFSET(PLQ!$E$12,ROW($P27)-ROW(P$12),0) -> 0 | R27: BDI 1 | S27: 0 | T27: 59869.26 | V27: =IF(OR($A27=0,$A27="S",$A27>CFF!$A$9),"",MAX(V$12:OFFSET(V27,-1,0))+1) -> 5 | W27: FALSE | X27: X | Y27: =IF(Import.Desoneracao="sim",Referencia.Desonerado,Referencia.NaoDesonerado) -> 0 | Z27: =ROUND(IF(ISNUMBER(R27),R27,IF(LEFT(R27,3)="BDI",HLOOKUP(R27,DADOS!$T$37:$X$38,2,FALSE),0)),15-11*$X$5) -> 0.2652
A28: S | B28: 0 | C28: 1 | D28: 4 | E28: 0 | F28: 0 | G28: 1 | H28: 0 | I28: 0 | J28: Serviço | K28: 1.4.1. | L28: AMMOC | M28: 35 | N28: VIGAS EM CONCRETO ARMADO, Fck= 30 Mpa | O28: M3 | P28: =OFFSET(PLQ!$E$12,ROW($P28)-ROW(P$12),0) -> 33.8 | Q28: 1400 | R28: BDI 1 | S28: 1771.28 | T28: 59869.26 | V28: =IF(OR($A28=0,$A28="S",$A28>CFF!$A$9),"",MAX(V$12:OFFSET(V28,-1,0))+1) ->  | W28: AMMOC-35 | X28: 54 | Y28: =IF(Import.Desoneracao="sim",Referencia.Desonerado,Referencia.NaoDesonerado) -> 1984.12 | Z28: =ROUND(IF(ISNUMBER(R28),R28,IF(LEFT(R28,3)="BDI",HLOOKUP(R28,DADOS!$T$37:$X$38,2,FALSE),0)),15-11*$X$5) -> 0.2652
A29: 2 | B29: 2 | C29: 1 | D29: 5 | E29: 0 | F29: 0 | G29: 0 | H29: 138 | I29: 2 | J29: Nível 2 | K29: 1.5. | N29: ESTRUTURA: PILARES | O29: =Referencia.Unidade ->  | P29: =OFFSET(PLQ!$E$12,ROW($P29)-ROW(P$12),0) -> 0 | R29: BDI 1 | S29: 0 | T29: 50658.61 | V29: =IF(OR($A29=0,$A29="S",$A29>CFF!$A$9),"",MAX(V$12:OFFSET(V29,-1,0))+1) -> 6 | W29: FALSE | X29: X | Y29: =IF(Import.Desoneracao="sim",Referencia.Desonerado,Referencia.NaoDesonerado) -> 0 | Z29: =ROUND(IF(ISNUMBER(R29),R29,IF(LEFT(R29,3)="BDI",HLOOKUP(R29,DADOS!$T$37:$X$38,2,FALSE),0)),15-11*$X$5) -> 0.2652
A30: S | B30: 0 | C30: 1 | D30: 5 | E30: 0 | F30: 0 | G30: 1 | H30: 0 | I30: 0 | J30: Serviço | K30: 1.5.1. | L30: AMMOC | M30: 35 | N30: PILARES EM CONCRETO ARMADO, Fck= 30 Mpa | O30: M3 | P30: =OFFSET(PLQ!$E$12,ROW($P30)-ROW(P$12),0) -> 28.6 | Q30: 1400 | R30: BDI 1 | S30: 1771.28 | T30: 50658.61 | V30: =IF(OR($A30=0,$A30="S",$A30>CFF!$A$9),"",MAX(V$12:OFFSET(V30,-1,0))+1) ->  | W30: AMMOC-35 | X30: 54 | Y30: =IF(Import.Desoneracao="sim",Referencia.Desonerado,Referencia.NaoDesonerado) -> 1984.12 | Z30: =ROUND(IF(ISNUMBER(R30),R30,IF(LEFT(R30,3)="BDI",HLOOKUP(R30,DADOS!$T$37:$X$38,2,FALSE),0)),15-11*$X$5) -> 0.2652
A31: 2 | B31: 2 | C31: 1 | D31: 6 | E31: 0 | F31: 0 | G31: 0 | H31: 136 | I31: 2 | J31: Nível 2 | K31: 1.6. | N31: ESTRUTURA: ESCADAS | O31: =Referencia.Unidade ->  | P31: =OFFSET(PLQ!$E$12,ROW($P31)-ROW(P$12),0) -> 0 | R31: BDI 1 | S31: 0 | T31: 3542.56 | V31: =IF(OR($A31=0,$A31="S",$A31>CFF!$A$9),"",MAX(V$12:OFFSET(V31,-1,0))+1) -> 7 | W31: FALSE | X31: X | Y31: =IF(Import.Desoneracao="sim",Referencia.Desonerado,Referencia.NaoDesonerado) -> 0 | Z31: =ROUND(IF(ISNUMBER(R31),R31,IF(LEFT(R31,3)="BDI",HLOOKUP(R31,DADOS!$T$37:$X$38,2,FALSE),0)),15-11*$X$5) -> 0.2652
A32: S | B32: 0 | C32: 1 | D32: 6 | E32: 0 | F32: 0 | G32: 1 | H32: 0 | I32: 0 | J32: Serviço | K32: 1.6.1. | L32: AMMOC | M32: 35 | N32: ESCADAS EM CONCRETO ARMADO, Fck= 30 Mpa | O32: M3 | P32: =OFFSET(PLQ!$E$12,ROW($P32)-ROW(P$12),0) -> 2 | Q32: 1400 | R32: BDI 1 | S32: 1771.28 | T32: 3542.56 | V32: =IF(OR($A32=0,$A32="S",$A32>CFF!$A$9),"",MAX(V$12:OFFSET(V32,-1,0))+1) ->  | W32: AMMOC-35 | X32: 54 | Y32: =IF(Import.Desoneracao="sim",Referencia.Desonerado,Referencia.NaoDesonerado) -> 1984.12 | Z32: =ROUND(IF(ISNUMBER(R32),R32,IF(LEFT(R32,3)="BDI",HLOOKUP(R32,DADOS!$T$37:$X$38,2,FALSE),0)),15-11*$X$5) -> 0.2652
A33: 2 | B33: 4 | C33: 1 | D33: 7 | E33: 0 | F33: 0 | G33: 0 | H33: 134 | I33: 4 | J33: Nível 2 | K33: 1.7. | N33: LAJES | O33: =Referencia.Unidade ->  | P33: =OFFSET(PLQ!$E$12,ROW($P33)-ROW(P$12),0) -> 0 | R33: BDI 1 | S33: 0 | T33: 153408.96 | V33: =IF(OR($A33=0,$A33="S",$A33>CFF!$A$9),"",MAX(V$12:OFFSET(V33,-1,0))+1) -> 8 | W33: FALSE | X33: X | Y33: =IF(Import.Desoneracao="sim",Referencia.Desonerado,Referencia.NaoDesonerado) -> 0 | Z33: =ROUND(IF(ISNUMBER(R33),R33,IF(LEFT(R33,3)="BDI",HLOOKUP(R33,DADOS!$T$37:$X$38,2,FALSE),0)),15-11*$X$5) -> 0.2652
A34: S | B34: 0 | C34: 1 | D34: 7 | E34: 0 | F34: 0 | G34: 1 | H34: 0 | I34: 0 | J34: Serviço | K34: 1.7.1. | L34: COMPOSIÇÂO | M34: LAJE 2 | N34: LAJE NERVURADA, INCLUSIVE FORMAS, LANÇAMENTO, ADENSAMENTO E CAPA EM CONCRETO E= 16 + 4 CM | O34: M2 | P34: =OFFSET(PLQ!$E$12,ROW($P34)-ROW(P$12),0) -> 535.41 | Q34: 199.94 | R34: BDI 1 | S34: 252.96 | T34: 135437.31 | V34: =IF(OR($A34=0,$A34="S",$A34>CFF!$A$9),"",MAX(V$12:OFFSET(V34,-1,0))+1) ->  | W34: COMPOSIÇÂO-LAJE 2 | X34: 29 | Y34: =IF(Import.Desoneracao="sim",Referencia.Desonerado,Referencia.NaoDesonerado) -> 235.22 | Z34: =ROUND(IF(ISNUMBER(R34),R34,IF(LEFT(R34,3)="BDI",HLOOKUP(R34,DADOS!$T$37:$X$38,2,FALSE),0)),15-11*$X$5) -> 0.2652
A35: S | B35: 0 | C35: 1 | D35: 7 | E35: 0 | F35: 0 | G35: 2 | H35: 0 | I35: 0 | J35: Serviço | K35: 1.7.2. | L35: AMMOC | M35: 35 | N35: LAJES EM CONCRETO ARMADO, Fck= 30 Mpa | O35: M3 | P35: =OFFSET(PLQ!$E$12,ROW($P35)-ROW(P$12),0) -> 6.88 | Q35: 1400 | R35: BDI 1 | S35: 1771.28 | T35: 12186.41 | V35: =IF(OR($A35=0,$A35="S",$A35>CFF!$A$9),"",MAX(V$12:OFFSET(V35,-1,0))+1) ->  | W35: AMMOC-35 | X35: 54 | Y35: =IF(Import.Desoneracao="sim",Referencia.Desonerado,Referencia.NaoDesonerado) -> 1984.12 | Z35: =ROUND(IF(ISNUMBER(R35),R35,IF(LEFT(R35,3)="BDI",HLOOKUP(R35,DADOS!$T$37:$X$38,2,FALSE),0)),15-11*$X$5) -> 0.2652
A36: S | B36: 0 | C36: 1 | D36: 7 | E36: 0 | F36: 0 | G36: 3 | H36: 0 | I36: 0 | J36: Serviço | K36: 1.7.3. | L36: SINAPI | M36: 98547 | N36: IMPERMEABILIZACAO DE LAJES E MARQUISES DESCOBERTAS, COM MANTA ASFALTICA, 2 CAMADAS, INCLUSIVE APLICAÇÃO DE PRIMER ASFALTICO, ESP= 3mm e 4 mm | O36: M2 | P36: =OFFSET(PLQ!$E$12,ROW($P36)-ROW(P$12),0) -> 50.65 | Q36: 90.28 | R36: BDI 1 | S36: 114.22 | T36: 5785.24 | V36: =IF(OR($A36=0,$A36="S",$A36>CFF!$A$9),"",MAX(V$12:OFFSET(V36,-1,0))+1) ->  | W36: SINAPI-98547 | X36: 8059 | Y36: =IF(Import.Desoneracao="sim",Referencia.Desonerado,Referencia.NaoDesonerado) -> 106.21 | Z36: =ROUND(IF(ISNUMBER(R36),R36,IF(LEFT(R36,3)="BDI",HLOOKUP(R36,DADOS!$T$37:$X$38,2,FALSE),0)),15-11*$X$5) -> 0.2652
A37: 2 | B37: 8 | C37: 1 | D37: 8 | E37: 0 | F37: 0 | G37: 0 | H37: 130 | I37: 8 | J37: Nível 2 | K37: 1.8. | N37: ALVENARIA E FECHAMENTOS | O37: =Referencia.Unidade ->  | P37: =OFFSET(PLQ!$E$12,ROW($P37)-ROW(P$12),0) -> 0 | R37: BDI 1 | S37: 0 | T37: 85410.81 | V37: =IF(OR($A37=0,$A37="S",$A37>CFF!$A$9),"",MAX(V$12:OFFSET(V37,-1,0))+1) -> 9 | W37: FALSE | X37: X | Y37: =IF(Import.Desoneracao="sim",Referencia.Desonerado,Referencia.NaoDesonerado) -> 0 | Z37: =ROUND(IF(ISNUMBER(R37),R37,IF(LEFT(R37,3)="BDI",HLOOKUP(R37,DADOS!$T$37:$X$38,2,FALSE),0)),15-11*$X$5) -> 0.2652
A38: S | B38: 0 | C38: 1 | D38: 8 | E38: 0 | F38: 0 | G38: 1 | H38: 0 | I38: 0 | J38: Serviço | K38: 1.8.1. | L38: SINAPI | M38: 87491 | N38: ALVENARIA DE VEDAÇÃO DE BLOCOS CERÂMICOS FURADOS NA VERTICAL DE 14X19X39CM (ESPESSURA 14CM) DE PAREDES E ARGAMASSA DE ASSENTAMENTO | O38: M2 | P38: =OFFSET(PLQ!$E$12,ROW($P38)-ROW(P$12),0) -> 1162.71 | Q38: 44.32 | R38: BDI 1 | S38: 56.07 | T38: 65193.15 | V38: =IF(OR($A38=0,$A38="S",$A38>CFF!$A$9),"",MAX(V$12:OFFSET(V38,-1,0))+1) ->  | W38: SINAPI-87491 | X38: 10546 | Y38: =IF(Import.Desoneracao="sim",Referencia.Desonerado,Referencia.NaoDesonerado) -> 52.14 | Z38: =ROUND(IF(ISNUMBER(R38),R38,IF(LEFT(R38,3)="BDI",HLOOKUP(R38,DADOS!$T$37:$X$38,2,FALSE),0)),15-11*$X$5) -> 0.2652
A39: S | B39: 0 | C39: 1 | D39: 8 | E39: 0 | F39: 0 | G39: 2 | H39: 0 | I39: 0 | J39: Serviço | K39: 1.8.2. | L39: SINAPI | M39: 96364 | N39: PAREDE COM PLACAS DE GESSO ACARTONADO (DRYWALL), PARA USO INTERNO COM UMA FACE SIMPLES E OUTRA FACE DUPLA E ESTRUTURA METÁLICA COM GUIAS DUPLAS | O39: M2 | P39: =OFFSET(PLQ!$E$12,ROW($P39)-ROW(P$12),0) -> 49.4 | Q39: 104.39 | R39: BDI 1 | S39: 132.07 | T39: 6524.26 | V39: =IF(OR($A39=0,$A39="S",$A39>CFF!$A$9),"",MAX(V$12:OFFSET(V39,-1,0))+1) ->  | W39: SINAPI-96364 | X39: 10701 | Y39: =IF(Import.Desoneracao="sim",Referencia.Desonerado,Referencia.NaoDesonerado) -> 122.81 | Z39: =ROUND(IF(ISNUMBER(R39),R39,IF(LEFT(R39,3)="BDI",HLOOKUP(R39,DADOS!$T$37:$X$38,2,FALSE),0)),15-11*$X$5) -> 0.2652
A40: S | B40: 0 | C40: 1 | D40: 8 | E40: 0 | F40: 0 | G40: 3 | H40: 0 | I40: 0 | J40: Serviço | K40: 1.8.3. | L40: SINAPI | M40: 73774/1 | N40: DIVISORIA EM MARMORITE ESPESSURA 35MM, CHUMBAMENTO NO PISO E PAREDE COM ARGAMASSA DE CIMENTO E AREIA, POLIMENTO MANUAL | O40: M2 | P40: =OFFSET(PLQ!$E$12,ROW($P40)-ROW(P$12),0) -> 17.38 | Q40: 234.18 | R40: BDI 1 | S40: 296.28 | T40: 5149.35 | V40: =IF(OR($A40=0,$A40="S",$A40>CFF!$A$9),"",MAX(V$12:OFFSET(V40,-1,0))+1) ->  | W40: SINAPI-73774/1 | X40: 10691 | Y40: =IF(Import.Desoneracao="sim",Referencia.Desonerado,Referencia.NaoDesonerado) -> 275.5 | Z40: =ROUND(IF(ISNUMBER(R40),R40,IF(LEFT(R40,3)="BDI",HLOOKUP(R40,DADOS!$T$37:$X$38,2,FALSE),0)),15-11*$X$5) -> 0.2652
A41: S | B41: 0 | C41: 1 | D41: 8 | E41: 0 | F41: 0 | G41: 4 | H41: 0 | I41: 0 | J41: Serviço | K41: 1.8.4. | L41: SINAPI | M41: 84863 | N41: GUARDA-CORPO COM CORRIMAO EM TUBO DE ACO GALVANIZADO 3/4" | O41: M | P41: =OFFSET(PLQ!$E$12,ROW($P41)-ROW(P$12),0) -> 10.7 | Q41: 88.26 | R41: BDI 1 | S41: 111.67 | T41: 1194.87 | V41: =IF(OR($A41=0,$A41="S",$A41>CFF!$A$9),"",MAX(V$12:OFFSET(V41,-1,0))+1) ->  | W41: SINAPI-84863 | X41: 7391 | Y41: =IF(Import.Desoneracao="sim",Referencia.Desonerado,Referencia.NaoDesonerado) -> 103.83 | Z41: =ROUND(IF(ISNUMBER(R41),R41,IF(LEFT(R41,3)="BDI",HLOOKUP(R41,DADOS!$T$37:$X$38,2,FALSE),0)),15-11*$X$5) -> 0.2652
A42: S | B42: 0 | C42: 1 | D42: 8 | E42: 0 | F42: 0 | G42: 5 | H42: 0 | I42: 0 | J42: Serviço | K42: 1.8.5. | L42: SINAPI | M42: 74072/1 | N42: CORRIMAO EM TUBO ACO GALVANIZADO 3/4" COM BRACADEIRA | O42: M | P42: =OFFSET(PLQ!$E$12,ROW($P42)-ROW(P$12),0) -> 13.56 | Q42: 54.08 | R42: BDI 1 | S42: 68.42 | T42: 927.78 | V42: =IF(OR($A42=0,$A42="S",$A42>CFF!$A$9),"",MAX(V$12:OFFSET(V42,-1,0))+1) ->  | W42: SINAPI-74072/1 | X42: 7386 | Y42: =IF(Import.Desoneracao="sim",Referencia.Desonerado,Referencia.NaoDesonerado) -> 63.62 | Z42: =ROUND(IF(ISNUMBER(R42),R42,IF(LEFT(R42,3)="BDI",HLOOKUP(R42,DADOS!$T$37:$X$38,2,FALSE),0)),15-11*$X$5) -> 0.2652
A43: S | B43: 0 | C43: 1 | D43: 8 | E43: 0 | F43: 0 | G43: 6 | H43: 0 | I43: 0 | J43: Serviço | K43: 1.8.6. | L43: SINAPI | M43: 93182 | N43: VERGA PRÉ-MOLDADA | O43: M | P43: =OFFSET(PLQ!$E$12,ROW($P43)-ROW(P$12),0) -> 139.5 | Q43: 19.24 | R43: BDI 1 | S43: 24.34 | T43: 3395.43 | V43: =IF(OR($A43=0,$A43="S",$A43>CFF!$A$9),"",MAX(V$12:OFFSET(V43,-1,0))+1) ->  | W43: SINAPI-93182 | X43: 7985 | Y43: =IF(Import.Desoneracao="sim",Referencia.Desonerado,Referencia.NaoDesonerado) -> 22.64 | Z43: =ROUND(IF(ISNUMBER(R43),R43,IF(LEFT(R43,3)="BDI",HLOOKUP(R43,DADOS!$T$37:$X$38,2,FALSE),0)),15-11*$X$5) -> 0.2652
A44: S | B44: 0 | C44: 1 | D44: 8 | E44: 0 | F44: 0 | G44: 7 | H44: 0 | I44: 0 | J44: Serviço | K44: 1.8.7. | L44: SINAPI | M44: 93195 | N44: CONTRAVERGA PRÉ-MOLDADA | O44: M | P44: =OFFSET(PLQ!$E$12,ROW($P44)-ROW(P$12),0) -> 106.1 | Q44: 22.54 | R44: BDI 1 | S44: 28.52 | T44: 3025.97 | V44: =IF(OR($A44=0,$A44="S",$A44>CFF!$A$9),"",MAX(V$12:OFFSET(V44,-1,0))+1) ->  | W44: SINAPI-93195 | X44: 7998 | Y44: =IF(Import.Desoneracao="sim",Referencia.Desonerado,Referencia.NaoDesonerado) -> 26.52 | Z44: =ROUND(IF(ISNUMBER(R44),R44,IF(LEFT(R44,3)="BDI",HLOOKUP(R44,DADOS!$T$37:$X$38,2,FALSE),0)),15-11*$X$5) -> 0.2652
A45: 2 | B45: 5 | C45: 1 | D45: 9 | E45: 0 | F45: 0 | G45: 0 | H45: =IF(OR($A45="S",$A45=0),0,MATCH(0,OFFSET($B45,1,$A45,ROW($A$167)-ROW($A45)),0)) -> 122 | I45: =IF(OR($A45="S",$A45=0),0,MATCH(OFFSET($B45,0,$A45)+1,OFFSET($B45,1,$A45,ROW($A$167)-ROW($A45)),0)) -> 5 | J45: Nível 2 | K45: 1.9. | N45: REVESTIMENTOS | O45: =Referencia.Unidade ->  | P45: =OFFSET(PLQ!$E$12,ROW($P45)-ROW(P$12),0) -> 0 | R45: BDI 1 | S45: =IF($A45="S",IF($Q$10="Preço Unitário (R$)",PO.CustoUnitario,ROUND(PO.CustoUnitario*(1+$Z45),15-13*$X$6)),0) -> 0 | T45: =IF($A45="S",VTOTAL1,IF($A45=0,0,ROUND(SomaAgrup,15-13*$X$7))) -> 80876.86 | V45: =IF(OR($A45=0,$A45="S",$A45>CFF!$A$9),"",MAX(V$12:OFFSET(V45,-1,0))+1) -> 10 | W45: FALSE | X45: =IF(AND(Fonte<>"",Código<>""),MATCH(Fonte&" "&IF(Fonte="sinapi",SUBSTITUTE(SUBSTITUTE(Código,"/00","/"),"/0","/"),Código),INDIRECT("'[Referência "&_xlnm.Database&".xls]Banco'!$a:$a"),0),"X") -> X | Y45: =IF(Import.Desoneracao="sim",Referencia.Desonerado,Referencia.NaoDesonerado) -> 0 | Z45: =ROUND(IF(ISNUMBER(R45),R45,IF(LEFT(R45,3)="BDI",HLOOKUP(R45,DADOS!$T$37:$X$38,2,FALSE),0)),15-11*$X$5) -> 0.2652
A46: S | B46: 0 | C46: 1 | D46: 9 | E46: 0 | F46: 0 | G46: 1 | H46: 0 | I46: 0 | J46: Serviço | K46: 1.9.1. | L46: SINAPI | M46: 87879 | N46: CHAPISCO APLICADO EM ALVENARIAS E ESTRUTURAS DE CONCRETO, ARGAMASSA TRAÇO 1:3 | O46: M2 | P46: =OFFSET(PLQ!$E$12,ROW($P46)-ROW(P$12),0) -> 2393.23 | Q46: 2.52 | R46: BDI 1 | S46: 3.19 | T46: 7634.4 | V46: =IF(OR($A46=0,$A46="S",$A46>CFF!$A$9),"",MAX(V$12:OFFSET(V46,-1,0))+1) ->  | W46: SINAPI-87879 | X46: 11075 | Y46: =IF(Import.Desoneracao="sim",Referencia.Desonerado,Referencia.NaoDesonerado) -> 2.97 | Z46: =ROUND(IF(ISNUMBER(R46),R46,IF(LEFT(R46,3)="BDI",HLOOKUP(R46,DADOS!$T$37:$X$38,2,FALSE),0)),15-11*$X$5) -> 0.2652
A47: S | B47: 0 | C47: 1 | D47: 9 | E47: 0 | F47: 0 | G47: 2 | H47: 0 | I47: 0 | J47: Serviço | K47: 1.9.2. | L47: SINAPI | M47: 87535 | N47: EMBOÇO, PARA RECEBIMENTO DE CERÂMICA, EM ARGAMASSA TRAÇO 1:2:8, ESPESSURA DE 20MM, COM EXECUÇÃO DE TALISCAS | O47: M2 | P47: =OFFSET(PLQ!$E$12,ROW($P47)-ROW(P$12),0) -> 2393.23 | Q47: 17.36 | R47: BDI 1 | S47: 21.96 | T47: 52555.33 | V47: =IF(OR($A47=0,$A47="S",$A47>CFF!$A$9),"",MAX(V$12:OFFSET(V47,-1,0))+1) ->  | W47: SINAPI-87535 | X47: 11143 | Y47: =IF(Import.Desoneracao="sim",Referencia.Desonerado,Referencia.NaoDesonerado) -> 20.42 | Z47: =ROUND(IF(ISNUMBER(R47),R47,IF(LEFT(R47,3)="BDI",HLOOKUP(R47,DADOS!$T$37:$X$38,2,FALSE),0)),15-11*$X$5) -> 0.2652
A48: S | B48: 0 | C48: 1 | D48: 9 | E48: 0 | F48: 0 | G48: 3 | H48: 0 | I48: 0 | J48: Serviço | K48: 1.9.3. | L48: SINAPI | M48: 87273 | N48: REVESTIMENTO CERÂMICO PARA PAREDES INTERNAS COM PLACAS TIPO ESMALTADA EXTRA DE DIMENSÕES 33X45 CM ATÉ 2,10m | O48: M2 | P48: =OFFSET(PLQ!$E$12,ROW($P48)-ROW(P$12),0) -> 165.2 | Q48: 42.04 | R48: BDI 1 | S48: 53.19 | T48: 8786.99 | V48: =IF(OR($A48=0,$A48="S",$A48>CFF!$A$9),"",MAX(V$12:OFFSET(V48,-1,0))+1) ->  | W48: SINAPI-87273 | X48: 11253 | Y48: =IF(Import.Desoneracao="sim",Referencia.Desonerado,Referencia.NaoDesonerado) -> 49.46 | Z48: =ROUND(IF(ISNUMBER(R48),R48,IF(LEFT(R48,3)="BDI",HLOOKUP(R48,DADOS!$T$37:$X$38,2,FALSE),0)),15-11*$X$5) -> 0.2652
A49: S | B49: 0 | C49: 1 | D49: 9 | E49: 0 | F49: 0 | G49: 4 | H49: 0 | I49: 0 | J49: Serviço | K49: 1.9.4. | L49: REVESTIMENTO | M49: TIJOLETAS | N49: REVESTIMENTO CERÂMICO EM TIJOLETAS LISAS 10x20x2,5CM, ASSENTADAS COM ARGAMASSA DO TIPO ACIII | O49: M² | P49: =OFFSET(PLQ!$E$12,ROW($P49)-ROW(P$12),0) -> 120.52 | Q49: 78.04 | R49: BDI 1 | S49: 98.74 | T49: 11900.14 | V49: =IF(OR($A49=0,$A49="S",$A49>CFF!$A$9),"",MAX(V$12:OFFSET(V49,-1,0))+1) ->  | W49: REVESTIMENTO-TIJOLETAS | X49: 52 | Y49: =IF(Import.Desoneracao="sim",Referencia.Desonerado,Referencia.NaoDesonerado) -> 91.81 | Z49: =ROUND(IF(ISNUMBER(R49),R49,IF(LEFT(R49,3)="BDI",HLOOKUP(R49,DADOS!$T$37:$X$38,2,FALSE),0)),15-11*$X$5) -> 0.2652
A50: 2 | B50: 8 | C50: 1 | D50: 10 | E50: 0 | F50: 0 | G50: 0 | H50: 117 | I50: 8 | J50: Nível 2 | K50: 1.10. | N50: COBERTURAS | O50: =Referencia.Unidade ->  | P50: =OFFSET(PLQ!$E$12,ROW($P50)-ROW(P$12),0) -> 0 | R50: BDI 1 | S50: 0 | T50: 37144.82 | V50: =IF(OR($A50=0,$A50="S",$A50>CFF!$A$9),"",MAX(V$12:OFFSET(V50,-1,0))+1) -> 11 | W50: FALSE | X50: X | Y50: =IF(Import.Desoneracao="sim",Referencia.Desonerado,Referencia.NaoDesonerado) -> 0 | Z50: =ROUND(IF(ISNUMBER(R50),R50,IF(LEFT(R50,3)="BDI",HLOOKUP(R50,DADOS!$T$37:$X$38,2,FALSE),0)),15-11*$X$5) -> 0.2652
A51: S | B51: 0 | C51: 1 | D51: 10 | E51: 0 | F51: 0 | G51: 1 | H51: 0 | I51: 0 | J51: Serviço | K51: 1.10.1. | L51: SINAPI | M51: 94207 | N51: TELHAMENTO COM TELHA ONDULADA DE FIBROCIMENTO E = 6 MM, COM RECOBRIMENTO LATERAL DE 1/4 DE ONDA, INCLUSO IÇAMENTO | O51: M2 | P51: =OFFSET(PLQ!$E$12,ROW($P51)-ROW(P$12),0) -> 285.57 | Q51: 25.67 | R51: BDI 1 | S51: 32.48 | T51: 9275.31 | V51: =IF(OR($A51=0,$A51="S",$A51>CFF!$A$9),"",MAX(V$12:OFFSET(V51,-1,0))+1) ->  | W51: SINAPI-94207 | X51: 6904 | Y51: =IF(Import.Desoneracao="sim",Referencia.Desonerado,Referencia.NaoDesonerado) -> 30.2 | Z51: =ROUND(IF(ISNUMBER(R51),R51,IF(LEFT(R51,3)="BDI",HLOOKUP(R51,DADOS!$T$37:$X$38,2,FALSE),0)),15-11*$X$5) -> 0.2652
A52: S | B52: 0 | C52: 1 | D52: 10 | E52: 0 | F52: 0 | G52: 2 | H52: 0 | I52: 0 | J52: Serviço | K52: 1.10.2. | L52: SINAPI | M52: 94223 | N52: CUMEEIRA PARA TELHA DE FIBROCIMENTO ONDULADA E = 6 MM, INCLUSO ACESSÓRIOS DE FIXAÇÃO E IÇAMENTO | O52: M | P52: =OFFSET(PLQ!$E$12,ROW($P52)-ROW(P$12),0) -> 34.83 | Q52: 33.07 | R52: BDI 1 | S52: 41.84 | T52: 1457.29 | V52: =IF(OR($A52=0,$A52="S",$A52>CFF!$A$9),"",MAX(V$12:OFFSET(V52,-1,0))+1) ->  | W52: SINAPI-94223 | X52: 6925 | Y52: =IF(Import.Desoneracao="sim",Referencia.Desonerado,Referencia.NaoDesonerado) -> 38.91 | Z52: =ROUND(IF(ISNUMBER(R52),R52,IF(LEFT(R52,3)="BDI",HLOOKUP(R52,DADOS!$T$37:$X$38,2,FALSE),0)),15-11*$X$5) -> 0.2652
A53: S | B53: 0 | C53: 1 | D53: 10 | E53: 0 | F53: 0 | G53: 3 | H53: 0 | I53: 0 | J53: Serviço | K53: 1.10.3. | L53: SINAPI | M53: 94228 | N53: CALHA EM CHAPA DE AÇO GALVANIZADO NÚMERO 24, DESENVOLVIMENTO DE 50 CM, INCLUSO TRANSPORTE VERTICAL | O53: M | P53: =OFFSET(PLQ!$E$12,ROW($P53)-ROW(P$12),0) -> 73.55 | Q53: 43.76 | R53: BDI 1 | S53: 55.37 | T53: 4072.46 | V53: =IF(OR($A53=0,$A53="S",$A53>CFF!$A$9),"",MAX(V$12:OFFSET(V53,-1,0))+1) ->  | W53: SINAPI-94228 | X53: 6929 | Y53: =IF(Import.Desoneracao="sim",Referencia.Desonerado,Referencia.NaoDesonerado) -> 51.48 | Z53: =ROUND(IF(ISNUMBER(R53),R53,IF(LEFT(R53,3)="BDI",HLOOKUP(R53,DADOS!$T$37:$X$38,2,FALSE),0)),15-11*$X$5) -> 0.2652
A54: S | B54: 0 | C54: 1 | D54: 10 | E54: 0 | F54: 0 | G54: 4 | H54: 0 | I54: 0 | J54: Serviço | K54: 1.10.4. | L54: SINAPI | M54: 92544 | N54: TRAMA DE MADEIRA COMPOSTA POR TERÇAS PARA TELHADOS TELHA DE FIBROCIMENTO, INCLUSO TRANSPORTE VERTICAL | O54: M2 | P54: =OFFSET(PLQ!$E$12,ROW($P54)-ROW(P$12),0) -> 285.57 | Q54: 11.25 | R54: BDI 1 | S54: 14.23 | T54: 4063.66 | V54: =IF(OR($A54=0,$A54="S",$A54>CFF!$A$9),"",MAX(V$12:OFFSET(V54,-1,0))+1) ->  | W54: SINAPI-92544 | X54: 6860 | Y54: =IF(Import.Desoneracao="sim",Referencia.Desonerado,Referencia.NaoDesonerado) -> 13.24 | Z54: =ROUND(IF(ISNUMBER(R54),R54,IF(LEFT(R54,3)="BDI",HLOOKUP(R54,DADOS!$T$37:$X$38,2,FALSE),0)),15-11*$X$5) -> 0.2652
A55: S | B55: 0 | C55: 1 | D55: 10 | E55: 0 | F55: 0 | G55: 5 | H55: 0 | I55: 0 | J55: Serviço | K55: 1.10.5. | L55: SINAPI | M55: 94231 | N55: PINGADEIRAS EM CHAPA DE AÇO GALVANIZADO NÚMERO 24, CORTE DE 25 CM, INCLUSO TRANSPORTE VERTICAL | O55: M | P55: =OFFSET(PLQ!$E$12,ROW($P55)-ROW(P$12),0) -> 121.7 | Q55: 22.64 | R55: BDI 1 | S55: 28.64 | T55: 3485.49 | V55: =IF(OR($A55=0,$A55="S",$A55>CFF!$A$9),"",MAX(V$12:OFFSET(V55,-1,0))+1) ->  | W55: SINAPI-94231 | X55: 6931 | Y55: =IF(Import.Desoneracao="sim",Referencia.Desonerado,Referencia.NaoDesonerado) -> 26.64 | Z55: =ROUND(IF(ISNUMBER(R55),R55,IF(LEFT(R55,3)="BDI",HLOOKUP(R55,DADOS!$T$37:$X$38,2,FALSE),0)),15-11*$X$5) -> 0.2652
A56: S | B56: 0 | C56: 1 | D56: 10 | E56: 0 | F56: 0 | G56: 6 | H56: 0 | I56: 0 | J56: Serviço | K56: 1.10.6. | L56: SINAPI | M56: 73665 | N56: ESCADA TIPO MARINHEIRO EM ACO CA-50 9,52MM INCLUSO PINTURA COM FUNDO ANTICORROSIVO TIPO ZARCAO | O56: M | P56: =OFFSET(PLQ!$E$12,ROW($P56)-ROW(P$12),0) -> 4.2 | Q56: 50.53 | R56: BDI 1 | S56: 63.93 | T56: 268.51 | V56: =IF(OR($A56=0,$A56="S",$A56>CFF!$A$9),"",MAX(V$12:OFFSET(V56,-1,0))+1) ->  | W56: SINAPI-73665 | X56: 7384 | Y56: =IF(Import.Desoneracao="sim",Referencia.Desonerado,Referencia.NaoDesonerado) -> 59.45 | Z56: =ROUND(IF(ISNUMBER(R56),R56,IF(LEFT(R56,3)="BDI",HLOOKUP(R56,DADOS!$T$37:$X$38,2,FALSE),0)),15-11*$X$5) -> 0.2652
A57: S | B57: 0 | C57: 1 | D57: 10 | E57: 0 | F57: 0 | G57: 7 | H57: 0 | I57: 0 | J57: Serviço | K57: 1.10.7. | L57: SINAPI | M57: 96113 | N57: FORRO EM PLACAS DE GESSO | O57: M2 | P57: =OFFSET(PLQ!$E$12,ROW($P57)-ROW(P$12),0) -> 425.12 | Q57: 27 | R57: BDI 1 | S57: 34.16 | T57: 14522.1 | V57: =IF(OR($A57=0,$A57="S",$A57>CFF!$A$9),"",MAX(V$12:OFFSET(V57,-1,0))+1) ->  | W57: SINAPI-96113 | X57: 11275 | Y57: =IF(Import.Desoneracao="sim",Referencia.Desonerado,Referencia.NaoDesonerado) -> 31.76 | Z57: =ROUND(IF(ISNUMBER(R57),R57,IF(LEFT(R57,3)="BDI",HLOOKUP(R57,DADOS!$T$37:$X$38,2,FALSE),0)),15-11*$X$5) -> 0.2652
A58: 2 | B58: 10 | C58: 1 | D58: 11 | E58: 0 | F58: 0 | G58: 0 | H58: 109 | I58: 10 | J58: Nível 2 | K58: 1.11. | N58: ESQUADRIAS | O58: =Referencia.Unidade ->  | P58: =OFFSET(PLQ!$E$12,ROW($P58)-ROW(P$12),0) -> 0 | Q58: 0 | R58: BDI 1 | S58: 0 | T58: 135475.68 | V58: =IF(OR($A58=0,$A58="S",$A58>CFF!$A$9),"",MAX(V$12:OFFSET(V58,-1,0))+1) -> 12 | W58: FALSE | X58: X | Y58: =IF(Import.Desoneracao="sim",Referencia.Desonerado,Referencia.NaoDesonerado) -> 0 | Z58: =ROUND(IF(ISNUMBER(R58),R58,IF(LEFT(R58,3)="BDI",HLOOKUP(R58,DADOS!$T$37:$X$38,2,FALSE),0)),15-11*$X$5) -> 0.2652
A59: S | B59: 0 | C59: 1 | D59: 11 | E59: 0 | F59: 0 | G59: 1 | H59: 0 | I59: 0 | J59: Serviço | K59: 1.11.1. | L59: SINAPI | M59: 90844 | N59: PORTA DE MADEIRA PARA PINTURA, SEMI-OCA (LEVE OU MÉDIA), PADRÃO MÉDIO, 90X210CM, ESPESSURA DE 3,5CM, ITENS INCLUSOS: DOBRADIÇAS, MONTAGEM E INSTALAÇÃO DO BATENTE, FECHADURA COM EXECUÇÃO DO FURO - FORNECIMENTO E INSTALAÇÃO | O59: UN | P59: =OFFSET(PLQ!$E$12,ROW($P59)-ROW(P$12),0) -> 12 | Q59: 550 | R59: BDI 1 | S59: 695.86 | T59: 8350.32 | V59: =IF(OR($A59=0,$A59="S",$A59>CFF!$A$9),"",MAX(V$12:OFFSET(V59,-1,0))+1) ->  | W59: SINAPI-90844 | X59: 7301 | Y59: =IF(Import.Desoneracao="sim",Referencia.Desonerado,Referencia.NaoDesonerado) -> 687.1 | Z59: =ROUND(IF(ISNUMBER(R59),R59,IF(LEFT(R59,3)="BDI",HLOOKUP(R59,DADOS!$T$37:$X$38,2,FALSE),0)),15-11*$X$5) -> 0.2652
A60: S | B60: 0 | C60: 1 | D60: 11 | E60: 0 | F60: 0 | G60: 2 | H60: 0 | I60: 0 | J60: Serviço | K60: 1.11.2. | L60: PORTA | M60: 2 | N60: PORTA EM VIDRO TEMPERADO FUME E=10mm, COM PERFIL DE ALUMINIO, CORES VARIADAS, DE GIRAR 2,40 X 2,10M | O60: UNID | P60: =OFFSET(PLQ!$E$12,ROW($P60)-ROW(P$12),0) -> 2 | Q60: 2518.53 | R60: BDI 1 | S60: 3186.44 | T60: 6372.88 | V60: =IF(OR($A60=0,$A60="S",$A60>CFF!$A$9),"",MAX(V$12:OFFSET(V60,-1,0))+1) ->  | W60: PORTA-2 | X60: 51 | Y60: =IF(Import.Desoneracao="sim",Referencia.Desonerado,Referencia.NaoDesonerado) -> 2962.98 | Z60: =ROUND(IF(ISNUMBER(R60),R60,IF(LEFT(R60,3)="BDI",HLOOKUP(R60,DADOS!$T$37:$X$38,2,FALSE),0)),15-11*$X$5) -> 0.2652
A61: S | B61: 0 | C61: 1 | D61: 11 | E61: 0 | F61: 0 | G61: 3 | H61: 0 | I61: 0 | J61: Serviço | K61: 1.11.3. | L61: SINAPI | M61: 84876 | N61: PORTA MADEIRA 1A CORRER P/VIDRO 30MM/ GUARNICAO 15CM/ALIZAR | O61: M2 | P61: =OFFSET(PLQ!$E$12,ROW($P61)-ROW(P$12),0) -> 8.4 | Q61: 525.15 | R61: BDI 1 | S61: 664.42 | T61: 5581.13 | V61: =IF(OR($A61=0,$A61="S",$A61>CFF!$A$9),"",MAX(V$12:OFFSET(V61,-1,0))+1) ->  | W61: SINAPI-84876 | X61: 7275 | Y61: =IF(Import.Desoneracao="sim",Referencia.Desonerado,Referencia.NaoDesonerado) -> 617.82 | Z61: =ROUND(IF(ISNUMBER(R61),R61,IF(LEFT(R61,3)="BDI",HLOOKUP(R61,DADOS!$T$37:$X$38,2,FALSE),0)),15-11*$X$5) -> 0.2652
A62: =CHOOSE(1+LOG(1+2*(J62="Meta")+4*(J62="Nível 2")+8*(J62="Nível 3")+16*(J62="Nível 4")+32*(J62="Serviço"),2),0,1,2,3,4,"S") -> S | B62: =IF(OR(A62="S",A62=0),0,IF(ISERROR(I62),H62,SMALL(H62:I62,1))) -> 0 | C62: =IF($A62=1,OFFSET(C62,-1,0)+1,OFFSET(C62,-1,0)) -> 1 | D62: =IF($A62=1,0,IF($A62=2,OFFSET(D62,-1,0)+1,OFFSET(D62,-1,0))) -> 11 | E62: =IF(AND($A62<=2,$A62<>0),0,IF($A62=3,OFFSET(E62,-1,0)+1,OFFSET(E62,-1,0))) -> 0 | F62: =IF(AND($A62<=3,$A62<>0),0,IF($A62=4,OFFSET(F62,-1,0)+1,OFFSET(F62,-1,0))) -> 0 | G62: =IF(AND($A62<=4,$A62<>0),0,IF($A62="S",OFFSET(G62,-1,0)+1,OFFSET(G62,-1,0))) -> 4 | H62: 0 | I62: 0 | J62: Serviço | K62: =IF($A62=0,"-",CONCATENATE(C62&".",IF(AND($A$5>=2,$A62>=2),D62&".",""),IF(AND($A$5>=3,$A62>=3),E62&".",""),IF(AND($A$5>=4,$A62>=4),F62&".",""),IF($A62="S",G62&".",""))) -> 1.11.4. | L62: PORTA | M62: 1 | N62: PORTA EM VIDRO TEMPERADO FUME E=10mm, COM PERFIL DE ALUMINIO, CORES VARIADAS, DE GIRAR 2,40 X 3,00M | O62: UNID | P62: =OFFSET(PLQ!$E$12,ROW($P62)-ROW(P$12),0) -> 1 | Q62: 3159.61 | R62: BDI 1 | S62: =IF($A62="S",IF($Q$10="Preço Unitário (R$)",PO.CustoUnitario,ROUND(PO.CustoUnitario*(1+$Z62),15-13*$X$6)),0) -> 3997.54 | T62: =IF($A62="S",VTOTAL1,IF($A62=0,0,ROUND(SomaAgrup,15-13*$X$7))) -> 3997.54 | U62: =IF($J62="","",IF($N62="","DESCRIÇÃO",IF(AND($J62="Serviço",$O62=""),"UNIDADE",IF($T62<=0,"SEM VALOR",IF(AND($Y62<>"",$Q62>$Y62),"ACIMA REF.",""))))) ->  | V62: =IF(OR($A62=0,$A62="S",$A62>CFF!$A$9),"",MAX(V$12:OFFSET(V62,-1,0))+1) ->  | W62: =IF(AND($J62="Serviço",$M62<>""),IF($L62="",$M62,CONCATENATE($L62,"-",$M62))) -> PORTA-1 | X62: =IF(AND(Fonte<>"",Código<>""),MATCH(Fonte&" "&IF(Fonte="sinapi",SUBSTITUTE(SUBSTITUTE(Código,"/00","/"),"/0","/"),Código),INDIRECT("'[Referência "&_xlnm.Database&".xls]Banco'!$a:$a"),0),"X") -> 50 | Y62: =IF(Import.Desoneracao="sim",Referencia.Desonerado,Referencia.NaoDesonerado) -> 3717.19 | Z62: =ROUND(IF(ISNUMBER(R62),R62,IF(LEFT(R62,3)="BDI",HLOOKUP(R62,DADOS!$T$37:$X$38,2,FALSE),0)),15-11*$X$5) -> 0.2652
A63: S | B63: 0 | C63: 1 | D63: 11 | E63: 0 | F63: 0 | G63: 5 | H63: 0 | I63: 0 | J63: Serviço | K63: 1.11.5. | L63: SINAPI-I | M63: 4917 | N63: PORTA DE ABRIR EM ALUMINIO TIPO VENEZIANA, ACABAMENTO ANODIZADO NATURAL, SEM GUARNICAO/ALIZAR/VISTA | O63: M2 | P63: =OFFSET(PLQ!$E$12,ROW($P63)-ROW(P$12),0) -> 9.6 | Q63: 550 | R63: BDI 1 | S63: 695.86 | T63: 6680.26 | V63: =IF(OR($A63=0,$A63="S",$A63>CFF!$A$9),"",MAX(V$12:OFFSET(V63,-1,0))+1) ->  | W63: SINAPI-I-4917 | X63: 4116 | Y63: =IF(Import.Desoneracao="sim",Referencia.Desonerado,Referencia.NaoDesonerado) -> 637.01 | Z63: =ROUND(IF(ISNUMBER(R63),R63,IF(LEFT(R63,3)="BDI",HLOOKUP(R63,DADOS!$T$37:$X$38,2,FALSE),0)),15-11*$X$5) -> 0.2652
A64: S | B64: 0 | C64: 1 | D64: 11 | E64: 0 | F64: 0 | G64: 6 | H64: 0 | I64: 0 | J64: Serviço | K64: 1.11.6. | L64: SINAPI | M64: 94581 | N64: JANELA DE ALUMÍNIO MAXIM-AR, FIXAÇÃO COM ARGAMASSA, COM VIDROS, PADRONIZADA | O64: M2 | P64: =OFFSET(PLQ!$E$12,ROW($P64)-ROW(P$12),0) -> 151.4 | Q64: 500 | R64: BDI 1 | S64: 632.6 | T64: 95775.64 | V64: =IF(OR($A64=0,$A64="S",$A64>CFF!$A$9),"",MAX(V$12:OFFSET(V64,-1,0))+1) ->  | W64: SINAPI-94581 | X64: 7446 | Y64: =IF(Import.Desoneracao="sim",Referencia.Desonerado,Referencia.NaoDesonerado) -> 655.32 | Z64: =ROUND(IF(ISNUMBER(R64),R64,IF(LEFT(R64,3)="BDI",HLOOKUP(R64,DADOS!$T$37:$X$38,2,FALSE),0)),15-11*$X$5) -> 0.2652
A65: =CHOOSE(1+LOG(1+2*(J65="Meta")+4*(J65="Nível 2")+8*(J65="Nível 3")+16*(J65="Nível 4")+32*(J65="Serviço"),2),0,1,2,3,4,"S") -> S | B65: =IF(OR(A65="S",A65=0),0,IF(ISERROR(I65),H65,SMALL(H65:I65,1))) -> 0 | C65: =IF($A65=1,OFFSET(C65,-1,0)+1,OFFSET(C65,-1,0)) -> 1 | D65: =IF($A65=1,0,IF($A65=2,OFFSET(D65,-1,0)+1,OFFSET(D65,-1,0))) -> 11 | E65: =IF(AND($A65<=2,$A65<>0),0,IF($A65=3,OFFSET(E65,-1,0)+1,OFFSET(E65,-1,0))) -> 0 | F65: =IF(AND($A65<=3,$A65<>0),0,IF($A65=4,OFFSET(F65,-1,0)+1,OFFSET(F65,-1,0))) -> 0 | G65: =IF(AND($A65<=4,$A65<>0),0,IF($A65="S",OFFSET(G65,-1,0)+1,OFFSET(G65,-1,0))) -> 7 | H65: 0 | I65: 0 | J65: Serviço | K65: =IF($A65=0,"-",CONCATENATE(C65&".",IF(AND($A$5>=2,$A65>=2),D65&".",""),IF(AND($A$5>=3,$A65>=3),E65&".",""),IF(AND($A$5>=4,$A65>=4),F65&".",""),IF($A65="S",G65&".",""))) -> 1.11.7. | L65: SINAPI-I | M65: 599 | N65: JANELA FIXA EM ALUMINIO, 60 X 80 CM (A X L), BATENTE/REQUADRO DE 3 A 14 CM, COM VIDRO | O65: M2 | P65: =OFFSET(PLQ!$E$12,ROW($P65)-ROW(P$12),0) -> 4.5 | Q65: 350.07 | R65: BDI 1 | S65: =IF($A65="S",IF($Q$10="Preço Unitário (R$)",PO.CustoUnitario,ROUND(PO.CustoUnitario*(1+$Z65),15-13*$X$6)),0) -> 442.91 | T65: =IF($A65="S",VTOTAL1,IF($A65=0,0,ROUND(SomaAgrup,15-13*$X$7))) -> 1993.1 | U65: =IF($J65="","",IF($N65="","DESCRIÇÃO",IF(AND($J65="Serviço",$O65=""),"UNIDADE",IF($T65<=0,"SEM VALOR",IF(AND($Y65<>"",$Q65>$Y65),"ACIMA REF.",""))))) ->  | V65: =IF(OR($A65=0,$A65="S",$A65>CFF!$A$9),"",MAX(V$12:OFFSET(V65,-1,0))+1) ->  | W65: =IF(AND($J65="Serviço",$M65<>""),IF($L65="",$M65,CONCATENATE($L65,"-",$M65))) -> SINAPI-I-599 | X65: =IF(AND(Fonte<>"",Código<>""),MATCH(Fonte&" "&IF(Fonte="sinapi",SUBSTITUTE(SUBSTITUTE(Código,"/00","/"),"/0","/"),Código),INDIRECT("'[Referência "&_xlnm.Database&".xls]Banco'!$a:$a"),0),"X") -> 2852 | Y65: =IF(Import.Desoneracao="sim",Referencia.Desonerado,Referencia.NaoDesonerado) -> 411.85 | Z65: =ROUND(IF(ISNUMBER(R65),R65,IF(LEFT(R65,3)="BDI",HLOOKUP(R65,DADOS!$T$37:$X$38,2,FALSE),0)),15-11*$X$5) -> 0.2652
A66: S | B66: 0 | C66: 1 | D66: 11 | E66: 0 | F66: 0 | G66: 8 | H66: 0 | I66: 0 | J66: Serviço | K66: 1.11.8. | L66: SINAPI-I | M66: 4828 | N66: SOLEIRA EM MARMORE, POLIDO, L= *15* CM, E= *2* CM, CORTE RETO | O66: M | P66: =OFFSET(PLQ!$E$12,ROW($P66)-ROW(P$12),0) -> 22 | Q66: 45.31 | R66: BDI 1 | S66: 57.33 | T66: 1261.26 | V66: =IF(OR($A66=0,$A66="S",$A66>CFF!$A$9),"",MAX(V$12:OFFSET(V66,-1,0))+1) ->  | W66: SINAPI-I-4828 | X66: 4524 | Y66: =IF(Import.Desoneracao="sim",Referencia.Desonerado,Referencia.NaoDesonerado) -> 53.3 | Z66: =ROUND(IF(ISNUMBER(R66),R66,IF(LEFT(R66,3)="BDI",HLOOKUP(R66,DADOS!$T$37:$X$38,2,FALSE),0)),15-11*$X$5) -> 0.2652
A67: S | B67: 0 | C67: 1 | D67: 11 | E67: 0 | F67: 0 | G67: 9 | H67: 0 | I67: 0 | J67: Serviço | K67: 1.11.9. | L67: SINAPI-I | M67: 4828 | N67: PEITORIL EM MARMORE, POLIDO, L= *15* CM, E= *2* CM, CORTE RETO | O67: M | P67: =OFFSET(PLQ!$E$12,ROW($P67)-ROW(P$12),0) -> 95.3 | Q67: 45.31 | R67: BDI 1 | S67: 57.33 | T67: 5463.55 | V67: =IF(OR($A67=0,$A67="S",$A67>CFF!$A$9),"",MAX(V$12:OFFSET(V67,-1,0))+1) ->  | W67: SINAPI-I-4828 | X67: 4524 | Y67: =IF(Import.Desoneracao="sim",Referencia.Desonerado,Referencia.NaoDesonerado) -> 53.3 | Z67: =ROUND(IF(ISNUMBER(R67),R67,IF(LEFT(R67,3)="BDI",HLOOKUP(R67,DADOS!$T$37:$X$38,2,FALSE),0)),15-11*$X$5) -> 0.2652
A68: 2 | B68: 6 | C68: 1 | D68: 12 | E68: 0 | F68: 0 | G68: 0 | H68: 99 | I68: 6 | J68: Nível 2 | K68: 1.12. | N68: PAVIMENTAÇÕES | O68: =Referencia.Unidade ->  | P68: =OFFSET(PLQ!$E$12,ROW($P68)-ROW(P$12),0) -> 0 | Q68: 0 | R68: BDI 1 | S68: 0 | T68: 75043.76 | V68: =IF(OR($A68=0,$A68="S",$A68>CFF!$A$9),"",MAX(V$12:OFFSET(V68,-1,0))+1) -> 13 | W68: FALSE | X68: X | Y68: =IF(Import.Desoneracao="sim",Referencia.Desonerado,Referencia.NaoDesonerado) -> 0 | Z68: =ROUND(IF(ISNUMBER(R68),R68,IF(LEFT(R68,3)="BDI",HLOOKUP(R68,DADOS!$T$37:$X$38,2,FALSE),0)),15-11*$X$5) -> 0.2652
A69: S | B69: 0 | C69: 1 | D69: 12 | E69: 0 | F69: 0 | G69: 1 | H69: 0 | I69: 0 | J69: Serviço | K69: 1.12.1. | L69: SINAPI-I | M69: 4718 | N69: PEDRA BRITADA N. 2 PARA LASTRO | O69: M3 | P69: =OFFSET(PLQ!$E$12,ROW($P69)-ROW(P$12),0) -> 19.94 | Q69: 51 | R69: BDI 1 | S69: 64.53 | T69: 1286.73 | V69: =IF(OR($A69=0,$A69="S",$A69>CFF!$A$9),"",MAX(V$12:OFFSET(V69,-1,0))+1) ->  | W69: SINAPI-I-4718 | X69: 3906 | Y69: =IF(Import.Desoneracao="sim",Referencia.Desonerado,Referencia.NaoDesonerado) -> 60 | Z69: =ROUND(IF(ISNUMBER(R69),R69,IF(LEFT(R69,3)="BDI",HLOOKUP(R69,DADOS!$T$37:$X$38,2,FALSE),0)),15-11*$X$5) -> 0.2652
A70: S | B70: 0 | C70: 1 | D70: 12 | E70: 0 | F70: 0 | G70: 2 | H70: 0 | I70: 0 | J70: Serviço | K70: 1.12.2. | L70: SINAPI | M70: 68325 | N70: PISO EM CONCRETO 20 MPA PREPARO MECANICO, ESPESSURA 7CM, INCLUSO SELANTE ELASTICO A BASE DE POLIURETANO | O70: M2 | P70: =OFFSET(PLQ!$E$12,ROW($P70)-ROW(P$12),0) -> 398.89 | Q70: 35.12 | R70: BDI 1 | S70: 44.43 | T70: 17722.68 | V70: =IF(OR($A70=0,$A70="S",$A70>CFF!$A$9),"",MAX(V$12:OFFSET(V70,-1,0))+1) ->  | W70: SINAPI-68325 | X70: 10978 | Y70: =IF(Import.Desoneracao="sim",Referencia.Desonerado,Referencia.NaoDesonerado) -> 41.32 | Z70: =ROUND(IF(ISNUMBER(R70),R70,IF(LEFT(R70,3)="BDI",HLOOKUP(R70,DADOS!$T$37:$X$38,2,FALSE),0)),15-11*$X$5) -> 0.2652
A71: S | B71: 0 | C71: 1 | D71: 12 | E71: 0 | F71: 0 | G71: 3 | H71: 0 | I71: 0 | J71: Serviço | K71: 1.12.3. | L71: SINAPI | M71: 87630 | N71: CONTRAPISO EM ARGAMASSA TRAÇO 1:4 (CIMENTO E AREIA), ADERIDO, ESPESSURA 3CM | O71: M2 | P71: =OFFSET(PLQ!$E$12,ROW($P71)-ROW(P$12),0) -> 580.92 | Q71: 25.61 | R71: BDI 1 | S71: 32.4 | T71: 18821.81 | V71: =IF(OR($A71=0,$A71="S",$A71>CFF!$A$9),"",MAX(V$12:OFFSET(V71,-1,0))+1) ->  | W71: SINAPI-87630 | X71: 10997 | Y71: =IF(Import.Desoneracao="sim",Referencia.Desonerado,Referencia.NaoDesonerado) -> 30.13 | Z71: =ROUND(IF(ISNUMBER(R71),R71,IF(LEFT(R71,3)="BDI",HLOOKUP(R71,DADOS!$T$37:$X$38,2,FALSE),0)),15-11*$X$5) -> 0.2652
A72: S | B72: 0 | C72: 1 | D72: 12 | E72: 0 | F72: 0 | G72: 4 | H72: 0 | I72: 0 | J72: Serviço | K72: 1.12.4. | L72: SINAPI | M72: 87257 | N72: REVESTIMENTO CERÂMICO PARA PISO COM PLACAS TIPO ESMALTADA EXTRA DE DIMENSÕES 60X60 CM | O72: M2 | P72: =OFFSET(PLQ!$E$12,ROW($P72)-ROW(P$12),0) -> 568.2 | Q72: 46.36 | R72: BDI 1 | S72: 58.65 | T72: 33324.93 | V72: =IF(OR($A72=0,$A72="S",$A72>CFF!$A$9),"",MAX(V$12:OFFSET(V72,-1,0))+1) ->  | W72: SINAPI-87257 | X72: 10931 | Y72: =IF(Import.Desoneracao="sim",Referencia.Desonerado,Referencia.NaoDesonerado) -> 54.54 | Z72: =ROUND(IF(ISNUMBER(R72),R72,IF(LEFT(R72,3)="BDI",HLOOKUP(R72,DADOS!$T$37:$X$38,2,FALSE),0)),15-11*$X$5) -> 0.2652
A73: S | B73: 0 | C73: 1 | D73: 12 | E73: 0 | F73: 0 | G73: 5 | H73: 0 | I73: 0 | J73: Serviço | K73: 1.12.5. | L73: SINAPI | M73: 88650 | N73: RODAPÉ CERÂMICO DE 7CM DE ALTURA COM PLACAS TIPO ESMALTADA EXTRA DE DIMENSÕES 60X60CM | O73: M | P73: =OFFSET(PLQ!$E$12,ROW($P73)-ROW(P$12),0) -> 362.65 | Q73: 8.47 | R73: BDI 1 | S73: 10.72 | T73: 3887.61 | V73: =IF(OR($A73=0,$A73="S",$A73>CFF!$A$9),"",MAX(V$12:OFFSET(V73,-1,0))+1) ->  | W73: SINAPI-88650 | X73: 10974 | Y73: =IF(Import.Desoneracao="sim",Referencia.Desonerado,Referencia.NaoDesonerado) -> 9.97 | Z73: =ROUND(IF(ISNUMBER(R73),R73,IF(LEFT(R73,3)="BDI",HLOOKUP(R73,DADOS!$T$37:$X$38,2,FALSE),0)),15-11*$X$5) -> 0.2652
A74: 2 | B74: 7 | C74: 1 | D74: 13 | E74: 0 | F74: 0 | G74: 0 | H74: 93 | I74: 7 | J74: Nível 2 | K74: 1.13. | N74: PINTURAS | O74: =Referencia.Unidade ->  | P74: =OFFSET(PLQ!$E$12,ROW($P74)-ROW(P$12),0) -> 0 | Q74: 0 | R74: BDI 1 | S74: 0 | T74: 75858.21 | V74: =IF(OR($A74=0,$A74="S",$A74>CFF!$A$9),"",MAX(V$12:OFFSET(V74,-1,0))+1) -> 14 | W74: FALSE | X74: X | Y74: =IF(Import.Desoneracao="sim",Referencia.Desonerado,Referencia.NaoDesonerado) -> 0 | Z74: =ROUND(IF(ISNUMBER(R74),R74,IF(LEFT(R74,3)="BDI",HLOOKUP(R74,DADOS!$T$37:$X$38,2,FALSE),0)),15-11*$X$5) -> 0.2652
A75: =CHOOSE(1+LOG(1+2*(J75="Meta")+4*(J75="Nível 2")+8*(J75="Nível 3")+16*(J75="Nível 4")+32*(J75="Serviço"),2),0,1,2,3,4,"S") -> S | B75: =IF(OR(A75="S",A75=0),0,IF(ISERROR(I75),H75,SMALL(H75:I75,1))) -> 0 | C75: =IF($A75=1,OFFSET(C75,-1,0)+1,OFFSET(C75,-1,0)) -> 1 | D75: =IF($A75=1,0,IF($A75=2,OFFSET(D75,-1,0)+1,OFFSET(D75,-1,0))) -> 13 | E75: =IF(AND($A75<=2,$A75<>0),0,IF($A75=3,OFFSET(E75,-1,0)+1,OFFSET(E75,-1,0))) -> 0 | F75: =IF(AND($A75<=3,$A75<>0),0,IF($A75=4,OFFSET(F75,-1,0)+1,OFFSET(F75,-1,0))) -> 0 | G75: =IF(AND($A75<=4,$A75<>0),0,IF($A75="S",OFFSET(G75,-1,0)+1,OFFSET(G75,-1,0))) -> 1 | H75: 0 | I75: 0 | J75: Serviço | K75: =IF($A75=0,"-",CONCATENATE(C75&".",IF(AND($A$5>=2,$A75>=2),D75&".",""),IF(AND($A$5>=3,$A75>=3),E75&".",""),IF(AND($A$5>=4,$A75>=4),F75&".",""),IF($A75="S",G75&".",""))) -> 1.13.1. | L75: SINAPI | M75: 96132 | N75: APLICAÇÃO MANUAL DE MASSA ACRÍLICA, DUAS DEMÃOS | O75: M2 | P75: =OFFSET(PLQ!$E$12,ROW($P75)-ROW(P$12),0) -> 2666.12 | Q75: 13.25 | R75: BDI 1 | S75: =IF($A75="S",IF($Q$10="Preço Unitário (R$)",PO.CustoUnitario,ROUND(PO.CustoUnitario*(1+$Z75),15-13*$X$6)),0) -> 16.76 | T75: =IF($A75="S",VTOTAL1,IF($A75=0,0,ROUND(SomaAgrup,15-13*$X$7))) -> 44684.17 | U75: =IF($J75="","",IF($N75="","DESCRIÇÃO",IF(AND($J75="Serviço",$O75=""),"UNIDADE",IF($T75<=0,"SEM VALOR",IF(AND($Y75<>"",$Q75>$Y75),"ACIMA REF.",""))))) ->  | V75: =IF(OR($A75=0,$A75="S",$A75>CFF!$A$9),"",MAX(V$12:OFFSET(V75,-1,0))+1) ->  | W75: =IF(AND($J75="Serviço",$M75<>""),IF($L75="",$M75,CONCATENATE($L75,"-",$M75))) -> SINAPI-96132 | X75: =IF(AND(Fonte<>"",Código<>""),MATCH(Fonte&" "&IF(Fonte="sinapi",SUBSTITUTE(SUBSTITUTE(Código,"/00","/"),"/0","/"),Código),INDIRECT("'[Referência "&_xlnm.Database&".xls]Banco'!$a:$a"),0),"X") -> 10866 | Y75: =IF(Import.Desoneracao="sim",Referencia.Desonerado,Referencia.NaoDesonerado) -> 15.59 | Z75: =ROUND(IF(ISNUMBER(R75),R75,IF(LEFT(R75,3)="BDI",HLOOKUP(R75,DADOS!$T$37:$X$38,2,FALSE),0)),15-11*$X$5) -> 0.2652
A76: S | B76: 0 | C76: 1 | D76: 13 | E76: 0 | F76: 0 | G76: 2 | H76: 0 | I76: 0 | J76: Serviço | K76: 1.13.2. | L76: SINAPI | M76: 88488 | N76: APLICAÇÃO MANUAL DE PINTURA COM TINTA LÁTEX ACRÍLICA EM TETO, DUAS DEMÃOS | O76: M2 | P76: =OFFSET(PLQ!$E$12,ROW($P76)-ROW(P$12),0) -> 190.42 | Q76: 9.98 | R76: BDI 1 | S76: 12.63 | T76: 2405 | V76: =IF(OR($A76=0,$A76="S",$A76>CFF!$A$9),"",MAX(V$12:OFFSET(V76,-1,0))+1) ->  | W76: SINAPI-88488 | X76: 10843 | Y76: =IF(Import.Desoneracao="sim",Referencia.Desonerado,Referencia.NaoDesonerado) -> 11.74 | Z76: =ROUND(IF(ISNUMBER(R76),R76,IF(LEFT(R76,3)="BDI",HLOOKUP(R76,DADOS!$T$37:$X$38,2,FALSE),0)),15-11*$X$5) -> 0.2652
A77: S | B77: 0 | C77: 1 | D77: 13 | E77: 0 | F77: 0 | G77: 3 | H77: =IF(OR($A77="S",$A77=0),0,MATCH(0,OFFSET($B77,1,$A77,ROW($A$167)-ROW($A77)),0)) -> 0 | I77: =IF(OR($A77="S",$A77=0),0,MATCH(OFFSET($B77,0,$A77)+1,OFFSET($B77,1,$A77,ROW($A$167)-ROW($A77)),0)) -> 0 | J77: Serviço | K77: 1.13.3. | L77: SINAPI | M77: 88489 | N77: APLICAÇÃO MANUAL DE PINTURA COM TINTA LÁTEX ACRÍLICA EM PAREDES, DUAS DEMÃOS | O77: M2 | P77: =OFFSET(PLQ!$E$12,ROW($P77)-ROW(P$12),0) -> 2050.58 | Q77: 8.79 | R77: BDI 1 | S77: 11.12 | T77: 22802.45 | V77: =IF(OR($A77=0,$A77="S",$A77>CFF!$A$9),"",MAX(V$12:OFFSET(V77,-1,0))+1) ->  | W77: SINAPI-88489 | X77: 10844 | Y77: =IF(Import.Desoneracao="sim",Referencia.Desonerado,Referencia.NaoDesonerado) -> 10.34 | Z77: =ROUND(IF(ISNUMBER(R77),R77,IF(LEFT(R77,3)="BDI",HLOOKUP(R77,DADOS!$T$37:$X$38,2,FALSE),0)),15-11*$X$5) -> 0.2652
A78: S | B78: 0 | C78: 1 | D78: 13 | E78: 0 | F78: 0 | G78: 4 | H78: 0 | I78: 0 | J78: Serviço | K78: 1.13.4. | L78: SINAPI | M78: 88484 | N78: APLICAÇÃO DE FUNDO SELADOR LÁTEX PVA EM TETO, UMA DEMÃO | O78: M2 | P78: =OFFSET(PLQ!$E$12,ROW($P78)-ROW(P$12),0) -> 190.42 | Q78: 1.8 | R78: BDI 1 | S78: 2.28 | T78: 434.16 | V78: =IF(OR($A78=0,$A78="S",$A78>CFF!$A$9),"",MAX(V$12:OFFSET(V78,-1,0))+1) ->  | W78: SINAPI-88484 | X78: 10839 | Y78: =IF(Import.Desoneracao="sim",Referencia.Desonerado,Referencia.NaoDesonerado) -> 2.12 | Z78: =ROUND(IF(ISNUMBER(R78),R78,IF(LEFT(R78,3)="BDI",HLOOKUP(R78,DADOS!$T$37:$X$38,2,FALSE),0)),15-11*$X$5) -> 0.2652
A79: S | B79: 0 | C79: 1 | D79: 13 | E79: 0 | F79: 0 | G79: 5 | H79: 0 | I79: 0 | J79: Serviço | K79: 1.13.5. | L79: SINAPI | M79: 88485 | N79: APLICAÇÃO DE FUNDO SELADOR LÁTEX PVA EM PAREDES, UMA DEMÃO | O79: M2 | P79: =OFFSET(PLQ!$E$12,ROW($P79)-ROW(P$12),0) -> 2050.58 | Q79: 1.55 | R79: BDI 1 | S79: =IF($A79="S",IF($Q$10="Preço Unitário (R$)",PO.CustoUnitario,ROUND(PO.CustoUnitario*(1+$Z79),15-13*$X$6)),0) -> 1.96 | T79: =IF($A79="S",VTOTAL1,IF($A79=0,0,ROUND(SomaAgrup,15-13*$X$7))) -> 4019.14 | V79: =IF(OR($A79=0,$A79="S",$A79>CFF!$A$9),"",MAX(V$12:OFFSET(V79,-1,0))+1) ->  | W79: SINAPI-88485 | X79: =IF(AND(Fonte<>"",Código<>""),MATCH(Fonte&" "&IF(Fonte="sinapi",SUBSTITUTE(SUBSTITUTE(Código,"/00","/"),"/0","/"),Código),INDIRECT("'[Referência "&_xlnm.Database&".xls]Banco'!$a:$a"),0),"X") -> 10840 | Y79: =IF(Import.Desoneracao="sim",Referencia.Desonerado,Referencia.NaoDesonerado) -> 1.82 | Z79: =ROUND(IF(ISNUMBER(R79),R79,IF(LEFT(R79,3)="BDI",HLOOKUP(R79,DADOS!$T$37:$X$38,2,FALSE),0)),15-11*$X$5) -> 0.2652
A80: S | B80: 0 | C80: 1 | D80: 13 | E80: 0 | F80: 0 | G80: 6 | H80: 0 | I80: 0 | J80: Serviço | K80: 1.13.6. | L80: SINAPI | M80: 73739/1 | N80: PINTURA ESMALTE ACETINADO EM MADEIRA, DUAS DEMAOS | O80: M2 | P80: =OFFSET(PLQ!$E$12,ROW($P80)-ROW(P$12),0) -> 93.24 | Q80: 12.83 | R80: BDI 1 | S80: 16.23 | T80: 1513.29 | V80: =IF(OR($A80=0,$A80="S",$A80>CFF!$A$9),"",MAX(V$12:OFFSET(V80,-1,0))+1) ->  | W80: SINAPI-73739/1 | X80: 10879 | Y80: =IF(Import.Desoneracao="sim",Referencia.Desonerado,Referencia.NaoDesonerado) -> 15.09 | Z80: =ROUND(IF(ISNUMBER(R80),R80,IF(LEFT(R80,3)="BDI",HLOOKUP(R80,DADOS!$T$37:$X$38,2,FALSE),0)),15-11*$X$5) -> 0.2652
A81: 2 | B81: 15 | C81: 1 | D81: 14 | E81: 0 | F81: 0 | G81: 0 | H81: 86 | I81: 15 | J81: Nível 2 | K81: 1.14. | N81: APARELHOS SANITÁRIOS | O81: =Referencia.Unidade ->  | P81: =OFFSET(PLQ!$E$12,ROW($P81)-ROW(P$12),0) -> 0 | R81: BDI 1 | S81: 0 | T81: 13998.22 | V81: =IF(OR($A81=0,$A81="S",$A81>CFF!$A$9),"",MAX(V$12:OFFSET(V81,-1,0))+1) -> 15 | W81: FALSE | X81: X | Y81: =IF(Import.Desoneracao="sim",Referencia.Desonerado,Referencia.NaoDesonerado) -> 0 | Z81: =ROUND(IF(ISNUMBER(R81),R81,IF(LEFT(R81,3)="BDI",HLOOKUP(R81,DADOS!$T$37:$X$38,2,FALSE),0)),15-11*$X$5) -> 0.2652
A82: =CHOOSE(1+LOG(1+2*(J82="Meta")+4*(J82="Nível 2")+8*(J82="Nível 3")+16*(J82="Nível 4")+32*(J82="Serviço"),2),0,1,2,3,4,"S") -> S | B82: =IF(OR(A82="S",A82=0),0,IF(ISERROR(I82),H82,SMALL(H82:I82,1))) -> 0 | C82: =IF($A82=1,OFFSET(C82,-1,0)+1,OFFSET(C82,-1,0)) -> 1 | D82: =IF($A82=1,0,IF($A82=2,OFFSET(D82,-1,0)+1,OFFSET(D82,-1,0))) -> 14 | E82: =IF(AND($A82<=2,$A82<>0),0,IF($A82=3,OFFSET(E82,-1,0)+1,OFFSET(E82,-1,0))) -> 0 | F82: =IF(AND($A82<=3,$A82<>0),0,IF($A82=4,OFFSET(F82,-1,0)+1,OFFSET(F82,-1,0))) -> 0 | G82: =IF(AND($A82<=4,$A82<>0),0,IF($A82="S",OFFSET(G82,-1,0)+1,OFFSET(G82,-1,0))) -> 1 | H82: 0 | I82: 0 | J82: Serviço | K82: =IF($A82=0,"-",CONCATENATE(C82&".",IF(AND($A$5>=2,$A82>=2),D82&".",""),IF(AND($A$5>=3,$A82>=3),E82&".",""),IF(AND($A$5>=4,$A82>=4),F82&".",""),IF($A82="S",G82&".",""))) -> 1.14.1. | L82: SINAPI | M82: 86943 | N82: LAVATÓRIO LOUÇA BRANCA SUSPENSO, 29,5 X 39CM OU EQUIVALENTE, INCLUSO SIFÃO FLEXÍVEL EM PVC, VÁLVULA E ENGATE FLEXÍVEL 30CM EM PLÁSTICO E TORNEIRA CROMADA DE MESA FORNECIMENTO E INSTALAÇÃO | O82: UN | P82: =OFFSET(PLQ!$E$12,ROW($P82)-ROW(P$12),0) -> 4 | Q82: 137.9 | R82: BDI 1 | S82: 174.47 | T82: 697.88 | U82: =IF($J82="","",IF($N82="","DESCRIÇÃO",IF(AND($J82="Serviço",$O82=""),"UNIDADE",IF($T82<=0,"SEM VALOR",IF(AND($Y82<>"",$Q82>$Y82),"ACIMA REF.",""))))) ->  | V82: =IF(OR($A82=0,$A82="S",$A82>CFF!$A$9),"",MAX(V$12:OFFSET(V82,-1,0))+1) ->  | W82: =IF(AND($J82="Serviço",$M82<>""),IF($L82="",$M82,CONCATENATE($L82,"-",$M82))) -> SINAPI-86943 | X82: 10046 | Y82: =IF(Import.Desoneracao="sim",Referencia.Desonerado,Referencia.NaoDesonerado) -> 162.24 | Z82: =ROUND(IF(ISNUMBER(R82),R82,IF(LEFT(R82,3)="BDI",HLOOKUP(R82,DADOS!$T$37:$X$38,2,FALSE),0)),15-11*$X$5) -> 0.2652
A83: S | B83: 0 | C83: 1 | D83: 14 | E83: 0 | F83: 0 | G83: 2 | H83: 0 | I83: 0 | J83: Serviço | K83: 1.14.2. | L83: SINAPI | M83: 86895 | N83: BANCADA DE GRANITO CINZA POLIDO PARA LAVATÓRIO 0,50 X 0,60 M - FORNECIMENTO E INSTALAÇÃO | O83: UN | P83: =OFFSET(PLQ!$E$12,ROW($P83)-ROW(P$12),0) -> 6 | Q83: 195.97 | R83: BDI 1 | S83: 247.94 | T83: 1487.64 | V83: =IF(OR($A83=0,$A83="S",$A83>CFF!$A$9),"",MAX(V$12:OFFSET(V83,-1,0))+1) ->  | W83: SINAPI-86895 | X83: 10004 | Y83: =IF(Import.Desoneracao="sim",Referencia.Desonerado,Referencia.NaoDesonerado) -> 230.55 | Z83: =ROUND(IF(ISNUMBER(R83),R83,IF(LEFT(R83,3)="BDI",HLOOKUP(R83,DADOS!$T$37:$X$38,2,FALSE),0)),15-11*$X$5) -> 0.2652
A84: =CHOOSE(1+LOG(1+2*(J84="Meta")+4*(J84="Nível 2")+8*(J84="Nível 3")+16*(J84="Nível 4")+32*(J84="Serviço"),2),0,1,2,3,4,"S") -> S | B84: =IF(OR(A84="S",A84=0),0,IF(ISERROR(I84),H84,SMALL(H84:I84,1))) -> 0 | C84: =IF($A84=1,OFFSET(C84,-1,0)+1,OFFSET(C84,-1,0)) -> 1 | D84: =IF($A84=1,0,IF($A84=2,OFFSET(D84,-1,0)+1,OFFSET(D84,-1,0))) -> 14 | E84: =IF(AND($A84<=2,$A84<>0),0,IF($A84=3,OFFSET(E84,-1,0)+1,OFFSET(E84,-1,0))) -> 0 | F84: =IF(AND($A84<=3,$A84<>0),0,IF($A84=4,OFFSET(F84,-1,0)+1,OFFSET(F84,-1,0))) -> 0 | G84: =IF(AND($A84<=4,$A84<>0),0,IF($A84="S",OFFSET(G84,-1,0)+1,OFFSET(G84,-1,0))) -> 3 | H84: 0 | I84: 0 | J84: Serviço | K84: =IF($A84=0,"-",CONCATENATE(C84&".",IF(AND($A$5>=2,$A84>=2),D84&".",""),IF(AND($A$5>=3,$A84>=3),E84&".",""),IF(AND($A$5>=4,$A84>=4),F84&".",""),IF($A84="S",G84&".",""))) -> 1.14.3. | L84: SINAPI-I | M84: 10427 | N84: LAVATORIO/CUBA DE SOBREPOR RETANGULAR LOUCA BRANCA COM LADRAO *52 X 45* CM | O84: UN | P84: =OFFSET(PLQ!$E$12,ROW($P84)-ROW(P$12),0) -> 6 | Q84: 153.97 | R84: BDI 1 | S84: =IF($A84="S",IF($Q$10="Preço Unitário (R$)",PO.CustoUnitario,ROUND(PO.CustoUnitario*(1+$Z84),15-13*$X$6)),0) -> 194.8 | T84: =IF($A84="S",VTOTAL1,IF($A84=0,0,ROUND(SomaAgrup,15-13*$X$7))) -> 1168.8 | U84: =IF($J84="","",IF($N84="","DESCRIÇÃO",IF(AND($J84="Serviço",$O84=""),"UNIDADE",IF($T84<=0,"SEM VALOR",IF(AND($Y84<>"",$Q84>$Y84),"ACIMA REF.",""))))) ->  | V84: =IF(OR($A84=0,$A84="S",$A84>CFF!$A$9),"",MAX(V$12:OFFSET(V84,-1,0))+1) ->  | W84: =IF(AND($J84="Serviço",$M84<>""),IF($L84="",$M84,CONCATENATE($L84,"-",$M84))) -> SINAPI-I-10427 | X84: =IF(AND(Fonte<>"",Código<>""),MATCH(Fonte&" "&IF(Fonte="sinapi",SUBSTITUTE(SUBSTITUTE(Código,"/00","/"),"/0","/"),Código),INDIRECT("'[Referência "&_xlnm.Database&".xls]Banco'!$a:$a"),0),"X") -> 3154 | Y84: =IF(Import.Desoneracao="sim",Referencia.Desonerado,Referencia.NaoDesonerado) -> 181.14 | Z84: =ROUND(IF(ISNUMBER(R84),R84,IF(LEFT(R84,3)="BDI",HLOOKUP(R84,DADOS!$T$37:$X$38,2,FALSE),0)),15-11*$X$5) -> 0.2652
A85: =CHOOSE(1+LOG(1+2*(J85="Meta")+4*(J85="Nível 2")+8*(J85="Nível 3")+16*(J85="Nível 4")+32*(J85="Serviço"),2),0,1,2,3,4,"S") -> S | B85: =IF(OR(A85="S",A85=0),0,IF(ISERROR(I85),H85,SMALL(H85:I85,1))) -> 0 | C85: =IF($A85=1,OFFSET(C85,-1,0)+1,OFFSET(C85,-1,0)) -> 1 | D85: =IF($A85=1,0,IF($A85=2,OFFSET(D85,-1,0)+1,OFFSET(D85,-1,0))) -> 14 | E85: =IF(AND($A85<=2,$A85<>0),0,IF($A85=3,OFFSET(E85,-1,0)+1,OFFSET(E85,-1,0))) -> 0 | F85: =IF(AND($A85<=3,$A85<>0),0,IF($A85=4,OFFSET(F85,-1,0)+1,OFFSET(F85,-1,0))) -> 0 | G85: =IF(AND($A85<=4,$A85<>0),0,IF($A85="S",OFFSET(G85,-1,0)+1,OFFSET(G85,-1,0))) -> 4 | H85: 0 | I85: 0 | J85: Serviço | K85: =IF($A85=0,"-",CONCATENATE(C85&".",IF(AND($A$5>=2,$A85>=2),D85&".",""),IF(AND($A$5>=3,$A85>=3),E85&".",""),IF(AND($A$5>=4,$A85>=4),F85&".",""),IF($A85="S",G85&".",""))) -> 1.14.4. | L85: SINAPI | M85: 86883 | N85: SIFÃO DO TIPO FLEXÍVEL EM PVC 1 X 1.1/2 - FORNECIMENTO E INSTALAÇÃO | O85: UN | P85: =OFFSET(PLQ!$E$12,ROW($P85)-ROW(P$12),0) -> 6 | Q85: 6.8 | R85: BDI 1 | S85: =IF($A85="S",IF($Q$10="Preço Unitário (R$)",PO.CustoUnitario,ROUND(PO.CustoUnitario*(1+$Z85),15-13*$X$6)),0) -> 8.6 | T85: =IF($A85="S",VTOTAL1,IF($A85=0,0,ROUND(SomaAgrup,15-13*$X$7))) -> 51.6 | U85: =IF($J85="","",IF($N85="","DESCRIÇÃO",IF(AND($J85="Serviço",$O85=""),"UNIDADE",IF($T85<=0,"SEM VALOR",IF(AND($Y85<>"",$Q85>$Y85),"ACIMA REF.",""))))) ->  | V85: =IF(OR($A85=0,$A85="S",$A85>CFF!$A$9),"",MAX(V$12:OFFSET(V85,-1,0))+1) ->  | W85: =IF(AND($J85="Serviço",$M85<>""),IF($L85="",$M85,CONCATENATE($L85,"-",$M85))) -> SINAPI-86883 | X85: =IF(AND(Fonte<>"",Código<>""),MATCH(Fonte&" "&IF(Fonte="sinapi",SUBSTITUTE(SUBSTITUTE(Código,"/00","/"),"/0","/"),Código),INDIRECT("'[Referência "&_xlnm.Database&".xls]Banco'!$a:$a"),0),"X") -> 9995 | Y85: =IF(Import.Desoneracao="sim",Referencia.Desonerado,Referencia.NaoDesonerado) -> 8 | Z85: =ROUND(IF(ISNUMBER(R85),R85,IF(LEFT(R85,3)="BDI",HLOOKUP(R85,DADOS!$T$37:$X$38,2,FALSE),0)),15-11*$X$5) -> 0.2652
A86: =CHOOSE(1+LOG(1+2*(J86="Meta")+4*(J86="Nível 2")+8*(J86="Nível 3")+16*(J86="Nível 4")+32*(J86="Serviço"),2),0,1,2,3,4,"S") -> S | B86: =IF(OR(A86="S",A86=0),0,IF(ISERROR(I86),H86,SMALL(H86:I86,1))) -> 0 | C86: =IF($A86=1,OFFSET(C86,-1,0)+1,OFFSET(C86,-1,0)) -> 1 | D86: =IF($A86=1,0,IF($A86=2,OFFSET(D86,-1,0)+1,OFFSET(D86,-1,0))) -> 14 | E86: =IF(AND($A86<=2,$A86<>0),0,IF($A86=3,OFFSET(E86,-1,0)+1,OFFSET(E86,-1,0))) -> 0 | F86: =IF(AND($A86<=3,$A86<>0),0,IF($A86=4,OFFSET(F86,-1,0)+1,OFFSET(F86,-1,0))) -> 0 | G86: =IF(AND($A86<=4,$A86<>0),0,IF($A86="S",OFFSET(G86,-1,0)+1,OFFSET(G86,-1,0))) -> 5 | H86: 0 | I86: 0 | J86: Serviço | K86: =IF($A86=0,"-",CONCATENATE(C86&".",IF(AND($A$5>=2,$A86>=2),D86&".",""),IF(AND($A$5>=3,$A86>=3),E86&".",""),IF(AND($A$5>=4,$A86>=4),F86&".",""),IF($A86="S",G86&".",""))) -> 1.14.5. | L86: SINAPI | M86: 86886 | N86: ENGATE FLEXÍVEL EM INOX, 1/2 X 30CM - FORNECIMENTO E INSTALAÇÃO | O86: UN | P86: =OFFSET(PLQ!$E$12,ROW($P86)-ROW(P$12),0) -> 6 | Q86: 36.28 | R86: BDI 1 | S86: =IF($A86="S",IF($Q$10="Preço Unitário (R$)",PO.CustoUnitario,ROUND(PO.CustoUnitario*(1+$Z86),15-13*$X$6)),0) -> 45.9 | T86: =IF($A86="S",VTOTAL1,IF($A86=0,0,ROUND(SomaAgrup,15-13*$X$7))) -> 275.4 | U86: =IF($J86="","",IF($N86="","DESCRIÇÃO",IF(AND($J86="Serviço",$O86=""),"UNIDADE",IF($T86<=0,"SEM VALOR",IF(AND($Y86<>"",$Q86>$Y86),"ACIMA REF.",""))))) ->  | V86: =IF(OR($A86=0,$A86="S",$A86>CFF!$A$9),"",MAX(V$12:OFFSET(V86,-1,0))+1) ->  | W86: =IF(AND($J86="Serviço",$M86<>""),IF($L86="",$M86,CONCATENATE($L86,"-",$M86))) -> SINAPI-86886 | X86: =IF(AND(Fonte<>"",Código<>""),MATCH(Fonte&" "&IF(Fonte="sinapi",SUBSTITUTE(SUBSTITUTE(Código,"/00","/"),"/0","/"),Código),INDIRECT("'[Referência "&_xlnm.Database&".xls]Banco'!$a:$a"),0),"X") -> 9998 | Y86: =IF(Import.Desoneracao="sim",Referencia.Desonerado,Referencia.NaoDesonerado) -> 42.68 | Z86: =ROUND(IF(ISNUMBER(R86),R86,IF(LEFT(R86,3)="BDI",HLOOKUP(R86,DADOS!$T$37:$X$38,2,FALSE),0)),15-11*$X$5) -> 0.2652
A87: S | B87: 0 | C87: 1 | D87: 14 | E87: 0 | F87: 0 | G87: 6 | H87: 0 | I87: 0 | J87: Serviço | K87: 1.14.6. | L87: SINAPI | M87: 95472 | N87: VASO SANITARIO SIFONADO CONVENCIONAL PARA PCD COM LOUÇA BRANCA SEM ASSENTO, INCLUSO CONJUNTO DE LIGAÇÃO PARA BACIA SANITÁRIA AJUSTÁVEL - FORNECIMENTO E INSTALAÇÃO | O87: UN | P87: =OFFSET(PLQ!$E$12,ROW($P87)-ROW(P$12),0) -> 4 | Q87: 450 | R87: BDI 1 | S87: 569.34 | T87: 2277.36 | V87: =IF(OR($A87=0,$A87="S",$A87>CFF!$A$9),"",MAX(V$12:OFFSET(V87,-1,0))+1) ->  | W87: SINAPI-95472 | X87: 10055 | Y87: =IF(Import.Desoneracao="sim",Referencia.Desonerado,Referencia.NaoDesonerado) -> 543.55 | Z87: =ROUND(IF(ISNUMBER(R87),R87,IF(LEFT(R87,3)="BDI",HLOOKUP(R87,DADOS!$T$37:$X$38,2,FALSE),0)),15-11*$X$5) -> 0.2652
A88: S | B88: 0 | C88: 1 | D88: 14 | E88: 0 | F88: 0 | G88: 7 | H88: 0 | I88: 0 | J88: Serviço | K88: 1.14.7. | L88: SINAPI | M88: 86888 | N88: VASO SANITÁRIO SIFONADO COM CAIXA ACOPLADA LOUÇA BRANCA - FORNECIMENTO E INSTALAÇÃO | O88: UN | P88: =OFFSET(PLQ!$E$12,ROW($P88)-ROW(P$12),0) -> 6 | Q88: 262.97 | R88: BDI 1 | S88: 332.71 | T88: 1996.26 | V88: =IF(OR($A88=0,$A88="S",$A88>CFF!$A$9),"",MAX(V$12:OFFSET(V88,-1,0))+1) ->  | W88: SINAPI-86888 | X88: 10000 | Y88: =IF(Import.Desoneracao="sim",Referencia.Desonerado,Referencia.NaoDesonerado) -> 309.38 | Z88: =ROUND(IF(ISNUMBER(R88),R88,IF(LEFT(R88,3)="BDI",HLOOKUP(R88,DADOS!$T$37:$X$38,2,FALSE),0)),15-11*$X$5) -> 0.2652
A89: S | B89: 0 | C89: 1 | D89: 14 | E89: 0 | F89: 0 | G89: 8 | H89: 0 | I89: 0 | J89: Serviço | K89: 1.14.8. | L89: SINAPI-I | M89: 36795 | N89: TORNEIRA CROMADA DE MESA PARA LAVATORIO COM SENSOR DE PRESENCA | O89: UN | P89: =OFFSET(PLQ!$E$12,ROW($P89)-ROW(P$12),0) -> 10 | Q89: 300 | R89: BDI 1 | S89: 379.56 | T89: 3795.6 | V89: =IF(OR($A89=0,$A89="S",$A89>CFF!$A$9),"",MAX(V$12:OFFSET(V89,-1,0))+1) ->  | W89: SINAPI-I-36795 | X89: 5065 | Y89: =IF(Import.Desoneracao="sim",Referencia.Desonerado,Referencia.NaoDesonerado) -> 655.94 | Z89: =ROUND(IF(ISNUMBER(R89),R89,IF(LEFT(R89,3)="BDI",HLOOKUP(R89,DADOS!$T$37:$X$38,2,FALSE),0)),15-11*$X$5) -> 0.2652
A90: S | B90: 0 | C90: 1 | D90: 14 | E90: 0 | F90: 0 | G90: 9 | H90: 0 | I90: 0 | J90: Serviço | K90: 1.14.9. | L90: SINAPI-I | M90: 37400 | N90: PAPELEIRA PLASTICA TIPO DISPENSER PARA PAPEL HIGIENICO ROLAO | O90: UN | P90: =OFFSET(PLQ!$E$12,ROW($P90)-ROW(P$12),0) -> 6 | Q90: 49.47 | R90: BDI 1 | S90: 62.59 | T90: 375.54 | V90: =IF(OR($A90=0,$A90="S",$A90>CFF!$A$9),"",MAX(V$12:OFFSET(V90,-1,0))+1) ->  | W90: SINAPI-I-37400 | X90: 3789 | Y90: =IF(Import.Desoneracao="sim",Referencia.Desonerado,Referencia.NaoDesonerado) -> 58.2 | Z90: =ROUND(IF(ISNUMBER(R90),R90,IF(LEFT(R90,3)="BDI",HLOOKUP(R90,DADOS!$T$37:$X$38,2,FALSE),0)),15-11*$X$5) -> 0.2652
A91: S | B91: 0 | C91: 1 | D91: 14 | E91: 0 | F91: 0 | G91: 10 | H91: 0 | I91: 0 | J91: Serviço | K91: 1.14.10. | L91: SINAPI-I | M91: 11758 | N91: SABONETEIRA PLASTICA TIPO DISPENSER PARA SABONETE LIQUIDO COM RESERVATORIO 800 A 1500 ML | O91: UN | P91: =OFFSET(PLQ!$E$12,ROW($P91)-ROW(P$12),0) -> 6 | Q91: 47.52 | R91: BDI 1 | S91: 60.12 | T91: 360.72 | V91: =IF(OR($A91=0,$A91="S",$A91>CFF!$A$9),"",MAX(V$12:OFFSET(V91,-1,0))+1) ->  | W91: SINAPI-I-11758 | X91: 4459 | Y91: =IF(Import.Desoneracao="sim",Referencia.Desonerado,Referencia.NaoDesonerado) -> 55.9 | Z91: =ROUND(IF(ISNUMBER(R91),R91,IF(LEFT(R91,3)="BDI",HLOOKUP(R91,DADOS!$T$37:$X$38,2,FALSE),0)),15-11*$X$5) -> 0.2652
A92: S | B92: 0 | C92: 1 | D92: 14 | E92: 0 | F92: 0 | G92: 11 | H92: 0 | I92: 0 | J92: Serviço | K92: 1.14.11. | L92: SINAPI-I | M92: 37399 | N92: CABIDE/GANCHO DE BANHEIRO SIMPLES EM METAL CROMADO | O92: UN | P92: =OFFSET(PLQ!$E$12,ROW($P92)-ROW(P$12),0) -> 4 | Q92: 14.29 | R92: BDI 1 | S92: 18.08 | T92: 72.32 | V92: =IF(OR($A92=0,$A92="S",$A92>CFF!$A$9),"",MAX(V$12:OFFSET(V92,-1,0))+1) ->  | W92: SINAPI-I-37399 | X92: 1080 | Y92: =IF(Import.Desoneracao="sim",Referencia.Desonerado,Referencia.NaoDesonerado) -> 16.81 | Z92: =ROUND(IF(ISNUMBER(R92),R92,IF(LEFT(R92,3)="BDI",HLOOKUP(R92,DADOS!$T$37:$X$38,2,FALSE),0)),15-11*$X$5) -> 0.2652
A93: S | B93: 0 | C93: 1 | D93: 14 | E93: 0 | F93: 0 | G93: 12 | H93: 0 | I93: 0 | J93: Serviço | K93: 1.14.12. | L93: SINAPI-I | M93: 11795 | N93: GRANITO PARA BANCADA, POLIDO, TIPO ANDORINHA/ QUARTZ/ CASTELO/ CORUMBA OU OUTROS EQUIVALENTES DA REGIAO, E= *2,5* CM | O93: M2 | P93: =OFFSET(PLQ!$E$12,ROW($P93)-ROW(P$12),0) -> 0.24 | Q93: 263.02 | R93: BDI 1 | S93: 332.77 | T93: 79.86 | V93: =IF(OR($A93=0,$A93="S",$A93>CFF!$A$9),"",MAX(V$12:OFFSET(V93,-1,0))+1) ->  | W93: SINAPI-I-11795 | X93: 2696 | Y93: =IF(Import.Desoneracao="sim",Referencia.Desonerado,Referencia.NaoDesonerado) -> 309.43 | Z93: =ROUND(IF(ISNUMBER(R93),R93,IF(LEFT(R93,3)="BDI",HLOOKUP(R93,DADOS!$T$37:$X$38,2,FALSE),0)),15-11*$X$5) -> 0.2652
A94: S | B94: 0 | C94: 1 | D94: 14 | E94: 0 | F94: 0 | G94: 13 | H94: 0 | I94: 0 | J94: Serviço | K94: 1.14.13. | L94: SINAPI-I | M94: 11186 | N94: ESPELHO CRISTAL E = 4 MM | O94: M2 | P94: =OFFSET(PLQ!$E$12,ROW($P94)-ROW(P$12),0) -> 5.4 | Q94: 165.69 | R94: BDI 1 | S94: 209.63 | T94: 1132 | V94: =IF(OR($A94=0,$A94="S",$A94>CFF!$A$9),"",MAX(V$12:OFFSET(V94,-1,0))+1) ->  | W94: SINAPI-I-11186 | X94: 2451 | Y94: =IF(Import.Desoneracao="sim",Referencia.Desonerado,Referencia.NaoDesonerado) -> 194.93 | Z94: =ROUND(IF(ISNUMBER(R94),R94,IF(LEFT(R94,3)="BDI",HLOOKUP(R94,DADOS!$T$37:$X$38,2,FALSE),0)),15-11*$X$5) -> 0.2652
A95: S | B95: 0 | C95: 1 | D95: 14 | E95: 0 | F95: 0 | G95: 14 | H95: 0 | I95: 0 | J95: Serviço | K95: 1.14.14. | L95: SINAPI | M95: 86927 | N95: TANQUE DE MÁRMORE SINTÉTICO SUSPENSO, 22L OU EQUIVALENTE, INCLUSO SIFÃO TIPO GARRAFA EM PVC, VÁLVULA PLÁSTICA E TORNEIRA DE METAL CROMADO - FORNECIMENTO E INSTALAÇÃO | O95: UN | P95: =OFFSET(PLQ!$E$12,ROW($P95)-ROW(P$12),0) -> 1 | Q95: 179.61 | R95: BDI 1 | S95: 227.24 | T95: 227.24 | V95: =IF(OR($A95=0,$A95="S",$A95>CFF!$A$9),"",MAX(V$12:OFFSET(V95,-1,0))+1) ->  | W95: SINAPI-86927 | X95: 10030 | Y95: =IF(Import.Desoneracao="sim",Referencia.Desonerado,Referencia.NaoDesonerado) -> 211.3 | Z95: =ROUND(IF(ISNUMBER(R95),R95,IF(LEFT(R95,3)="BDI",HLOOKUP(R95,DADOS!$T$37:$X$38,2,FALSE),0)),15-11*$X$5) -> 0.2652
A96: 2 | B96: 10 | C96: 1 | D96: 15 | E96: 0 | F96: 0 | G96: 0 | H96: 71 | I96: 10 | J96: Nível 2 | K96: 1.15. | N96: INSTALAÇÕES HIDRAULICAS | O96: =Referencia.Unidade ->  | P96: =OFFSET(PLQ!$E$12,ROW($P96)-ROW(P$12),0) -> 0 | R96: BDI 1 | S96: 0 | T96: 5935.38 | V96: =IF(OR($A96=0,$A96="S",$A96>CFF!$A$9),"",MAX(V$12:OFFSET(V96,-1,0))+1) -> 16 | W96: FALSE | X96: X | Y96: =IF(Import.Desoneracao="sim",Referencia.Desonerado,Referencia.NaoDesonerado) -> 0 | Z96: =ROUND(IF(ISNUMBER(R96),R96,IF(LEFT(R96,3)="BDI",HLOOKUP(R96,DADOS!$T$37:$X$38,2,FALSE),0)),15-11*$X$5) -> 0.2652
A97: S | B97: 0 | C97: 1 | D97: 15 | E97: 0 | F97: 0 | G97: 1 | H97: 0 | I97: 0 | J97: Serviço | K97: 1.15.1. | L97: SINAPI | M97: 95675 | N97: HIDRÔMETRO DN 25 (¾ ), 5,0 M³/H FORNECIMENTO E INSTALAÇÃO | O97: UN | P97: =OFFSET(PLQ!$E$12,ROW($P97)-ROW(P$12),0) -> 1 | Q97: 150.58 | R97: BDI 1 | S97: 190.51 | T97: 190.51 | V97: =IF(OR($A97=0,$A97="S",$A97>CFF!$A$9),"",MAX(V$12:OFFSET(V97,-1,0))+1) ->  | W97: SINAPI-95675 | X97: 10194 | Y97: =IF(Import.Desoneracao="sim",Referencia.Desonerado,Referencia.NaoDesonerado) -> 177.15 | Z97: =ROUND(IF(ISNUMBER(R97),R97,IF(LEFT(R97,3)="BDI",HLOOKUP(R97,DADOS!$T$37:$X$38,2,FALSE),0)),15-11*$X$5) -> 0.2652
A98: S | B98: 0 | C98: 1 | D98: 15 | E98: 0 | F98: 0 | G98: 2 | H98: 0 | I98: 0 | J98: Serviço | K98: 1.15.2. | L98: SINAPI | M98: 95635 | N98: KIT CAVALETE PARA MEDIÇÃO DE ÁGUA - ENTRADA PRINCIPAL, EM PVC SOLDÁVEL DN 25 (¾ ) FORNECIMENTO E INSTALAÇÃO | O98: UN | P98: =OFFSET(PLQ!$E$12,ROW($P98)-ROW(P$12),0) -> 1 | Q98: 82.44 | R98: BDI 1 | S98: 104.3 | T98: 104.3 | V98: =IF(OR($A98=0,$A98="S",$A98>CFF!$A$9),"",MAX(V$12:OFFSET(V98,-1,0))+1) ->  | W98: SINAPI-95635 | X98: 10181 | Y98: =IF(Import.Desoneracao="sim",Referencia.Desonerado,Referencia.NaoDesonerado) -> 96.99 | Z98: =ROUND(IF(ISNUMBER(R98),R98,IF(LEFT(R98,3)="BDI",HLOOKUP(R98,DADOS!$T$37:$X$38,2,FALSE),0)),15-11*$X$5) -> 0.2652
A99: S | B99: 0 | C99: 1 | D99: 15 | E99: 0 | F99: 0 | G99: 3 | H99: 0 | I99: 0 | J99: Serviço | K99: 1.15.3. | L99: SINAPI | M99: 95676 | N99: CAIXA EM CONCRETO PRÉ-MOLDADO PARA ABRIGO DE HIDRÔMETRO COM DN 20 (½)  FORNECIMENTO E INSTALAÇÃO | O99: UN | P99: =OFFSET(PLQ!$E$12,ROW($P99)-ROW(P$12),0) -> 1 | Q99: 51.14 | R99: BDI 1 | S99: 64.7 | T99: 64.7 | V99: =IF(OR($A99=0,$A99="S",$A99>CFF!$A$9),"",MAX(V$12:OFFSET(V99,-1,0))+1) ->  | W99: SINAPI-95676 | X99: 10195 | Y99: =IF(Import.Desoneracao="sim",Referencia.Desonerado,Referencia.NaoDesonerado) -> 60.16 | Z99: =ROUND(IF(ISNUMBER(R99),R99,IF(LEFT(R99,3)="BDI",HLOOKUP(R99,DADOS!$T$37:$X$38,2,FALSE),0)),15-11*$X$5) -> 0.2652
A100: S | B100: 0 | C100: 1 | D100: 15 | E100: 0 | F100: 0 | G100: 4 | H100: 0 | I100: 0 | J100: Serviço | K100: 1.15.4. | L100: SINAPI | M100: 91784 | N100: TUBOS DE PVC, SOLDÁVEL, ÁGUA FRIA, DN 20 MM, INCLUSIVE CONEXÕES, CORTES E FIXAÇÕES | O100: M | P100: =OFFSET(PLQ!$E$12,ROW($P100)-ROW(P$12),0) -> 43.6 | Q100: 26.53 | R100: BDI 1 | S100: 33.57 | T100: 1463.65 | V100: =IF(OR($A100=0,$A100="S",$A100>CFF!$A$9),"",MAX(V$12:OFFSET(V100,-1,0))+1) ->  | W100: SINAPI-91784 | X100: 8724 | Y100: =IF(Import.Desoneracao="sim",Referencia.Desonerado,Referencia.NaoDesonerado) -> 31.21 | Z100: =ROUND(IF(ISNUMBER(R100),R100,IF(LEFT(R100,3)="BDI",HLOOKUP(R100,DADOS!$T$37:$X$38,2,FALSE),0)),15-11*$X$5) -> 0.2652
A101: S | B101: 0 | C101: 1 | D101: 15 | E101: 0 | F101: 0 | G101: 5 | H101: 0 | I101: 0 | J101: Serviço | K101: 1.15.5. | L101: SINAPI | M101: 91785 | N101: TUBOS DE PVC, SOLDÁVEL, ÁGUA FRIA, DN 25 MM, INCLUSIVE CONEXÕES, CORTES E FIXAÇÕES | O101: M | P101: =OFFSET(PLQ!$E$12,ROW($P101)-ROW(P$12),0) -> 85.99 | Q101: 26.44 | R101: BDI 1 | S101: 33.45 | T101: 2876.37 | V101: =IF(OR($A101=0,$A101="S",$A101>CFF!$A$9),"",MAX(V$12:OFFSET(V101,-1,0))+1) ->  | W101: SINAPI-91785 | X101: 8725 | Y101: =IF(Import.Desoneracao="sim",Referencia.Desonerado,Referencia.NaoDesonerado) -> 31.11 | Z101: =ROUND(IF(ISNUMBER(R101),R101,IF(LEFT(R101,3)="BDI",HLOOKUP(R101,DADOS!$T$37:$X$38,2,FALSE),0)),15-11*$X$5) -> 0.2652
A102: S | B102: 0 | C102: 1 | D102: 15 | E102: 0 | F102: 0 | G102: 6 | H102: 0 | I102: 0 | J102: Serviço | K102: 1.15.6. | L102: SINAPI | M102: 92567 | N102: ESTRUTURA PONTALETADA DE MADEIRA PARA TELHADOS DE TELHA DE CONCRETO, INCLUSO TRANSPORTE VERTICAL | O102: M2 | P102: =OFFSET(PLQ!$E$12,ROW($P102)-ROW(P$12),0) -> 1 | Q102: 20.24 | R102: BDI 1 | S102: 25.61 | T102: 25.61 | V102: =IF(OR($A102=0,$A102="S",$A102>CFF!$A$9),"",MAX(V$12:OFFSET(V102,-1,0))+1) ->  | W102: SINAPI-92567 | X102: 6883 | Y102: =IF(Import.Desoneracao="sim",Referencia.Desonerado,Referencia.NaoDesonerado) -> 23.81 | Z102: =ROUND(IF(ISNUMBER(R102),R102,IF(LEFT(R102,3)="BDI",HLOOKUP(R102,DADOS!$T$37:$X$38,2,FALSE),0)),15-11*$X$5) -> 0.2652
A103: S | B103: 0 | C103: 1 | D103: 15 | E103: 0 | F103: 0 | G103: 7 | H103: 0 | I103: 0 | J103: Serviço | K103: 1.15.7. | L103: SINAPI-I | M103: 37104 | N103: CAIXA D'AGUA FIBRA DE VIDRO PARA 2000 LITROS, COM TAMPA | O103: UN | P103: =OFFSET(PLQ!$E$12,ROW($P103)-ROW(P$12),0) -> 1 | Q103: 612.97 | R103: BDI 1 | S103: 775.53 | T103: 775.53 | V103: =IF(OR($A103=0,$A103="S",$A103>CFF!$A$9),"",MAX(V$12:OFFSET(V103,-1,0))+1) ->  | W103: SINAPI-I-37104 | X103: 1245 | Y103: =IF(Import.Desoneracao="sim",Referencia.Desonerado,Referencia.NaoDesonerado) -> 721.14 | Z103: =ROUND(IF(ISNUMBER(R103),R103,IF(LEFT(R103,3)="BDI",HLOOKUP(R103,DADOS!$T$37:$X$38,2,FALSE),0)),15-11*$X$5) -> 0.2652
A104: S | B104: 0 | C104: 1 | D104: 15 | E104: 0 | F104: 0 | G104: 8 | H104: 0 | I104: 0 | J104: Serviço | K104: 1.15.8. | L104: SINAPI-I | M104: 6013 | N104: REGISTRO GAVETA COM ACABAMENTO E CANOPLA CROMADOS, SIMPLES, BITOLA 1 " (REF 1509) | O104: UN | P104: =OFFSET(PLQ!$E$12,ROW($P104)-ROW(P$12),0) -> 5 | Q104: 58.51 | R104: BDI 1 | S104: 74.03 | T104: 370.15 | V104: =IF(OR($A104=0,$A104="S",$A104>CFF!$A$9),"",MAX(V$12:OFFSET(V104,-1,0))+1) ->  | W104: SINAPI-I-6013 | X104: 4381 | Y104: =IF(Import.Desoneracao="sim",Referencia.Desonerado,Referencia.NaoDesonerado) -> 68.83 | Z104: =ROUND(IF(ISNUMBER(R104),R104,IF(LEFT(R104,3)="BDI",HLOOKUP(R104,DADOS!$T$37:$X$38,2,FALSE),0)),15-11*$X$5) -> 0.2652
A105: S | B105: 0 | C105: 1 | D105: 15 | E105: 0 | F105: 0 | G105: 9 | H105: 0 | I105: 0 | J105: Serviço | K105: 1.15.9. | L105: SINAPI | M105: 90371 | N105: REGISTRO DE ESFERA, PVC, ROSCÁVEL, 3/4", FORNECIDO E INSTALADO EM RAMAL DE ÁGUA | O105: UN | P105: =OFFSET(PLQ!$E$12,ROW($P105)-ROW(P$12),0) -> 4 | Q105: 12.76 | R105: BDI 1 | S105: 16.14 | T105: 64.56 | V105: =IF(OR($A105=0,$A105="S",$A105>CFF!$A$9),"",MAX(V$12:OFFSET(V105,-1,0))+1) ->  | W105: SINAPI-90371 | X105: 10151 | Y105: =IF(Import.Desoneracao="sim",Referencia.Desonerado,Referencia.NaoDesonerado) -> 15.01 | Z105: =ROUND(IF(ISNUMBER(R105),R105,IF(LEFT(R105,3)="BDI",HLOOKUP(R105,DADOS!$T$37:$X$38,2,FALSE),0)),15-11*$X$5) -> 0.2652
A106: 2 | B106: 13 | C106: 1 | D106: 16 | E106: 0 | F106: 0 | G106: 0 | H106: 61 | I106: 13 | J106: Nível 2 | K106: 1.16. | L106: SINAPI | N106: INSTALAÇÕES SANITÁRIAS E PLUVIAIS | O106: =Referencia.Unidade ->  | P106: =OFFSET(PLQ!$E$12,ROW($P106)-ROW(P$12),0) -> 0 | Q106: =Y106*0.85 -> 0 | R106: BDI 1 | S106: 0 | T106: 27268.7 | V106: =IF(OR($A106=0,$A106="S",$A106>CFF!$A$9),"",MAX(V$12:OFFSET(V106,-1,0))+1) -> 17 | W106: FALSE | X106: X | Y106: =IF(Import.Desoneracao="sim",Referencia.Desonerado,Referencia.NaoDesonerado) -> 0 | Z106: =ROUND(IF(ISNUMBER(R106),R106,IF(LEFT(R106,3)="BDI",HLOOKUP(R106,DADOS!$T$37:$X$38,2,FALSE),0)),15-11*$X$5) -> 0.2652
A107: S | B107: 0 | C107: 1 | D107: 16 | E107: 0 | F107: 0 | G107: 1 | H107: =IF(OR($A107="S",$A107=0),0,MATCH(0,OFFSET($B107,1,$A107,ROW($A$167)-ROW($A107)),0)) -> 0 | I107: =IF(OR($A107="S",$A107=0),0,MATCH(OFFSET($B107,0,$A107)+1,OFFSET($B107,1,$A107,ROW($A$167)-ROW($A107)),0)) -> 0 | J107: Serviço | K107: 1.16.1. | L107: SINAPI | M107: 91792 | N107: INSTALAÇÃO DE TUBO DE PVC, SÉRIE NORMAL, ESGOTO PREDIAL, DN 40 MM, INCLUSIVE CONEXÕES, CORTES E FIXAÇÕES | O107: M | P107: =OFFSET(PLQ!$E$12,ROW($P107)-ROW(P$12),0) -> 14.7 | Q107: 34.2 | R107: BDI 1 | S107: 43.27 | T107: 636.07 | V107: =IF(OR($A107=0,$A107="S",$A107>CFF!$A$9),"",MAX(V$12:OFFSET(V107,-1,0))+1) ->  | W107: SINAPI-91792 | X107: 8732 | Y107: =IF(Import.Desoneracao="sim",Referencia.Desonerado,Referencia.NaoDesonerado) -> 40.23 | Z107: =ROUND(IF(ISNUMBER(R107),R107,IF(LEFT(R107,3)="BDI",HLOOKUP(R107,DADOS!$T$37:$X$38,2,FALSE),0)),15-11*$X$5) -> 0.2652
A108: S | B108: 0 | C108: 1 | D108: 16 | E108: 0 | F108: 0 | G108: 2 | H108: 0 | I108: 0 | J108: Serviço | K108: 1.16.2. | L108: SINAPI | M108: 91793 | N108: TUBO DE PVC, SÉRIE NORMAL, ESGOTO PREDIAL, DN 50 MM, INCLUSIVE CONEXÕES, CORTES E FIXAÇÕES | O108: M | P108: =OFFSET(PLQ!$E$12,ROW($P108)-ROW(P$12),0) -> 51.7 | Q108: 49.59 | R108: BDI 1 | S108: =IF($A108="S",IF($Q$10="Preço Unitário (R$)",PO.CustoUnitario,ROUND(PO.CustoUnitario*(1+$Z108),15-13*$X$6)),0) -> 62.74 | T108: =IF($A108="S",VTOTAL1,IF($A108=0,0,ROUND(SomaAgrup,15-13*$X$7))) -> 3243.66 | V108: =IF(OR($A108=0,$A108="S",$A108>CFF!$A$9),"",MAX(V$12:OFFSET(V108,-1,0))+1) ->  | W108: SINAPI-91793 | X108: =IF(AND(Fonte<>"",Código<>""),MATCH(Fonte&" "&IF(Fonte="sinapi",SUBSTITUTE(SUBSTITUTE(Código,"/00","/"),"/0","/"),Código),INDIRECT("'[Referência "&_xlnm.Database&".xls]Banco'!$a:$a"),0),"X") -> 8733 | Y108: =IF(Import.Desoneracao="sim",Referencia.Desonerado,Referencia.NaoDesonerado) -> 58.34 | Z108: =ROUND(IF(ISNUMBER(R108),R108,IF(LEFT(R108,3)="BDI",HLOOKUP(R108,DADOS!$T$37:$X$38,2,FALSE),0)),15-11*$X$5) -> 0.2652
A109: S | B109: 0 | C109: 1 | D109: 16 | E109: 0 | F109: 0 | G109: 3 | H109: 0 | I109: 0 | J109: Serviço | K109: 1.16.3. | L109: SINAPI | M109: 91794 | N109: INST. TUBO PVC, SÉRIE N, ESGOTO PREDIAL, DN 75 MM, INCL. CONEXÕES, CORTES E FIXAÇÕES | O109: M | P109: =OFFSET(PLQ!$E$12,ROW($P109)-ROW(P$12),0) -> 8.3 | Q109: 21.36 | R109: BDI 1 | S109: 27.02 | T109: 224.27 | V109: =IF(OR($A109=0,$A109="S",$A109>CFF!$A$9),"",MAX(V$12:OFFSET(V109,-1,0))+1) ->  | W109: SINAPI-91794 | X109: 8734 | Y109: =IF(Import.Desoneracao="sim",Referencia.Desonerado,Referencia.NaoDesonerado) -> 25.13 | Z109: =ROUND(IF(ISNUMBER(R109),R109,IF(LEFT(R109,3)="BDI",HLOOKUP(R109,DADOS!$T$37:$X$38,2,FALSE),0)),15-11*$X$5) -> 0.2652
A110: S | B110: 0 | C110: 1 | D110: 16 | E110: 0 | F110: 0 | G110: 4 | H110: 0 | I110: 0 | J110: Serviço | K110: 1.16.4. | L110: SINAPI | M110: 91795 | N110: SERVIÇO DE INST. TUBO PVC, SÉRIE N, ESGOTO PREDIAL, 100 MM, INCL. CONEXÕES E CORTES, FIXAÇÕES | O110: M | P110: =OFFSET(PLQ!$E$12,ROW($P110)-ROW(P$12),0) -> 43.8 | Q110: 37.93 | R110: BDI 1 | S110: 47.99 | T110: 2101.96 | V110: =IF(OR($A110=0,$A110="S",$A110>CFF!$A$9),"",MAX(V$12:OFFSET(V110,-1,0))+1) ->  | W110: SINAPI-91795 | X110: 8735 | Y110: =IF(Import.Desoneracao="sim",Referencia.Desonerado,Referencia.NaoDesonerado) -> 44.62 | Z110: =ROUND(IF(ISNUMBER(R110),R110,IF(LEFT(R110,3)="BDI",HLOOKUP(R110,DADOS!$T$37:$X$38,2,FALSE),0)),15-11*$X$5) -> 0.2652
A111: S | B111: 0 | C111: 1 | D111: 16 | E111: 0 | F111: 0 | G111: 5 | H111: 0 | I111: 0 | J111: Serviço | K111: 1.16.5. | L111: SINAPI | M111: 91796 | N111: TUBO DE PVC, SÉRIE NORMAL, ESGOTO PREDIAL, DN 150 MM, INCLUSIVE CONEXÕES, CORTES E FIXAÇÕES | O111: M | P111: =OFFSET(PLQ!$E$12,ROW($P111)-ROW(P$12),0) -> 184.83 | Q111: 37.13 | R111: BDI 1 | S111: 46.98 | T111: 8683.31 | V111: =IF(OR($A111=0,$A111="S",$A111>CFF!$A$9),"",MAX(V$12:OFFSET(V111,-1,0))+1) ->  | W111: SINAPI-91796 | X111: 8736 | Y111: =IF(Import.Desoneracao="sim",Referencia.Desonerado,Referencia.NaoDesonerado) -> 43.68 | Z111: =ROUND(IF(ISNUMBER(R111),R111,IF(LEFT(R111,3)="BDI",HLOOKUP(R111,DADOS!$T$37:$X$38,2,FALSE),0)),15-11*$X$5) -> 0.2652
A112: S | B112: 0 | C112: 1 | D112: 16 | E112: 0 | F112: 0 | G112: 6 | H112: 0 | I112: 0 | J112: Serviço | K112: 1.16.6. | L112: SANITÁRIO | M112: 1 | N112: TANQUE SÉPTICO 2,60 x 1,50m x 1,80m (CxLxA) | O112: Unid | P112: =OFFSET(PLQ!$E$12,ROW($P112)-ROW(P$12),0) -> 1 | Q112: 1053.34 | R112: BDI 1 | S112: 1332.69 | T112: 1332.69 | V112: =IF(OR($A112=0,$A112="S",$A112>CFF!$A$9),"",MAX(V$12:OFFSET(V112,-1,0))+1) ->  | W112: SANITÁRIO-1 | X112: 25 | Y112: =IF(Import.Desoneracao="sim",Referencia.Desonerado,Referencia.NaoDesonerado) -> 1239.22 | Z112: =ROUND(IF(ISNUMBER(R112),R112,IF(LEFT(R112,3)="BDI",HLOOKUP(R112,DADOS!$T$37:$X$38,2,FALSE),0)),15-11*$X$5) -> 0.2652
A113: S | B113: 0 | C113: 1 | D113: 16 | E113: 0 | F113: 0 | G113: 7 | H113: 0 | I113: 0 | J113: Serviço | K113: 1.16.7. | L113: SANITÁRIO | M113: 2 | N113: SUMIDOURO 4,8 x 2,50m x 1,70m (CxLxA) | O113: Unid | P113: =OFFSET(PLQ!$E$12,ROW($P113)-ROW(P$12),0) -> 1 | Q113: 2394.04 | R113: BDI 1 | S113: 3028.94 | T113: 3028.94 | V113: =IF(OR($A113=0,$A113="S",$A113>CFF!$A$9),"",MAX(V$12:OFFSET(V113,-1,0))+1) ->  | W113: SANITÁRIO-2 | X113: 26 | Y113: =IF(Import.Desoneracao="sim",Referencia.Desonerado,Referencia.NaoDesonerado) -> 2816.52 | Z113: =ROUND(IF(ISNUMBER(R113),R113,IF(LEFT(R113,3)="BDI",HLOOKUP(R113,DADOS!$T$37:$X$38,2,FALSE),0)),15-11*$X$5) -> 0.2652
A114: S | B114: 0 | C114: 1 | D114: 16 | E114: 0 | F114: 0 | G114: 8 | H114: 0 | I114: 0 | J114: Serviço | K114: 1.16.8. | L114: SINAPI | M114: 98103 | N114: CAIXA DE GORDURA DUPLA EM CONCRETO PRE-MOLDADO DN 60,0 CM COM TAMPA | O114: UN | P114: =OFFSET(PLQ!$E$12,ROW($P114)-ROW(P$12),0) -> 2 | Q114: 96.96 | R114: BDI 1 | S114: 122.67 | T114: 245.34 | V114: =IF(OR($A114=0,$A114="S",$A114>CFF!$A$9),"",MAX(V$12:OFFSET(V114,-1,0))+1) ->  | W114: SINAPI-98103 | X114: 9970 | Y114: =IF(Import.Desoneracao="sim",Referencia.Desonerado,Referencia.NaoDesonerado) -> 114.07 | Z114: =ROUND(IF(ISNUMBER(R114),R114,IF(LEFT(R114,3)="BDI",HLOOKUP(R114,DADOS!$T$37:$X$38,2,FALSE),0)),15-11*$X$5) -> 0.2652
A115: S | B115: 0 | C115: 1 | D115: 16 | E115: 0 | F115: 0 | G115: 9 | H115: 0 | I115: 0 | J115: Serviço | K115: 1.16.9. | L115: SINAPI | M115: 74166/1 | N115: CAIXA DE PASSAGEM EM CONCRETO DN 60CM X 60CM DE ALTURA COM TAMPA, COM TAMPA | O115: UN | P115: =OFFSET(PLQ!$E$12,ROW($P115)-ROW(P$12),0) -> 14 | Q115: 147.66 | R115: BDI 1 | S115: 186.82 | T115: 2615.48 | V115: =IF(OR($A115=0,$A115="S",$A115>CFF!$A$9),"",MAX(V$12:OFFSET(V115,-1,0))+1) ->  | W115: SINAPI-74166/1 | X115: 9956 | Y115: =IF(Import.Desoneracao="sim",Referencia.Desonerado,Referencia.NaoDesonerado) -> 173.72 | Z115: =ROUND(IF(ISNUMBER(R115),R115,IF(LEFT(R115,3)="BDI",HLOOKUP(R115,DADOS!$T$37:$X$38,2,FALSE),0)),15-11*$X$5) -> 0.2652
A116: =CHOOSE(1+LOG(1+2*(J116="Meta")+4*(J116="Nível 2")+8*(J116="Nível 3")+16*(J116="Nível 4")+32*(J116="Serviço"),2),0,1,2,3,4,"S") -> S | B116: =IF(OR(A116="S",A116=0),0,IF(ISERROR(I116),H116,SMALL(H116:I116,1))) -> 0 | C116: =IF($A116=1,OFFSET(C116,-1,0)+1,OFFSET(C116,-1,0)) -> 1 | D116: =IF($A116=1,0,IF($A116=2,OFFSET(D116,-1,0)+1,OFFSET(D116,-1,0))) -> 16 | E116: =IF(AND($A116<=2,$A116<>0),0,IF($A116=3,OFFSET(E116,-1,0)+1,OFFSET(E116,-1,0))) -> 0 | F116: =IF(AND($A116<=3,$A116<>0),0,IF($A116=4,OFFSET(F116,-1,0)+1,OFFSET(F116,-1,0))) -> 0 | G116: =IF(AND($A116<=4,$A116<>0),0,IF($A116="S",OFFSET(G116,-1,0)+1,OFFSET(G116,-1,0))) -> 10 | H116: 0 | I116: 0 | J116: Serviço | K116: =IF($A116=0,"-",CONCATENATE(C116&".",IF(AND($A$5>=2,$A116>=2),D116&".",""),IF(AND($A$5>=3,$A116>=3),E116&".",""),IF(AND($A$5>=4,$A116>=4),F116&".",""),IF($A116="S",G116&".",""))) -> 1.16.10. | L116: SINAPI | M116: 74166/1 | N116: CAIXA DE INSPEÇÃO EM CONCRETO DN 60CM X 60CM DE ALTURA COM TAMPA, COM TAMPA | O116: UN | P116: =OFFSET(PLQ!$E$12,ROW($P116)-ROW(P$12),0) -> 4 | Q116: 147.66 | R116: BDI 1 | S116: =IF($A116="S",IF($Q$10="Preço Unitário (R$)",PO.CustoUnitario,ROUND(PO.CustoUnitario*(1+$Z116),15-13*$X$6)),0) -> 186.82 | T116: =IF($A116="S",VTOTAL1,IF($A116=0,0,ROUND(SomaAgrup,15-13*$X$7))) -> 747.28 | U116: =IF($J116="","",IF($N116="","DESCRIÇÃO",IF(AND($J116="Serviço",$O116=""),"UNIDADE",IF($T116<=0,"SEM VALOR",IF(AND($Y116<>"",$Q116>$Y116),"ACIMA REF.",""))))) ->  | V116: =IF(OR($A116=0,$A116="S",$A116>CFF!$A$9),"",MAX(V$12:OFFSET(V116,-1,0))+1) ->  | W116: =IF(AND($J116="Serviço",$M116<>""),IF($L116="",$M116,CONCATENATE($L116,"-",$M116))) -> SINAPI-74166/1 | X116: =IF(AND(Fonte<>"",Código<>""),MATCH(Fonte&" "&IF(Fonte="sinapi",SUBSTITUTE(SUBSTITUTE(Código,"/00","/"),"/0","/"),Código),INDIRECT("'[Referência "&_xlnm.Database&".xls]Banco'!$a:$a"),0),"X") -> 9956 | Y116: =IF(Import.Desoneracao="sim",Referencia.Desonerado,Referencia.NaoDesonerado) -> 173.72 | Z116: =ROUND(IF(ISNUMBER(R116),R116,IF(LEFT(R116,3)="BDI",HLOOKUP(R116,DADOS!$T$37:$X$38,2,FALSE),0)),15-11*$X$5) -> 0.2652
A117: S | B117: 0 | C117: 1 | D117: 16 | E117: 0 | F117: 0 | G117: 11 | H117: 0 | I117: 0 | J117: Serviço | K117: 1.16.11. | L117: SINAPI-I | M117: 11745 | N117: RALO SIFONADO PVC, QUADRADO, 100 X 100 X 53 MM, SAIDA 40 MM, COM GRELHA BRANCA | O117: UN | P117: =OFFSET(PLQ!$E$12,ROW($P117)-ROW(P$12),0) -> 6 | Q117: 4.79 | R117: BDI 1 | S117: 6.06 | T117: 36.36 | V117: =IF(OR($A117=0,$A117="S",$A117>CFF!$A$9),"",MAX(V$12:OFFSET(V117,-1,0))+1) ->  | W117: SINAPI-I-11745 | X117: 4312 | Y117: =IF(Import.Desoneracao="sim",Referencia.Desonerado,Referencia.NaoDesonerado) -> 5.63 | Z117: =ROUND(IF(ISNUMBER(R117),R117,IF(LEFT(R117,3)="BDI",HLOOKUP(R117,DADOS!$T$37:$X$38,2,FALSE),0)),15-11*$X$5) -> 0.2652
A118: S | B118: 0 | C118: 1 | D118: 16 | E118: 0 | F118: 0 | G118: 12 | H118: 0 | I118: 0 | J118: Serviço | K118: 1.16.12. | L118: AMMOC | M118: 18 | N118: CISTERNA COM RESERVATÓRIO DE 2.000L, ENTERRADA PARA COLETAS DE AGUAS DA CHUVA E REUTILIZAÇÃO, COM BOMBA CENTRÍFUGA | O118: Unid | P118: =OFFSET(PLQ!$E$12,ROW($P118)-ROW(P$12),0) -> 1 | Q118: 3456.64 | R118: BDI 1 | S118: 4373.34 | T118: 4373.34 | V118: =IF(OR($A118=0,$A118="S",$A118>CFF!$A$9),"",MAX(V$12:OFFSET(V118,-1,0))+1) ->  | W118: AMMOC-18 | X118: 24 | Y118: =IF(Import.Desoneracao="sim",Referencia.Desonerado,Referencia.NaoDesonerado) -> 4066.63 | Z118: =ROUND(IF(ISNUMBER(R118),R118,IF(LEFT(R118,3)="BDI",HLOOKUP(R118,DADOS!$T$37:$X$38,2,FALSE),0)),15-11*$X$5) -> 0.2652
A119: 2 | B119: 19 | C119: 1 | D119: 17 | E119: 0 | F119: 0 | G119: 0 | H119: 48 | I119: 19 | J119: Nível 2 | K119: 1.17. | N119: INSTALAÇÕES ELÉTRICAS | O119: =Referencia.Unidade ->  | P119: =OFFSET(PLQ!$E$12,ROW($P119)-ROW(P$12),0) -> 0 | Q119: 0 | R119: BDI 1 | S119: 0 | T119: 33940.09 | V119: =IF(OR($A119=0,$A119="S",$A119>CFF!$A$9),"",MAX(V$12:OFFSET(V119,-1,0))+1) -> 18 | W119: FALSE | X119: X | Y119: =IF(Import.Desoneracao="sim",Referencia.Desonerado,Referencia.NaoDesonerado) -> 0 | Z119: =ROUND(IF(ISNUMBER(R119),R119,IF(LEFT(R119,3)="BDI",HLOOKUP(R119,DADOS!$T$37:$X$38,2,FALSE),0)),15-11*$X$5) -> 0.2652
A120: S | B120: 0 | C120: 1 | D120: 17 | E120: 0 | F120: 0 | G120: 1 | H120: 0 | I120: 0 | J120: Serviço | K120: 1.17.1. | L120: SINAPI | M120: 41598 | N120: ENTRADA PROVISORIA DE ENERGIA ELETRICA AEREA TRIFASICA 40A EM POSTE MADEIRA | O120: UN | P120: =OFFSET(PLQ!$E$12,ROW($P120)-ROW(P$12),0) -> 1 | Q120: 1187.84 | R120: BDI 1 | S120: 1502.86 | T120: 1502.86 | V120: =IF(OR($A120=0,$A120="S",$A120>CFF!$A$9),"",MAX(V$12:OFFSET(V120,-1,0))+1) ->  | W120: SINAPI-41598 | X120: 8479 | Y120: =IF(Import.Desoneracao="sim",Referencia.Desonerado,Referencia.NaoDesonerado) -> 1397.46 | Z120: =ROUND(IF(ISNUMBER(R120),R120,IF(LEFT(R120,3)="BDI",HLOOKUP(R120,DADOS!$T$37:$X$38,2,FALSE),0)),15-11*$X$5) -> 0.2652
A121: S | B121: 0 | C121: 1 | D121: 17 | E121: 0 | F121: 0 | G121: 2 | H121: 0 | I121: 0 | J121: Serviço | K121: 1.17.2. | L121: SINAPI | M121: 9540 | N121: ENTRADA DE ENERGIA ELÉTRICA AÉREA MONOFÁSICA 50A COM POSTE DE CONCRETO, INCLUSIVE CABEAMENTO, CAIXA DE PROTEÇÃO PARA MEDIDOR E ATERRAMENTO. | O121: UN | P121: =OFFSET(PLQ!$E$12,ROW($P121)-ROW(P$12),0) -> 1 | Q121: 1014.51 | R121: BDI 1 | S121: 1283.56 | T121: 1283.56 | V121: =IF(OR($A121=0,$A121="S",$A121>CFF!$A$9),"",MAX(V$12:OFFSET(V121,-1,0))+1) ->  | W121: SINAPI-9540 | X121: 8478 | Y121: =IF(Import.Desoneracao="sim",Referencia.Desonerado,Referencia.NaoDesonerado) -> 1193.54 | Z121: =ROUND(IF(ISNUMBER(R121),R121,IF(LEFT(R121,3)="BDI",HLOOKUP(R121,DADOS!$T$37:$X$38,2,FALSE),0)),15-11*$X$5) -> 0.2652
A122: S | B122: 0 | C122: 1 | D122: 17 | E122: 0 | F122: 0 | G122: 3 | H122: 0 | I122: 0 | J122: Serviço | K122: 1.17.3. | L122: SINAPI | M122: 74131/005 | N122: QUADRO DE DISTRIBUICAO DE ENERGIA DE EMBUTIR, EM CHAPA METALICA, PARA 24 DISJUNTORES TERMOMAGNETICOS MONOPOLARES, COM BARRAMENTO TRIFASICO E NEUTRO, FORNECIMENTO E INSTALACAO | O122: UN | P122: =OFFSET(PLQ!$E$12,ROW($P122)-ROW(P$12),0) -> 1 | Q122: 440.65 | R122: BDI 1 | S122: 557.51 | T122: 557.51 | V122: =IF(OR($A122=0,$A122="S",$A122>CFF!$A$9),"",MAX(V$12:OFFSET(V122,-1,0))+1) ->  | W122: SINAPI-74131/005 | X122: 8317 | Y122: =IF(Import.Desoneracao="sim",Referencia.Desonerado,Referencia.NaoDesonerado) -> 518.41 | Z122: =ROUND(IF(ISNUMBER(R122),R122,IF(LEFT(R122,3)="BDI",HLOOKUP(R122,DADOS!$T$37:$X$38,2,FALSE),0)),15-11*$X$5) -> 0.2652
A123: S | B123: 0 | C123: 1 | D123: 17 | E123: 0 | F123: 0 | G123: 4 | H123: 0 | I123: 0 | J123: Serviço | K123: 1.17.4. | L123: SINAPI | M123: 74130/5 | N123: DISJUNTOR TERMOMAGNETICO TRIPOLAR PADRAO NEMA (AMERICANO) 60 A 100A 240V, FORNECIMENTO E INSTALACAO | O123: UN | P123: =OFFSET(PLQ!$E$12,ROW($P123)-ROW(P$12),0) -> 1 | Q123: 127.53 | R123: BDI 1 | S123: 161.35 | T123: 161.35 | V123: =IF(OR($A123=0,$A123="S",$A123>CFF!$A$9),"",MAX(V$12:OFFSET(V123,-1,0))+1) ->  | W123: SINAPI-74130/5 | X123: 8309 | Y123: =IF(Import.Desoneracao="sim",Referencia.Desonerado,Referencia.NaoDesonerado) -> 150.03 | Z123: =ROUND(IF(ISNUMBER(R123),R123,IF(LEFT(R123,3)="BDI",HLOOKUP(R123,DADOS!$T$37:$X$38,2,FALSE),0)),15-11*$X$5) -> 0.2652
A124: S | B124: 0 | C124: 1 | D124: 17 | E124: 0 | F124: 0 | G124: 5 | H124: 0 | I124: 0 | J124: Serviço | K124: 1.17.5. | L124: SINAPI | M124: 93653 | N124: DISJUNTOR MONOPOLAR TIPO DIN, CORRENTE NOMINAL DE 10A - FORNECIMENTO E INSTALAÇÃ | O124: UN | P124: =OFFSET(PLQ!$E$12,ROW($P124)-ROW(P$12),0) -> 21 | Q124: 10.93 | R124: BDI 1 | S124: 13.83 | T124: 290.43 | V124: =IF(OR($A124=0,$A124="S",$A124>CFF!$A$9),"",MAX(V$12:OFFSET(V124,-1,0))+1) ->  | W124: SINAPI-93653 | X124: 8323 | Y124: =IF(Import.Desoneracao="sim",Referencia.Desonerado,Referencia.NaoDesonerado) -> 12.86 | Z124: =ROUND(IF(ISNUMBER(R124),R124,IF(LEFT(R124,3)="BDI",HLOOKUP(R124,DADOS!$T$37:$X$38,2,FALSE),0)),15-11*$X$5) -> 0.2652
A125: S | B125: 0 | C125: 1 | D125: 17 | E125: 0 | F125: 0 | G125: 6 | H125: 0 | I125: 0 | J125: Serviço | K125: 1.17.6. | L125: SINAPI | M125: 93654 | N125: DISJUNTOR MONOPOLAR TIPO DIN, CORRENTE NOMINAL DE 16A - FORNECIMENTO E INSTALAÇÃO | O125: UN | P125: =OFFSET(PLQ!$E$12,ROW($P125)-ROW(P$12),0) -> 7 | Q125: 11.42 | R125: BDI 1 | S125: 14.45 | T125: 101.15 | V125: =IF(OR($A125=0,$A125="S",$A125>CFF!$A$9),"",MAX(V$12:OFFSET(V125,-1,0))+1) ->  | W125: SINAPI-93654 | X125: 8324 | Y125: =IF(Import.Desoneracao="sim",Referencia.Desonerado,Referencia.NaoDesonerado) -> 13.43 | Z125: =ROUND(IF(ISNUMBER(R125),R125,IF(LEFT(R125,3)="BDI",HLOOKUP(R125,DADOS!$T$37:$X$38,2,FALSE),0)),15-11*$X$5) -> 0.2652
A126: S | B126: 0 | C126: 1 | D126: 17 | E126: 0 | F126: 0 | G126: 7 | H126: 0 | I126: 0 | J126: Serviço | K126: 1.17.7. | L126: SINAPI | M126: 93659 | N126: DISJUNTOR MONOPOLAR TIPO DIN, CORRENTE NOMINAL DE 50A - FORNECIMENTO E INSTALAÇÃO | O126: UN | P126: =OFFSET(PLQ!$E$12,ROW($P126)-ROW(P$12),0) -> 2 | Q126: 21.56 | R126: BDI 1 | S126: 27.28 | T126: 54.56 | V126: =IF(OR($A126=0,$A126="S",$A126>CFF!$A$9),"",MAX(V$12:OFFSET(V126,-1,0))+1) ->  | W126: SINAPI-93659 | X126: 8329 | Y126: =IF(Import.Desoneracao="sim",Referencia.Desonerado,Referencia.NaoDesonerado) -> 25.37 | Z126: =ROUND(IF(ISNUMBER(R126),R126,IF(LEFT(R126,3)="BDI",HLOOKUP(R126,DADOS!$T$37:$X$38,2,FALSE),0)),15-11*$X$5) -> 0.2652
A127: S | B127: 0 | C127: 1 | D127: 17 | E127: 0 | F127: 0 | G127: 8 | H127: 0 | I127: 0 | J127: Serviço | K127: 1.17.8. | L127: SINAPI | M127: 93128 | N127: PONTO DE ILUMINAÇÃO RESIDENCIAL INCLUINDO INTERRUPTOR SIMPLES, CAIXA ELÉTRICA, ELETRODUTO, CABO, RASGO, QUEBRA E CHUMBAMENTO | O127: UN | P127: =OFFSET(PLQ!$E$12,ROW($P127)-ROW(P$12),0) -> 6 | Q127: 99.42 | R127: BDI 1 | S127: 125.79 | T127: 754.74 | V127: =IF(OR($A127=0,$A127="S",$A127>CFF!$A$9),"",MAX(V$12:OFFSET(V127,-1,0))+1) ->  | W127: SINAPI-93128 | X127: 8552 | Y127: =IF(Import.Desoneracao="sim",Referencia.Desonerado,Referencia.NaoDesonerado) -> 116.97 | Z127: =ROUND(IF(ISNUMBER(R127),R127,IF(LEFT(R127,3)="BDI",HLOOKUP(R127,DADOS!$T$37:$X$38,2,FALSE),0)),15-11*$X$5) -> 0.2652
A128: =CHOOSE(1+LOG(1+2*(J128="Meta")+4*(J128="Nível 2")+8*(J128="Nível 3")+16*(J128="Nível 4")+32*(J128="Serviço"),2),0,1,2,3,4,"S") -> S | B128: =IF(OR(A128="S",A128=0),0,IF(ISERROR(I128),H128,SMALL(H128:I128,1))) -> 0 | C128: =IF($A128=1,OFFSET(C128,-1,0)+1,OFFSET(C128,-1,0)) -> 1 | D128: =IF($A128=1,0,IF($A128=2,OFFSET(D128,-1,0)+1,OFFSET(D128,-1,0))) -> 17 | E128: =IF(AND($A128<=2,$A128<>0),0,IF($A128=3,OFFSET(E128,-1,0)+1,OFFSET(E128,-1,0))) -> 0 | F128: =IF(AND($A128<=3,$A128<>0),0,IF($A128=4,OFFSET(F128,-1,0)+1,OFFSET(F128,-1,0))) -> 0 | G128: =IF(AND($A128<=4,$A128<>0),0,IF($A128="S",OFFSET(G128,-1,0)+1,OFFSET(G128,-1,0))) -> 9 | H128: 0 | I128: 0 | J128: Serviço | K128: =IF($A128=0,"-",CONCATENATE(C128&".",IF(AND($A$5>=2,$A128>=2),D128&".",""),IF(AND($A$5>=3,$A128>=3),E128&".",""),IF(AND($A$5>=4,$A128>=4),F128&".",""),IF($A128="S",G128&".",""))) -> 1.17.9. | L128: SINAPI | M128: 93137 | N128: PONTO DE ILUMINAÇÃO RESIDENCIAL INCLUINDO INTERRUPTOR SIMPLES (2 MÓDULOS), CAIXA ELÉTRICA, ELETRODUTO, CABO, RASGO, QUEBRA E CHUMBAMENTO | O128: UN | P128: =OFFSET(PLQ!$E$12,ROW($P128)-ROW(P$12),0) -> 9 | Q128: 117.27 | R128: BDI 1 | S128: =IF($A128="S",IF($Q$10="Preço Unitário (R$)",PO.CustoUnitario,ROUND(PO.CustoUnitario*(1+$Z128),15-13*$X$6)),0) -> 148.37 | T128: =IF($A128="S",VTOTAL1,IF($A128=0,0,ROUND(SomaAgrup,15-13*$X$7))) -> 1335.33 | U128: =IF($J128="","",IF($N128="","DESCRIÇÃO",IF(AND($J128="Serviço",$O128=""),"UNIDADE",IF($T128<=0,"SEM VALOR",IF(AND($Y128<>"",$Q128>$Y128),"ACIMA REF.",""))))) ->  | V128: =IF(OR($A128=0,$A128="S",$A128>CFF!$A$9),"",MAX(V$12:OFFSET(V128,-1,0))+1) ->  | W128: =IF(AND($J128="Serviço",$M128<>""),IF($L128="",$M128,CONCATENATE($L128,"-",$M128))) -> SINAPI-93137 | X128: =IF(AND(Fonte<>"",Código<>""),MATCH(Fonte&" "&IF(Fonte="sinapi",SUBSTITUTE(SUBSTITUTE(Código,"/00","/"),"/0","/"),Código),INDIRECT("'[Referência "&_xlnm.Database&".xls]Banco'!$a:$a"),0),"X") -> 8553 | Y128: =IF(Import.Desoneracao="sim",Referencia.Desonerado,Referencia.NaoDesonerado) -> 137.96 | Z128: =ROUND(IF(ISNUMBER(R128),R128,IF(LEFT(R128,3)="BDI",HLOOKUP(R128,DADOS!$T$37:$X$38,2,FALSE),0)),15-11*$X$5) -> 0.2652
A129: =CHOOSE(1+LOG(1+2*(J129="Meta")+4*(J129="Nível 2")+8*(J129="Nível 3")+16*(J129="Nível 4")+32*(J129="Serviço"),2),0,1,2,3,4,"S") -> S | B129: =IF(OR(A129="S",A129=0),0,IF(ISERROR(I129),H129,SMALL(H129:I129,1))) -> 0 | C129: =IF($A129=1,OFFSET(C129,-1,0)+1,OFFSET(C129,-1,0)) -> 1 | D129: =IF($A129=1,0,IF($A129=2,OFFSET(D129,-1,0)+1,OFFSET(D129,-1,0))) -> 17 | E129: =IF(AND($A129<=2,$A129<>0),0,IF($A129=3,OFFSET(E129,-1,0)+1,OFFSET(E129,-1,0))) -> 0 | F129: =IF(AND($A129<=3,$A129<>0),0,IF($A129=4,OFFSET(F129,-1,0)+1,OFFSET(F129,-1,0))) -> 0 | G129: =IF(AND($A129<=4,$A129<>0),0,IF($A129="S",OFFSET(G129,-1,0)+1,OFFSET(G129,-1,0))) -> 10 | H129: 0 | I129: 0 | J129: Serviço | K129: =IF($A129=0,"-",CONCATENATE(C129&".",IF(AND($A$5>=2,$A129>=2),D129&".",""),IF(AND($A$5>=3,$A129>=3),E129&".",""),IF(AND($A$5>=4,$A129>=4),F129&".",""),IF($A129="S",G129&".",""))) -> 1.17.10. | L129: SINAPI | M129: 93138 | N129: PONTO DE ILUMINAÇÃO RESIDENCIAL INCLUINDO INTERRUPTOR PARALELO, CAIXA ELÉTRICA, ELETRODUTO, CABO, RASGO, QUEBRA E CHUMBAMENTO | O129: UN | P129: =OFFSET(PLQ!$E$12,ROW($P129)-ROW(P$12),0) -> 8 | Q129: 110.68 | R129: BDI 1 | S129: =IF($A129="S",IF($Q$10="Preço Unitário (R$)",PO.CustoUnitario,ROUND(PO.CustoUnitario*(1+$Z129),15-13*$X$6)),0) -> 140.03 | T129: =IF($A129="S",VTOTAL1,IF($A129=0,0,ROUND(SomaAgrup,15-13*$X$7))) -> 1120.24 | U129: =IF($J129="","",IF($N129="","DESCRIÇÃO",IF(AND($J129="Serviço",$O129=""),"UNIDADE",IF($T129<=0,"SEM VALOR",IF(AND($Y129<>"",$Q129>$Y129),"ACIMA REF.",""))))) ->  | V129: =IF(OR($A129=0,$A129="S",$A129>CFF!$A$9),"",MAX(V$12:OFFSET(V129,-1,0))+1) ->  | W129: =IF(AND($J129="Serviço",$M129<>""),IF($L129="",$M129,CONCATENATE($L129,"-",$M129))) -> SINAPI-93138 | X129: =IF(AND(Fonte<>"",Código<>""),MATCH(Fonte&" "&IF(Fonte="sinapi",SUBSTITUTE(SUBSTITUTE(Código,"/00","/"),"/0","/"),Código),INDIRECT("'[Referência "&_xlnm.Database&".xls]Banco'!$a:$a"),0),"X") -> 8554 | Y129: =IF(Import.Desoneracao="sim",Referencia.Desonerado,Referencia.NaoDesonerado) -> 130.21 | Z129: =ROUND(IF(ISNUMBER(R129),R129,IF(LEFT(R129,3)="BDI",HLOOKUP(R129,DADOS!$T$37:$X$38,2,FALSE),0)),15-11*$X$5) -> 0.2652
A130: =CHOOSE(1+LOG(1+2*(J130="Meta")+4*(J130="Nível 2")+8*(J130="Nível 3")+16*(J130="Nível 4")+32*(J130="Serviço"),2),0,1,2,3,4,"S") -> S | B130: =IF(OR(A130="S",A130=0),0,IF(ISERROR(I130),H130,SMALL(H130:I130,1))) -> 0 | C130: =IF($A130=1,OFFSET(C130,-1,0)+1,OFFSET(C130,-1,0)) -> 1 | D130: =IF($A130=1,0,IF($A130=2,OFFSET(D130,-1,0)+1,OFFSET(D130,-1,0))) -> 17 | E130: =IF(AND($A130<=2,$A130<>0),0,IF($A130=3,OFFSET(E130,-1,0)+1,OFFSET(E130,-1,0))) -> 0 | F130: =IF(AND($A130<=3,$A130<>0),0,IF($A130=4,OFFSET(F130,-1,0)+1,OFFSET(F130,-1,0))) -> 0 | G130: =IF(AND($A130<=4,$A130<>0),0,IF($A130="S",OFFSET(G130,-1,0)+1,OFFSET(G130,-1,0))) -> 11 | H130: 0 | I130: 0 | J130: Serviço | K130: =IF($A130=0,"-",CONCATENATE(C130&".",IF(AND($A$5>=2,$A130>=2),D130&".",""),IF(AND($A$5>=3,$A130>=3),E130&".",""),IF(AND($A$5>=4,$A130>=4),F130&".",""),IF($A130="S",G130&".",""))) -> 1.17.11. | L130: SINAPI | M130: 93139 | N130: PONTO DE ILUMINAÇÃO RESIDENCIAL INCLUINDO INTERRUPTOR PARALELO (2 MÓDULOS), CAIXA ELÉTRICA, ELETRODUTO, CABO, RASGO, QUEBRA E CHUMBAMENTO | O130: UN | P130: =OFFSET(PLQ!$E$12,ROW($P130)-ROW(P$12),0) -> 4 | Q130: 139.75 | R130: BDI 1 | S130: =IF($A130="S",IF($Q$10="Preço Unitário (R$)",PO.CustoUnitario,ROUND(PO.CustoUnitario*(1+$Z130),15-13*$X$6)),0) -> 176.81 | T130: =IF($A130="S",VTOTAL1,IF($A130=0,0,ROUND(SomaAgrup,15-13*$X$7))) -> 707.24 | U130: =IF($J130="","",IF($N130="","DESCRIÇÃO",IF(AND($J130="Serviço",$O130=""),"UNIDADE",IF($T130<=0,"SEM VALOR",IF(AND($Y130<>"",$Q130>$Y130),"ACIMA REF.",""))))) ->  | V130: =IF(OR($A130=0,$A130="S",$A130>CFF!$A$9),"",MAX(V$12:OFFSET(V130,-1,0))+1) ->  | W130: =IF(AND($J130="Serviço",$M130<>""),IF($L130="",$M130,CONCATENATE($L130,"-",$M130))) -> SINAPI-93139 | X130: =IF(AND(Fonte<>"",Código<>""),MATCH(Fonte&" "&IF(Fonte="sinapi",SUBSTITUTE(SUBSTITUTE(Código,"/00","/"),"/0","/"),Código),INDIRECT("'[Referência "&_xlnm.Database&".xls]Banco'!$a:$a"),0),"X") -> 8555 | Y130: =IF(Import.Desoneracao="sim",Referencia.Desonerado,Referencia.NaoDesonerado) -> 164.41 | Z130: =ROUND(IF(ISNUMBER(R130),R130,IF(LEFT(R130,3)="BDI",HLOOKUP(R130,DADOS!$T$37:$X$38,2,FALSE),0)),15-11*$X$5) -> 0.2652
A131: S | B131: 0 | C131: 1 | D131: 17 | E131: 0 | F131: 0 | G131: 12 | H131: 0 | I131: 0 | J131: Serviço | K131: 1.17.12. | L131: SINAPI | M131: 93141 | N131: PONTO DE TOMADA RESIDENCIAL INCLUINDO TOMADA 10A/250V, CAIXA ELÉTRICA, ELETRODUTO, CABO, RASGO, QUEBRA E CHUMBAMENTO | O131: UN | P131: =OFFSET(PLQ!$E$12,ROW($P131)-ROW(P$12),0) -> 106 | Q131: 118.1 | R131: BDI 1 | S131: 149.42 | T131: 15838.52 | V131: =IF(OR($A131=0,$A131="S",$A131>CFF!$A$9),"",MAX(V$12:OFFSET(V131,-1,0))+1) ->  | W131: SINAPI-93141 | X131: 8557 | Y131: =IF(Import.Desoneracao="sim",Referencia.Desonerado,Referencia.NaoDesonerado) -> 138.94 | Z131: =ROUND(IF(ISNUMBER(R131),R131,IF(LEFT(R131,3)="BDI",HLOOKUP(R131,DADOS!$T$37:$X$38,2,FALSE),0)),15-11*$X$5) -> 0.2652
A132: S | B132: 0 | C132: 1 | D132: 17 | E132: 0 | F132: 0 | G132: 13 | H132: 0 | I132: 0 | J132: Serviço | K132: 1.17.13. | L132: SINAPI | M132: 93143 | N132: PONTO DE TOMADA RESIDENCIAL INCLUINDO TOMADA 20A/250V, CAIXA ELÉTRICA, ELETRODUTO, CABO, RASGO, QUEBRA E CHUMBAMENTO | O132: UN | P132: =OFFSET(PLQ!$E$12,ROW($P132)-ROW(P$12),0) -> 10 | Q132: 119.7 | R132: BDI 1 | S132: 151.44 | T132: 1514.4 | V132: =IF(OR($A132=0,$A132="S",$A132>CFF!$A$9),"",MAX(V$12:OFFSET(V132,-1,0))+1) ->  | W132: SINAPI-93143 | X132: 8559 | Y132: =IF(Import.Desoneracao="sim",Referencia.Desonerado,Referencia.NaoDesonerado) -> 140.82 | Z132: =ROUND(IF(ISNUMBER(R132),R132,IF(LEFT(R132,3)="BDI",HLOOKUP(R132,DADOS!$T$37:$X$38,2,FALSE),0)),15-11*$X$5) -> 0.2652
A133: S | B133: 0 | C133: 1 | D133: 17 | E133: 0 | F133: 0 | G133: 14 | H133: 0 | I133: 0 | J133: Serviço | K133: 1.17.14. | L133: SINAPI-I | M133: 39385 | N133: LUMINARIA LED PLAFON REDONDO DE SOBREPOR BIVOLT 12/13 W, D = *17* CM | O133: UN | P133: =OFFSET(PLQ!$E$12,ROW($P133)-ROW(P$12),0) -> 13 | Q133: 63.21 | R133: BDI 1 | S133: 79.97 | T133: 1039.61 | V133: =IF(OR($A133=0,$A133="S",$A133>CFF!$A$9),"",MAX(V$12:OFFSET(V133,-1,0))+1) ->  | W133: SINAPI-I-39385 | X133: 3230 | Y133: =IF(Import.Desoneracao="sim",Referencia.Desonerado,Referencia.NaoDesonerado) -> 74.37 | Z133: =ROUND(IF(ISNUMBER(R133),R133,IF(LEFT(R133,3)="BDI",HLOOKUP(R133,DADOS!$T$37:$X$38,2,FALSE),0)),15-11*$X$5) -> 0.2652
A134: =CHOOSE(1+LOG(1+2*(J134="Meta")+4*(J134="Nível 2")+8*(J134="Nível 3")+16*(J134="Nível 4")+32*(J134="Serviço"),2),0,1,2,3,4,"S") -> S | B134: =IF(OR(A134="S",A134=0),0,IF(ISERROR(I134),H134,SMALL(H134:I134,1))) -> 0 | C134: =IF($A134=1,OFFSET(C134,-1,0)+1,OFFSET(C134,-1,0)) -> 1 | D134: =IF($A134=1,0,IF($A134=2,OFFSET(D134,-1,0)+1,OFFSET(D134,-1,0))) -> 17 | E134: =IF(AND($A134<=2,$A134<>0),0,IF($A134=3,OFFSET(E134,-1,0)+1,OFFSET(E134,-1,0))) -> 0 | F134: =IF(AND($A134<=3,$A134<>0),0,IF($A134=4,OFFSET(F134,-1,0)+1,OFFSET(F134,-1,0))) -> 0 | G134: =IF(AND($A134<=4,$A134<>0),0,IF($A134="S",OFFSET(G134,-1,0)+1,OFFSET(G134,-1,0))) -> 15 | H134: 0 | I134: 0 | J134: Serviço | K134: =IF($A134=0,"-",CONCATENATE(C134&".",IF(AND($A$5>=2,$A134>=2),D134&".",""),IF(AND($A$5>=3,$A134>=3),E134&".",""),IF(AND($A$5>=4,$A134>=4),F134&".",""),IF($A134="S",G134&".",""))) -> 1.17.15. | L134: SINAPI | M134: 97610 | N134: LÂMPADA COMPACTA DE LED 10 W, BASE E27 - FORNECIMENTO E INSTALAÇÃO | O134: UN | P134: =OFFSET(PLQ!$E$12,ROW($P134)-ROW(P$12),0) -> 13 | Q134: 33.15 | R134: BDI 1 | S134: =IF($A134="S",IF($Q$10="Preço Unitário (R$)",PO.CustoUnitario,ROUND(PO.CustoUnitario*(1+$Z134),15-13*$X$6)),0) -> 41.94 | T134: =IF($A134="S",VTOTAL1,IF($A134=0,0,ROUND(SomaAgrup,15-13*$X$7))) -> 545.22 | U134: =IF($J134="","",IF($N134="","DESCRIÇÃO",IF(AND($J134="Serviço",$O134=""),"UNIDADE",IF($T134<=0,"SEM VALOR",IF(AND($Y134<>"",$Q134>$Y134),"ACIMA REF.",""))))) ->  | V134: =IF(OR($A134=0,$A134="S",$A134>CFF!$A$9),"",MAX(V$12:OFFSET(V134,-1,0))+1) ->  | W134: =IF(AND($J134="Serviço",$M134<>""),IF($L134="",$M134,CONCATENATE($L134,"-",$M134))) -> SINAPI-97610 | X134: =IF(AND(Fonte<>"",Código<>""),MATCH(Fonte&" "&IF(Fonte="sinapi",SUBSTITUTE(SUBSTITUTE(Código,"/00","/"),"/0","/"),Código),INDIRECT("'[Referência "&_xlnm.Database&".xls]Banco'!$a:$a"),0),"X") -> 8469 | Y134: =IF(Import.Desoneracao="sim",Referencia.Desonerado,Referencia.NaoDesonerado) -> 39 | Z134: =ROUND(IF(ISNUMBER(R134),R134,IF(LEFT(R134,3)="BDI",HLOOKUP(R134,DADOS!$T$37:$X$38,2,FALSE),0)),15-11*$X$5) -> 0.2652
A135: S | B135: 0 | C135: 1 | D135: 17 | E135: 0 | F135: 0 | G135: 16 | H135: 0 | I135: 0 | J135: Serviço | K135: 1.17.16. | L135: SINAPI | M135: 97592 | N135: LUMINÁRIA TIPO PLAFON, DE SOBREPOR, COM 1 LÂMPADA LED - FORNECIMENTO E INSTALAÇÃO | O135: UN | P135: =OFFSET(PLQ!$E$12,ROW($P135)-ROW(P$12),0) -> 53 | Q135: 82.74 | R135: BDI 1 | S135: 104.68 | T135: 5548.04 | V135: =IF(OR($A135=0,$A135="S",$A135>CFF!$A$9),"",MAX(V$12:OFFSET(V135,-1,0))+1) ->  | W135: SINAPI-97592 | X135: 8460 | Y135: =IF(Import.Desoneracao="sim",Referencia.Desonerado,Referencia.NaoDesonerado) -> 97.34 | Z135: =ROUND(IF(ISNUMBER(R135),R135,IF(LEFT(R135,3)="BDI",HLOOKUP(R135,DADOS!$T$37:$X$38,2,FALSE),0)),15-11*$X$5) -> 0.2652
A136: =CHOOSE(1+LOG(1+2*(J136="Meta")+4*(J136="Nível 2")+8*(J136="Nível 3")+16*(J136="Nível 4")+32*(J136="Serviço"),2),0,1,2,3,4,"S") -> S | B136: =IF(OR(A136="S",A136=0),0,IF(ISERROR(I136),H136,SMALL(H136:I136,1))) -> 0 | C136: =IF($A136=1,OFFSET(C136,-1,0)+1,OFFSET(C136,-1,0)) -> 1 | D136: =IF($A136=1,0,IF($A136=2,OFFSET(D136,-1,0)+1,OFFSET(D136,-1,0))) -> 17 | E136: =IF(AND($A136<=2,$A136<>0),0,IF($A136=3,OFFSET(E136,-1,0)+1,OFFSET(E136,-1,0))) -> 0 | F136: =IF(AND($A136<=3,$A136<>0),0,IF($A136=4,OFFSET(F136,-1,0)+1,OFFSET(F136,-1,0))) -> 0 | G136: =IF(AND($A136<=4,$A136<>0),0,IF($A136="S",OFFSET(G136,-1,0)+1,OFFSET(G136,-1,0))) -> 17 | H136: 0 | I136: 0 | J136: Serviço | K136: =IF($A136=0,"-",CONCATENATE(C136&".",IF(AND($A$5>=2,$A136>=2),D136&".",""),IF(AND($A$5>=3,$A136>=3),E136&".",""),IF(AND($A$5>=4,$A136>=4),F136&".",""),IF($A136="S",G136&".",""))) -> 1.17.17. | L136: SINAPI-I | M136: 12062 | N136: ELETRODUTO FLEXIVEL, EM ACO, TIPO CONDUITE, DIAMETRO DE 3" | O136: M | P136: =OFFSET(PLQ!$E$12,ROW($P136)-ROW(P$12),0) -> 21.6 | Q136: 54.82 | R136: BDI 1 | S136: =IF($A136="S",IF($Q$10="Preço Unitário (R$)",PO.CustoUnitario,ROUND(PO.CustoUnitario*(1+$Z136),15-13*$X$6)),0) -> 69.36 | T136: =IF($A136="S",VTOTAL1,IF($A136=0,0,ROUND(SomaAgrup,15-13*$X$7))) -> 1498.18 | U136: =IF($J136="","",IF($N136="","DESCRIÇÃO",IF(AND($J136="Serviço",$O136=""),"UNIDADE",IF($T136<=0,"SEM VALOR",IF(AND($Y136<>"",$Q136>$Y136),"ACIMA REF.",""))))) ->  | V136: =IF(OR($A136=0,$A136="S",$A136>CFF!$A$9),"",MAX(V$12:OFFSET(V136,-1,0))+1) ->  | W136: =IF(AND($J136="Serviço",$M136<>""),IF($L136="",$M136,CONCATENATE($L136,"-",$M136))) -> SINAPI-I-12062 | X136: =IF(AND(Fonte<>"",Código<>""),MATCH(Fonte&" "&IF(Fonte="sinapi",SUBSTITUTE(SUBSTITUTE(Código,"/00","/"),"/0","/"),Código),INDIRECT("'[Referência "&_xlnm.Database&".xls]Banco'!$a:$a"),0),"X") -> 2346 | Y136: =IF(Import.Desoneracao="sim",Referencia.Desonerado,Referencia.NaoDesonerado) -> 64.49 | Z136: =ROUND(IF(ISNUMBER(R136),R136,IF(LEFT(R136,3)="BDI",HLOOKUP(R136,DADOS!$T$37:$X$38,2,FALSE),0)),15-11*$X$5) -> 0.2652
A137: S | B137: 0 | C137: 1 | D137: 17 | E137: 0 | F137: 0 | G137: 18 | H137: 0 | I137: 0 | J137: Serviço | K137: 1.17.18. | L137: SINAPI-I | M137: 3380 | N137: HASTE DE ATERRAMENTO EM ACO COM 3,00 M DE COMPRIMENTO E DN = 5/8", REVESTIDA COM BAIXA CAMADA DE COBRE, COM CONECTOR TIPO GRAMPO | O137: UN | P137: =OFFSET(PLQ!$E$12,ROW($P137)-ROW(P$12),0) -> 3 | Q137: 22.96 | R137: BDI 1 | S137: 29.05 | T137: 87.15 | V137: =IF(OR($A137=0,$A137="S",$A137>CFF!$A$9),"",MAX(V$12:OFFSET(V137,-1,0))+1) ->  | W137: SINAPI-I-3380 | X137: 332 | Y137: =IF(Import.Desoneracao="sim",Referencia.Desonerado,Referencia.NaoDesonerado) -> 27.01 | Z137: =ROUND(IF(ISNUMBER(R137),R137,IF(LEFT(R137,3)="BDI",HLOOKUP(R137,DADOS!$T$37:$X$38,2,FALSE),0)),15-11*$X$5) -> 0.2652
A138: 2 | B138: 8 | C138: 1 | D138: 18 | E138: 0 | F138: 0 | G138: 0 | H138: 29 | I138: 8 | J138: Nível 2 | K138: 1.18. | N138: ENTORNO E APARELHOS | O138: =Referencia.Unidade ->  | P138: =OFFSET(PLQ!$E$12,ROW($P138)-ROW(P$12),0) -> 0 | Q138: 0 | R138: BDI 1 | S138: 0 | T138: 67477.65 | V138: =IF(OR($A138=0,$A138="S",$A138>CFF!$A$9),"",MAX(V$12:OFFSET(V138,-1,0))+1) -> 19 | W138: FALSE | X138: X | Y138: =IF(Import.Desoneracao="sim",Referencia.Desonerado,Referencia.NaoDesonerado) -> 0 | Z138: =ROUND(IF(ISNUMBER(R138),R138,IF(LEFT(R138,3)="BDI",HLOOKUP(R138,DADOS!$T$37:$X$38,2,FALSE),0)),15-11*$X$5) -> 0.2652
A139: S | B139: 0 | C139: 1 | D139: 18 | E139: 0 | F139: 0 | G139: 1 | H139: =IF(OR($A139="S",$A139=0),0,MATCH(0,OFFSET($B139,1,$A139,ROW($A$167)-ROW($A139)),0)) -> 0 | I139: =IF(OR($A139="S",$A139=0),0,MATCH(OFFSET($B139,0,$A139)+1,OFFSET($B139,1,$A139,ROW($A$167)-ROW($A139)),0)) -> 0 | J139: Serviço | K139: 1.18.1. | L139: COTAÇÃO | M139: 27 AMMOC | N139: ELEVADOR DE USO RESTRITO, CAPACIDADE DE CARGA 225 KG OU MAIOR, 3 PESSOAS, ACABAMENTO AÇO INÓX ESCOVADO, EM ACORDO COM A NBR 12.892 E ITENS DE ACESSIBILIDADE | O139: UN | P139: =OFFSET(PLQ!$E$12,ROW($P139)-ROW(P$12),0) -> 1 | Q139: 59380 | R139: BDI 2 | S139: 59380 | T139: 59380 | V139: =IF(OR($A139=0,$A139="S",$A139>CFF!$A$9),"",MAX(V$12:OFFSET(V139,-1,0))+1) ->  | W139: COTAÇÃO-27 AMMOC | X139: 81 | Y139: =IF(Import.Desoneracao="sim",Referencia.Desonerado,Referencia.NaoDesonerado) -> 59380 | Z139: =ROUND(IF(ISNUMBER(R139),R139,IF(LEFT(R139,3)="BDI",HLOOKUP(R139,DADOS!$T$37:$X$38,2,FALSE),0)),15-11*$X$5) -> 0
A140: =CHOOSE(1+LOG(1+2*(J140="Meta")+4*(J140="Nível 2")+8*(J140="Nível 3")+16*(J140="Nível 4")+32*(J140="Serviço"),2),0,1,2,3,4,"S") -> S | B140: =IF(OR(A140="S",A140=0),0,IF(ISERROR(I140),H140,SMALL(H140:I140,1))) -> 0 | C140: =IF($A140=1,OFFSET(C140,-1,0)+1,OFFSET(C140,-1,0)) -> 1 | D140: =IF($A140=1,0,IF($A140=2,OFFSET(D140,-1,0)+1,OFFSET(D140,-1,0))) -> 18 | E140: =IF(AND($A140<=2,$A140<>0),0,IF($A140=3,OFFSET(E140,-1,0)+1,OFFSET(E140,-1,0))) -> 0 | F140: =IF(AND($A140<=3,$A140<>0),0,IF($A140=4,OFFSET(F140,-1,0)+1,OFFSET(F140,-1,0))) -> 0 | G140: =IF(AND($A140<=4,$A140<>0),0,IF($A140="S",OFFSET(G140,-1,0)+1,OFFSET(G140,-1,0))) -> 2 | H140: 0 | I140: 0 | J140: Serviço | K140: =IF($A140=0,"-",CONCATENATE(C140&".",IF(AND($A$5>=2,$A140>=2),D140&".",""),IF(AND($A$5>=3,$A140>=3),E140&".",""),IF(AND($A$5>=4,$A140>=4),F140&".",""),IF($A140="S",G140&".",""))) -> 1.18.2. | L140: SINAPI | M140: 68053 | N140: FORNECIMENTO/INSTALACAO LONA PLASTICA PRETA, PARA IMPERMEABILIZACAO, ESPESSURA 150 MICRAS. | O140: M2 | P140: =OFFSET(PLQ!$E$12,ROW($P140)-ROW(P$12),0) -> 113.9 | Q140: 2 | R140: BDI 1 | S140: 2.53 | T140: 288.17 | U140: =IF($J140="","",IF($N140="","DESCRIÇÃO",IF(AND($J140="Serviço",$O140=""),"UNIDADE",IF($T140<=0,"SEM VALOR",IF(AND($Y140<>"",$Q140>$Y140),"ACIMA REF.",""))))) ->  | V140: =IF(OR($A140=0,$A140="S",$A140>CFF!$A$9),"",MAX(V$12:OFFSET(V140,-1,0))+1) ->  | W140: =IF(AND($J140="Serviço",$M140<>""),IF($L140="",$M140,CONCATENATE($L140,"-",$M140))) -> SINAPI-68053 | X140: 8056 | Y140: =IF(Import.Desoneracao="sim",Referencia.Desonerado,Referencia.NaoDesonerado) -> 4.54 | Z140: =ROUND(IF(ISNUMBER(R140),R140,IF(LEFT(R140,3)="BDI",HLOOKUP(R140,DADOS!$T$37:$X$38,2,FALSE),0)),15-11*$X$5) -> 0.2652
A141: S | B141: 0 | C141: 1 | D141: 18 | E141: 0 | F141: 0 | G141: 3 | H141: 0 | I141: 0 | J141: Serviço | K141: 1.18.3. | L141: SINAPI | M141: 94993 | N141: EXECUÇÃO DE PASSEIO (CALÇADA) OU PISO DE CONCRETO COM CONCRETO MOLDADO IN LOCO, FEITO EM OBRA, ACABAMENTO CONVENCIONAL, ESPESSURA 6 CM, ARMADO. | O141: M2 | P141: =OFFSET(PLQ!$E$12,ROW($P141)-ROW(P$12),0) -> 113.9 | Q141: 38.33 | R141: BDI 1 | S141: 48.5 | T141: 5524.15 | V141: =IF(OR($A141=0,$A141="S",$A141>CFF!$A$9),"",MAX(V$12:OFFSET(V141,-1,0))+1) ->  | W141: SINAPI-94993 | X141: 10986 | Y141: =IF(Import.Desoneracao="sim",Referencia.Desonerado,Referencia.NaoDesonerado) -> 45.09 | Z141: =ROUND(IF(ISNUMBER(R141),R141,IF(LEFT(R141,3)="BDI",HLOOKUP(R141,DADOS!$T$37:$X$38,2,FALSE),0)),15-11*$X$5) -> 0.2652
A142: =CHOOSE(1+LOG(1+2*(J142="Meta")+4*(J142="Nível 2")+8*(J142="Nível 3")+16*(J142="Nível 4")+32*(J142="Serviço"),2),0,1,2,3,4,"S") -> S | B142: =IF(OR(A142="S",A142=0),0,IF(ISERROR(I142),H142,SMALL(H142:I142,1))) -> 0 | C142: =IF($A142=1,OFFSET(C142,-1,0)+1,OFFSET(C142,-1,0)) -> 1 | D142: =IF($A142=1,0,IF($A142=2,OFFSET(D142,-1,0)+1,OFFSET(D142,-1,0))) -> 18 | E142: =IF(AND($A142<=2,$A142<>0),0,IF($A142=3,OFFSET(E142,-1,0)+1,OFFSET(E142,-1,0))) -> 0 | F142: =IF(AND($A142<=3,$A142<>0),0,IF($A142=4,OFFSET(F142,-1,0)+1,OFFSET(F142,-1,0))) -> 0 | G142: =IF(AND($A142<=4,$A142<>0),0,IF($A142="S",OFFSET(G142,-1,0)+1,OFFSET(G142,-1,0))) -> 4 | H142: 0 | I142: 0 | J142: Serviço | K142: =IF($A142=0,"-",CONCATENATE(C142&".",IF(AND($A$5>=2,$A142>=2),D142&".",""),IF(AND($A$5>=3,$A142>=3),E142&".",""),IF(AND($A$5>=4,$A142>=4),F142&".",""),IF($A142="S",G142&".",""))) -> 1.18.4. | L142: SINAPI | M142: 95031 | N142: PISO PODOTATIL DE CONCRETO ALERTA/DIRECIONAL *40 X 40 X 2,5*CM, SOBRE LASTRO DE CONCRETO ESPESSURA 3 CM E REJUNTE CIMENTICIO, EXCLUSO COLCHÃO | O142: M2 | P142: =OFFSET(PLQ!$E$12,ROW($P142)-ROW(P$12),0) -> 8.16 | Q142: 80.89 | R142: BDI 1 | S142: 102.34 | T142: 835.09 | U142: =IF($J142="","",IF($N142="","DESCRIÇÃO",IF(AND($J142="Serviço",$O142=""),"UNIDADE",IF($T142<=0,"SEM VALOR",IF(AND($Y142<>"",$Q142>$Y142),"ACIMA REF.",""))))) ->  | V142: =IF(OR($A142=0,$A142="S",$A142>CFF!$A$9),"",MAX(V$12:OFFSET(V142,-1,0))+1) ->  | W142: =IF(AND($J142="Serviço",$M142<>""),IF($L142="",$M142,CONCATENATE($L142,"-",$M142))) -> SINAPI-95031 | X142: 11846 | Y142: =IF(Import.Desoneracao="sim",Referencia.Desonerado,Referencia.NaoDesonerado) -> 95.17 | Z142: =ROUND(IF(ISNUMBER(R142),R142,IF(LEFT(R142,3)="BDI",HLOOKUP(R142,DADOS!$T$37:$X$38,2,FALSE),0)),15-11*$X$5) -> 0.2652
A143: =CHOOSE(1+LOG(1+2*(J143="Meta")+4*(J143="Nível 2")+8*(J143="Nível 3")+16*(J143="Nível 4")+32*(J143="Serviço"),2),0,1,2,3,4,"S") -> S | B143: =IF(OR(A143="S",A143=0),0,IF(ISERROR(I143),H143,SMALL(H143:I143,1))) -> 0 | C143: =IF($A143=1,OFFSET(C143,-1,0)+1,OFFSET(C143,-1,0)) -> 1 | D143: =IF($A143=1,0,IF($A143=2,OFFSET(D143,-1,0)+1,OFFSET(D143,-1,0))) -> 18 | E143: =IF(AND($A143<=2,$A143<>0),0,IF($A143=3,OFFSET(E143,-1,0)+1,OFFSET(E143,-1,0))) -> 0 | F143: =IF(AND($A143<=3,$A143<>0),0,IF($A143=4,OFFSET(F143,-1,0)+1,OFFSET(F143,-1,0))) -> 0 | G143: =IF(AND($A143<=4,$A143<>0),0,IF($A143="S",OFFSET(G143,-1,0)+1,OFFSET(G143,-1,0))) -> 5 | H143: 0 | I143: 0 | J143: Serviço | K143: =IF($A143=0,"-",CONCATENATE(C143&".",IF(AND($A$5>=2,$A143>=2),D143&".",""),IF(AND($A$5>=3,$A143>=3),E143&".",""),IF(AND($A$5>=4,$A143>=4),F143&".",""),IF($A143="S",G143&".",""))) -> 1.18.5. | L143: SINAPI | M143: 84665 | N143: PINTURA ACRILICA PARA SINALIZAÇÃO HORIZONTAL EM PISO CIMENTADO | O143: M2 | P143: =OFFSET(PLQ!$E$12,ROW($P143)-ROW(P$12),0) -> 5.3 | Q143: 15.28 | R143: BDI 1 | S143: =IF($A143="S",IF($Q$10="Preço Unitário (R$)",PO.CustoUnitario,ROUND(PO.CustoUnitario*(1+$Z143),15-13*$X$6)),0) -> 19.33 | T143: =IF($A143="S",VTOTAL1,IF($A143=0,0,ROUND(SomaAgrup,15-13*$X$7))) -> 102.45 | U143: =IF($J143="","",IF($N143="","DESCRIÇÃO",IF(AND($J143="Serviço",$O143=""),"UNIDADE",IF($T143<=0,"SEM VALOR",IF(AND($Y143<>"",$Q143>$Y143),"ACIMA REF.",""))))) ->  | V143: =IF(OR($A143=0,$A143="S",$A143>CFF!$A$9),"",MAX(V$12:OFFSET(V143,-1,0))+1) ->  | W143: =IF(AND($J143="Serviço",$M143<>""),IF($L143="",$M143,CONCATENATE($L143,"-",$M143))) -> SINAPI-84665 | X143: =IF(AND(Fonte<>"",Código<>""),MATCH(Fonte&" "&IF(Fonte="sinapi",SUBSTITUTE(SUBSTITUTE(Código,"/00","/"),"/0","/"),Código),INDIRECT("'[Referência "&_xlnm.Database&".xls]Banco'!$a:$a"),0),"X") -> 10914 | Y143: =IF(Import.Desoneracao="sim",Referencia.Desonerado,Referencia.NaoDesonerado) -> 17.98 | Z143: =ROUND(IF(ISNUMBER(R143),R143,IF(LEFT(R143,3)="BDI",HLOOKUP(R143,DADOS!$T$37:$X$38,2,FALSE),0)),15-11*$X$5) -> 0.2652
A144: S | B144: 0 | C144: 1 | D144: 18 | E144: 0 | F144: 0 | G144: 6 | H144: 0 | I144: 0 | J144: Serviço | K144: 1.18.6. | L144: SINAPI | M144: 98509 | N144: PLANTIO DE ARBUSTO COM ALTURA 50 A 70CM, EM CAVA DE 60X60X60CM | O144: UN | P144: =OFFSET(PLQ!$E$12,ROW($P144)-ROW(P$12),0) -> 10 | Q144: 18.92 | R144: BDI 1 | S144: 23.94 | T144: 239.4 | V144: =IF(OR($A144=0,$A144="S",$A144>CFF!$A$9),"",MAX(V$12:OFFSET(V144,-1,0))+1) ->  | W144: SINAPI-98509 | X144: 11804 | Y144: =IF(Import.Desoneracao="sim",Referencia.Desonerado,Referencia.NaoDesonerado) -> 22.26 | Z144: =ROUND(IF(ISNUMBER(R144),R144,IF(LEFT(R144,3)="BDI",HLOOKUP(R144,DADOS!$T$37:$X$38,2,FALSE),0)),15-11*$X$5) -> 0.2652
A145: S | B145: 0 | C145: 1 | D145: 18 | E145: 0 | F145: 0 | G145: 7 | H145: 0 | I145: 0 | J145: Serviço | K145: 1.18.7. | L145: AMMOC | M145: 17 | N145: MURETA PARA FLOREIRA H:35CM, INCLUSO, CHAPISCO, EMBOÇO E PINTURA SOBRE LAJE | O145: M | P145: =OFFSET(PLQ!$E$12,ROW($P145)-ROW(P$12),0) -> 20.85 | Q145: 42.02 | R145: BDI 1 | S145: 53.16 | T145: 1108.39 | V145: =IF(OR($A145=0,$A145="S",$A145>CFF!$A$9),"",MAX(V$12:OFFSET(V145,-1,0))+1) ->  | W145: AMMOC-17 | X145: 23 | Y145: =IF(Import.Desoneracao="sim",Referencia.Desonerado,Referencia.NaoDesonerado) -> 49.44 | Z145: =ROUND(IF(ISNUMBER(R145),R145,IF(LEFT(R145,3)="BDI",HLOOKUP(R145,DADOS!$T$37:$X$38,2,FALSE),0)),15-11*$X$5) -> 0.2652
A146: 2 | B146: 8 | C146: 1 | D146: 19 | E146: 0 | F146: 0 | G146: 0 | H146: 21 | I146: 8 | J146: Nível 2 | K146: 1.19. | N146: PREVENTIVO DE INCÊNDIO | O146: =Referencia.Unidade ->  | P146: =OFFSET(PLQ!$E$12,ROW($P146)-ROW(P$12),0) -> 0 | Q146: 0 | R146: BDI 1 | S146: 0 | T146: 4181.55 | V146: =IF(OR($A146=0,$A146="S",$A146>CFF!$A$9),"",MAX(V$12:OFFSET(V146,-1,0))+1) -> 20 | W146: FALSE | X146: X | Y146: =IF(Import.Desoneracao="sim",Referencia.Desonerado,Referencia.NaoDesonerado) -> 0 | Z146: =ROUND(IF(ISNUMBER(R146),R146,IF(LEFT(R146,3)="BDI",HLOOKUP(R146,DADOS!$T$37:$X$38,2,FALSE),0)),15-11*$X$5) -> 0.2652
A147: S | B147: 0 | C147: 1 | D147: 19 | E147: 0 | F147: 0 | G147: 1 | H147: 0 | I147: 0 | J147: Serviço | K147: 1.19.1. | L147: SINAPI | M147: 72553 | N147: EXTINTOR DE PQS 4KG - FORNECIMENTO E INSTALACAO | O147: UN | P147: =OFFSET(PLQ!$E$12,ROW($P147)-ROW(P$12),0) -> 4 | Q147: 97.77 | R147: BDI 1 | S147: 123.7 | T147: 494.8 | V147: =IF(OR($A147=0,$A147="S",$A147>CFF!$A$9),"",MAX(V$12:OFFSET(V147,-1,0))+1) ->  | W147: SINAPI-72553 | X147: 8603 | Y147: =IF(Import.Desoneracao="sim",Referencia.Desonerado,Referencia.NaoDesonerado) -> 115.02 | Z147: =ROUND(IF(ISNUMBER(R147),R147,IF(LEFT(R147,3)="BDI",HLOOKUP(R147,DADOS!$T$37:$X$38,2,FALSE),0)),15-11*$X$5) -> 0.2652
A148: S | B148: 0 | C148: 1 | D148: 19 | E148: 0 | F148: 0 | G148: 2 | H148: 0 | I148: 0 | J148: Serviço | K148: 1.19.2. | L148: SINAPI-I | M148: 38774 | N148: LUMINARIA DE EMERGENCIA 30 LEDS, POTENCIA 2 W, BATERIA DE LITIO, AUTONOMIA DE 6 HORAS | O148: UN | P148: =OFFSET(PLQ!$E$12,ROW($P148)-ROW(P$12),0) -> 12 | Q148: 25.9 | R148: BDI 1 | S148: 32.77 | T148: 393.24 | V148: =IF(OR($A148=0,$A148="S",$A148>CFF!$A$9),"",MAX(V$12:OFFSET(V148,-1,0))+1) ->  | W148: SINAPI-I-38774 | X148: 3214 | Y148: =IF(Import.Desoneracao="sim",Referencia.Desonerado,Referencia.NaoDesonerado) -> 30.47 | Z148: =ROUND(IF(ISNUMBER(R148),R148,IF(LEFT(R148,3)="BDI",HLOOKUP(R148,DADOS!$T$37:$X$38,2,FALSE),0)),15-11*$X$5) -> 0.2652
A149: S | B149: 0 | C149: 1 | D149: 19 | E149: 0 | F149: 0 | G149: 3 | H149: 0 | I149: 0 | J149: Serviço | K149: 1.19.3. | L149: COTAÇÃO | M149: 4 AMMOC | N149: LUMINÁRIA DE EMERGÊNCIA, BLOCO AUTONOMO 2 x 55 LEDS, FORNECIMENTO E INSTALAÇÃO | O149: UN | P149: =OFFSET(PLQ!$E$12,ROW($P149)-ROW(P$12),0) -> 4 | Q149: 301.75 | R149: BDI 2 | S149: 301.75 | T149: 1207 | V149: =IF(OR($A149=0,$A149="S",$A149>CFF!$A$9),"",MAX(V$12:OFFSET(V149,-1,0))+1) ->  | W149: COTAÇÃO-4 AMMOC | X149: 58 | Y149: =IF(Import.Desoneracao="sim",Referencia.Desonerado,Referencia.NaoDesonerado) -> 355 | Z149: =ROUND(IF(ISNUMBER(R149),R149,IF(LEFT(R149,3)="BDI",HLOOKUP(R149,DADOS!$T$37:$X$38,2,FALSE),0)),15-11*$X$5) -> 0
A150: S | B150: 0 | C150: 1 | D150: 19 | E150: 0 | F150: 0 | G150: 4 | H150: 0 | I150: 0 | J150: Serviço | K150: 1.19.4. | L150: SINAPI-I | M150: 37558 | N150: PLACA DE SINALIZACAO DE SEGURANCA CONTRA INCENDIO, FOTOLUMINESCENTE, RETANGULAR, *20 X 40* CM, EM PVC *2* MM ANTI-CHAMAS (SIMBOLOS, CORES E PICTOGRAMAS CONFORME NBR 13434) | O150: UN | P150: =OFFSET(PLQ!$E$12,ROW($P150)-ROW(P$12),0) -> 16 | Q150: 23.72 | R150: BDI 1 | S150: =IF($A150="S",IF($Q$10="Preço Unitário (R$)",PO.CustoUnitario,ROUND(PO.CustoUnitario*(1+$Z150),15-13*$X$6)),0) -> 30.01 | T150: =IF($A150="S",VTOTAL1,IF($A150=0,0,ROUND(SomaAgrup,15-13*$X$7))) -> 480.16 | V150: =IF(OR($A150=0,$A150="S",$A150>CFF!$A$9),"",MAX(V$12:OFFSET(V150,-1,0))+1) ->  | W150: SINAPI-I-37558 | X150: =IF(AND(Fonte<>"",Código<>""),MATCH(Fonte&" "&IF(Fonte="sinapi",SUBSTITUTE(SUBSTITUTE(Código,"/00","/"),"/0","/"),Código),INDIRECT("'[Referência "&_xlnm.Database&".xls]Banco'!$a:$a"),0),"X") -> 4052 | Y150: =IF(Import.Desoneracao="sim",Referencia.Desonerado,Referencia.NaoDesonerado) -> 27.91 | Z150: =ROUND(IF(ISNUMBER(R150),R150,IF(LEFT(R150,3)="BDI",HLOOKUP(R150,DADOS!$T$37:$X$38,2,FALSE),0)),15-11*$X$5) -> 0.2652
A151: S | B151: 0 | C151: 1 | D151: 19 | E151: 0 | F151: 0 | G151: 5 | H151: 0 | I151: 0 | J151: Serviço | K151: 1.19.5. | L151: SINAPI | M151: 92322 | N151: TUBO EM COBRE RÍGIDO, DN 28 CLASSE E, SEM ISOLAMENTO, INSTALADO EM RAMAL E SUB-RAMAL - FORNECIMENTO E INSTALAÇÃO | O151: M | P151: =OFFSET(PLQ!$E$12,ROW($P151)-ROW(P$12),0) -> 2.5 | Q151: 50.73 | R151: BDI 1 | S151: 64.18 | T151: 160.45 | V151: =IF(OR($A151=0,$A151="S",$A151>CFF!$A$9),"",MAX(V$12:OFFSET(V151,-1,0))+1) ->  | W151: SINAPI-92322 | X151: 8748 | Y151: =IF(Import.Desoneracao="sim",Referencia.Desonerado,Referencia.NaoDesonerado) -> 59.68 | Z151: =ROUND(IF(ISNUMBER(R151),R151,IF(LEFT(R151,3)="BDI",HLOOKUP(R151,DADOS!$T$37:$X$38,2,FALSE),0)),15-11*$X$5) -> 0.2652
A152: S | B152: 0 | C152: 1 | D152: 19 | E152: 0 | F152: 0 | G152: 6 | H152: 0 | I152: 0 | J152: Serviço | K152: 1.19.6. | L152: SINAPI | M152: 92692 | N152: NIPLE, EM FERRO GALVANIZADO, CONEXÃO ROSQUEADA, DN 15 (1/2"), INSTALADO EM RAMAIS E SUB-RAMAIS DE GÁS - FORNECIMENTO E INSTALAÇÃO | O152: UN | P152: =OFFSET(PLQ!$E$12,ROW($P152)-ROW(P$12),0) -> 2 | Q152: 8.13 | R152: BDI 1 | S152: 10.29 | T152: 20.58 | V152: =IF(OR($A152=0,$A152="S",$A152>CFF!$A$9),"",MAX(V$12:OFFSET(V152,-1,0))+1) ->  | W152: SINAPI-92692 | X152: 9401 | Y152: =IF(Import.Desoneracao="sim",Referencia.Desonerado,Referencia.NaoDesonerado) -> 9.57 | Z152: =ROUND(IF(ISNUMBER(R152),R152,IF(LEFT(R152,3)="BDI",HLOOKUP(R152,DADOS!$T$37:$X$38,2,FALSE),0)),15-11*$X$5) -> 0.2652
A153: S | B153: 0 | C153: 1 | D153: 19 | E153: 0 | F153: 0 | G153: 7 | H153: 0 | I153: 0 | J153: Serviço | K153: 1.19.7. | L153: AMMOC | M153: 5 | N153: ABRIGO DE GÁS - 2 BOTIJÕES | O153: Unid | P153: =OFFSET(PLQ!$E$12,ROW($P153)-ROW(P$12),0) -> 1 | Q153: 1126.56 | R153: BDI 1 | S153: 1425.32 | T153: 1425.32 | V153: =IF(OR($A153=0,$A153="S",$A153>CFF!$A$9),"",MAX(V$12:OFFSET(V153,-1,0))+1) ->  | W153: AMMOC-5 | X153: 11 | Y153: =IF(Import.Desoneracao="sim",Referencia.Desonerado,Referencia.NaoDesonerado) -> 1325.37 | Z153: =ROUND(IF(ISNUMBER(R153),R153,IF(LEFT(R153,3)="BDI",HLOOKUP(R153,DADOS!$T$37:$X$38,2,FALSE),0)),15-11*$X$5) -> 0.2652
A154: 2 | B154: 11 | C154: 1 | D154: 20 | E154: 0 | F154: 0 | G154: 0 | H154: 13 | I154: 11 | J154: Nível 2 | K154: 1.20. | N154: ACESSIBILIDADE | O154: =Referencia.Unidade ->  | P154: =OFFSET(PLQ!$E$12,ROW($P154)-ROW(P$12),0) -> 0 | Q154: 0 | R154: BDI 1 | S154: 0 | T154: 6206.74 | V154: =IF(OR($A154=0,$A154="S",$A154>CFF!$A$9),"",MAX(V$12:OFFSET(V154,-1,0))+1) -> 21 | W154: FALSE | X154: X | Y154: =IF(Import.Desoneracao="sim",Referencia.Desonerado,Referencia.NaoDesonerado) -> 0 | Z154: =ROUND(IF(ISNUMBER(R154),R154,IF(LEFT(R154,3)="BDI",HLOOKUP(R154,DADOS!$T$37:$X$38,2,FALSE),0)),15-11*$X$5) -> 0.2652
A155: S | B155: 0 | C155: 1 | D155: 20 | E155: 0 | F155: 0 | G155: 1 | H155: 0 | I155: 0 | J155: Serviço | K155: 1.20.1. | L155: COTAÇÃO | M155: 15 AMMOC | N155: PISO TÁTIL EM BORRACHA SINTÉTICA ALERTA E DIRECIONAL 250X250X5MM, COR AZUL OU PRETA | O155: M2 | P155: =OFFSET(PLQ!$E$12,ROW($P155)-ROW(P$12),0) -> 2.5 | Q155: 6.38 | R155: BDI 2 | S155: 6.38 | T155: 15.95 | V155: =IF(OR($A155=0,$A155="S",$A155>CFF!$A$9),"",MAX(V$12:OFFSET(V155,-1,0))+1) ->  | W155: COTAÇÃO-15 AMMOC | X155: 69 | Y155: =IF(Import.Desoneracao="sim",Referencia.Desonerado,Referencia.NaoDesonerado) -> 7.5 | Z155: =ROUND(IF(ISNUMBER(R155),R155,IF(LEFT(R155,3)="BDI",HLOOKUP(R155,DADOS!$T$37:$X$38,2,FALSE),0)),15-11*$X$5) -> 0
A156: S | B156: 0 | C156: 1 | D156: 20 | E156: 0 | F156: 0 | G156: 2 | H156: 0 | I156: 0 | J156: Serviço | K156: 1.20.2. | L156: COTAÇÃO | M156: 17 AMMOC | N156: PLACA TÁTIL BRAILLE/RELEVO ACRÍLICO 30X14CM - USO SINALIZAÇÃO DE PORTAS DIVERSAS (04 PALAVRAS) | O156: UN | P156: =OFFSET(PLQ!$E$12,ROW($P156)-ROW(P$12),0) -> 5 | Q156: 29.75 | R156: BDI 2 | S156: 29.75 | T156: 148.75 | V156: =IF(OR($A156=0,$A156="S",$A156>CFF!$A$9),"",MAX(V$12:OFFSET(V156,-1,0))+1) ->  | W156: COTAÇÃO-17 AMMOC | X156: 71 | Y156: =IF(Import.Desoneracao="sim",Referencia.Desonerado,Referencia.NaoDesonerado) -> 35 | Z156: =ROUND(IF(ISNUMBER(R156),R156,IF(LEFT(R156,3)="BDI",HLOOKUP(R156,DADOS!$T$37:$X$38,2,FALSE),0)),15-11*$X$5) -> 0
A157: S | B157: 0 | C157: 1 | D157: 20 | E157: 0 | F157: 0 | G157: 3 | H157: 0 | I157: 0 | J157: Serviço | K157: 1.20.3. | L157: COTAÇÃO | M157: 18 AMMOC | N157: PLACA TÁTIL BRAILLE/RELEVO AÇO INÓX 100X30MM - PERSONALIZADO USO CORRIMÃO | O157: UN | P157: =OFFSET(PLQ!$E$12,ROW($P157)-ROW(P$12),0) -> 2 | Q157: 11.9 | R157: BDI 2 | S157: 11.9 | T157: 23.8 | V157: =IF(OR($A157=0,$A157="S",$A157>CFF!$A$9),"",MAX(V$12:OFFSET(V157,-1,0))+1) ->  | W157: COTAÇÃO-18 AMMOC | X157: 72 | Y157: =IF(Import.Desoneracao="sim",Referencia.Desonerado,Referencia.NaoDesonerado) -> 14 | Z157: =ROUND(IF(ISNUMBER(R157),R157,IF(LEFT(R157,3)="BDI",HLOOKUP(R157,DADOS!$T$37:$X$38,2,FALSE),0)),15-11*$X$5) -> 0
A158: S | B158: 0 | C158: 1 | D158: 20 | E158: 0 | F158: 0 | G158: 4 | H158: 0 | I158: 0 | J158: Serviço | K158: 1.20.4. | L158: COTAÇÃO | M158: 19 AMMOC | N158: SINALIZADOR VISUAL DE DEGRAUS FOTOLUMINESCENTE AMARELO 70X30MM | O158: UN | P158: =OFFSET(PLQ!$E$12,ROW($P158)-ROW(P$12),0) -> 50 | Q158: 4.08 | R158: BDI 2 | S158: 4.08 | T158: 204 | V158: =IF(OR($A158=0,$A158="S",$A158>CFF!$A$9),"",MAX(V$12:OFFSET(V158,-1,0))+1) ->  | W158: COTAÇÃO-19 AMMOC | X158: 73 | Y158: =IF(Import.Desoneracao="sim",Referencia.Desonerado,Referencia.NaoDesonerado) -> 4.8 | Z158: =ROUND(IF(ISNUMBER(R158),R158,IF(LEFT(R158,3)="BDI",HLOOKUP(R158,DADOS!$T$37:$X$38,2,FALSE),0)),15-11*$X$5) -> 0
A159: S | B159: 0 | C159: 1 | D159: 20 | E159: 0 | F159: 0 | G159: 5 | H159: 0 | I159: 0 | J159: Serviço | K159: 1.20.5. | L159: COTAÇÃO | M159: 20 AMMOC | N159: PLACA VINIL AUTOADESIVA COM SIMBOLOS DIVERSOS 150X200MM | O159: UN | P159: =OFFSET(PLQ!$E$12,ROW($P159)-ROW(P$12),0) -> 4 | Q159: 8.06 | R159: BDI 2 | S159: 8.06 | T159: 32.24 | V159: =IF(OR($A159=0,$A159="S",$A159>CFF!$A$9),"",MAX(V$12:OFFSET(V159,-1,0))+1) ->  | W159: COTAÇÃO-20 AMMOC | X159: 74 | Y159: =IF(Import.Desoneracao="sim",Referencia.Desonerado,Referencia.NaoDesonerado) -> 9.48 | Z159: =ROUND(IF(ISNUMBER(R159),R159,IF(LEFT(R159,3)="BDI",HLOOKUP(R159,DADOS!$T$37:$X$38,2,FALSE),0)),15-11*$X$5) -> 0
A160: S | B160: 0 | C160: 1 | D160: 20 | E160: 0 | F160: 0 | G160: 6 | H160: 0 | I160: 0 | J160: Serviço | K160: 1.20.6. | L160: COTAÇÃO | M160: 21 AMMOC | N160: PROTETOR DE IMPACTO PARA PORTA EM BORRACHA PRETA OU AZUL - ALTURA DE 40CM E LARGURA DE 80 OU 90CM | O160: UN | P160: =OFFSET(PLQ!$E$12,ROW($P160)-ROW(P$12),0) -> 8 | Q160: 76.42 | R160: BDI 2 | S160: 76.42 | T160: 611.36 | V160: =IF(OR($A160=0,$A160="S",$A160>CFF!$A$9),"",MAX(V$12:OFFSET(V160,-1,0))+1) ->  | W160: COTAÇÃO-21 AMMOC | X160: 75 | Y160: =IF(Import.Desoneracao="sim",Referencia.Desonerado,Referencia.NaoDesonerado) -> 89.9 | Z160: =ROUND(IF(ISNUMBER(R160),R160,IF(LEFT(R160,3)="BDI",HLOOKUP(R160,DADOS!$T$37:$X$38,2,FALSE),0)),15-11*$X$5) -> 0
A161: S | B161: 0 | C161: 1 | D161: 20 | E161: 0 | F161: 0 | G161: 7 | H161: 0 | I161: 0 | J161: Serviço | K161: 1.20.7. | L161: COTAÇÃO | M161: 22 AMMOC | N161: BARRA DE APOIO RETA, EM AÇO INOX POLIDO 40CM | O161: UN | P161: =OFFSET(PLQ!$E$12,ROW($P161)-ROW(P$12),0) -> 16 | Q161: 113.9 | R161: BDI 2 | S161: 113.9 | T161: 1822.4 | V161: =IF(OR($A161=0,$A161="S",$A161>CFF!$A$9),"",MAX(V$12:OFFSET(V161,-1,0))+1) ->  | W161: COTAÇÃO-22 AMMOC | X161: 76 | Y161: =IF(Import.Desoneracao="sim",Referencia.Desonerado,Referencia.NaoDesonerado) -> 134 | Z161: =ROUND(IF(ISNUMBER(R161),R161,IF(LEFT(R161,3)="BDI",HLOOKUP(R161,DADOS!$T$37:$X$38,2,FALSE),0)),15-11*$X$5) -> 0
A162: S | B162: 0 | C162: 1 | D162: 20 | E162: 0 | F162: 0 | G162: 8 | H162: 0 | I162: 0 | J162: Serviço | K162: 1.20.8. | L162: SINAPI-I | M162: 36081 | N162: BARRA DE APOIO RETA, EM ACO INOX POLIDO, COMPRIMENTO 80CM, DIAMETRO MINIMO 3 CM | O162: UN | P162: =OFFSET(PLQ!$E$12,ROW($P162)-ROW(P$12),0) -> 8 | Q162: 145.16 | R162: BDI 1 | S162: 183.66 | T162: 1469.28 | V162: =IF(OR($A162=0,$A162="S",$A162>CFF!$A$9),"",MAX(V$12:OFFSET(V162,-1,0))+1) ->  | W162: SINAPI-I-36081 | X162: 790 | Y162: =IF(Import.Desoneracao="sim",Referencia.Desonerado,Referencia.NaoDesonerado) -> 170.78 | Z162: =ROUND(IF(ISNUMBER(R162),R162,IF(LEFT(R162,3)="BDI",HLOOKUP(R162,DADOS!$T$37:$X$38,2,FALSE),0)),15-11*$X$5) -> 0.2652
A163: =CHOOSE(1+LOG(1+2*(J163="Meta")+4*(J163="Nível 2")+8*(J163="Nível 3")+16*(J163="Nível 4")+32*(J163="Serviço"),2),0,1,2,3,4,"S") -> S | B163: =IF(OR(A163="S",A163=0),0,IF(ISERROR(I163),H163,SMALL(H163:I163,1))) -> 0 | C163: =IF($A163=1,OFFSET(C163,-1,0)+1,OFFSET(C163,-1,0)) -> 1 | D163: =IF($A163=1,0,IF($A163=2,OFFSET(D163,-1,0)+1,OFFSET(D163,-1,0))) -> 20 | E163: =IF(AND($A163<=2,$A163<>0),0,IF($A163=3,OFFSET(E163,-1,0)+1,OFFSET(E163,-1,0))) -> 0 | F163: =IF(AND($A163<=3,$A163<>0),0,IF($A163=4,OFFSET(F163,-1,0)+1,OFFSET(F163,-1,0))) -> 0 | G163: =IF(AND($A163<=4,$A163<>0),0,IF($A163="S",OFFSET(G163,-1,0)+1,OFFSET(G163,-1,0))) -> 9 | H163: 0 | I163: 0 | J163: Serviço | K163: =IF($A163=0,"-",CONCATENATE(C163&".",IF(AND($A$5>=2,$A163>=2),D163&".",""),IF(AND($A$5>=3,$A163>=3),E163&".",""),IF(AND($A$5>=4,$A163>=4),F163&".",""),IF($A163="S",G163&".",""))) -> 1.20.9. | L163: SINAPI-I | M163: 36205 | N163: BARRA DE APOIO RETA, EM ACO INOX POLIDO, COMPRIMENTO 70CM, DIAMETRO MINIMO 3 CM | O163: UN | P163: =OFFSET(PLQ!$E$12,ROW($P163)-ROW(P$12),0) -> 4 | Q163: 136.14 | R163: BDI 1 | S163: =IF($A163="S",IF($Q$10="Preço Unitário (R$)",PO.CustoUnitario,ROUND(PO.CustoUnitario*(1+$Z163),15-13*$X$6)),0) -> 172.24 | T163: =IF($A163="S",VTOTAL1,IF($A163=0,0,ROUND(SomaAgrup,15-13*$X$7))) -> 688.96 | U163: =IF($J163="","",IF($N163="","DESCRIÇÃO",IF(AND($J163="Serviço",$O163=""),"UNIDADE",IF($T163<=0,"SEM VALOR",IF(AND($Y163<>"",$Q163>$Y163),"ACIMA REF.",""))))) ->  | V163: =IF(OR($A163=0,$A163="S",$A163>CFF!$A$9),"",MAX(V$12:OFFSET(V163,-1,0))+1) ->  | W163: =IF(AND($J163="Serviço",$M163<>""),IF($L163="",$M163,CONCATENATE($L163,"-",$M163))) -> SINAPI-I-36205 | X163: =IF(AND(Fonte<>"",Código<>""),MATCH(Fonte&" "&IF(Fonte="sinapi",SUBSTITUTE(SUBSTITUTE(Código,"/00","/"),"/0","/"),Código),INDIRECT("'[Referência "&_xlnm.Database&".xls]Banco'!$a:$a"),0),"X") -> 789 | Y163: =IF(Import.Desoneracao="sim",Referencia.Desonerado,Referencia.NaoDesonerado) -> 160.17 | Z163: =ROUND(IF(ISNUMBER(R163),R163,IF(LEFT(R163,3)="BDI",HLOOKUP(R163,DADOS!$T$37:$X$38,2,FALSE),0)),15-11*$X$5) -> 0.2652
A164: =CHOOSE(1+LOG(1+2*(J164="Meta")+4*(J164="Nível 2")+8*(J164="Nível 3")+16*(J164="Nível 4")+32*(J164="Serviço"),2),0,1,2,3,4,"S") -> S | B164: =IF(OR(A164="S",A164=0),0,IF(ISERROR(I164),H164,SMALL(H164:I164,1))) -> 0 | C164: =IF($A164=1,OFFSET(C164,-1,0)+1,OFFSET(C164,-1,0)) -> 1 | D164: =IF($A164=1,0,IF($A164=2,OFFSET(D164,-1,0)+1,OFFSET(D164,-1,0))) -> 20 | E164: =IF(AND($A164<=2,$A164<>0),0,IF($A164=3,OFFSET(E164,-1,0)+1,OFFSET(E164,-1,0))) -> 0 | F164: =IF(AND($A164<=3,$A164<>0),0,IF($A164=4,OFFSET(F164,-1,0)+1,OFFSET(F164,-1,0))) -> 0 | G164: =IF(AND($A164<=4,$A164<>0),0,IF($A164="S",OFFSET(G164,-1,0)+1,OFFSET(G164,-1,0))) -> 10 | H164: 0 | I164: 0 | J164: Serviço | K164: =IF($A164=0,"-",CONCATENATE(C164&".",IF(AND($A$5>=2,$A164>=2),D164&".",""),IF(AND($A$5>=3,$A164>=3),E164&".",""),IF(AND($A$5>=4,$A164>=4),F164&".",""),IF($A164="S",G164&".",""))) -> 1.20.10. | L164: COTAÇÃO | M164: 5 AMMOC | N164: SIRENE AUDIOVISUAL PCD (NBR 9050) | O164: UN | P164: =OFFSET(PLQ!$E$12,ROW($P164)-ROW(P$12),0) -> 4 | Q164: 297.5 | R164: BDI 2 | S164: =IF($A164="S",IF($Q$10="Preço Unitário (R$)",PO.CustoUnitario,ROUND(PO.CustoUnitario*(1+$Z164),15-13*$X$6)),0) -> 297.5 | T164: =IF($A164="S",VTOTAL1,IF($A164=0,0,ROUND(SomaAgrup,15-13*$X$7))) -> 1190 | U164: =IF($J164="","",IF($N164="","DESCRIÇÃO",IF(AND($J164="Serviço",$O164=""),"UNIDADE",IF($T164<=0,"SEM VALOR",IF(AND($Y164<>"",$Q164>$Y164),"ACIMA REF.",""))))) ->  | V164: =IF(OR($A164=0,$A164="S",$A164>CFF!$A$9),"",MAX(V$12:OFFSET(V164,-1,0))+1) ->  | W164: =IF(AND($J164="Serviço",$M164<>""),IF($L164="",$M164,CONCATENATE($L164,"-",$M164))) -> COTAÇÃO-5 AMMOC | X164: =IF(AND(Fonte<>"",Código<>""),MATCH(Fonte&" "&IF(Fonte="sinapi",SUBSTITUTE(SUBSTITUTE(Código,"/00","/"),"/0","/"),Código),INDIRECT("'[Referência "&_xlnm.Database&".xls]Banco'!$a:$a"),0),"X") -> 59 | Y164: =IF(Import.Desoneracao="sim",Referencia.Desonerado,Referencia.NaoDesonerado) -> 350 | Z164: =ROUND(IF(ISNUMBER(R164),R164,IF(LEFT(R164,3)="BDI",HLOOKUP(R164,DADOS!$T$37:$X$38,2,FALSE),0)),15-11*$X$5) -> 0
A165: 2 | B165: 2 | C165: 1 | D165: 21 | E165: 0 | F165: 0 | G165: 0 | H165: 2 | J165: Nível 2 | K165: 1.21. | N165: SERVIÇOS FINAIS | O165: =Referencia.Unidade ->  | P165: =OFFSET(PLQ!$E$12,ROW($P165)-ROW(P$12),0) -> 0 | R165: BDI 1 | S165: 0 | T165: 1476 | V165: =IF(OR($A165=0,$A165="S",$A165>CFF!$A$9),"",MAX(V$12:OFFSET(V165,-1,0))+1) -> 22 | W165: FALSE | X165: X | Y165: =IF(Import.Desoneracao="sim",Referencia.Desonerado,Referencia.NaoDesonerado) -> 0 | Z165: =ROUND(IF(ISNUMBER(R165),R165,IF(LEFT(R165,3)="BDI",HLOOKUP(R165,DADOS!$T$37:$X$38,2,FALSE),0)),15-11*$X$5) -> 0.2652
A166: S | B166: 0 | C166: 1 | D166: 21 | E166: 0 | F166: 0 | G166: 1 | H166: 0 | I166: 0 | J166: Serviço | K166: 1.21.1. | L166: SINAPI | M166: 9537 | N166: LIMPEZA FINAL DA OBRA | O166: M2 | P166: =OFFSET(PLQ!$E$12,ROW($P166)-ROW(P$12),0) -> 630.77 | Q166: 1.853 | R166: BDI 1 | S166: 2.34 | T166: 1476 | V166: =IF(OR($A166=0,$A166="S",$A166>CFF!$A$9),"",MAX(V$12:OFFSET(V166,-1,0))+1) ->  | W166: SINAPI-9537 | X166: 11569 | Y166: =IF(Import.Desoneracao="sim",Referencia.Desonerado,Referencia.NaoDesonerado) -> 2.18 | Z166: =ROUND(IF(ISNUMBER(R166),R166,IF(LEFT(R166,3)="BDI",HLOOKUP(R166,DADOS!$T$37:$X$38,2,FALSE),0)),15-11*$X$5) -> 0.2652
A167: -1 | C167: 0 | D167: 0 | E167: 0 | F167: 0 | G167: 0
K168: Encargos sociais: | M168: Para elaboração deste orçamento, foram utilizados os encargos sociais do SINAPI para a Unidade da Federação indicada.
K170: Observações:
K175: =IF(AND($X$3=FALSE,$X$4=FALSE,$X$5=FALSE,$X$6=FALSE,$X$7=FALSE),"Não foi considerado arredondamento nos valores da planilha.",CONCATENATE("Foi considerado arredondamento de duas casas decimais para ",IF($X$3=TRUE,"Quantidade; ",""),IF($X$4=TRUE,"Custo Unitário; ",""),IF($X$5=TRUE,"BDI; ",""),IF($X$6=TRUE,"Preço Unitário; ",""),IF($X$7=TRUE,"Preço Total.",""))) -> Foi considerado arredondamento de duas casas decimais para Quantidade; Custo Unitário; BDI; Preço Unitário; Preço Total.
K178: =Import.Município -> VARGEM BONITA/SC
K179: Local
K181: =TODAY() -> 2019-03-18
K182: Data

Sheet PLQ
E1: PLQ - | F1: PLANILHA DE LEVANTAMENTO DE QUANTIDADES
E7: =OFFSET(PO!$P$12,ROW($E7)-ROW(E$12),0) -> 0
E9: - | F9: Térreo | G9: 1º Pavimento | H9: Barrilete e Caixa dágua
A10: Nível | B10: Item | C10: Descrição | D10: Unid. | E10: Quantidade | F10: =IF(OFFSET(F10,0,-1)="Quantidade",1,OFFSET(F10,0,-1)+1) -> 1 | G10: 2 | H10: 3 | I10: 4 | J10: 5 | K10: 6 | L10: 7 | M10: 8 | N10: 9 | O10: 10 | U10: =IF(OFFSET(U10,0,-1)="Quantidade",1,OFFSET(U10,0,-1)+1) -> 1
A11: =OFFSET(PO!J$12,ROW(A11)-ROW($A$12),0) -> Serviço | B11: =IF($A11=0,"",OFFSET(PO!K$12,ROW(B11)-ROW(B$12),0)) ->  | C11: =IF(OFFSET(PO!N$12,ROW(C11)-ROW(C$12),0)=0,"",OFFSET(PO!N$12,ROW(C11)-ROW(C$12),0)) ->  | D11: =IF(OFFSET(PO!O$12,ROW(D11)-ROW(D$12),0)=0,"",OFFSET(PO!O$12,ROW(D11)-ROW(D$12),0)) ->  | E11: =IF($A11<>"Serviço",0,ROUND(SUMIF($F$9:$P$9,"<>",$F11:$P11),15-13*PO!$X$3)) -> 0
A12: =PO!J12 -> LOTE | C12: =PO!N12 -> 0
A13: =OFFSET(PO!J$12,ROW(A13)-ROW($A$12),0) -> Meta | B13: =IF($A13=0,"",OFFSET(PO!K$12,ROW(B13)-ROW(B$12),0)) -> 1. | C13: =IF(OFFSET(PO!N$12,ROW(C13)-ROW(C$12),0)=0,"",OFFSET(PO!N$12,ROW(C13)-ROW(C$12),0)) -> CASA DO PRODUTOR | D13: =IF(OFFSET(PO!O$12,ROW(D13)-ROW(D$12),0)=0,"",OFFSET(PO!O$12,ROW(D13)-ROW(D$12),0)) ->  | E13: =IF($A13<>"Serviço",0,ROUND(SUMIF($F$9:$P$9,"<>",$F13:$P13),15-13*PO!$X$3)) -> 0 | F13: 0
A14: =OFFSET(PO!J$12,ROW(A14)-ROW($A$12),0) -> Nível 2 | B14: =IF($A14=0,"",OFFSET(PO!K$12,ROW(B14)-ROW(B$12),0)) -> 1.1. | C14: =IF(OFFSET(PO!N$12,ROW(C14)-ROW(C$12),0)=0,"",OFFSET(PO!N$12,ROW(C14)-ROW(C$12),0)) -> SERVIÇOS INICIAIS | D14: =IF(OFFSET(PO!O$12,ROW(D14)-ROW(D$12),0)=0,"",OFFSET(PO!O$12,ROW(D14)-ROW(D$12),0)) -> M2 | E14: =IF($A14<>"Serviço",0,ROUND(SUMIF($F$9:$P$9,"<>",$F14:$P14),15-13*PO!$X$3)) -> 0 | F14: 0
A15: =OFFSET(PO!J$12,ROW(A15)-ROW($A$12),0) -> Serviço | B15: =IF($A15=0,"",OFFSET(PO!K$12,ROW(B15)-ROW(B$12),0)) -> 1.1.1. | C15: =IF(OFFSET(PO!N$12,ROW(C15)-ROW(C$12),0)=0,"",OFFSET(PO!N$12,ROW(C15)-ROW(C$12),0)) -> PLACA DE OBRA EM CHAPA DE ACO GALVANIZADO PADRÃO GOVERNO FEDERAL | D15: =IF(OFFSET(PO!O$12,ROW(D15)-ROW(D$12),0)=0,"",OFFSET(PO!O$12,ROW(D15)-ROW(D$12),0)) -> M2 | E15: =IF($A15<>"Serviço",0,ROUND(SUMIF($F$9:$P$9,"<>",$F15:$P15),15-13*PO!$X$3)) -> 2.5 | F15: 2.5
A16: =OFFSET(PO!J$12,ROW(A16)-ROW($A$12),0) -> Serviço | B16: =IF($A16=0,"",OFFSET(PO!K$12,ROW(B16)-ROW(B$12),0)) -> 1.1.2. | C16: =IF(OFFSET(PO!N$12,ROW(C16)-ROW(C$12),0)=0,"",OFFSET(PO!N$12,ROW(C16)-ROW(C$12),0)) -> PLACA DE OBRA EM CHAPA DE ACO GALVANIZADO PADRÃO AMMOC | D16: =IF(OFFSET(PO!O$12,ROW(D16)-ROW(D$12),0)=0,"",OFFSET(PO!O$12,ROW(D16)-ROW(D$12),0)) -> M2 | E16: =IF($A16<>"Serviço",0,ROUND(SUMIF($F$9:$P$9,"<>",$F16:$P16),15-13*PO!$X$3)) -> 2.5 | F16: 2.5
A17: =OFFSET(PO!J$12,ROW(A17)-ROW($A$12),0) -> Serviço | B17: =IF($A17=0,"",OFFSET(PO!K$12,ROW(B17)-ROW(B$12),0)) -> 1.1.3. | C17: =IF(OFFSET(PO!N$12,ROW(C17)-ROW(C$12),0)=0,"",OFFSET(PO!N$12,ROW(C17)-ROW(C$12),0)) -> LOCACAO CONVENCIONAL DE OBRA, ATRAVÉS DE GABARITO DE TABUAS CORRIDAS PONTALETADAS | D17: =IF(OFFSET(PO!O$12,ROW(D17)-ROW(D$12),0)=0,"",OFFSET(PO!O$12,ROW(D17)-ROW(D$12),0)) -> M2 | E17: =IF($A17<>"Serviço",0,ROUND(SUMIF($F$9:$P$9,"<>",$F17:$P17),15-13*PO!$X$3)) -> 317.03 | F17: 317.03
A18: =OFFSET(PO!J$12,ROW(A18)-ROW($A$12),0) -> Nível 2 | B18: =IF($A18=0,"",OFFSET(PO!K$12,ROW(B18)-ROW(B$12),0)) -> 1.2. | C18: =IF(OFFSET(PO!N$12,ROW(C18)-ROW(C$12),0)=0,"",OFFSET(PO!N$12,ROW(C18)-ROW(C$12),0)) -> ESCAVAÇÔES E REATERRO | D18: =IF(OFFSET(PO!O$12,ROW(D18)-ROW(D$12),0)=0,"",OFFSET(PO!O$12,ROW(D18)-ROW(D$12),0)) ->  | E18: =IF($A18<>"Serviço",0,ROUND(SUMIF($F$9:$P$9,"<>",$F18:$P18),15-13*PO!$X$3)) -> 0 | F18: 0
A19: =OFFSET(PO!J$12,ROW(A19)-ROW($A$12),0) -> Serviço | B19: =IF($A19=0,"",OFFSET(PO!K$12,ROW(B19)-ROW(B$12),0)) -> 1.2.1. | C19: =IF(OFFSET(PO!N$12,ROW(C19)-ROW(C$12),0)=0,"",OFFSET(PO!N$12,ROW(C19)-ROW(C$12),0)) -> ESCAVAÇÃO DE VALA COM PROFUNDIDADE ATÉ 1,5 M | D19: =IF(OFFSET(PO!O$12,ROW(D19)-ROW(D$12),0)=0,"",OFFSET(PO!O$12,ROW(D19)-ROW(D$12),0)) -> M3 | E19: =IF($A19<>"Serviço",0,ROUND(SUMIF($F$9:$P$9,"<>",$F19:$P19),15-13*PO!$X$3)) -> 59.08 | F19: 59.08
A20: =OFFSET(PO!J$12,ROW(A20)-ROW($A$12),0) -> Serviço | B20: =IF($A20=0,"",OFFSET(PO!K$12,ROW(B20)-ROW(B$12),0)) -> 1.2.2. | C20: =IF(OFFSET(PO!N$12,ROW(C20)-ROW(C$12),0)=0,"",OFFSET(PO!N$12,ROW(C20)-ROW(C$12),0)) -> REATERRO MANUAL DE VALAS COM COMPACTAÇÃO | D20: =IF(OFFSET(PO!O$12,ROW(D20)-ROW(D$12),0)=0,"",OFFSET(PO!O$12,ROW(D20)-ROW(D$12),0)) -> M3 | E20: =IF($A20<>"Serviço",0,ROUND(SUMIF($F$9:$P$9,"<>",$F20:$P20),15-13*PO!$X$3)) -> 13.47 | F20: 13.47
A21: =OFFSET(PO!J$12,ROW(A21)-ROW($A$12),0) -> Nível 2 | B21: =IF($A21=0,"",OFFSET(PO!K$12,ROW(B21)-ROW(B$12),0)) -> 1.3. | C21: =IF(OFFSET(PO!N$12,ROW(C21)-ROW(C$12),0)=0,"",OFFSET(PO!N$12,ROW(C21)-ROW(C$12),0)) -> FUNDAÇÕES: BLOCOS E BALDRAMES | D21: =IF(OFFSET(PO!O$12,ROW(D21)-ROW(D$12),0)=0,"",OFFSET(PO!O$12,ROW(D21)-ROW(D$12),0)) ->  | E21: =IF($A21<>"Serviço",0,ROUND(SUMIF($F$9:$P$9,"<>",$F21:$P21),15-13*PO!$X$3)) -> 0 | F21: 0
A22: =OFFSET(PO!J$12,ROW(A22)-ROW($A$12),0) -> Serviço | B22: =IF($A22=0,"",OFFSET(PO!K$12,ROW(B22)-ROW(B$12),0)) -> 1.3.1. | C22: =IF(OFFSET(PO!N$12,ROW(C22)-ROW(C$12),0)=0,"",OFFSET(PO!N$12,ROW(C22)-ROW(C$12),0)) -> ESTACA ESCAVADA MECANICAMENTE, SEM FLUIDO ESTABILIZANTE, COM 40 CM DE DIÂMETRO, ATÉ 9 M DE COMPRIMENTO, CONCRETO LANÇADO POR CAMINHÃO BETONEIRA | D22: =IF(OFFSET(PO!O$12,ROW(D22)-ROW(D$12),0)=0,"",OFFSET(PO!O$12,ROW(D22)-ROW(D$12),0)) -> M | E22: =IF($A22<>"Serviço",0,ROUND(SUMIF($F$9:$P$9,"<>",$F22:$P22),15-13*PO!$X$3)) -> 235 | F22: 235
A23: =OFFSET(PO!J$12,ROW(A23)-ROW($A$12),0) -> Serviço | B23: =IF($A23=0,"",OFFSET(PO!K$12,ROW(B23)-ROW(B$12),0)) -> 1.3.2. | C23: =IF(OFFSET(PO!N$12,ROW(C23)-ROW(C$12),0)=0,"",OFFSET(PO!N$12,ROW(C23)-ROW(C$12),0)) -> PEDRA BRITADA N. 2 PARA LASTRO | D23: =IF(OFFSET(PO!O$12,ROW(D23)-ROW(D$12),0)=0,"",OFFSET(PO!O$12,ROW(D23)-ROW(D$12),0)) -> M3 | E23: =IF($A23<>"Serviço",0,ROUND(SUMIF($F$9:$P$9,"<>",$F23:$P23),15-13*PO!$X$3)) -> 1.94 | F23: 1.94
A24: =OFFSET(PO!J$12,ROW(A24)-ROW($A$12),0) -> Serviço | B24: =IF($A24=0,"",OFFSET(PO!K$12,ROW(B24)-ROW(B$12),0)) -> 1.3.3. | C24: =IF(OFFSET(PO!N$12,ROW(C24)-ROW(C$12),0)=0,"",OFFSET(PO!N$12,ROW(C24)-ROW(C$12),0)) -> BLOCOS EM CONCRETO ARMADO, Fck=30 Mpa | D24: =IF(OFFSET(PO!O$12,ROW(D24)-ROW(D$12),0)=0,"",OFFSET(PO!O$12,ROW(D24)-ROW(D$12),0)) -> M3 | E24: =IF($A24<>"Serviço",0,ROUND(SUMIF($F$9:$P$9,"<>",$F24:$P24),15-13*PO!$X$3)) -> 17.3 | F24: 17.3
A25: =OFFSET(PO!J$12,ROW(A25)-ROW($A$12),0) -> Serviço | B25: =IF($A25=0,"",OFFSET(PO!K$12,ROW(B25)-ROW(B$12),0)) -> 1.3.4. | C25: =IF(OFFSET(PO!N$12,ROW(C25)-ROW(C$12),0)=0,"",OFFSET(PO!N$12,ROW(C25)-ROW(C$12),0)) -> VIGAS BALDRAMES EM CONCRETO ARMADO, Fck=30 Mpa | D25: =IF(OFFSET(PO!O$12,ROW(D25)-ROW(D$12),0)=0,"",OFFSET(PO!O$12,ROW(D25)-ROW(D$12),0)) -> M3 | E25: =IF($A25<>"Serviço",0,ROUND(SUMIF($F$9:$P$9,"<>",$F25:$P25),15-13*PO!$X$3)) -> 14.2 | F25: 14.2
A26: =OFFSET(PO!J$12,ROW(A26)-ROW($A$12),0) -> Serviço | B26: =IF($A26=0,"",OFFSET(PO!K$12,ROW(B26)-ROW(B$12),0)) -> 1.3.5. | C26: =IF(OFFSET(PO!N$12,ROW(C26)-ROW(C$12),0)=0,"",OFFSET(PO!N$12,ROW(C26)-ROW(C$12),0)) -> IMPERMEABILIZACAO DOS BALDRAMES COM TINTA ASFALTICA, DUAS DEMAOS. | D26: =IF(OFFSET(PO!O$12,ROW(D26)-ROW(D$12),0)=0,"",OFFSET(PO!O$12,ROW(D26)-ROW(D$12),0)) -> M2 | E26: =IF($A26<>"Serviço",0,ROUND(SUMIF($F$9:$P$9,"<>",$F26:$P26),15-13*PO!$X$3)) -> 194.99 | F26: 194.99
A27: =OFFSET(PO!J$12,ROW(A27)-ROW($A$12),0) -> Nível 2 | B27: =IF($A27=0,"",OFFSET(PO!K$12,ROW(B27)-ROW(B$12),0)) -> 1.4. | C27: =IF(OFFSET(PO!N$12,ROW(C27)-ROW(C$12),0)=0,"",OFFSET(PO!N$12,ROW(C27)-ROW(C$12),0)) -> ESTRUTURA: VIGAS | D27: =IF(OFFSET(PO!O$12,ROW(D27)-ROW(D$12),0)=0,"",OFFSET(PO!O$12,ROW(D27)-ROW(D$12),0)) ->  | E27: =IF($A27<>"Serviço",0,ROUND(SUMIF($F$9:$P$9,"<>",$F27:$P27),15-13*PO!$X$3)) -> 0 | F27: 0
A28: =OFFSET(PO!J$12,ROW(A28)-ROW($A$12),0) -> Serviço | B28: =IF($A28=0,"",OFFSET(PO!K$12,ROW(B28)-ROW(B$12),0)) -> 1.4.1. | C28: =IF(OFFSET(PO!N$12,ROW(C28)-ROW(C$12),0)=0,"",OFFSET(PO!N$12,ROW(C28)-ROW(C$12),0)) -> VIGAS EM CONCRETO ARMADO, Fck= 30 Mpa | D28: =IF(OFFSET(PO!O$12,ROW(D28)-ROW(D$12),0)=0,"",OFFSET(PO!O$12,ROW(D28)-ROW(D$12),0)) -> M3 | E28: =IF($A28<>"Serviço",0,ROUND(SUMIF($F$9:$P$9,"<>",$F28:$P28),15-13*PO!$X$3)) -> 33.8 | F28: 17.1 | G28: 14.5 | H28: 2.2
A29: =OFFSET(PO!J$12,ROW(A29)-ROW($A$12),0) -> Nível 2 | B29: =IF($A29=0,"",OFFSET(PO!K$12,ROW(B29)-ROW(B$12),0)) -> 1.5. | C29: =IF(OFFSET(PO!N$12,ROW(C29)-ROW(C$12),0)=0,"",OFFSET(PO!N$12,ROW(C29)-ROW(C$12),0)) -> ESTRUTURA: PILARES | D29: =IF(OFFSET(PO!O$12,ROW(D29)-ROW(D$12),0)=0,"",OFFSET(PO!O$12,ROW(D29)-ROW(D$12),0)) ->  | E29: =IF($A29<>"Serviço",0,ROUND(SUMIF($F$9:$P$9,"<>",$F29:$P29),15-13*PO!$X$3)) -> 0 | F29: 0
A30: =OFFSET(PO!J$12,ROW(A30)-ROW($A$12),0) -> Serviço | B30: =IF($A30=0,"",OFFSET(PO!K$12,ROW(B30)-ROW(B$12),0)) -> 1.5.1. | C30: =IF(OFFSET(PO!N$12,ROW(C30)-ROW(C$12),0)=0,"",OFFSET(PO!N$12,ROW(C30)-ROW(C$12),0)) -> PILARES EM CONCRETO ARMADO, Fck= 30 Mpa | D30: =IF(OFFSET(PO!O$12,ROW(D30)-ROW(D$12),0)=0,"",OFFSET(PO!O$12,ROW(D30)-ROW(D$12),0)) -> M3 | E30: =IF($A30<>"Serviço",0,ROUND(SUMIF($F$9:$P$9,"<>",$F30:$P30),15-13*PO!$X$3)) -> 28.6 | F30: 16.6 | G30: 10.3 | H30: 1.7
A31: =OFFSET(PO!J$12,ROW(A31)-ROW($A$12),0) -> Nível 2 | B31: =IF($A31=0,"",OFFSET(PO!K$12,ROW(B31)-ROW(B$12),0)) -> 1.6. | C31: =IF(OFFSET(PO!N$12,ROW(C31)-ROW(C$12),0)=0,"",OFFSET(PO!N$12,ROW(C31)-ROW(C$12),0)) -> ESTRUTURA: ESCADAS | D31: =IF(OFFSET(PO!O$12,ROW(D31)-ROW(D$12),0)=0,"",OFFSET(PO!O$12,ROW(D31)-ROW(D$12),0)) ->  | E31: =IF($A31<>"Serviço",0,ROUND(SUMIF($F$9:$P$9,"<>",$F31:$P31),15-13*PO!$X$3)) -> 0 | F31: 0
A32: =OFFSET(PO!J$12,ROW(A32)-ROW($A$12),0) -> Serviço | B32: =IF($A32=0,"",OFFSET(PO!K$12,ROW(B32)-ROW(B$12),0)) -> 1.6.1. | C32: =IF(OFFSET(PO!N$12,ROW(C32)-ROW(C$12),0)=0,"",OFFSET(PO!N$12,ROW(C32)-ROW(C$12),0)) -> ESCADAS EM CONCRETO ARMADO, Fck= 30 Mpa | D32: =IF(OFFSET(PO!O$12,ROW(D32)-ROW(D$12),0)=0,"",OFFSET(PO!O$12,ROW(D32)-ROW(D$12),0)) -> M3 | E32: =IF($A32<>"Serviço",0,ROUND(SUMIF($F$9:$P$9,"<>",$F32:$P32),15-13*PO!$X$3)) -> 2 | F32: 2
A33: =OFFSET(PO!J$12,ROW(A33)-ROW($A$12),0) -> Nível 2 | B33: =IF($A33=0,"",OFFSET(PO!K$12,ROW(B33)-ROW(B$12),0)) -> 1.7. | C33: =IF(OFFSET(PO!N$12,ROW(C33)-ROW(C$12),0)=0,"",OFFSET(PO!N$12,ROW(C33)-ROW(C$12),0)) -> LAJES | D33: =IF(OFFSET(PO!O$12,ROW(D33)-ROW(D$12),0)=0,"",OFFSET(PO!O$12,ROW(D33)-ROW(D$12),0)) ->  | E33: =IF($A33<>"Serviço",0,ROUND(SUMIF($F$9:$P$9,"<>",$F33:$P33),15-13*PO!$X$3)) -> 0 | F33: 0
A34: =OFFSET(PO!J$12,ROW(A34)-ROW($A$12),0) -> Serviço | B34: =IF($A34=0,"",OFFSET(PO!K$12,ROW(B34)-ROW(B$12),0)) -> 1.7.1. | C34: =IF(OFFSET(PO!N$12,ROW(C34)-ROW(C$12),0)=0,"",OFFSET(PO!N$12,ROW(C34)-ROW(C$12),0)) -> LAJE NERVURADA, INCLUSIVE FORMAS, LANÇAMENTO, ADENSAMENTO E CAPA EM CONCRETO E= 16 + 4 CM | D34: =IF(OFFSET(PO!O$12,ROW(D34)-ROW(D$12),0)=0,"",OFFSET(PO!O$12,ROW(D34)-ROW(D$12),0)) -> M2 | E34: =IF($A34<>"Serviço",0,ROUND(SUMIF($F$9:$P$9,"<>",$F34:$P34),15-13*PO!$X$3)) -> 535.41 | F34: 272.21 | G34: 263.2
A35: =OFFSET(PO!J$12,ROW(A35)-ROW($A$12),0) -> Serviço | B35: =IF($A35=0,"",OFFSET(PO!K$12,ROW(B35)-ROW(B$12),0)) -> 1.7.2. | C35: =IF(OFFSET(PO!N$12,ROW(C35)-ROW(C$12),0)=0,"",OFFSET(PO!N$12,ROW(C35)-ROW(C$12),0)) -> LAJES EM CONCRETO ARMADO, Fck= 30 Mpa | D35: =IF(OFFSET(PO!O$12,ROW(D35)-ROW(D$12),0)=0,"",OFFSET(PO!O$12,ROW(D35)-ROW(D$12),0)) -> M3 | E35: =IF($A35<>"Serviço",0,ROUND(SUMIF($F$9:$P$9,"<>",$F35:$P35),15-13*PO!$X$3)) -> 6.88 | F35: 3.3 | G35: 1.36 | H35: 2.22
A36: =OFFSET(PO!J$12,ROW(A36)-ROW($A$12),0) -> Serviço | B36: =IF($A36=0,"",OFFSET(PO!K$12,ROW(B36)-ROW(B$12),0)) -> 1.7.3. | C36: =IF(OFFSET(PO!N$12,ROW(C36)-ROW(C$12),0)=0,"",OFFSET(PO!N$12,ROW(C36)-ROW(C$12),0)) -> IMPERMEABILIZACAO DE LAJES E MARQUISES DESCOBERTAS, COM MANTA ASFALTICA, 2 CAMADAS, INCLUSIVE APLICAÇÃO DE PRIMER ASFALTICO, ESP= 3mm e 4 mm | D36: =IF(OFFSET(PO!O$12,ROW(D36)-ROW(D$12),0)=0,"",OFFSET(PO!O$12,ROW(D36)-ROW(D$12),0)) -> M2 | E36: =IF($A36<>"Serviço",0,ROUND(SUMIF($F$9:$P$9,"<>",$F36:$P36),15-13*PO!$X$3)) -> 50.65 | H36: 50.65
A37: =OFFSET(PO!J$12,ROW(A37)-ROW($A$12),0) -> Nível 2 | B37: =IF($A37=0,"",OFFSET(PO!K$12,ROW(B37)-ROW(B$12),0)) -> 1.8. | C37: =IF(OFFSET(PO!N$12,ROW(C37)-ROW(C$12),0)=0,"",OFFSET(PO!N$12,ROW(C37)-ROW(C$12),0)) -> ALVENARIA E FECHAMENTOS | D37: =IF(OFFSET(PO!O$12,ROW(D37)-ROW(D$12),0)=0,"",OFFSET(PO!O$12,ROW(D37)-ROW(D$12),0)) ->  | E37: =IF($A37<>"Serviço",0,ROUND(SUMIF($F$9:$P$9,"<>",$F37:$P37),15-13*PO!$X$3)) -> 0 | F37: 0
A38: =OFFSET(PO!J$12,ROW(A38)-ROW($A$12),0) -> Serviço | B38: =IF($A38=0,"",OFFSET(PO!K$12,ROW(B38)-ROW(B$12),0)) -> 1.8.1. | C38: =IF(OFFSET(PO!N$12,ROW(C38)-ROW(C$12),0)=0,"",OFFSET(PO!N$12,ROW(C38)-ROW(C$12),0)) -> ALVENARIA DE VEDAÇÃO DE BLOCOS CERÂMICOS FURADOS NA VERTICAL DE 14X19X39CM (ESPESSURA 14CM) DE PAREDES E ARGAMASSA DE ASSENTAMENTO | D38: =IF(OFFSET(PO!O$12,ROW(D38)-ROW(D$12),0)=0,"",OFFSET(PO!O$12,ROW(D38)-ROW(D$12),0)) -> M2 | E38: =IF($A38<>"Serviço",0,ROUND(SUMIF($F$9:$P$9,"<>",$F38:$P38),15-13*PO!$X$3)) -> 1162.71 | F38: 517.6 | G38: 447.53 | H38: 197.58
A39: =OFFSET(PO!J$12,ROW(A39)-ROW($A$12),0) -> Serviço | B39: =IF($A39=0,"",OFFSET(PO!K$12,ROW(B39)-ROW(B$12),0)) -> 1.8.2. | C39: =IF(OFFSET(PO!N$12,ROW(C39)-ROW(C$12),0)=0,"",OFFSET(PO!N$12,ROW(C39)-ROW(C$12),0)) -> PAREDE COM PLACAS DE GESSO ACARTONADO (DRYWALL), PARA USO INTERNO COM UMA FACE SIMPLES E OUTRA FACE DUPLA E ESTRUTURA METÁLICA COM GUIAS DUPLAS | D39: =IF(OFFSET(PO!O$12,ROW(D39)-ROW(D$12),0)=0,"",OFFSET(PO!O$12,ROW(D39)-ROW(D$12),0)) -> M2 | E39: =IF($A39<>"Serviço",0,ROUND(SUMIF($F$9:$P$9,"<>",$F39:$P39),15-13*PO!$X$3)) -> 49.4 | G39: 49.4
A40: =OFFSET(PO!J$12,ROW(A40)-ROW($A$12),0) -> Serviço | B40: =IF($A40=0,"",OFFSET(PO!K$12,ROW(B40)-ROW(B$12),0)) -> 1.8.3. | C40: =IF(OFFSET(PO!N$12,ROW(C40)-ROW(C$12),0)=0,"",OFFSET(PO!N$12,ROW(C40)-ROW(C$12),0)) -> DIVISORIA EM MARMORITE ESPESSURA 35MM, CHUMBAMENTO NO PISO E PAREDE COM ARGAMASSA DE CIMENTO E AREIA, POLIMENTO MANUAL | D40: =IF(OFFSET(PO!O$12,ROW(D40)-ROW(D$12),0)=0,"",OFFSET(PO!O$12,ROW(D40)-ROW(D$12),0)) -> M2 | E40: =IF($A40<>"Serviço",0,ROUND(SUMIF($F$9:$P$9,"<>",$F40:$P40),15-13*PO!$X$3)) -> 17.38 | F40: 17.38
A41: =OFFSET(PO!J$12,ROW(A41)-ROW($A$12),0) -> Serviço | B41: =IF($A41=0,"",OFFSET(PO!K$12,ROW(B41)-ROW(B$12),0)) -> 1.8.4. | C41: =IF(OFFSET(PO!N$12,ROW(C41)-ROW(C$12),0)=0,"",OFFSET(PO!N$12,ROW(C41)-ROW(C$12),0)) -> GUARDA-CORPO COM CORRIMAO EM TUBO DE ACO GALVANIZADO 3/4" | D41: =IF(OFFSET(PO!O$12,ROW(D41)-ROW(D$12),0)=0,"",OFFSET(PO!O$12,ROW(D41)-ROW(D$12),0)) -> M | E41: =IF($A41<>"Serviço",0,ROUND(SUMIF($F$9:$P$9,"<>",$F41:$P41),15-13*PO!$X$3)) -> 10.7 | G41: 10.7
A42: =OFFSET(PO!J$12,ROW(A42)-ROW($A$12),0) -> Serviço | B42: =IF($A42=0,"",OFFSET(PO!K$12,ROW(B42)-ROW(B$12),0)) -> 1.8.5. | C42: =IF(OFFSET(PO!N$12,ROW(C42)-ROW(C$12),0)=0,"",OFFSET(PO!N$12,ROW(C42)-ROW(C$12),0)) -> CORRIMAO EM TUBO ACO GALVANIZADO 3/4" COM BRACADEIRA | D42: =IF(OFFSET(PO!O$12,ROW(D42)-ROW(D$12),0)=0,"",OFFSET(PO!O$12,ROW(D42)-ROW(D$12),0)) -> M | E42: =IF($A42<>"Serviço",0,ROUND(SUMIF($F$9:$P$9,"<>",$F42:$P42),15-13*PO!$X$3)) -> 13.56 | G42: 13.56
A43: =OFFSET(PO!J$12,ROW(A43)-ROW($A$12),0) -> Serviço | B43: =IF($A43=0,"",OFFSET(PO!K$12,ROW(B43)-ROW(B$12),0)) -> 1.8.6. | C43: =IF(OFFSET(PO!N$12,ROW(C43)-ROW(C$12),0)=0,"",OFFSET(PO!N$12,ROW(C43)-ROW(C$12),0)) -> VERGA PRÉ-MOLDADA | D43: =IF(OFFSET(PO!O$12,ROW(D43)-ROW(D$12),0)=0,"",OFFSET(PO!O$12,ROW(D43)-ROW(D$12),0)) -> M | E43: =IF($A43<>"Serviço",0,ROUND(SUMIF($F$9:$P$9,"<>",$F43:$P43),15-13*PO!$X$3)) -> 139.5 | F43: 68.5 | G43: 71
A44: =OFFSET(PO!J$12,ROW(A44)-ROW($A$12),0) -> Serviço | B44: =IF($A44=0,"",OFFSET(PO!K$12,ROW(B44)-ROW(B$12),0)) -> 1.8.7. | C44: =IF(OFFSET(PO!N$12,ROW(C44)-ROW(C$12),0)=0,"",OFFSET(PO!N$12,ROW(C44)-ROW(C$12),0)) -> CONTRAVERGA PRÉ-MOLDADA | D44: =IF(OFFSET(PO!O$12,ROW(D44)-ROW(D$12),0)=0,"",OFFSET(PO!O$12,ROW(D44)-ROW(D$12),0)) -> M | E44: =IF($A44<>"Serviço",0,ROUND(SUMIF($F$9:$P$9,"<>",$F44:$P44),15-13*PO!$X$3)) -> 106.1 | F44: 47.3 | G44: 58.8
A45: =OFFSET(PO!J$12,ROW(A45)-ROW($A$12),0) -> Nível 2 | B45: =IF($A45=0,"",OFFSET(PO!K$12,ROW(B45)-ROW(B$12),0)) -> 1.9. | C45: =IF(OFFSET(PO!N$12,ROW(C45)-ROW(C$12),0)=0,"",OFFSET(PO!N$12,ROW(C45)-ROW(C$12),0)) -> REVESTIMENTOS | D45: =IF(OFFSET(PO!O$12,ROW(D45)-ROW(D$12),0)=0,"",OFFSET(PO!O$12,ROW(D45)-ROW(D$12),0)) ->  | E45: =IF($A45<>"Serviço",0,ROUND(SUMIF($F$9:$P$9,"<>",$F45:$P45),15-13*PO!$X$3)) -> 0 | F45: 0
A46: =OFFSET(PO!J$12,ROW(A46)-ROW($A$12),0) -> Serviço | B46: =IF($A46=0,"",OFFSET(PO!K$12,ROW(B46)-ROW(B$12),0)) -> 1.9.1. | C46: =IF(OFFSET(PO!N$12,ROW(C46)-ROW(C$12),0)=0,"",OFFSET(PO!N$12,ROW(C46)-ROW(C$12),0)) -> CHAPISCO APLICADO EM ALVENARIAS E ESTRUTURAS DE CONCRETO, ARGAMASSA TRAÇO 1:3 | D46: =IF(OFFSET(PO!O$12,ROW(D46)-ROW(D$12),0)=0,"",OFFSET(PO!O$12,ROW(D46)-ROW(D$12),0)) -> M2 | E46: =IF($A46<>"Serviço",0,ROUND(SUMIF($F$9:$P$9,"<>",$F46:$P46),15-13*PO!$X$3)) -> 2393.23 | F46: 1080.68 | G46: 1056.59 | H46: 255.96
A47: =OFFSET(PO!J$12,ROW(A47)-ROW($A$12),0) -> Serviço | B47: =IF($A47=0,"",OFFSET(PO!K$12,ROW(B47)-ROW(B$12),0)) -> 1.9.2. | C47: =IF(OFFSET(PO!N$12,ROW(C47)-ROW(C$12),0)=0,"",OFFSET(PO!N$12,ROW(C47)-ROW(C$12),0)) -> EMBOÇO, PARA RECEBIMENTO DE CERÂMICA, EM ARGAMASSA TRAÇO 1:2:8, ESPESSURA DE 20MM, COM EXECUÇÃO DE TALISCAS | D47: =IF(OFFSET(PO!O$12,ROW(D47)-ROW(D$12),0)=0,"",OFFSET(PO!O$12,ROW(D47)-ROW(D$12),0)) -> M2 | E47: =IF($A47<>"Serviço",0,ROUND(SUMIF($F$9:$P$9,"<>",$F47:$P47),15-13*PO!$X$3)) -> 2393.23 | F47: 1080.68 | G47: 1056.59 | H47: 255.96
A48: =OFFSET(PO!J$12,ROW(A48)-ROW($A$12),0) -> Serviço | B48: =IF($A48=0,"",OFFSET(PO!K$12,ROW(B48)-ROW(B$12),0)) -> 1.9.3. | C48: =IF(OFFSET(PO!N$12,ROW(C48)-ROW(C$12),0)=0,"",OFFSET(PO!N$12,ROW(C48)-ROW(C$12),0)) -> REVESTIMENTO CERÂMICO PARA PAREDES INTERNAS COM PLACAS TIPO ESMALTADA EXTRA DE DIMENSÕES 33X45 CM ATÉ 2,10m | D48: =IF(OFFSET(PO!O$12,ROW(D48)-ROW(D$12),0)=0,"",OFFSET(PO!O$12,ROW(D48)-ROW(D$12),0)) -> M2 | E48: =IF($A48<>"Serviço",0,ROUND(SUMIF($F$9:$P$9,"<>",$F48:$P48),15-13*PO!$X$3)) -> 165.2 | F48: 134.4 | G48: 30.8
A49: =OFFSET(PO!J$12,ROW(A49)-ROW($A$12),0) -> Serviço | B49: =IF($A49=0,"",OFFSET(PO!K$12,ROW(B49)-ROW(B$12),0)) -> 1.9.4. | C49: =IF(OFFSET(PO!N$12,ROW(C49)-ROW(C$12),0)=0,"",OFFSET(PO!N$12,ROW(C49)-ROW(C$12),0)) -> REVESTIMENTO CERÂMICO EM TIJOLETAS LISAS 10x20x2,5CM, ASSENTADAS COM ARGAMASSA DO TIPO ACIII | D49: =IF(OFFSET(PO!O$12,ROW(D49)-ROW(D$12),0)=0,"",OFFSET(PO!O$12,ROW(D49)-ROW(D$12),0)) -> M² | E49: =IF($A49<>"Serviço",0,ROUND(SUMIF($F$9:$P$9,"<>",$F49:$P49),15-13*PO!$X$3)) -> 120.52 | F49: 25.16 | G49: 95.36
A50: =OFFSET(PO!J$12,ROW(A50)-ROW($A$12),0) -> Nível 2 | B50: =IF($A50=0,"",OFFSET(PO!K$12,ROW(B50)-ROW(B$12),0)) -> 1.10. | C50: =IF(OFFSET(PO!N$12,ROW(C50)-ROW(C$12),0)=0,"",OFFSET(PO!N$12,ROW(C50)-ROW(C$12),0)) -> COBERTURAS | D50: =IF(OFFSET(PO!O$12,ROW(D50)-ROW(D$12),0)=0,"",OFFSET(PO!O$12,ROW(D50)-ROW(D$12),0)) ->  | E50: =IF($A50<>"Serviço",0,ROUND(SUMIF($F$9:$P$9,"<>",$F50:$P50),15-13*PO!$X$3)) -> 0 | F50: 0
A51: =OFFSET(PO!J$12,ROW(A51)-ROW($A$12),0) -> Serviço | B51: =IF($A51=0,"",OFFSET(PO!K$12,ROW(B51)-ROW(B$12),0)) -> 1.10.1. | C51: =IF(OFFSET(PO!N$12,ROW(C51)-ROW(C$12),0)=0,"",OFFSET(PO!N$12,ROW(C51)-ROW(C$12),0)) -> TELHAMENTO COM TELHA ONDULADA DE FIBROCIMENTO E = 6 MM, COM RECOBRIMENTO LATERAL DE 1/4 DE ONDA, INCLUSO IÇAMENTO | D51: =IF(OFFSET(PO!O$12,ROW(D51)-ROW(D$12),0)=0,"",OFFSET(PO!O$12,ROW(D51)-ROW(D$12),0)) -> M2 | E51: =IF($A51<>"Serviço",0,ROUND(SUMIF($F$9:$P$9,"<>",$F51:$P51),15-13*PO!$X$3)) -> 285.57 | H51: 285.57
A52: =OFFSET(PO!J$12,ROW(A52)-ROW($A$12),0) -> Serviço | B52: =IF($A52=0,"",OFFSET(PO!K$12,ROW(B52)-ROW(B$12),0)) -> 1.10.2. | C52: =IF(OFFSET(PO!N$12,ROW(C52)-ROW(C$12),0)=0,"",OFFSET(PO!N$12,ROW(C52)-ROW(C$12),0)) -> CUMEEIRA PARA TELHA DE FIBROCIMENTO ONDULADA E = 6 MM, INCLUSO ACESSÓRIOS DE FIXAÇÃO E IÇAMENTO | D52: =IF(OFFSET(PO!O$12,ROW(D52)-ROW(D$12),0)=0,"",OFFSET(PO!O$12,ROW(D52)-ROW(D$12),0)) -> M | E52: =IF($A52<>"Serviço",0,ROUND(SUMIF($F$9:$P$9,"<>",$F52:$P52),15-13*PO!$X$3)) -> 34.83 | H52: 34.83
A53: =OFFSET(PO!J$12,ROW(A53)-ROW($A$12),0) -> Serviço | B53: =IF($A53=0,"",OFFSET(PO!K$12,ROW(B53)-ROW(B$12),0)) -> 1.10.3. | C53: =IF(OFFSET(PO!N$12,ROW(C53)-ROW(C$12),0)=0,"",OFFSET(PO!N$12,ROW(C53)-ROW(C$12),0)) -> CALHA EM CHAPA DE AÇO GALVANIZADO NÚMERO 24, DESENVOLVIMENTO DE 50 CM, INCLUSO TRANSPORTE VERTICAL | D53: =IF(OFFSET(PO!O$12,ROW(D53)-ROW(D$12),0)=0,"",OFFSET(PO!O$12,ROW(D53)-ROW(D$12),0)) -> M | E53: =IF($A53<>"Serviço",0,ROUND(SUMIF($F$9:$P$9,"<>",$F53:$P53),15-13*PO!$X$3)) -> 73.55 | H53: 73.55
A54: =OFFSET(PO!J$12,ROW(A54)-ROW($A$12),0) -> Serviço | B54: =IF($A54=0,"",OFFSET(PO!K$12,ROW(B54)-ROW(B$12),0)) -> 1.10.4. | C54: =IF(OFFSET(PO!N$12,ROW(C54)-ROW(C$12),0)=0,"",OFFSET(PO!N$12,ROW(C54)-ROW(C$12),0)) -> TRAMA DE MADEIRA COMPOSTA POR TERÇAS PARA TELHADOS TELHA DE FIBROCIMENTO, INCLUSO TRANSPORTE VERTICAL | D54: =IF(OFFSET(PO!O$12,ROW(D54)-ROW(D$12),0)=0,"",OFFSET(PO!O$12,ROW(D54)-ROW(D$12),0)) -> M2 | E54: =IF($A54<>"Serviço",0,ROUND(SUMIF($F$9:$P$9,"<>",$F54:$P54),15-13*PO!$X$3)) -> 285.57 | H54: 285.57
A55: =OFFSET(PO!J$12,ROW(A55)-ROW($A$12),0) -> Serviço | B55: =IF($A55=0,"",OFFSET(PO!K$12,ROW(B55)-ROW(B$12),0)) -> 1.10.5. | C55: =IF(OFFSET(PO!N$12,ROW(C55)-ROW(C$12),0)=0,"",OFFSET(PO!N$12,ROW(C55)-ROW(C$12),0)) -> PINGADEIRAS EM CHAPA DE AÇO GALVANIZADO NÚMERO 24, CORTE DE 25 CM, INCLUSO TRANSPORTE VERTICAL | D55: =IF(OFFSET(PO!O$12,ROW(D55)-ROW(D$12),0)=0,"",OFFSET(PO!O$12,ROW(D55)-ROW(D$12),0)) -> M | E55: =IF($A55<>"Serviço",0,ROUND(SUMIF($F$9:$P$9,"<>",$F55:$P55),15-13*PO!$X$3)) -> 121.7 | H55: 121.7
A56: =OFFSET(PO!J$12,ROW(A56)-ROW($A$12),0) -> Serviço | B56: =IF($A56=0,"",OFFSET(PO!K$12,ROW(B56)-ROW(B$12),0)) -> 1.10.6. | C56: =IF(OFFSET(PO!N$12,ROW(C56)-ROW(C$12),0)=0,"",OFFSET(PO!N$12,ROW(C56)-ROW(C$12),0)) -> ESCADA TIPO MARINHEIRO EM ACO CA-50 9,52MM INCLUSO PINTURA COM FUNDO ANTICORROSIVO TIPO ZARCAO | D56: =IF(OFFSET(PO!O$12,ROW(D56)-ROW(D$12),0)=0,"",OFFSET(PO!O$12,ROW(D56)-ROW(D$12),0)) -> M | E56: =IF($A56<>"Serviço",0,ROUND(SUMIF($F$9:$P$9,"<>",$F56:$P56),15-13*PO!$X$3)) -> 4.2 | H56: 4.2
A57: =OFFSET(PO!J$12,ROW(A57)-ROW($A$12),0) -> Serviço | B57: =IF($A57=0,"",OFFSET(PO!K$12,ROW(B57)-ROW(B$12),0)) -> 1.10.7. | C57: =IF(OFFSET(PO!N$12,ROW(C57)-ROW(C$12),0)=0,"",OFFSET(PO!N$12,ROW(C57)-ROW(C$12),0)) -> FORRO EM PLACAS DE GESSO | D57: =IF(OFFSET(PO!O$12,ROW(D57)-ROW(D$12),0)=0,"",OFFSET(PO!O$12,ROW(D57)-ROW(D$12),0)) -> M2 | E57: =IF($A57<>"Serviço",0,ROUND(SUMIF($F$9:$P$9,"<>",$F57:$P57),15-13*PO!$X$3)) -> 425.12 | F57: 191.71 | G57: 233.41
A58: =OFFSET(PO!J$12,ROW(A58)-ROW($A$12),0) -> Nível 2 | B58: =IF($A58=0,"",OFFSET(PO!K$12,ROW(B58)-ROW(B$12),0)) -> 1.11. | C58: =IF(OFFSET(PO!N$12,ROW(C58)-ROW(C$12),0)=0,"",OFFSET(PO!N$12,ROW(C58)-ROW(C$12),0)) -> ESQUADRIAS | D58: =IF(OFFSET(PO!O$12,ROW(D58)-ROW(D$12),0)=0,"",OFFSET(PO!O$12,ROW(D58)-ROW(D$12),0)) ->  | E58: =IF($A58<>"Serviço",0,ROUND(SUMIF($F$9:$P$9,"<>",$F58:$P58),15-13*PO!$X$3)) -> 0 | F58: 0
A59: =OFFSET(PO!J$12,ROW(A59)-ROW($A$12),0) -> Serviço | B59: =IF($A59=0,"",OFFSET(PO!K$12,ROW(B59)-ROW(B$12),0)) -> 1.11.1. | C59: =IF(OFFSET(PO!N$12,ROW(C59)-ROW(C$12),0)=0,"",OFFSET(PO!N$12,ROW(C59)-ROW(C$12),0)) -> PORTA DE MADEIRA PARA PINTURA, SEMI-OCA (LEVE OU MÉDIA), PADRÃO MÉDIO, 90X210CM, ESPESSURA DE 3,5CM, ITENS INCLUSOS: DOBRADIÇAS, MONTAGEM E INSTALAÇÃO DO BATENTE, FECHADURA COM EXECUÇÃO DO FURO - FORNECIMENTO E INSTALAÇÃO | D59: =IF(OFFSET(PO!O$12,ROW(D59)-ROW(D$12),0)=0,"",OFFSET(PO!O$12,ROW(D59)-ROW(D$12),0)) -> UN | E59: =IF($A59<>"Serviço",0,ROUND(SUMIF($F$9:$P$9,"<>",$F59:$P59),15-13*PO!$X$3)) -> 12 | F59: 6 | G59: 6
A60: =OFFSET(PO!J$12,ROW(A60)-ROW($A$12),0) -> Serviço | B60: =IF($A60=0,"",OFFSET(PO!K$12,ROW(B60)-ROW(B$12),0)) -> 1.11.2. | C60: =IF(OFFSET(PO!N$12,ROW(C60)-ROW(C$12),0)=0,"",OFFSET(PO!N$12,ROW(C60)-ROW(C$12),0)) -> PORTA EM VIDRO TEMPERADO FUME E=10mm, COM PERFIL DE ALUMINIO, CORES VARIADAS, DE GIRAR 2,40 X 2,10M | D60: =IF(OFFSET(PO!O$12,ROW(D60)-ROW(D$12),0)=0,"",OFFSET(PO!O$12,ROW(D60)-ROW(D$12),0)) -> UNID | E60: =IF($A60<>"Serviço",0,ROUND(SUMIF($F$9:$P$9,"<>",$F60:$P60),15-13*PO!$X$3)) -> 2 | F60: 2
A61: =OFFSET(PO!J$12,ROW(A61)-ROW($A$12),0) -> Serviço | B61: =IF($A61=0,"",OFFSET(PO!K$12,ROW(B61)-ROW(B$12),0)) -> 1.11.3. | C61: =IF(OFFSET(PO!N$12,ROW(C61)-ROW(C$12),0)=0,"",OFFSET(PO!N$12,ROW(C61)-ROW(C$12),0)) -> PORTA MADEIRA 1A CORRER P/VIDRO 30MM/ GUARNICAO 15CM/ALIZAR | D61: =IF(OFFSET(PO!O$12,ROW(D61)-ROW(D$12),0)=0,"",OFFSET(PO!O$12,ROW(D61)-ROW(D$12),0)) -> M2 | E61: =IF($A61<>"Serviço",0,ROUND(SUMIF($F$9:$P$9,"<>",$F61:$P61),15-13*PO!$X$3)) -> 8.4 | F61: 4.2 | G61: 4.2
A62: =OFFSET(PO!J$12,ROW(A62)-ROW($A$12),0) -> Serviço | B62: =IF($A62=0,"",OFFSET(PO!K$12,ROW(B62)-ROW(B$12),0)) -> 1.11.4. | C62: =IF(OFFSET(PO!N$12,ROW(C62)-ROW(C$12),0)=0,"",OFFSET(PO!N$12,ROW(C62)-ROW(C$12),0)) -> PORTA EM VIDRO TEMPERADO FUME E=10mm, COM PERFIL DE ALUMINIO, CORES VARIADAS, DE GIRAR 2,40 X 3,00M | D62: =IF(OFFSET(PO!O$12,ROW(D62)-ROW(D$12),0)=0,"",OFFSET(PO!O$12,ROW(D62)-ROW(D$12),0)) -> UNID | E62: =IF($A62<>"Serviço",0,ROUND(SUMIF($F$9:$P$9,"<>",$F62:$P62),15-13*PO!$X$3)) -> 1 | F62: 1
A63: =OFFSET(PO!J$12,ROW(A63)-ROW($A$12),0) -> Serviço | B63: =IF($A63=0,"",OFFSET(PO!K$12,ROW(B63)-ROW(B$12),0)) -> 1.11.5. | C63: =IF(OFFSET(PO!N$12,ROW(C63)-ROW(C$12),0)=0,"",OFFSET(PO!N$12,ROW(C63)-ROW(C$12),0)) -> PORTA DE ABRIR EM ALUMINIO TIPO VENEZIANA, ACABAMENTO ANODIZADO NATURAL, SEM GUARNICAO/ALIZAR/VISTA | D63: =IF(OFFSET(PO!O$12,ROW(D63)-ROW(D$12),0)=0,"",OFFSET(PO!O$12,ROW(D63)-ROW(D$12),0)) -> M2 | E63: =IF($A63<>"Serviço",0,ROUND(SUMIF($F$9:$P$9,"<>",$F63:$P63),15-13*PO!$X$3)) -> 9.6 | F63: 9.6
A64: =OFFSET(PO!J$12,ROW(A64)-ROW($A$12),0) -> Serviço | B64: =IF($A64=0,"",OFFSET(PO!K$12,ROW(B64)-ROW(B$12),0)) -> 1.11.6. | C64: =IF(OFFSET(PO!N$12,ROW(C64)-ROW(C$12),0)=0,"",OFFSET(PO!N$12,ROW(C64)-ROW(C$12),0)) -> JANELA DE ALUMÍNIO MAXIM-AR, FIXAÇÃO COM ARGAMASSA, COM VIDROS, PADRONIZADA | D64: =IF(OFFSET(PO!O$12,ROW(D64)-ROW(D$12),0)=0,"",OFFSET(PO!O$12,ROW(D64)-ROW(D$12),0)) -> M2 | E64: =IF($A64<>"Serviço",0,ROUND(SUMIF($F$9:$P$9,"<>",$F64:$P64),15-13*PO!$X$3)) -> 151.4 | F64: 63.3 | G64: 88.1
A65: =OFFSET(PO!J$12,ROW(A65)-ROW($A$12),0) -> Serviço | B65: =IF($A65=0,"",OFFSET(PO!K$12,ROW(B65)-ROW(B$12),0)) -> 1.11.7. | C65: =IF(OFFSET(PO!N$12,ROW(C65)-ROW(C$12),0)=0,"",OFFSET(PO!N$12,ROW(C65)-ROW(C$12),0)) -> JANELA FIXA EM ALUMINIO, 60 X 80 CM (A X L), BATENTE/REQUADRO DE 3 A 14 CM, COM VIDRO | D65: =IF(OFFSET(PO!O$12,ROW(D65)-ROW(D$12),0)=0,"",OFFSET(PO!O$12,ROW(D65)-ROW(D$12),0)) -> M2 | E65: =IF($A65<>"Serviço",0,ROUND(SUMIF($F$9:$P$9,"<>",$F65:$P65),15-13*PO!$X$3)) -> 4.5 | F65: 4.5
A66: =OFFSET(PO!J$12,ROW(A66)-ROW($A$12),0) -> Serviço | B66: =IF($A66=0,"",OFFSET(PO!K$12,ROW(B66)-ROW(B$12),0)) -> 1.11.8. | C66: =IF(OFFSET(PO!N$12,ROW(C66)-ROW(C$12),0)=0,"",OFFSET(PO!N$12,ROW(C66)-ROW(C$12),0)) -> SOLEIRA EM MARMORE, POLIDO, L= *15* CM, E= *2* CM, CORTE RETO | D66: =IF(OFFSET(PO!O$12,ROW(D66)-ROW(D$12),0)=0,"",OFFSET(PO!O$12,ROW(D66)-ROW(D$12),0)) -> M | E66: =IF($A66<>"Serviço",0,ROUND(SUMIF($F$9:$P$9,"<>",$F66:$P66),15-13*PO!$X$3)) -> 22 | F66: 14.6 | G66: 7.4
A67: =OFFSET(PO!J$12,ROW(A67)-ROW($A$12),0) -> Serviço | B67: =IF($A67=0,"",OFFSET(PO!K$12,ROW(B67)-ROW(B$12),0)) -> 1.11.9. | C67: =IF(OFFSET(PO!N$12,ROW(C67)-ROW(C$12),0)=0,"",OFFSET(PO!N$12,ROW(C67)-ROW(C$12),0)) -> PEITORIL EM MARMORE, POLIDO, L= *15* CM, E= *2* CM, CORTE RETO | D67: =IF(OFFSET(PO!O$12,ROW(D67)-ROW(D$12),0)=0,"",OFFSET(PO!O$12,ROW(D67)-ROW(D$12),0)) -> M | E67: =IF($A67<>"Serviço",0,ROUND(SUMIF($F$9:$P$9,"<>",$F67:$P67),15-13*PO!$X$3)) -> 95.3 | F67: 41.3 | G67: 54
A68: =OFFSET(PO!J$12,ROW(A68)-ROW($A$12),0) -> Nível 2 | B68: =IF($A68=0,"",OFFSET(PO!K$12,ROW(B68)-ROW(B$12),0)) -> 1.12. | C68: =IF(OFFSET(PO!N$12,ROW(C68)-ROW(C$12),0)=0,"",OFFSET(PO!N$12,ROW(C68)-ROW(C$12),0)) -> PAVIMENTAÇÕES | D68: =IF(OFFSET(PO!O$12,ROW(D68)-ROW(D$12),0)=0,"",OFFSET(PO!O$12,ROW(D68)-ROW(D$12),0)) ->  | E68: =IF($A68<>"Serviço",0,ROUND(SUMIF($F$9:$P$9,"<>",$F68:$P68),15-13*PO!$X$3)) -> 0 | F68: 0
A69: =OFFSET(PO!J$12,ROW(A69)-ROW($A$12),0) -> Serviço | B69: =IF($A69=0,"",OFFSET(PO!K$12,ROW(B69)-ROW(B$12),0)) -> 1.12.1. | C69: =IF(OFFSET(PO!N$12,ROW(C69)-ROW(C$12),0)=0,"",OFFSET(PO!N$12,ROW(C69)-ROW(C$12),0)) -> PEDRA BRITADA N. 2 PARA LASTRO | D69: =IF(OFFSET(PO!O$12,ROW(D69)-ROW(D$12),0)=0,"",OFFSET(PO!O$12,ROW(D69)-ROW(D$12),0)) -> M3 | E69: =IF($A69<>"Serviço",0,ROUND(SUMIF($F$9:$P$9,"<>",$F69:$P69),15-13*PO!$X$3)) -> 19.94 | F69: 19.94
A70: =OFFSET(PO!J$12,ROW(A70)-ROW($A$12),0) -> Serviço | B70: =IF($A70=0,"",OFFSET(PO!K$12,ROW(B70)-ROW(B$12),0)) -> 1.12.2. | C70: =IF(OFFSET(PO!N$12,ROW(C70)-ROW(C$12),0)=0,"",OFFSET(PO!N$12,ROW(C70)-ROW(C$12),0)) -> PISO EM CONCRETO 20 MPA PREPARO MECANICO, ESPESSURA 7CM, INCLUSO SELANTE ELASTICO A BASE DE POLIURETANO | D70: =IF(OFFSET(PO!O$12,ROW(D70)-ROW(D$12),0)=0,"",OFFSET(PO!O$12,ROW(D70)-ROW(D$12),0)) -> M2 | E70: =IF($A70<>"Serviço",0,ROUND(SUMIF($F$9:$P$9,"<>",$F70:$P70),15-13*PO!$X$3)) -> 398.89 | F70: 398.89
A71: =OFFSET(PO!J$12,ROW(A71)-ROW($A$12),0) -> Serviço | B71: =IF($A71=0,"",OFFSET(PO!K$12,ROW(B71)-ROW(B$12),0)) -> 1.12.3. | C71: =IF(OFFSET(PO!N$12,ROW(C71)-ROW(C$12),0)=0,"",OFFSET(PO!N$12,ROW(C71)-ROW(C$12),0)) -> CONTRAPISO EM ARGAMASSA TRAÇO 1:4 (CIMENTO E AREIA), ADERIDO, ESPESSURA 3CM | D71: =IF(OFFSET(PO!O$12,ROW(D71)-ROW(D$12),0)=0,"",OFFSET(PO!O$12,ROW(D71)-ROW(D$12),0)) -> M2 | E71: =IF($A71<>"Serviço",0,ROUND(SUMIF($F$9:$P$9,"<>",$F71:$P71),15-13*PO!$X$3)) -> 580.92 | F71: 282.35 | G71: 298.57
A72: =OFFSET(PO!J$12,ROW(A72)-ROW($A$12),0) -> Serviço | B72: =IF($A72=0,"",OFFSET(PO!K$12,ROW(B72)-ROW(B$12),0)) -> 1.12.4. | C72: =IF(OFFSET(PO!N$12,ROW(C72)-ROW(C$12),0)=0,"",OFFSET(PO!N$12,ROW(C72)-ROW(C$12),0)) -> REVESTIMENTO CERÂMICO PARA PISO COM PLACAS TIPO ESMALTADA EXTRA DE DIMENSÕES 60X60 CM | D72: =IF(OFFSET(PO!O$12,ROW(D72)-ROW(D$12),0)=0,"",OFFSET(PO!O$12,ROW(D72)-ROW(D$12),0)) -> M2 | E72: =IF($A72<>"Serviço",0,ROUND(SUMIF($F$9:$P$9,"<>",$F72:$P72),15-13*PO!$X$3)) -> 568.2 | F72: 279.95 | G72: 288.25
A73: =OFFSET(PO!J$12,ROW(A73)-ROW($A$12),0) -> Serviço | B73: =IF($A73=0,"",OFFSET(PO!K$12,ROW(B73)-ROW(B$12),0)) -> 1.12.5. | C73: =IF(OFFSET(PO!N$12,ROW(C73)-ROW(C$12),0)=0,"",OFFSET(PO!N$12,ROW(C73)-ROW(C$12),0)) -> RODAPÉ CERÂMICO DE 7CM DE ALTURA COM PLACAS TIPO ESMALTADA EXTRA DE DIMENSÕES 60X60CM | D73: =IF(OFFSET(PO!O$12,ROW(D73)-ROW(D$12),0)=0,"",OFFSET(PO!O$12,ROW(D73)-ROW(D$12),0)) -> M | E73: =IF($A73<>"Serviço",0,ROUND(SUMIF($F$9:$P$9,"<>",$F73:$P73),15-13*PO!$X$3)) -> 362.65 | F73: 166.91 | G73: 195.74
A74: =OFFSET(PO!J$12,ROW(A74)-ROW($A$12),0) -> Nível 2 | B74: =IF($A74=0,"",OFFSET(PO!K$12,ROW(B74)-ROW(B$12),0)) -> 1.13. | C74: =IF(OFFSET(PO!N$12,ROW(C74)-ROW(C$12),0)=0,"",OFFSET(PO!N$12,ROW(C74)-ROW(C$12),0)) -> PINTURAS | D74: =IF(OFFSET(PO!O$12,ROW(D74)-ROW(D$12),0)=0,"",OFFSET(PO!O$12,ROW(D74)-ROW(D$12),0)) ->  | E74: =IF($A74<>"Serviço",0,ROUND(SUMIF($F$9:$P$9,"<>",$F74:$P74),15-13*PO!$X$3)) -> 0 | F74: 0
A75: =OFFSET(PO!J$12,ROW(A75)-ROW($A$12),0) -> Serviço | B75: =IF($A75=0,"",OFFSET(PO!K$12,ROW(B75)-ROW(B$12),0)) -> 1.13.1. | C75: =IF(OFFSET(PO!N$12,ROW(C75)-ROW(C$12),0)=0,"",OFFSET(PO!N$12,ROW(C75)-ROW(C$12),0)) -> APLICAÇÃO MANUAL DE MASSA ACRÍLICA, DUAS DEMÃOS | D75: =IF(OFFSET(PO!O$12,ROW(D75)-ROW(D$12),0)=0,"",OFFSET(PO!O$12,ROW(D75)-ROW(D$12),0)) -> M2 | E75: =IF($A75<>"Serviço",0,ROUND(SUMIF($F$9:$P$9,"<>",$F75:$P75),15-13*PO!$X$3)) -> 2666.12 | F75: =921.12+279.95 -> 1201.07 | G75: =930.43+335.59 -> 1266.02 | H75: 199.03
A76: =OFFSET(PO!J$12,ROW(A76)-ROW($A$12),0) -> Serviço | B76: =IF($A76=0,"",OFFSET(PO!K$12,ROW(B76)-ROW(B$12),0)) -> 1.13.2. | C76: =IF(OFFSET(PO!N$12,ROW(C76)-ROW(C$12),0)=0,"",OFFSET(PO!N$12,ROW(C76)-ROW(C$12),0)) -> APLICAÇÃO MANUAL DE PINTURA COM TINTA LÁTEX ACRÍLICA EM TETO, DUAS DEMÃOS | D76: =IF(OFFSET(PO!O$12,ROW(D76)-ROW(D$12),0)=0,"",OFFSET(PO!O$12,ROW(D76)-ROW(D$12),0)) -> M2 | E76: =IF($A76<>"Serviço",0,ROUND(SUMIF($F$9:$P$9,"<>",$F76:$P76),15-13*PO!$X$3)) -> 190.42 | F76: 88.24 | G76: 102.18
A77: =OFFSET(PO!J$12,ROW(A77)-ROW($A$12),0) -> Serviço | B77: =IF($A77=0,"",OFFSET(PO!K$12,ROW(B77)-ROW(B$12),0)) -> 1.13.3. | C77: =IF(OFFSET(PO!N$12,ROW(C77)-ROW(C$12),0)=0,"",OFFSET(PO!N$12,ROW(C77)-ROW(C$12),0)) -> APLICAÇÃO MANUAL DE PINTURA COM TINTA LÁTEX ACRÍLICA EM PAREDES, DUAS DEMÃOS | D77: =IF(OFFSET(PO!O$12,ROW(D77)-ROW(D$12),0)=0,"",OFFSET(PO!O$12,ROW(D77)-ROW(D$12),0)) -> M2 | E77: =IF($A77<>"Serviço",0,ROUND(SUMIF($F$9:$P$9,"<>",$F77:$P77),15-13*PO!$X$3)) -> 2050.58 | F77: 921.12 | G77: 930.43 | H77: 199.03
A78: =OFFSET(PO!J$12,ROW(A78)-ROW($A$12),0) -> Serviço | B78: =IF($A78=0,"",OFFSET(PO!K$12,ROW(B78)-ROW(B$12),0)) -> 1.13.4. | C78: =IF(OFFSET(PO!N$12,ROW(C78)-ROW(C$12),0)=0,"",OFFSET(PO!N$12,ROW(C78)-ROW(C$12),0)) -> APLICAÇÃO DE FUNDO SELADOR LÁTEX PVA EM TETO, UMA DEMÃO | D78: =IF(OFFSET(PO!O$12,ROW(D78)-ROW(D$12),0)=0,"",OFFSET(PO!O$12,ROW(D78)-ROW(D$12),0)) -> M2 | E78: =IF($A78<>"Serviço",0,ROUND(SUMIF($F$9:$P$9,"<>",$F78:$P78),15-13*PO!$X$3)) -> 190.42 | F78: 88.24 | G78: 102.18
A79: =OFFSET(PO!J$12,ROW(A79)-ROW($A$12),0) -> Serviço | B79: =IF($A79=0,"",OFFSET(PO!K$12,ROW(B79)-ROW(B$12),0)) -> 1.13.5. | C79: =IF(OFFSET(PO!N$12,ROW(C79)-ROW(C$12),0)=0,"",OFFSET(PO!N$12,ROW(C79)-ROW(C$12),0)) -> APLICAÇÃO DE FUNDO SELADOR LÁTEX PVA EM PAREDES, UMA DEMÃO | D79: =IF(OFFSET(PO!O$12,ROW(D79)-ROW(D$12),0)=0,"",OFFSET(PO!O$12,ROW(D79)-ROW(D$12),0)) -> M2 | E79: =IF($A79<>"Serviço",0,ROUND(SUMIF($F$9:$P$9,"<>",$F79:$P79),15-13*PO!$X$3)) -> 2050.58 | F79: 921.12 | G79: 930.43 | H79: 199.03
A80: =OFFSET(PO!J$12,ROW(A80)-ROW($A$12),0) -> Serviço | B80: =IF($A80=0,"",OFFSET(PO!K$12,ROW(B80)-ROW(B$12),0)) -> 1.13.6. | C80: =IF(OFFSET(PO!N$12,ROW(C80)-ROW(C$12),0)=0,"",OFFSET(PO!N$12,ROW(C80)-ROW(C$12),0)) -> PINTURA ESMALTE ACETINADO EM MADEIRA, DUAS DEMAOS | D80: =IF(OFFSET(PO!O$12,ROW(D80)-ROW(D$12),0)=0,"",OFFSET(PO!O$12,ROW(D80)-ROW(D$12),0)) -> M2 | E80: =IF($A80<>"Serviço",0,ROUND(SUMIF($F$9:$P$9,"<>",$F80:$P80),15-13*PO!$X$3)) -> 93.24 | F80: 46.62 | G80: 46.62
A81: =OFFSET(PO!J$12,ROW(A81)-ROW($A$12),0) -> Nível 2 | B81: =IF($A81=0,"",OFFSET(PO!K$12,ROW(B81)-ROW(B$12),0)) -> 1.14. | C81: =IF(OFFSET(PO!N$12,ROW(C81)-ROW(C$12),0)=0,"",OFFSET(PO!N$12,ROW(C81)-ROW(C$12),0)) -> APARELHOS SANITÁRIOS | D81: =IF(OFFSET(PO!O$12,ROW(D81)-ROW(D$12),0)=0,"",OFFSET(PO!O$12,ROW(D81)-ROW(D$12),0)) ->  | E81: =IF($A81<>"Serviço",0,ROUND(SUMIF($F$9:$P$9,"<>",$F81:$P81),15-13*PO!$X$3)) -> 0 | F81: 0
A82: =OFFSET(PO!J$12,ROW(A82)-ROW($A$12),0) -> Serviço | B82: =IF($A82=0,"",OFFSET(PO!K$12,ROW(B82)-ROW(B$12),0)) -> 1.14.1. | C82: =IF(OFFSET(PO!N$12,ROW(C82)-ROW(C$12),0)=0,"",OFFSET(PO!N$12,ROW(C82)-ROW(C$12),0)) -> LAVATÓRIO LOUÇA BRANCA SUSPENSO, 29,5 X 39CM OU EQUIVALENTE, INCLUSO SIFÃO FLEXÍVEL EM PVC, VÁLVULA E ENGATE FLEXÍVEL 30CM EM PLÁSTICO E TORNEIRA CROMADA DE MESA FORNECIMENTO E INSTALAÇÃO | D82: =IF(OFFSET(PO!O$12,ROW(D82)-ROW(D$12),0)=0,"",OFFSET(PO!O$12,ROW(D82)-ROW(D$12),0)) -> UN | E82: =IF($A82<>"Serviço",0,ROUND(SUMIF($F$9:$P$9,"<>",$F82:$P82),15-13*PO!$X$3)) -> 4 | F82: 2 | G82: 2
A83: =OFFSET(PO!J$12,ROW(A83)-ROW($A$12),0) -> Serviço | B83: =IF($A83=0,"",OFFSET(PO!K$12,ROW(B83)-ROW(B$12),0)) -> 1.14.2. | C83: =IF(OFFSET(PO!N$12,ROW(C83)-ROW(C$12),0)=0,"",OFFSET(PO!N$12,ROW(C83)-ROW(C$12),0)) -> BANCADA DE GRANITO CINZA POLIDO PARA LAVATÓRIO 0,50 X 0,60 M - FORNECIMENTO E INSTALAÇÃO | D83: =IF(OFFSET(PO!O$12,ROW(D83)-ROW(D$12),0)=0,"",OFFSET(PO!O$12,ROW(D83)-ROW(D$12),0)) -> UN | E83: =IF($A83<>"Serviço",0,ROUND(SUMIF($F$9:$P$9,"<>",$F83:$P83),15-13*PO!$X$3)) -> 6 | F83: 6
A84: =OFFSET(PO!J$12,ROW(A84)-ROW($A$12),0) -> Serviço | B84: =IF($A84=0,"",OFFSET(PO!K$12,ROW(B84)-ROW(B$12),0)) -> 1.14.3. | C84: =IF(OFFSET(PO!N$12,ROW(C84)-ROW(C$12),0)=0,"",OFFSET(PO!N$12,ROW(C84)-ROW(C$12),0)) -> LAVATORIO/CUBA DE SOBREPOR RETANGULAR LOUCA BRANCA COM LADRAO *52 X 45* CM | D84: =IF(OFFSET(PO!O$12,ROW(D84)-ROW(D$12),0)=0,"",OFFSET(PO!O$12,ROW(D84)-ROW(D$12),0)) -> UN | E84: =IF($A84<>"Serviço",0,ROUND(SUMIF($F$9:$P$9,"<>",$F84:$P84),15-13*PO!$X$3)) -> 6 | F84: 6
A85: =OFFSET(PO!J$12,ROW(A85)-ROW($A$12),0) -> Serviço | B85: =IF($A85=0,"",OFFSET(PO!K$12,ROW(B85)-ROW(B$12),0)) -> 1.14.4. | C85: =IF(OFFSET(PO!N$12,ROW(C85)-ROW(C$12),0)=0,"",OFFSET(PO!N$12,ROW(C85)-ROW(C$12),0)) -> SIFÃO DO TIPO FLEXÍVEL EM PVC 1 X 1.1/2 - FORNECIMENTO E INSTALAÇÃO | D85: =IF(OFFSET(PO!O$12,ROW(D85)-ROW(D$12),0)=0,"",OFFSET(PO!O$12,ROW(D85)-ROW(D$12),0)) -> UN | E85: =IF($A85<>"Serviço",0,ROUND(SUMIF($F$9:$P$9,"<>",$F85:$P85),15-13*PO!$X$3)) -> 6 | F85: 6
A86: =OFFSET(PO!J$12,ROW(A86)-ROW($A$12),0) -> Serviço | B86: =IF($A86=0,"",OFFSET(PO!K$12,ROW(B86)-ROW(B$12),0)) -> 1.14.5. | C86: =IF(OFFSET(PO!N$12,ROW(C86)-ROW(C$12),0)=0,"",OFFSET(PO!N$12,ROW(C86)-ROW(C$12),0)) -> ENGATE FLEXÍVEL EM INOX, 1/2 X 30CM - FORNECIMENTO E INSTALAÇÃO | D86: =IF(OFFSET(PO!O$12,ROW(D86)-ROW(D$12),0)=0,"",OFFSET(PO!O$12,ROW(D86)-ROW(D$12),0)) -> UN | E86: =IF($A86<>"Serviço",0,ROUND(SUMIF($F$9:$P$9,"<>",$F86:$P86),15-13*PO!$X$3)) -> 6 | F86: 6
A87: =OFFSET(PO!J$12,ROW(A87)-ROW($A$12),0) -> Serviço | B87: =IF($A87=0,"",OFFSET(PO!K$12,ROW(B87)-ROW(B$12),0)) -> 1.14.6. | C87: =IF(OFFSET(PO!N$12,ROW(C87)-ROW(C$12),0)=0,"",OFFSET(PO!N$12,ROW(C87)-ROW(C$12),0)) -> VASO SANITARIO SIFONADO CONVENCIONAL PARA PCD COM LOUÇA BRANCA SEM ASSENTO, INCLUSO CONJUNTO DE LIGAÇÃO PARA BACIA SANITÁRIA AJUSTÁVEL - FORNECIMENTO E INSTALAÇÃO | D87: =IF(OFFSET(PO!O$12,ROW(D87)-ROW(D$12),0)=0,"",OFFSET(PO!O$12,ROW(D87)-ROW(D$12),0)) -> UN | E87: =IF($A87<>"Serviço",0,ROUND(SUMIF($F$9:$P$9,"<>",$F87:$P87),15-13*PO!$X$3)) -> 4 | F87: 2 | G87: 2
A88: =OFFSET(PO!J$12,ROW(A88)-ROW($A$12),0) -> Serviço | B88: =IF($A88=0,"",OFFSET(PO!K$12,ROW(B88)-ROW(B$12),0)) -> 1.14.7. | C88: =IF(OFFSET(PO!N$12,ROW(C88)-ROW(C$12),0)=0,"",OFFSET(PO!N$12,ROW(C88)-ROW(C$12),0)) -> VASO SANITÁRIO SIFONADO COM CAIXA ACOPLADA LOUÇA BRANCA - FORNECIMENTO E INSTALAÇÃO | D88: =IF(OFFSET(PO!O$12,ROW(D88)-ROW(D$12),0)=0,"",OFFSET(PO!O$12,ROW(D88)-ROW(D$12),0)) -> UN | E88: =IF($A88<>"Serviço",0,ROUND(SUMIF($F$9:$P$9,"<>",$F88:$P88),15-13*PO!$X$3)) -> 6 | F88: 6
A89: =OFFSET(PO!J$12,ROW(A89)-ROW($A$12),0) -> Serviço | B89: =IF($A89=0,"",OFFSET(PO!K$12,ROW(B89)-ROW(B$12),0)) -> 1.14.8. | C89: =IF(OFFSET(PO!N$12,ROW(C89)-ROW(C$12),0)=0,"",OFFSET(PO!N$12,ROW(C89)-ROW(C$12),0)) -> TORNEIRA CROMADA DE MESA PARA LAVATORIO COM SENSOR DE PRESENCA | D89: =IF(OFFSET(PO!O$12,ROW(D89)-ROW(D$12),0)=0,"",OFFSET(PO!O$12,ROW(D89)-ROW(D$12),0)) -> UN | E89: =IF($A89<>"Serviço",0,ROUND(SUMIF($F$9:$P$9,"<>",$F89:$P89),15-13*PO!$X$3)) -> 10 | F89: 8 | G89: 2
A90: =OFFSET(PO!J$12,ROW(A90)-ROW($A$12),0) -> Serviço | B90: =IF($A90=0,"",OFFSET(PO!K$12,ROW(B90)-ROW(B$12),0)) -> 1.14.9. | C90: =IF(OFFSET(PO!N$12,ROW(C90)-ROW(C$12),0)=0,"",OFFSET(PO!N$12,ROW(C90)-ROW(C$12),0)) -> PAPELEIRA PLASTICA TIPO DISPENSER PARA PAPEL HIGIENICO ROLAO | D90: =IF(OFFSET(PO!O$12,ROW(D90)-ROW(D$12),0)=0,"",OFFSET(PO!O$12,ROW(D90)-ROW(D$12),0)) -> UN | E90: =IF($A90<>"Serviço",0,ROUND(SUMIF($F$9:$P$9,"<>",$F90:$P90),15-13*PO!$X$3)) -> 6 | F90: 6
A91: =OFFSET(PO!J$12,ROW(A91)-ROW($A$12),0) -> Serviço | B91: =IF($A91=0,"",OFFSET(PO!K$12,ROW(B91)-ROW(B$12),0)) -> 1.14.10. | C91: =IF(OFFSET(PO!N$12,ROW(C91)-ROW(C$12),0)=0,"",OFFSET(PO!N$12,ROW(C91)-ROW(C$12),0)) -> SABONETEIRA PLASTICA TIPO DISPENSER PARA SABONETE LIQUIDO COM RESERVATORIO 800 A 1500 ML | D91: =IF(OFFSET(PO!O$12,ROW(D91)-ROW(D$12),0)=0,"",OFFSET(PO!O$12,ROW(D91)-ROW(D$12),0)) -> UN | E91: =IF($A91<>"Serviço",0,ROUND(SUMIF($F$9:$P$9,"<>",$F91:$P91),15-13*PO!$X$3)) -> 6 | F91: 6
A92: =OFFSET(PO!J$12,ROW(A92)-ROW($A$12),0) -> Serviço | B92: =IF($A92=0,"",OFFSET(PO!K$12,ROW(B92)-ROW(B$12),0)) -> 1.14.11. | C92: =IF(OFFSET(PO!N$12,ROW(C92)-ROW(C$12),0)=0,"",OFFSET(PO!N$12,ROW(C92)-ROW(C$12),0)) -> CABIDE/GANCHO DE BANHEIRO SIMPLES EM METAL CROMADO | D92: =IF(OFFSET(PO!O$12,ROW(D92)-ROW(D$12),0)=0,"",OFFSET(PO!O$12,ROW(D92)-ROW(D$12),0)) -> UN | E92: =IF($A92<>"Serviço",0,ROUND(SUMIF($F$9:$P$9,"<>",$F92:$P92),15-13*PO!$X$3)) -> 4 | F92: 2 | G92: 2
A93: =OFFSET(PO!J$12,ROW(A93)-ROW($A$12),0) -> Serviço | B93: =IF($A93=0,"",OFFSET(PO!K$12,ROW(B93)-ROW(B$12),0)) -> 1.14.12. | C93: =IF(OFFSET(PO!N$12,ROW(C93)-ROW(C$12),0)=0,"",OFFSET(PO!N$12,ROW(C93)-ROW(C$12),0)) -> GRANITO PARA BANCADA, POLIDO, TIPO ANDORINHA/ QUARTZ/ CASTELO/ CORUMBA OU OUTROS EQUIVALENTES DA REGIAO, E= *2,5* CM | D93: =IF(OFFSET(PO!O$12,ROW(D93)-ROW(D$12),0)=0,"",OFFSET(PO!O$12,ROW(D93)-ROW(D$12),0)) -> M2 | E93: =IF($A93<>"Serviço",0,ROUND(SUMIF($F$9:$P$9,"<>",$F93:$P93),15-13*PO!$X$3)) -> 0.24 | F93: 0.12 | G93: 0.12
A94: =OFFSET(PO!J$12,ROW(A94)-ROW($A$12),0) -> Serviço | B94: =IF($A94=0,"",OFFSET(PO!K$12,ROW(B94)-ROW(B$12),0)) -> 1.14.13. | C94: =IF(OFFSET(PO!N$12,ROW(C94)-ROW(C$12),0)=0,"",OFFSET(PO!N$12,ROW(C94)-ROW(C$12),0)) -> ESPELHO CRISTAL E = 4 MM | D94: =IF(OFFSET(PO!O$12,ROW(D94)-ROW(D$12),0)=0,"",OFFSET(PO!O$12,ROW(D94)-ROW(D$12),0)) -> M2 | E94: =IF($A94<>"Serviço",0,ROUND(SUMIF($F$9:$P$9,"<>",$F94:$P94),15-13*PO!$X$3)) -> 5.4 | F94: 4.2 | G94: 1.2
A95: =OFFSET(PO!J$12,ROW(A95)-ROW($A$12),0) -> Serviço | B95: =IF($A95=0,"",OFFSET(PO!K$12,ROW(B95)-ROW(B$12),0)) -> 1.14.14. | C95: =IF(OFFSET(PO!N$12,ROW(C95)-ROW(C$12),0)=0,"",OFFSET(PO!N$12,ROW(C95)-ROW(C$12),0)) -> TANQUE DE MÁRMORE SINTÉTICO SUSPENSO, 22L OU EQUIVALENTE, INCLUSO SIFÃO TIPO GARRAFA EM PVC, VÁLVULA PLÁSTICA E TORNEIRA DE METAL CROMADO - FORNECIMENTO E INSTALAÇÃO | D95: =IF(OFFSET(PO!O$12,ROW(D95)-ROW(D$12),0)=0,"",OFFSET(PO!O$12,ROW(D95)-ROW(D$12),0)) -> UN | E95: =IF($A95<>"Serviço",0,ROUND(SUMIF($F$9:$P$9,"<>",$F95:$P95),15-13*PO!$X$3)) -> 1 | F95: 1
A96: =OFFSET(PO!J$12,ROW(A96)-ROW($A$12),0) -> Nível 2 | B96: =IF($A96=0,"",OFFSET(PO!K$12,ROW(B96)-ROW(B$12),0)) -> 1.15. | C96: =IF(OFFSET(PO!N$12,ROW(C96)-ROW(C$12),0)=0,"",OFFSET(PO!N$12,ROW(C96)-ROW(C$12),0)) -> INSTALAÇÕES HIDRAULICAS | D96: =IF(OFFSET(PO!O$12,ROW(D96)-ROW(D$12),0)=0,"",OFFSET(PO!O$12,ROW(D96)-ROW(D$12),0)) ->  | E96: =IF($A96<>"Serviço",0,ROUND(SUMIF($F$9:$P$9,"<>",$F96:$P96),15-13*PO!$X$3)) -> 0 | F96: 0
A97: =OFFSET(PO!J$12,ROW(A97)-ROW($A$12),0) -> Serviço | B97: =IF($A97=0,"",OFFSET(PO!K$12,ROW(B97)-ROW(B$12),0)) -> 1.15.1. | C97: =IF(OFFSET(PO!N$12,ROW(C97)-ROW(C$12),0)=0,"",OFFSET(PO!N$12,ROW(C97)-ROW(C$12),0)) -> HIDRÔMETRO DN 25 (¾ ), 5,0 M³/H FORNECIMENTO E INSTALAÇÃO | D97: =IF(OFFSET(PO!O$12,ROW(D97)-ROW(D$12),0)=0,"",OFFSET(PO!O$12,ROW(D97)-ROW(D$12),0)) -> UN | E97: =IF($A97<>"Serviço",0,ROUND(SUMIF($F$9:$P$9,"<>",$F97:$P97),15-13*PO!$X$3)) -> 1 | F97: 1
A98: =OFFSET(PO!J$12,ROW(A98)-ROW($A$12),0) -> Serviço | B98: =IF($A98=0,"",OFFSET(PO!K$12,ROW(B98)-ROW(B$12),0)) -> 1.15.2. | C98: =IF(OFFSET(PO!N$12,ROW(C98)-ROW(C$12),0)=0,"",OFFSET(PO!N$12,ROW(C98)-ROW(C$12),0)) -> KIT CAVALETE PARA MEDIÇÃO DE ÁGUA - ENTRADA PRINCIPAL, EM PVC SOLDÁVEL DN 25 (¾ ) FORNECIMENTO E INSTALAÇÃO | D98: =IF(OFFSET(PO!O$12,ROW(D98)-ROW(D$12),0)=0,"",OFFSET(PO!O$12,ROW(D98)-ROW(D$12),0)) -> UN | E98: =IF($A98<>"Serviço",0,ROUND(SUMIF($F$9:$P$9,"<>",$F98:$P98),15-13*PO!$X$3)) -> 1 | F98: 1
A99: =OFFSET(PO!J$12,ROW(A99)-ROW($A$12),0) -> Serviço | B99: =IF($A99=0,"",OFFSET(PO!K$12,ROW(B99)-ROW(B$12),0)) -> 1.15.3. | C99: =IF(OFFSET(PO!N$12,ROW(C99)-ROW(C$12),0)=0,"",OFFSET(PO!N$12,ROW(C99)-ROW(C$12),0)) -> CAIXA EM CONCRETO PRÉ-MOLDADO PARA ABRIGO DE HIDRÔMETRO COM DN 20 (½)  FORNECIMENTO E INSTALAÇÃO | D99: =IF(OFFSET(PO!O$12,ROW(D99)-ROW(D$12),0)=0,"",OFFSET(PO!O$12,ROW(D99)-ROW(D$12),0)) -> UN | E99: =IF($A99<>"Serviço",0,ROUND(SUMIF($F$9:$P$9,"<>",$F99:$P99),15-13*PO!$X$3)) -> 1 | F99: 1
A100: =OFFSET(PO!J$12,ROW(A100)-ROW($A$12),0) -> Serviço | B100: =IF($A100=0,"",OFFSET(PO!K$12,ROW(B100)-ROW(B$12),0)) -> 1.15.4. | C100: =IF(OFFSET(PO!N$12,ROW(C100)-ROW(C$12),0)=0,"",OFFSET(PO!N$12,ROW(C100)-ROW(C$12),0)) -> TUBOS DE PVC, SOLDÁVEL, ÁGUA FRIA, DN 20 MM, INCLUSIVE CONEXÕES, CORTES E FIXAÇÕES | D100: =IF(OFFSET(PO!O$12,ROW(D100)-ROW(D$12),0)=0,"",OFFSET(PO!O$12,ROW(D100)-ROW(D$12),0)) -> M | E100: =IF($A100<>"Serviço",0,ROUND(SUMIF($F$9:$P$9,"<>",$F100:$P100),15-13*PO!$X$3)) -> 43.6 | F100: 35 | G100: 8.6
A101: =OFFSET(PO!J$12,ROW(A101)-ROW($A$12),0) -> Serviço | B101: =IF($A101=0,"",OFFSET(PO!K$12,ROW(B101)-ROW(B$12),0)) -> 1.15.5. | C101: =IF(OFFSET(PO!N$12,ROW(C101)-ROW(C$12),0)=0,"",OFFSET(PO!N$12,ROW(C101)-ROW(C$12),0)) -> TUBOS DE PVC, SOLDÁVEL, ÁGUA FRIA, DN 25 MM, INCLUSIVE CONEXÕES, CORTES E FIXAÇÕES | D101: =IF(OFFSET(PO!O$12,ROW(D101)-ROW(D$12),0)=0,"",OFFSET(PO!O$12,ROW(D101)-ROW(D$12),0)) -> M | E101: =IF($A101<>"Serviço",0,ROUND(SUMIF($F$9:$P$9,"<>",$F101:$P101),15-13*PO!$X$3)) -> 85.99 | F101: 19.64 | G101: 48.3 | H101: 18.05
A102: =OFFSET(PO!J$12,ROW(A102)-ROW($A$12),0) -> Serviço | B102: =IF($A102=0,"",OFFSET(PO!K$12,ROW(B102)-ROW(B$12),0)) -> 1.15.6. | C102: =IF(OFFSET(PO!N$12,ROW(C102)-ROW(C$12),0)=0,"",OFFSET(PO!N$12,ROW(C102)-ROW(C$12),0)) -> ESTRUTURA PONTALETADA DE MADEIRA PARA TELHADOS DE TELHA DE CONCRETO, INCLUSO TRANSPORTE VERTICAL | D102: =IF(OFFSET(PO!O$12,ROW(D102)-ROW(D$12),0)=0,"",OFFSET(PO!O$12,ROW(D102)-ROW(D$12),0)) -> M2 | E102: =IF($A102<>"Serviço",0,ROUND(SUMIF($F$9:$P$9,"<>",$F102:$P102),15-13*PO!$X$3)) -> 1 | F102: 1
A103: =OFFSET(PO!J$12,ROW(A103)-ROW($A$12),0) -> Serviço | B103: =IF($A103=0,"",OFFSET(PO!K$12,ROW(B103)-ROW(B$12),0)) -> 1.15.7. | C103: =IF(OFFSET(PO!N$12,ROW(C103)-ROW(C$12),0)=0,"",OFFSET(PO!N$12,ROW(C103)-ROW(C$12),0)) -> CAIXA D'AGUA FIBRA DE VIDRO PARA 2000 LITROS, COM TAMPA | D103: =IF(OFFSET(PO!O$12,ROW(D103)-ROW(D$12),0)=0,"",OFFSET(PO!O$12,ROW(D103)-ROW(D$12),0)) -> UN | E103: =IF($A103<>"Serviço",0,ROUND(SUMIF($F$9:$P$9,"<>",$F103:$P103),15-13*PO!$X$3)) -> 1 | F103: 1
A104: =OFFSET(PO!J$12,ROW(A104)-ROW($A$12),0) -> Serviço | B104: =IF($A104=0,"",OFFSET(PO!K$12,ROW(B104)-ROW(B$12),0)) -> 1.15.8. | C104: =IF(OFFSET(PO!N$12,ROW(C104)-ROW(C$12),0)=0,"",OFFSET(PO!N$12,ROW(C104)-ROW(C$12),0)) -> REGISTRO GAVETA COM ACABAMENTO E CANOPLA CROMADOS, SIMPLES, BITOLA 1 " (REF 1509) | D104: =IF(OFFSET(PO!O$12,ROW(D104)-ROW(D$12),0)=0,"",OFFSET(PO!O$12,ROW(D104)-ROW(D$12),0)) -> UN | E104: =IF($A104<>"Serviço",0,ROUND(SUMIF($F$9:$P$9,"<>",$F104:$P104),15-13*PO!$X$3)) -> 5 | F104: 3 | G104: 2
A105: =OFFSET(PO!J$12,ROW(A105)-ROW($A$12),0) -> Serviço | B105: =IF($A105=0,"",OFFSET(PO!K$12,ROW(B105)-ROW(B$12),0)) -> 1.15.9. | C105: =IF(OFFSET(PO!N$12,ROW(C105)-ROW(C$12),0)=0,"",OFFSET(PO!N$12,ROW(C105)-ROW(C$12),0)) -> REGISTRO DE ESFERA, PVC, ROSCÁVEL, 3/4", FORNECIDO E INSTALADO EM RAMAL DE ÁGUA | D105: =IF(OFFSET(PO!O$12,ROW(D105)-ROW(D$12),0)=0,"",OFFSET(PO!O$12,ROW(D105)-ROW(D$12),0)) -> UN | E105: =IF($A105<>"Serviço",0,ROUND(SUMIF($F$9:$P$9,"<>",$F105:$P105),15-13*PO!$X$3)) -> 4 | F105: 3 | H105: 1
A106: =OFFSET(PO!J$12,ROW(A106)-ROW($A$12),0) -> Nível 2 | B106: =IF($A106=0,"",OFFSET(PO!K$12,ROW(B106)-ROW(B$12),0)) -> 1.16. | C106: =IF(OFFSET(PO!N$12,ROW(C106)-ROW(C$12),0)=0,"",OFFSET(PO!N$12,ROW(C106)-ROW(C$12),0)) -> INSTALAÇÕES SANITÁRIAS E PLUVIAIS | D106: =IF(OFFSET(PO!O$12,ROW(D106)-ROW(D$12),0)=0,"",OFFSET(PO!O$12,ROW(D106)-ROW(D$12),0)) ->  | E106: =IF($A106<>"Serviço",0,ROUND(SUMIF($F$9:$P$9,"<>",$F106:$P106),15-13*PO!$X$3)) -> 0 | F106: 0
A107: =OFFSET(PO!J$12,ROW(A107)-ROW($A$12),0) -> Serviço | B107: =IF($A107=0,"",OFFSET(PO!K$12,ROW(B107)-ROW(B$12),0)) -> 1.16.1. | C107: =IF(OFFSET(PO!N$12,ROW(C107)-ROW(C$12),0)=0,"",OFFSET(PO!N$12,ROW(C107)-ROW(C$12),0)) -> INSTALAÇÃO DE TUBO DE PVC, SÉRIE NORMAL, ESGOTO PREDIAL, DN 40 MM, INCLUSIVE CONEXÕES, CORTES E FIXAÇÕES | D107: =IF(OFFSET(PO!O$12,ROW(D107)-ROW(D$12),0)=0,"",OFFSET(PO!O$12,ROW(D107)-ROW(D$12),0)) -> M | E107: =IF($A107<>"Serviço",0,ROUND(SUMIF($F$9:$P$9,"<>",$F107:$P107),15-13*PO!$X$3)) -> 14.7 | F107: 6.5 | G107: 8.2
A108: =OFFSET(PO!J$12,ROW(A108)-ROW($A$12),0) -> Serviço | B108: =IF($A108=0,"",OFFSET(PO!K$12,ROW(B108)-ROW(B$12),0)) -> 1.16.2. | C108: =IF(OFFSET(PO!N$12,ROW(C108)-ROW(C$12),0)=0,"",OFFSET(PO!N$12,ROW(C108)-ROW(C$12),0)) -> TUBO DE PVC, SÉRIE NORMAL, ESGOTO PREDIAL, DN 50 MM, INCLUSIVE CONEXÕES, CORTES E FIXAÇÕES | D108: =IF(OFFSET(PO!O$12,ROW(D108)-ROW(D$12),0)=0,"",OFFSET(PO!O$12,ROW(D108)-ROW(D$12),0)) -> M | E108: =IF($A108<>"Serviço",0,ROUND(SUMIF($F$9:$P$9,"<>",$F108:$P108),15-13*PO!$X$3)) -> 51.7 | F108: 22.7 | G108: 29
A109: =OFFSET(PO!J$12,ROW(A109)-ROW($A$12),0) -> Serviço | B109: =IF($A109=0,"",OFFSET(PO!K$12,ROW(B109)-ROW(B$12),0)) -> 1.16.3. | C109: =IF(OFFSET(PO!N$12,ROW(C109)-ROW(C$12),0)=0,"",OFFSET(PO!N$12,ROW(C109)-ROW(C$12),0)) -> INST. TUBO PVC, SÉRIE N, ESGOTO PREDIAL, DN 75 MM, INCL. CONEXÕES, CORTES E FIXAÇÕES | D109: =IF(OFFSET(PO!O$12,ROW(D109)-ROW(D$12),0)=0,"",OFFSET(PO!O$12,ROW(D109)-ROW(D$12),0)) -> M | E109: =IF($A109<>"Serviço",0,ROUND(SUMIF($F$9:$P$9,"<>",$F109:$P109),15-13*PO!$X$3)) -> 8.3 | F109: 8.3
A110: =OFFSET(PO!J$12,ROW(A110)-ROW($A$12),0) -> Serviço | B110: =IF($A110=0,"",OFFSET(PO!K$12,ROW(B110)-ROW(B$12),0)) -> 1.16.4. | C110: =IF(OFFSET(PO!N$12,ROW(C110)-ROW(C$12),0)=0,"",OFFSET(PO!N$12,ROW(C110)-ROW(C$12),0)) -> SERVIÇO DE INST. TUBO PVC, SÉRIE N, ESGOTO PREDIAL, 100 MM, INCL. CONEXÕES E CORTES, FIXAÇÕES | D110: =IF(OFFSET(PO!O$12,ROW(D110)-ROW(D$12),0)=0,"",OFFSET(PO!O$12,ROW(D110)-ROW(D$12),0)) -> M | E110: =IF($A110<>"Serviço",0,ROUND(SUMIF($F$9:$P$9,"<>",$F110:$P110),15-13*PO!$X$3)) -> 43.8 | F110: 34.8 | G110: 9
A111: =OFFSET(PO!J$12,ROW(A111)-ROW($A$12),0) -> Serviço | B111: =IF($A111=0,"",OFFSET(PO!K$12,ROW(B111)-ROW(B$12),0)) -> 1.16.5. | C111: =IF(OFFSET(PO!N$12,ROW(C111)-ROW(C$12),0)=0,"",OFFSET(PO!N$12,ROW(C111)-ROW(C$12),0)) -> TUBO DE PVC, SÉRIE NORMAL, ESGOTO PREDIAL, DN 150 MM, INCLUSIVE CONEXÕES, CORTES E FIXAÇÕES | D111: =IF(OFFSET(PO!O$12,ROW(D111)-ROW(D$12),0)=0,"",OFFSET(PO!O$12,ROW(D111)-ROW(D$12),0)) -> M | E111: =IF($A111<>"Serviço",0,ROUND(SUMIF($F$9:$P$9,"<>",$F111:$P111),15-13*PO!$X$3)) -> 184.83 | F111: 90.23 | G111: 94.6
A112: =OFFSET(PO!J$12,ROW(A112)-ROW($A$12),0) -> Serviço | B112: =IF($A112=0,"",OFFSET(PO!K$12,ROW(B112)-ROW(B$12),0)) -> 1.16.6. | C112: =IF(OFFSET(PO!N$12,ROW(C112)-ROW(C$12),0)=0,"",OFFSET(PO!N$12,ROW(C112)-ROW(C$12),0)) -> TANQUE SÉPTICO 2,60 x 1,50m x 1,80m (CxLxA) | D112: =IF(OFFSET(PO!O$12,ROW(D112)-ROW(D$12),0)=0,"",OFFSET(PO!O$12,ROW(D112)-ROW(D$12),0)) -> Unid | E112: =IF($A112<>"Serviço",0,ROUND(SUMIF($F$9:$P$9,"<>",$F112:$P112),15-13*PO!$X$3)) -> 1 | F112: 1
A113: =OFFSET(PO!J$12,ROW(A113)-ROW($A$12),0) -> Serviço | B113: =IF($A113=0,"",OFFSET(PO!K$12,ROW(B113)-ROW(B$12),0)) -> 1.16.7. | C113: =IF(OFFSET(PO!N$12,ROW(C113)-ROW(C$12),0)=0,"",OFFSET(PO!N$12,ROW(C113)-ROW(C$12),0)) -> SUMIDOURO 4,8 x 2,50m x 1,70m (CxLxA) | D113: =IF(OFFSET(PO!O$12,ROW(D113)-ROW(D$12),0)=0,"",OFFSET(PO!O$12,ROW(D113)-ROW(D$12),0)) -> Unid | E113: =IF($A113<>"Serviço",0,ROUND(SUMIF($F$9:$P$9,"<>",$F113:$P113),15-13*PO!$X$3)) -> 1 | F113: 1
A114: =OFFSET(PO!J$12,ROW(A114)-ROW($A$12),0) -> Serviço | B114: =IF($A114=0,"",OFFSET(PO!K$12,ROW(B114)-ROW(B$12),0)) -> 1.16.8. | C114: =IF(OFFSET(PO!N$12,ROW(C114)-ROW(C$12),0)=0,"",OFFSET(PO!N$12,ROW(C114)-ROW(C$12),0)) -> CAIXA DE GORDURA DUPLA EM CONCRETO PRE-MOLDADO DN 60,0 CM COM TAMPA | D114: =IF(OFFSET(PO!O$12,ROW(D114)-ROW(D$12),0)=0,"",OFFSET(PO!O$12,ROW(D114)-ROW(D$12),0)) -> UN | E114: =IF($A114<>"Serviço",0,ROUND(SUMIF($F$9:$P$9,"<>",$F114:$P114),15-13*PO!$X$3)) -> 2 | F114: 2
A115: =OFFSET(PO!J$12,ROW(A115)-ROW($A$12),0) -> Serviço | B115: =IF($A115=0,"",OFFSET(PO!K$12,ROW(B115)-ROW(B$12),0)) -> 1.16.9. | C115: =IF(OFFSET(PO!N$12,ROW(C115)-ROW(C$12),0)=0,"",OFFSET(PO!N$12,ROW(C115)-ROW(C$12),0)) -> CAIXA DE PASSAGEM EM CONCRETO DN 60CM X 60CM DE ALTURA COM TAMPA, COM TAMPA | D115: =IF(OFFSET(PO!O$12,ROW(D115)-ROW(D$12),0)=0,"",OFFSET(PO!O$12,ROW(D115)-ROW(D$12),0)) -> UN | E115: =IF($A115<>"Serviço",0,ROUND(SUMIF($F$9:$P$9,"<>",$F115:$P115),15-13*PO!$X$3)) -> 14 | F115: 14
A116: =OFFSET(PO!J$12,ROW(A116)-ROW($A$12),0) -> Serviço | B116: =IF($A116=0,"",OFFSET(PO!K$12,ROW(B116)-ROW(B$12),0)) -> 1.16.10. | C116: =IF(OFFSET(PO!N$12,ROW(C116)-ROW(C$12),0)=0,"",OFFSET(PO!N$12,ROW(C116)-ROW(C$12),0)) -> CAIXA DE INSPEÇÃO EM CONCRETO DN 60CM X 60CM DE ALTURA COM TAMPA, COM TAMPA | D116: =IF(OFFSET(PO!O$12,ROW(D116)-ROW(D$12),0)=0,"",OFFSET(PO!O$12,ROW(D116)-ROW(D$12),0)) -> UN | E116: =IF($A116<>"Serviço",0,ROUND(SUMIF($F$9:$P$9,"<>",$F116:$P116),15-13*PO!$X$3)) -> 4 | F116: 4
A117: =OFFSET(PO!J$12,ROW(A117)-ROW($A$12),0) -> Serviço | B117: =IF($A117=0,"",OFFSET(PO!K$12,ROW(B117)-ROW(B$12),0)) -> 1.16.11. | C117: =IF(OFFSET(PO!N$12,ROW(C117)-ROW(C$12),0)=0,"",OFFSET(PO!N$12,ROW(C117)-ROW(C$12),0)) -> RALO SIFONADO PVC, QUADRADO, 100 X 100 X 53 MM, SAIDA 40 MM, COM GRELHA BRANCA | D117: =IF(OFFSET(PO!O$12,ROW(D117)-ROW(D$12),0)=0,"",OFFSET(PO!O$12,ROW(D117)-ROW(D$12),0)) -> UN | E117: =IF($A117<>"Serviço",0,ROUND(SUMIF($F$9:$P$9,"<>",$F117:$P117),15-13*PO!$X$3)) -> 6 | F117: 4 | G117: 2
A118: =OFFSET(PO!J$12,ROW(A118)-ROW($A$12),0) -> Serviço | B118: =IF($A118=0,"",OFFSET(PO!K$12,ROW(B118)-ROW(B$12),0)) -> 1.16.12. | C118: =IF(OFFSET(PO!N$12,ROW(C118)-ROW(C$12),0)=0,"",OFFSET(PO!N$12,ROW(C118)-ROW(C$12),0)) -> CISTERNA COM RESERVATÓRIO DE 2.000L, ENTERRADA PARA COLETAS DE AGUAS DA CHUVA E REUTILIZAÇÃO, COM BOMBA CENTRÍFUGA | D118: =IF(OFFSET(PO!O$12,ROW(D118)-ROW(D$12),0)=0,"",OFFSET(PO!O$12,ROW(D118)-ROW(D$12),0)) -> Unid | E118: =IF($A118<>"Serviço",0,ROUND(SUMIF($F$9:$P$9,"<>",$F118:$P118),15-13*PO!$X$3)) -> 1 | F118: 1
A119: =OFFSET(PO!J$12,ROW(A119)-ROW($A$12),0) -> Nível 2 | B119: =IF($A119=0,"",OFFSET(PO!K$12,ROW(B119)-ROW(B$12),0)) -> 1.17. | C119: =IF(OFFSET(PO!N$12,ROW(C119)-ROW(C$12),0)=0,"",OFFSET(PO!N$12,ROW(C119)-ROW(C$12),0)) -> INSTALAÇÕES ELÉTRICAS | D119: =IF(OFFSET(PO!O$12,ROW(D119)-ROW(D$12),0)=0,"",OFFSET(PO!O$12,ROW(D119)-ROW(D$12),0)) ->  | E119: =IF($A119<>"Serviço",0,ROUND(SUMIF($F$9:$P$9,"<>",$F119:$P119),15-13*PO!$X$3)) -> 0 | F119: 0
A120: =OFFSET(PO!J$12,ROW(A120)-ROW($A$12),0) -> Serviço | B120: =IF($A120=0,"",OFFSET(PO!K$12,ROW(B120)-ROW(B$12),0)) -> 1.17.1. | C120: =IF(OFFSET(PO!N$12,ROW(C120)-ROW(C$12),0)=0,"",OFFSET(PO!N$12,ROW(C120)-ROW(C$12),0)) -> ENTRADA PROVISORIA DE ENERGIA ELETRICA AEREA TRIFASICA 40A EM POSTE MADEIRA | D120: =IF(OFFSET(PO!O$12,ROW(D120)-ROW(D$12),0)=0,"",OFFSET(PO!O$12,ROW(D120)-ROW(D$12),0)) -> UN | E120: =IF($A120<>"Serviço",0,ROUND(SUMIF($F$9:$P$9,"<>",$F120:$P120),15-13*PO!$X$3)) -> 1 | F120: 1
A121: =OFFSET(PO!J$12,ROW(A121)-ROW($A$12),0) -> Serviço | B121: =IF($A121=0,"",OFFSET(PO!K$12,ROW(B121)-ROW(B$12),0)) -> 1.17.2. | C121: =IF(OFFSET(PO!N$12,ROW(C121)-ROW(C$12),0)=0,"",OFFSET(PO!N$12,ROW(C121)-ROW(C$12),0)) -> ENTRADA DE ENERGIA ELÉTRICA AÉREA MONOFÁSICA 50A COM POSTE DE CONCRETO, INCLUSIVE CABEAMENTO, CAIXA DE PROTEÇÃO PARA MEDIDOR E ATERRAMENTO. | D121: =IF(OFFSET(PO!O$12,ROW(D121)-ROW(D$12),0)=0,"",OFFSET(PO!O$12,ROW(D121)-ROW(D$12),0)) -> UN | E121: =IF($A121<>"Serviço",0,ROUND(SUMIF($F$9:$P$9,"<>",$F121:$P121),15-13*PO!$X$3)) -> 1 | F121: 1
A122: =OFFSET(PO!J$12,ROW(A122)-ROW($A$12),0) -> Serviço | B122: =IF($A122=0,"",OFFSET(PO!K$12,ROW(B122)-ROW(B$12),0)) -> 1.17.3. | C122: =IF(OFFSET(PO!N$12,ROW(C122)-ROW(C$12),0)=0,"",OFFSET(PO!N$12,ROW(C122)-ROW(C$12),0)) -> QUADRO DE DISTRIBUICAO DE ENERGIA DE EMBUTIR, EM CHAPA METALICA, PARA 24 DISJUNTORES TERMOMAGNETICOS MONOPOLARES, COM BARRAMENTO TRIFASICO E NEUTRO, FORNECIMENTO E INSTALACAO | D122: =IF(OFFSET(PO!O$12,ROW(D122)-ROW(D$12),0)=0,"",OFFSET(PO!O$12,ROW(D122)-ROW(D$12),0)) -> UN | E122: =IF($A122<>"Serviço",0,ROUND(SUMIF($F$9:$P$9,"<>",$F122:$P122),15-13*PO!$X$3)) -> 1 | F122: 1
A123: =OFFSET(PO!J$12,ROW(A123)-ROW($A$12),0) -> Serviço | B123: =IF($A123=0,"",OFFSET(PO!K$12,ROW(B123)-ROW(B$12),0)) -> 1.17.4. | C123: =IF(OFFSET(PO!N$12,ROW(C123)-ROW(C$12),0)=0,"",OFFSET(PO!N$12,ROW(C123)-ROW(C$12),0)) -> DISJUNTOR TERMOMAGNETICO TRIPOLAR PADRAO NEMA (AMERICANO) 60 A 100A 240V, FORNECIMENTO E INSTALACAO | D123: =IF(OFFSET(PO!O$12,ROW(D123)-ROW(D$12),0)=0,"",OFFSET(PO!O$12,ROW(D123)-ROW(D$12),0)) -> UN | E123: =IF($A123<>"Serviço",0,ROUND(SUMIF($F$9:$P$9,"<>",$F123:$P123),15-13*PO!$X$3)) -> 1 | F123: 1
A124: =OFFSET(PO!J$12,ROW(A124)-ROW($A$12),0) -> Serviço | B124: =IF($A124=0,"",OFFSET(PO!K$12,ROW(B124)-ROW(B$12),0)) -> 1.17.5. | C124: =IF(OFFSET(PO!N$12,ROW(C124)-ROW(C$12),0)=0,"",OFFSET(PO!N$12,ROW(C124)-ROW(C$12),0)) -> DISJUNTOR MONOPOLAR TIPO DIN, CORRENTE NOMINAL DE 10A - FORNECIMENTO E INSTALAÇÃ | D124: =IF(OFFSET(PO!O$12,ROW(D124)-ROW(D$12),0)=0,"",OFFSET(PO!O$12,ROW(D124)-ROW(D$12),0)) -> UN | E124: =IF($A124<>"Serviço",0,ROUND(SUMIF($F$9:$P$9,"<>",$F124:$P124),15-13*PO!$X$3)) -> 21 | F124: 9 | G124: 12
A125: =OFFSET(PO!J$12,ROW(A125)-ROW($A$12),0) -> Serviço | B125: =IF($A125=0,"",OFFSET(PO!K$12,ROW(B125)-ROW(B$12),0)) -> 1.17.6. | C125: =IF(OFFSET(PO!N$12,ROW(C125)-ROW(C$12),0)=0,"",OFFSET(PO!N$12,ROW(C125)-ROW(C$12),0)) -> DISJUNTOR MONOPOLAR TIPO DIN, CORRENTE NOMINAL DE 16A - FORNECIMENTO E INSTALAÇÃO | D125: =IF(OFFSET(PO!O$12,ROW(D125)-ROW(D$12),0)=0,"",OFFSET(PO!O$12,ROW(D125)-ROW(D$12),0)) -> UN | E125: =IF($A125<>"Serviço",0,ROUND(SUMIF($F$9:$P$9,"<>",$F125:$P125),15-13*PO!$X$3)) -> 7 | F125: 2 | G125: 5
A126: =OFFSET(PO!J$12,ROW(A126)-ROW($A$12),0) -> Serviço | B126: =IF($A126=0,"",OFFSET(PO!K$12,ROW(B126)-ROW(B$12),0)) -> 1.17.7. | C126: =IF(OFFSET(PO!N$12,ROW(C126)-ROW(C$12),0)=0,"",OFFSET(PO!N$12,ROW(C126)-ROW(C$12),0)) -> DISJUNTOR MONOPOLAR TIPO DIN, CORRENTE NOMINAL DE 50A - FORNECIMENTO E INSTALAÇÃO | D126: =IF(OFFSET(PO!O$12,ROW(D126)-ROW(D$12),0)=0,"",OFFSET(PO!O$12,ROW(D126)-ROW(D$12),0)) -> UN | E126: =IF($A126<>"Serviço",0,ROUND(SUMIF($F$9:$P$9,"<>",$F126:$P126),15-13*PO!$X$3)) -> 2 | F126: 1 | G126: 1
A127: =OFFSET(PO!J$12,ROW(A127)-ROW($A$12),0) -> Serviço | B127: =IF($A127=0,"",OFFSET(PO!K$12,ROW(B127)-ROW(B$12),0)) -> 1.17.8. | C127: =IF(OFFSET(PO!N$12,ROW(C127)-ROW(C$12),0)=0,"",OFFSET(PO!N$12,ROW(C127)-ROW(C$12),0)) -> PONTO DE ILUMINAÇÃO RESIDENCIAL INCLUINDO INTERRUPTOR SIMPLES, CAIXA ELÉTRICA, ELETRODUTO, CABO, RASGO, QUEBRA E CHUMBAMENTO | D127: =IF(OFFSET(PO!O$12,ROW(D127)-ROW(D$12),0)=0,"",OFFSET(PO!O$12,ROW(D127)-ROW(D$12),0)) -> UN | E127: =IF($A127<>"Serviço",0,ROUND(SUMIF($F$9:$P$9,"<>",$F127:$P127),15-13*PO!$X$3)) -> 6 | F127: 3 | G127: 3
A128: =OFFSET(PO!J$12,ROW(A128)-ROW($A$12),0) -> Serviço | B128: =IF($A128=0,"",OFFSET(PO!K$12,ROW(B128)-ROW(B$12),0)) -> 1.17.9. | C128: =IF(OFFSET(PO!N$12,ROW(C128)-ROW(C$12),0)=0,"",OFFSET(PO!N$12,ROW(C128)-ROW(C$12),0)) -> PONTO DE ILUMINAÇÃO RESIDENCIAL INCLUINDO INTERRUPTOR SIMPLES (2 MÓDULOS), CAIXA ELÉTRICA, ELETRODUTO, CABO, RASGO, QUEBRA E CHUMBAMENTO | D128: =IF(OFFSET(PO!O$12,ROW(D128)-ROW(D$12),0)=0,"",OFFSET(PO!O$12,ROW(D128)-ROW(D$12),0)) -> UN | E128: =IF($A128<>"Serviço",0,ROUND(SUMIF($F$9:$P$9,"<>",$F128:$P128),15-13*PO!$X$3)) -> 9 | F128: 3 | G128: 6
A129: =OFFSET(PO!J$12,ROW(A129)-ROW($A$12),0) -> Serviço | B129: =IF($A129=0,"",OFFSET(PO!K$12,ROW(B129)-ROW(B$12),0)) -> 1.17.10. | C129: =IF(OFFSET(PO!N$12,ROW(C129)-ROW(C$12),0)=0,"",OFFSET(PO!N$12,ROW(C129)-ROW(C$12),0)) -> PONTO DE ILUMINAÇÃO RESIDENCIAL INCLUINDO INTERRUPTOR PARALELO, CAIXA ELÉTRICA, ELETRODUTO, CABO, RASGO, QUEBRA E CHUMBAMENTO | D129: =IF(OFFSET(PO!O$12,ROW(D129)-ROW(D$12),0)=0,"",OFFSET(PO!O$12,ROW(D129)-ROW(D$12),0)) -> UN | E129: =IF($A129<>"Serviço",0,ROUND(SUMIF($F$9:$P$9,"<>",$F129:$P129),15-13*PO!$X$3)) -> 8 | F129: 6 | G129: 2
A130: =OFFSET(PO!J$12,ROW(A130)-ROW($A$12),0) -> Serviço | B130: =IF($A130=0,"",OFFSET(PO!K$12,ROW(B130)-ROW(B$12),0)) -> 1.17.11. | C130: =IF(OFFSET(PO!N$12,ROW(C130)-ROW(C$12),0)=0,"",OFFSET(PO!N$12,ROW(C130)-ROW(C$12),0)) -> PONTO DE ILUMINAÇÃO RESIDENCIAL INCLUINDO INTERRUPTOR PARALELO (2 MÓDULOS), CAIXA ELÉTRICA, ELETRODUTO, CABO, RASGO, QUEBRA E CHUMBAMENTO | D130: =IF(OFFSET(PO!O$12,ROW(D130)-ROW(D$12),0)=0,"",OFFSET(PO!O$12,ROW(D130)-ROW(D$12),0)) -> UN | E130: =IF($A130<>"Serviço",0,ROUND(SUMIF($F$9:$P$9,"<>",$F130:$P130),15-13*PO!$X$3)) -> 4 | F130: 3 | G130: 1
A131: =OFFSET(PO!J$12,ROW(A131)-ROW($A$12),0) -> Serviço | B131: =IF($A131=0,"",OFFSET(PO!K$12,ROW(B131)-ROW(B$12),0)) -> 1.17.12. | C131: =IF(OFFSET(PO!N$12,ROW(C131)-ROW(C$12),0)=0,"",OFFSET(PO!N$12,ROW(C131)-ROW(C$12),0)) -> PONTO DE TOMADA RESIDENCIAL INCLUINDO TOMADA 10A/250V, CAIXA ELÉTRICA, ELETRODUTO, CABO, RASGO, QUEBRA E CHUMBAMENTO | D131: =IF(OFFSET(PO!O$12,ROW(D131)-ROW(D$12),0)=0,"",OFFSET(PO!O$12,ROW(D131)-ROW(D$12),0)) -> UN | E131: =IF($A131<>"Serviço",0,ROUND(SUMIF($F$9:$P$9,"<>",$F131:$P131),15-13*PO!$X$3)) -> 106 | F131: 58 | G131: 48
A132: =OFFSET(PO!J$12,ROW(A132)-ROW($A$12),0) -> Serviço | B132: =IF($A132=0,"",OFFSET(PO!K$12,ROW(B132)-ROW(B$12),0)) -> 1.17.13. | C132: =IF(OFFSET(PO!N$12,ROW(C132)-ROW(C$12),0)=0,"",OFFSET(PO!N$12,ROW(C132)-ROW(C$12),0)) -> PONTO DE TOMADA RESIDENCIAL INCLUINDO TOMADA 20A/250V, CAIXA ELÉTRICA, ELETRODUTO, CABO, RASGO, QUEBRA E CHUMBAMENTO | D132: =IF(OFFSET(PO!O$12,ROW(D132)-ROW(D$12),0)=0,"",OFFSET(PO!O$12,ROW(D132)-ROW(D$12),0)) -> UN | E132: =IF($A132<>"Serviço",0,ROUND(SUMIF($F$9:$P$9,"<>",$F132:$P132),15-13*PO!$X$3)) -> 10 | F132: 2 | G132: 8
A133: =OFFSET(PO!J$12,ROW(A133)-ROW($A$12),0) -> Serviço | B133: =IF($A133=0,"",OFFSET(PO!K$12,ROW(B133)-ROW(B$12),0)) -> 1.17.14. | C133: =IF(OFFSET(PO!N$12,ROW(C133)-ROW(C$12),0)=0,"",OFFSET(PO!N$12,ROW(C133)-ROW(C$12),0)) -> LUMINARIA LED PLAFON REDONDO DE SOBREPOR BIVOLT 12/13 W, D = *17* CM | D133: =IF(OFFSET(PO!O$12,ROW(D133)-ROW(D$12),0)=0,"",OFFSET(PO!O$12,ROW(D133)-ROW(D$12),0)) -> UN | E133: =IF($A133<>"Serviço",0,ROUND(SUMIF($F$9:$P$9,"<>",$F133:$P133),15-13*PO!$X$3)) -> 13 | F133: 2 | G133: 11
A134: =OFFSET(PO!J$12,ROW(A134)-ROW($A$12),0) -> Serviço | B134: =IF($A134=0,"",OFFSET(PO!K$12,ROW(B134)-ROW(B$12),0)) -> 1.17.15. | C134: =IF(OFFSET(PO!N$12,ROW(C134)-ROW(C$12),0)=0,"",OFFSET(PO!N$12,ROW(C134)-ROW(C$12),0)) -> LÂMPADA COMPACTA DE LED 10 W, BASE E27 - FORNECIMENTO E INSTALAÇÃO | D134: =IF(OFFSET(PO!O$12,ROW(D134)-ROW(D$12),0)=0,"",OFFSET(PO!O$12,ROW(D134)-ROW(D$12),0)) -> UN | E134: =IF($A134<>"Serviço",0,ROUND(SUMIF($F$9:$P$9,"<>",$F134:$P134),15-13*PO!$X$3)) -> 13 | F134: 2 | G134: 11
A135: =OFFSET(PO!J$12,ROW(A135)-ROW($A$12),0) -> Serviço | B135: =IF($A135=0,"",OFFSET(PO!K$12,ROW(B135)-ROW(B$12),0)) -> 1.17.16. | C135: =IF(OFFSET(PO!N$12,ROW(C135)-ROW(C$12),0)=0,"",OFFSET(PO!N$12,ROW(C135)-ROW(C$12),0)) -> LUMINÁRIA TIPO PLAFON, DE SOBREPOR, COM 1 LÂMPADA LED - FORNECIMENTO E INSTALAÇÃO | D135: =IF(OFFSET(PO!O$12,ROW(D135)-ROW(D$12),0)=0,"",OFFSET(PO!O$12,ROW(D135)-ROW(D$12),0)) -> UN | E135: =IF($A135<>"Serviço",0,ROUND(SUMIF($F$9:$P$9,"<>",$F135:$P135),15-13*PO!$X$3)) -> 53 | F135: 29 | G135: 24
A136: =OFFSET(PO!J$12,ROW(A136)-ROW($A$12),0) -> Serviço | B136: =IF($A136=0,"",OFFSET(PO!K$12,ROW(B136)-ROW(B$12),0)) -> 1.17.17. | C136: =IF(OFFSET(PO!N$12,ROW(C136)-ROW(C$12),0)=0,"",OFFSET(PO!N$12,ROW(C136)-ROW(C$12),0)) -> ELETRODUTO FLEXIVEL, EM ACO, TIPO CONDUITE, DIAMETRO DE 3" | D136: =IF(OFFSET(PO!O$12,ROW(D136)-ROW(D$12),0)=0,"",OFFSET(PO!O$12,ROW(D136)-ROW(D$12),0)) -> M | E136: =IF($A136<>"Serviço",0,ROUND(SUMIF($F$9:$P$9,"<>",$F136:$P136),15-13*PO!$X$3)) -> 21.6 | F136: 18.1 | G136: 3.5
A137: =OFFSET(PO!J$12,ROW(A137)-ROW($A$12),0) -> Serviço | B137: =IF($A137=0,"",OFFSET(PO!K$12,ROW(B137)-ROW(B$12),0)) -> 1.17.18. | C137: =IF(OFFSET(PO!N$12,ROW(C137)-ROW(C$12),0)=0,"",OFFSET(PO!N$12,ROW(C137)-ROW(C$12),0)) -> HASTE DE ATERRAMENTO EM ACO COM 3,00 M DE COMPRIMENTO E DN = 5/8", REVESTIDA COM BAIXA CAMADA DE COBRE, COM CONECTOR TIPO GRAMPO | D137: =IF(OFFSET(PO!O$12,ROW(D137)-ROW(D$12),0)=0,"",OFFSET(PO!O$12,ROW(D137)-ROW(D$12),0)) -> UN | E137: =IF($A137<>"Serviço",0,ROUND(SUMIF($F$9:$P$9,"<>",$F137:$P137),15-13*PO!$X$3)) -> 3 | F137: 3
A138: =OFFSET(PO!J$12,ROW(A138)-ROW($A$12),0) -> Nível 2 | B138: =IF($A138=0,"",OFFSET(PO!K$12,ROW(B138)-ROW(B$12),0)) -> 1.18. | C138: =IF(OFFSET(PO!N$12,ROW(C138)-ROW(C$12),0)=0,"",OFFSET(PO!N$12,ROW(C138)-ROW(C$12),0)) -> ENTORNO E APARELHOS | D138: =IF(OFFSET(PO!O$12,ROW(D138)-ROW(D$12),0)=0,"",OFFSET(PO!O$12,ROW(D138)-ROW(D$12),0)) ->  | E138: =IF($A138<>"Serviço",0,ROUND(SUMIF($F$9:$P$9,"<>",$F138:$P138),15-13*PO!$X$3)) -> 0 | F138: 0
A139: =OFFSET(PO!J$12,ROW(A139)-ROW($A$12),0) -> Serviço | B139: =IF($A139=0,"",OFFSET(PO!K$12,ROW(B139)-ROW(B$12),0)) -> 1.18.1. | C139: =IF(OFFSET(PO!N$12,ROW(C139)-ROW(C$12),0)=0,"",OFFSET(PO!N$12,ROW(C139)-ROW(C$12),0)) -> ELEVADOR DE USO RESTRITO, CAPACIDADE DE CARGA 225 KG OU MAIOR, 3 PESSOAS, ACABAMENTO AÇO INÓX ESCOVADO, EM ACORDO COM A NBR 12.892 E ITENS DE ACESSIBILIDADE | D139: =IF(OFFSET(PO!O$12,ROW(D139)-ROW(D$12),0)=0,"",OFFSET(PO!O$12,ROW(D139)-ROW(D$12),0)) -> UN | E139: =IF($A139<>"Serviço",0,ROUND(SUMIF($F$9:$P$9,"<>",$F139:$P139),15-13*PO!$X$3)) -> 1 | G139: 1
A140: =OFFSET(PO!J$12,ROW(A140)-ROW($A$12),0) -> Serviço | B140: =IF($A140=0,"",OFFSET(PO!K$12,ROW(B140)-ROW(B$12),0)) -> 1.18.2. | C140: =IF(OFFSET(PO!N$12,ROW(C140)-ROW(C$12),0)=0,"",OFFSET(PO!N$12,ROW(C140)-ROW(C$12),0)) -> FORNECIMENTO/INSTALACAO LONA PLASTICA PRETA, PARA IMPERMEABILIZACAO, ESPESSURA 150 MICRAS. | D140: =IF(OFFSET(PO!O$12,ROW(D140)-ROW(D$12),0)=0,"",OFFSET(PO!O$12,ROW(D140)-ROW(D$12),0)) -> M2 | E140: =IF($A140<>"Serviço",0,ROUND(SUMIF($F$9:$P$9,"<>",$F140:$P140),15-13*PO!$X$3)) -> 113.9 | F140: 113.9
A141: =OFFSET(PO!J$12,ROW(A141)-ROW($A$12),0) -> Serviço | B141: =IF($A141=0,"",OFFSET(PO!K$12,ROW(B141)-ROW(B$12),0)) -> 1.18.3. | C141: =IF(OFFSET(PO!N$12,ROW(C141)-ROW(C$12),0)=0,"",OFFSET(PO!N$12,ROW(C141)-ROW(C$12),0)) -> EXECUÇÃO DE PASSEIO (CALÇADA) OU PISO DE CONCRETO COM CONCRETO MOLDADO IN LOCO, FEITO EM OBRA, ACABAMENTO CONVENCIONAL, ESPESSURA 6 CM, ARMADO. | D141: =IF(OFFSET(PO!O$12,ROW(D141)-ROW(D$12),0)=0,"",OFFSET(PO!O$12,ROW(D141)-ROW(D$12),0)) -> M2 | E141: =IF($A141<>"Serviço",0,ROUND(SUMIF($F$9:$P$9,"<>",$F141:$P141),15-13*PO!$X$3)) -> 113.9 | F141: 113.9
A142: =OFFSET(PO!J$12,ROW(A142)-ROW($A$12),0) -> Serviço | B142: =IF($A142=0,"",OFFSET(PO!K$12,ROW(B142)-ROW(B$12),0)) -> 1.18.4. | C142: =IF(OFFSET(PO!N$12,ROW(C142)-ROW(C$12),0)=0,"",OFFSET(PO!N$12,ROW(C142)-ROW(C$12),0)) -> PISO PODOTATIL DE CONCRETO ALERTA/DIRECIONAL *40 X 40 X 2,5*CM, SOBRE LASTRO DE CONCRETO ESPESSURA 3 CM E REJUNTE CIMENTICIO, EXCLUSO COLCHÃO | D142: =IF(OFFSET(PO!O$12,ROW(D142)-ROW(D$12),0)=0,"",OFFSET(PO!O$12,ROW(D142)-ROW(D$12),0)) -> M2 | E142: =IF($A142<>"Serviço",0,ROUND(SUMIF($F$9:$P$9,"<>",$F142:$P142),15-13*PO!$X$3)) -> 8.16 | F142: 8.16
A143: =OFFSET(PO!J$12,ROW(A143)-ROW($A$12),0) -> Serviço | B143: =IF($A143=0,"",OFFSET(PO!K$12,ROW(B143)-ROW(B$12),0)) -> 1.18.5. | C143: =IF(OFFSET(PO!N$12,ROW(C143)-ROW(C$12),0)=0,"",OFFSET(PO!N$12,ROW(C143)-ROW(C$12),0)) -> PINTURA ACRILICA PARA SINALIZAÇÃO HORIZONTAL EM PISO CIMENTADO | D143: =IF(OFFSET(PO!O$12,ROW(D143)-ROW(D$12),0)=0,"",OFFSET(PO!O$12,ROW(D143)-ROW(D$12),0)) -> M2 | E143: =IF($A143<>"Serviço",0,ROUND(SUMIF($F$9:$P$9,"<>",$F143:$P143),15-13*PO!$X$3)) -> 5.3 | F143: 5.3
A144: =OFFSET(PO!J$12,ROW(A144)-ROW($A$12),0) -> Serviço | B144: =IF($A144=0,"",OFFSET(PO!K$12,ROW(B144)-ROW(B$12),0)) -> 1.18.6. | C144: =IF(OFFSET(PO!N$12,ROW(C144)-ROW(C$12),0)=0,"",OFFSET(PO!N$12,ROW(C144)-ROW(C$12),0)) -> PLANTIO DE ARBUSTO COM ALTURA 50 A 70CM, EM CAVA DE 60X60X60CM | D144: =IF(OFFSET(PO!O$12,ROW(D144)-ROW(D$12),0)=0,"",OFFSET(PO!O$12,ROW(D144)-ROW(D$12),0)) -> UN | E144: =IF($A144<>"Serviço",0,ROUND(SUMIF($F$9:$P$9,"<>",$F144:$P144),15-13*PO!$X$3)) -> 10 | F144: 10
A145: =OFFSET(PO!J$12,ROW(A145)-ROW($A$12),0) -> Serviço | B145: =IF($A145=0,"",OFFSET(PO!K$12,ROW(B145)-ROW(B$12),0)) -> 1.18.7. | C145: =IF(OFFSET(PO!N$12,ROW(C145)-ROW(C$12),0)=0,"",OFFSET(PO!N$12,ROW(C145)-ROW(C$12),0)) -> MURETA PARA FLOREIRA H:35CM, INCLUSO, CHAPISCO, EMBOÇO E PINTURA SOBRE LAJE | D145: =IF(OFFSET(PO!O$12,ROW(D145)-ROW(D$12),0)=0,"",OFFSET(PO!O$12,ROW(D145)-ROW(D$12),0)) -> M | E145: =IF($A145<>"Serviço",0,ROUND(SUMIF($F$9:$P$9,"<>",$F145:$P145),15-13*PO!$X$3)) -> 20.85 | F145: 20.85
A146: =OFFSET(PO!J$12,ROW(A146)-ROW($A$12),0) -> Nível 2 | B146: =IF($A146=0,"",OFFSET(PO!K$12,ROW(B146)-ROW(B$12),0)) -> 1.19. | C146: =IF(OFFSET(PO!N$12,ROW(C146)-ROW(C$12),0)=0,"",OFFSET(PO!N$12,ROW(C146)-ROW(C$12),0)) -> PREVENTIVO DE INCÊNDIO | D146: =IF(OFFSET(PO!O$12,ROW(D146)-ROW(D$12),0)=0,"",OFFSET(PO!O$12,ROW(D146)-ROW(D$12),0)) ->  | E146: =IF($A146<>"Serviço",0,ROUND(SUMIF($F$9:$P$9,"<>",$F146:$P146),15-13*PO!$X$3)) -> 0 | F146: 0
A147: =OFFSET(PO!J$12,ROW(A147)-ROW($A$12),0) -> Serviço | B147: =IF($A147=0,"",OFFSET(PO!K$12,ROW(B147)-ROW(B$12),0)) -> 1.19.1. | C147: =IF(OFFSET(PO!N$12,ROW(C147)-ROW(C$12),0)=0,"",OFFSET(PO!N$12,ROW(C147)-ROW(C$12),0)) -> EXTINTOR DE PQS 4KG - FORNECIMENTO E INSTALACAO | D147: =IF(OFFSET(PO!O$12,ROW(D147)-ROW(D$12),0)=0,"",OFFSET(PO!O$12,ROW(D147)-ROW(D$12),0)) -> UN | E147: =IF($A147<>"Serviço",0,ROUND(SUMIF($F$9:$P$9,"<>",$F147:$P147),15-13*PO!$X$3)) -> 4 | F147: 2 | G147: 2
A148: =OFFSET(PO!J$12,ROW(A148)-ROW($A$12),0) -> Serviço | B148: =IF($A148=0,"",OFFSET(PO!K$12,ROW(B148)-ROW(B$12),0)) -> 1.19.2. | C148: =IF(OFFSET(PO!N$12,ROW(C148)-ROW(C$12),0)=0,"",OFFSET(PO!N$12,ROW(C148)-ROW(C$12),0)) -> LUMINARIA DE EMERGENCIA 30 LEDS, POTENCIA 2 W, BATERIA DE LITIO, AUTONOMIA DE 6 HORAS | D148: =IF(OFFSET(PO!O$12,ROW(D148)-ROW(D$12),0)=0,"",OFFSET(PO!O$12,ROW(D148)-ROW(D$12),0)) -> UN | E148: =IF($A148<>"Serviço",0,ROUND(SUMIF($F$9:$P$9,"<>",$F148:$P148),15-13*PO!$X$3)) -> 12 | F148: 6 | G148: 6
A149: =OFFSET(PO!J$12,ROW(A149)-ROW($A$12),0) -> Serviço | B149: =IF($A149=0,"",OFFSET(PO!K$12,ROW(B149)-ROW(B$12),0)) -> 1.19.3. | C149: =IF(OFFSET(PO!N$12,ROW(C149)-ROW(C$12),0)=0,"",OFFSET(PO!N$12,ROW(C149)-ROW(C$12),0)) -> LUMINÁRIA DE EMERGÊNCIA, BLOCO AUTONOMO 2 x 55 LEDS, FORNECIMENTO E INSTALAÇÃO | D149: =IF(OFFSET(PO!O$12,ROW(D149)-ROW(D$12),0)=0,"",OFFSET(PO!O$12,ROW(D149)-ROW(D$12),0)) -> UN | E149: =IF($A149<>"Serviço",0,ROUND(SUMIF($F$9:$P$9,"<>",$F149:$P149),15-13*PO!$X$3)) -> 4 | F149: 2 | G149: 2
A150: =OFFSET(PO!J$12,ROW(A150)-ROW($A$12),0) -> Serviço | B150: =IF($A150=0,"",OFFSET(PO!K$12,ROW(B150)-ROW(B$12),0)) -> 1.19.4. | C150: =IF(OFFSET(PO!N$12,ROW(C150)-ROW(C$12),0)=0,"",OFFSET(PO!N$12,ROW(C150)-ROW(C$12),0)) -> PLACA DE SINALIZACAO DE SEGURANCA CONTRA INCENDIO, FOTOLUMINESCENTE, RETANGULAR, *20 X 40* CM, EM PVC *2* MM ANTI-CHAMAS (SIMBOLOS, CORES E PICTOGRAMAS CONFORME NBR 13434) | D150: =IF(OFFSET(PO!O$12,ROW(D150)-ROW(D$12),0)=0,"",OFFSET(PO!O$12,ROW(D150)-ROW(D$12),0)) -> UN | E150: =IF($A150<>"Serviço",0,ROUND(SUMIF($F$9:$P$9,"<>",$F150:$P150),15-13*PO!$X$3)) -> 16 | F150: 7 | G150: 9
A151: =OFFSET(PO!J$12,ROW(A151)-ROW($A$12),0) -> Serviço | B151: =IF($A151=0,"",OFFSET(PO!K$12,ROW(B151)-ROW(B$12),0)) -> 1.19.5. | C151: =IF(OFFSET(PO!N$12,ROW(C151)-ROW(C$12),0)=0,"",OFFSET(PO!N$12,ROW(C151)-ROW(C$12),0)) -> TUBO EM COBRE RÍGIDO, DN 28 CLASSE E, SEM ISOLAMENTO, INSTALADO EM RAMAL E SUB-RAMAL - FORNECIMENTO E INSTALAÇÃO | D151: =IF(OFFSET(PO!O$12,ROW(D151)-ROW(D$12),0)=0,"",OFFSET(PO!O$12,ROW(D151)-ROW(D$12),0)) -> M | E151: =IF($A151<>"Serviço",0,ROUND(SUMIF($F$9:$P$9,"<>",$F151:$P151),15-13*PO!$X$3)) -> 2.5 | F151: 2.5
A152: =OFFSET(PO!J$12,ROW(A152)-ROW($A$12),0) -> Serviço | B152: =IF($A152=0,"",OFFSET(PO!K$12,ROW(B152)-ROW(B$12),0)) -> 1.19.6. | C152: =IF(OFFSET(PO!N$12,ROW(C152)-ROW(C$12),0)=0,"",OFFSET(PO!N$12,ROW(C152)-ROW(C$12),0)) -> NIPLE, EM FERRO GALVANIZADO, CONEXÃO ROSQUEADA, DN 15 (1/2"), INSTALADO EM RAMAIS E SUB-RAMAIS DE GÁS - FORNECIMENTO E INSTALAÇÃO | D152: =IF(OFFSET(PO!O$12,ROW(D152)-ROW(D$12),0)=0,"",OFFSET(PO!O$12,ROW(D152)-ROW(D$12),0)) -> UN | E152: =IF($A152<>"Serviço",0,ROUND(SUMIF($F$9:$P$9,"<>",$F152:$P152),15-13*PO!$X$3)) -> 2 | F152: 2
A153: =OFFSET(PO!J$12,ROW(A153)-ROW($A$12),0) -> Serviço | B153: =IF($A153=0,"",OFFSET(PO!K$12,ROW(B153)-ROW(B$12),0)) -> 1.19.7. | C153: =IF(OFFSET(PO!N$12,ROW(C153)-ROW(C$12),0)=0,"",OFFSET(PO!N$12,ROW(C153)-ROW(C$12),0)) -> ABRIGO DE GÁS - 2 BOTIJÕES | D153: =IF(OFFSET(PO!O$12,ROW(D153)-ROW(D$12),0)=0,"",OFFSET(PO!O$12,ROW(D153)-ROW(D$12),0)) -> Unid | E153: =IF($A153<>"Serviço",0,ROUND(SUMIF($F$9:$P$9,"<>",$F153:$P153),15-13*PO!$X$3)) -> 1 | F153: 1
A154: =OFFSET(PO!J$12,ROW(A154)-ROW($A$12),0) -> Nível 2 | B154: =IF($A154=0,"",OFFSET(PO!K$12,ROW(B154)-ROW(B$12),0)) -> 1.20. | C154: =IF(OFFSET(PO!N$12,ROW(C154)-ROW(C$12),0)=0,"",OFFSET(PO!N$12,ROW(C154)-ROW(C$12),0)) -> ACESSIBILIDADE | D154: =IF(OFFSET(PO!O$12,ROW(D154)-ROW(D$12),0)=0,"",OFFSET(PO!O$12,ROW(D154)-ROW(D$12),0)) ->  | E154: =IF($A154<>"Serviço",0,ROUND(SUMIF($F$9:$P$9,"<>",$F154:$P154),15-13*PO!$X$3)) -> 0 | F154: 0
A155: =OFFSET(PO!J$12,ROW(A155)-ROW($A$12),0) -> Serviço | B155: =IF($A155=0,"",OFFSET(PO!K$12,ROW(B155)-ROW(B$12),0)) -> 1.20.1. | C155: =IF(OFFSET(PO!N$12,ROW(C155)-ROW(C$12),0)=0,"",OFFSET(PO!N$12,ROW(C155)-ROW(C$12),0)) -> PISO TÁTIL EM BORRACHA SINTÉTICA ALERTA E DIRECIONAL 250X250X5MM, COR AZUL OU PRETA | D155: =IF(OFFSET(PO!O$12,ROW(D155)-ROW(D$12),0)=0,"",OFFSET(PO!O$12,ROW(D155)-ROW(D$12),0)) -> M2 | E155: =IF($A155<>"Serviço",0,ROUND(SUMIF($F$9:$P$9,"<>",$F155:$P155),15-13*PO!$X$3)) -> 2.5 | F155: 2.5
A156: =OFFSET(PO!J$12,ROW(A156)-ROW($A$12),0) -> Serviço | B156: =IF($A156=0,"",OFFSET(PO!K$12,ROW(B156)-ROW(B$12),0)) -> 1.20.2. | C156: =IF(OFFSET(PO!N$12,ROW(C156)-ROW(C$12),0)=0,"",OFFSET(PO!N$12,ROW(C156)-ROW(C$12),0)) -> PLACA TÁTIL BRAILLE/RELEVO ACRÍLICO 30X14CM - USO SINALIZAÇÃO DE PORTAS DIVERSAS (04 PALAVRAS) | D156: =IF(OFFSET(PO!O$12,ROW(D156)-ROW(D$12),0)=0,"",OFFSET(PO!O$12,ROW(D156)-ROW(D$12),0)) -> UN | E156: =IF($A156<>"Serviço",0,ROUND(SUMIF($F$9:$P$9,"<>",$F156:$P156),15-13*PO!$X$3)) -> 5 | F156: 3 | G156: 2
A157: =OFFSET(PO!J$12,ROW(A157)-ROW($A$12),0) -> Serviço | B157: =IF($A157=0,"",OFFSET(PO!K$12,ROW(B157)-ROW(B$12),0)) -> 1.20.3. | C157: =IF(OFFSET(PO!N$12,ROW(C157)-ROW(C$12),0)=0,"",OFFSET(PO!N$12,ROW(C157)-ROW(C$12),0)) -> PLACA TÁTIL BRAILLE/RELEVO AÇO INÓX 100X30MM - PERSONALIZADO USO CORRIMÃO | D157: =IF(OFFSET(PO!O$12,ROW(D157)-ROW(D$12),0)=0,"",OFFSET(PO!O$12,ROW(D157)-ROW(D$12),0)) -> UN | E157: =IF($A157<>"Serviço",0,ROUND(SUMIF($F$9:$P$9,"<>",$F157:$P157),15-13*PO!$X$3)) -> 2 | G157: 2
A158: =OFFSET(PO!J$12,ROW(A158)-ROW($A$12),0) -> Serviço | B158: =IF($A158=0,"",OFFSET(PO!K$12,ROW(B158)-ROW(B$12),0)) -> 1.20.4. | C158: =IF(OFFSET(PO!N$12,ROW(C158)-ROW(C$12),0)=0,"",OFFSET(PO!N$12,ROW(C158)-ROW(C$12),0)) -> SINALIZADOR VISUAL DE DEGRAUS FOTOLUMINESCENTE AMARELO 70X30MM | D158: =IF(OFFSET(PO!O$12,ROW(D158)-ROW(D$12),0)=0,"",OFFSET(PO!O$12,ROW(D158)-ROW(D$12),0)) -> UN | E158: =IF($A158<>"Serviço",0,ROUND(SUMIF($F$9:$P$9,"<>",$F158:$P158),15-13*PO!$X$3)) -> 50 | F158: 25 | G158: 25
A159: =OFFSET(PO!J$12,ROW(A159)-ROW($A$12),0) -> Serviço | B159: =IF($A159=0,"",OFFSET(PO!K$12,ROW(B159)-ROW(B$12),0)) -> 1.20.5. | C159: =IF(OFFSET(PO!N$12,ROW(C159)-ROW(C$12),0)=0,"",OFFSET(PO!N$12,ROW(C159)-ROW(C$12),0)) -> PLACA VINIL AUTOADESIVA COM SIMBOLOS DIVERSOS 150X200MM | D159: =IF(OFFSET(PO!O$12,ROW(D159)-ROW(D$12),0)=0,"",OFFSET(PO!O$12,ROW(D159)-ROW(D$12),0)) -> UN | E159: =IF($A159<>"Serviço",0,ROUND(SUMIF($F$9:$P$9,"<>",$F159:$P159),15-13*PO!$X$3)) -> 4 | F159: 2 | G159: 2
A160: =OFFSET(PO!J$12,ROW(A160)-ROW($A$12),0) -> Serviço | B160: =IF($A160=0,"",OFFSET(PO!K$12,ROW(B160)-ROW(B$12),0)) -> 1.20.6. | C160: =IF(OFFSET(PO!N$12,ROW(C160)-ROW(C$12),0)=0,"",OFFSET(PO!N$12,ROW(C160)-ROW(C$12),0)) -> PROTETOR DE IMPACTO PARA PORTA EM BORRACHA PRETA OU AZUL - ALTURA DE 40CM E LARGURA DE 80 OU 90CM | D160: =IF(OFFSET(PO!O$12,ROW(D160)-ROW(D$12),0)=0,"",OFFSET(PO!O$12,ROW(D160)-ROW(D$12),0)) -> UN | E160: =IF($A160<>"Serviço",0,ROUND(SUMIF($F$9:$P$9,"<>",$F160:$P160),15-13*PO!$X$3)) -> 8 | F160: 4 | G160: 4
A161: =OFFSET(PO!J$12,ROW(A161)-ROW($A$12),0) -> Serviço | B161: =IF($A161=0,"",OFFSET(PO!K$12,ROW(B161)-ROW(B$12),0)) -> 1.20.7. | C161: =IF(OFFSET(PO!N$12,ROW(C161)-ROW(C$12),0)=0,"",OFFSET(PO!N$12,ROW(C161)-ROW(C$12),0)) -> BARRA DE APOIO RETA, EM AÇO INOX POLIDO 40CM | D161: =IF(OFFSET(PO!O$12,ROW(D161)-ROW(D$12),0)=0,"",OFFSET(PO!O$12,ROW(D161)-ROW(D$12),0)) -> UN | E161: =IF($A161<>"Serviço",0,ROUND(SUMIF($F$9:$P$9,"<>",$F161:$P161),15-13*PO!$X$3)) -> 16 | F161: 8 | G161: 8
A162: =OFFSET(PO!J$12,ROW(A162)-ROW($A$12),0) -> Serviço | B162: =IF($A162=0,"",OFFSET(PO!K$12,ROW(B162)-ROW(B$12),0)) -> 1.20.8. | C162: =IF(OFFSET(PO!N$12,ROW(C162)-ROW(C$12),0)=0,"",OFFSET(PO!N$12,ROW(C162)-ROW(C$12),0)) -> BARRA DE APOIO RETA, EM ACO INOX POLIDO, COMPRIMENTO 80CM, DIAMETRO MINIMO 3 CM | D162: =IF(OFFSET(PO!O$12,ROW(D162)-ROW(D$12),0)=0,"",OFFSET(PO!O$12,ROW(D162)-ROW(D$12),0)) -> UN | E162: =IF($A162<>"Serviço",0,ROUND(SUMIF($F$9:$P$9,"<>",$F162:$P162),15-13*PO!$X$3)) -> 8 | F162: 4 | G162: 4
A163: =OFFSET(PO!J$12,ROW(A163)-ROW($A$12),0) -> Serviço | B163: =IF($A163=0,"",OFFSET(PO!K$12,ROW(B163)-ROW(B$12),0)) -> 1.20.9. | C163: =IF(OFFSET(PO!N$12,ROW(C163)-ROW(C$12),0)=0,"",OFFSET(PO!N$12,ROW(C163)-ROW(C$12),0)) -> BARRA DE APOIO RETA, EM ACO INOX POLIDO, COMPRIMENTO 70CM, DIAMETRO MINIMO 3 CM | D163: =IF(OFFSET(PO!O$12,ROW(D163)-ROW(D$12),0)=0,"",OFFSET(PO!O$12,ROW(D163)-ROW(D$12),0)) -> UN | E163: =IF($A163<>"Serviço",0,ROUND(SUMIF($F$9:$P$9,"<>",$F163:$P163),15-13*PO!$X$3)) -> 4 | F163: 2 | G163: 2
A164: =OFFSET(PO!J$12,ROW(A164)-ROW($A$12),0) -> Serviço | B164: =IF($A164=0,"",OFFSET(PO!K$12,ROW(B164)-ROW(B$12),0)) -> 1.20.10. | C164: =IF(OFFSET(PO!N$12,ROW(C164)-ROW(C$12),0)=0,"",OFFSET(PO!N$12,ROW(C164)-ROW(C$12),0)) -> SIRENE AUDIOVISUAL PCD (NBR 9050) | D164: =IF(OFFSET(PO!O$12,ROW(D164)-ROW(D$12),0)=0,"",OFFSET(PO!O$12,ROW(D164)-ROW(D$12),0)) -> UN | E164: =IF($A164<>"Serviço",0,ROUND(SUMIF($F$9:$P$9,"<>",$F164:$P164),15-13*PO!$X$3)) -> 4 | F164: 2 | G164: 2
A165: =OFFSET(PO!J$12,ROW(A165)-ROW($A$12),0) -> Nível 2 | B165: =IF($A165=0,"",OFFSET(PO!K$12,ROW(B165)-ROW(B$12),0)) -> 1.21. | C165: =IF(OFFSET(PO!N$12,ROW(C165)-ROW(C$12),0)=0,"",OFFSET(PO!N$12,ROW(C165)-ROW(C$12),0)) -> SERVIÇOS FINAIS | D165: =IF(OFFSET(PO!O$12,ROW(D165)-ROW(D$12),0)=0,"",OFFSET(PO!O$12,ROW(D165)-ROW(D$12),0)) ->  | E165: =IF($A165<>"Serviço",0,ROUND(SUMIF($F$9:$P$9,"<>",$F165:$P165),15-13*PO!$X$3)) -> 0 | F165: 0
A166: =OFFSET(PO!J$12,ROW(A166)-ROW($A$12),0) -> Serviço | B166: =IF($A166=0,"",OFFSET(PO!K$12,ROW(B166)-ROW(B$12),0)) -> 1.21.1. | C166: =IF(OFFSET(PO!N$12,ROW(C166)-ROW(C$12),0)=0,"",OFFSET(PO!N$12,ROW(C166)-ROW(C$12),0)) -> LIMPEZA FINAL DA OBRA | D166: =IF(OFFSET(PO!O$12,ROW(D166)-ROW(D$12),0)=0,"",OFFSET(PO!O$12,ROW(D166)-ROW(D$12),0)) -> M2 | E166: =IF($A166<>"Serviço",0,ROUND(SUMIF($F$9:$P$9,"<>",$F166:$P166),15-13*PO!$X$3)) -> 630.77 | F166: 630.77
B169: =PO!$K$178 -> VARGEM BONITA/SC
B170: Local
B172: =PO!$K$181 -> 2019-03-18
B173: Data

Sheet CFF
O1: CFF - | P1: CRONOGRAMA FÍSICO-FINANCEIRO
P2: =CHOOSE(1+LOG(1+2*(TipoOrçamento="BASE")+4*(TipoOrçamento="LICITADO")+8*(TipoOrçamento="REPROGRAMADOAC")+16*(TipoOrçamento="REPROGRAMADONPL"),2),"nada","Cronograma Base para Licitação","Cronograma Licitado","Cronograma Licitado Reprogramado","Cronograma Base para Licitação - Reprogramado") -> Cronograma Base para Licitação
A8: Nível Máx Crono | L8: =IF(MAX($A$14:$A$52)<>MAX(PO!$V$12:$V$167),"ERRO: CRONOGRAMA DESATUALIZADO",IF(OR(COUNTIF($O$16:$X$16,">1")>0,OFFSET($X$17,0,-1)<>$N$14),"ERRO: CRONOGRAMA NÃO FECHA EM 100%","")) -> ERRO: CRONOGRAMA DESATUALIZADO | N8: =IF(TipoOrçamento="REPROGRAMADOAC","Qtde de Medições realizadas","") -> 
A9: 2 | N9: 1 | O9: =IF(AND(TipoOrçamento="REPROGRAMADOAC",$N$9>0),$N$9-1,0) -> 0 | P9: =OFFSET(P9,0,-1)+1 -> 1 | Q9: 2 | R9: 3 | S9: 4 | T9: 5 | U9: 6 | V9: 7 | W9: 8 | AC9: =OFFSET(AC9,0,-1)+1 -> 1
A10: Lista Crono | B10: Último Nível | C10: Nível | D10: Altura | E10: N1 | F10: N2 | G10: N3 | H10: N4 | I10: Czero | J10: Cnível | K10: VTOTAL SOMA | L10: Item | M10: Descrição das Metas / Macrosserviços | N10: Valores Totais (R$) | O10: =IF(TipoOrçamento="REPROGRAMADOAC","Reinício de Obra","Início de Obra")&CHAR(10)&TEXT(DADOS!A48,"dd/mm/aa") -> Início de Obra 01/11/18 | P10: =IF(AND(TipoOrçamento="REPROGRAMADOAC",$N$9>0,N10="Valores Totais (R$)"),"Parcela "&$N$9&" Executado","Parcela "&P$9&CHAR(10)&TEXT(DATE(YEAR(DADOS!$A$48),MONTH(DADOS!$A$48)+P$9-IF(AND(TipoOrçamento="REPROGRAMADOAC",$N$9>0),$N$9,0),1),"mmm/aa")) -> Parcela 1 dez/18 | Q10: =IF(AND(TipoOrçamento="REPROGRAMADOAC",$N$9>0,O10="Valores Totais (R$)"),"Parcela "&$N$9&" Executado","Parcela "&Q$9&CHAR(10)&TEXT(DATE(YEAR(DADOS!$A$48),MONTH(DADOS!$A$48)+Q$9-IF(AND(TipoOrçamento="REPROGRAMADOAC",$N$9>0),$N$9,0),1),"mmm/aa")) -> Parcela 2 jan/19 | R10: =IF(AND(TipoOrçamento="REPROGRAMADOAC",$N$9>0,P10="Valores Totais (R$)"),"Parcela "&$N$9&" Executado","Parcela "&R$9&CHAR(10)&TEXT(DATE(YEAR(DADOS!$A$48),MONTH(DADOS!$A$48)+R$9-IF(AND(TipoOrçamento="REPROGRAMADOAC",$N$9>0),$N$9,0),1),"mmm/aa")) -> Parcela 3 fev/19 | S10: =IF(AND(TipoOrçamento="REPROGRAMADOAC",$N$9>0,Q10="Valores Totais (R$)"),"Parcela "&$N$9&" Executado","Parcela "&S$9&CHAR(10)&TEXT(DATE(YEAR(DADOS!$A$48),MONTH(DADOS!$A$48)+S$9-IF(AND(TipoOrçamento="REPROGRAMADOAC",$N$9>0),$N$9,0),1),"mmm/aa")) -> Parcela 4 mar/19 | T10: =IF(AND(TipoOrçamento="REPROGRAMADOAC",$N$9>0,R10="Valores Totais (R$)"),"Parcela "&$N$9&" Executado","Parcela "&T$9&CHAR(10)&TEXT(DATE(YEAR(DADOS!$A$48),MONTH(DADOS!$A$48)+T$9-IF(AND(TipoOrçamento="REPROGRAMADOAC",$N$9>0),$N$9,0),1),"mmm/aa")) -> Parcela 5 abr/19 | U10: =IF(AND(TipoOrçamento="REPROGRAMADOAC",$N$9>0,S10="Valores Totais (R$)"),"Parcela "&$N$9&" Executado","Parcela "&U$9&CHAR(10)&TEXT(DATE(YEAR(DADOS!$A$48),MONTH(DADOS!$A$48)+U$9-IF(AND(TipoOrçamento="REPROGRAMADOAC",$N$9>0),$N$9,0),1),"mmm/aa")) -> Parcela 6 mai/19 | V10: =IF(AND(TipoOrçamento="REPROGRAMADOAC",$N$9>0,T10="Valores Totais (R$)"),"Parcela "&$N$9&" Executado","Parcela "&V$9&CHAR(10)&TEXT(DATE(YEAR(DADOS!$A$48),MONTH(DADOS!$A$48)+V$9-IF(AND(TipoOrçamento="REPROGRAMADOAC",$N$9>0),$N$9,0),1),"mmm/aa")) -> Parcela 7 jun/19 | W10: =IF(AND(TipoOrçamento="REPROGRAMADOAC",$N$9>0,U10="Valores Totais (R$)"),"Parcela "&$N$9&" Executado","Parcela "&W$9&CHAR(10)&TEXT(DATE(YEAR(DADOS!$A$48),MONTH(DADOS!$A$48)+W$9-IF(AND(TipoOrçamento="REPROGRAMADOAC",$N$9>0),$N$9,0),1),"mmm/aa")) -> Parcela 8 jul/19 | AC10: =IF(AND(TipoOrçamento="REPROGRAMADOAC",$N$9>0,AA10="Valores Totais (R$)"),"Parcela "&$N$9&" Executado","Parcela "&AC$9&CHAR(10)&TEXT(DATE(YEAR(DADOS!$A$48),MONTH(DADOS!$A$48)+AC$9-IF(AND(TipoOrçamento="REPROGRAMADOAC",$N$9>0),$N$9,0),1),"mmm/aa")) -> Parcela 1 dez/18
L11: =INDEX(PO!K$12:K$167,MATCH($A13,PO!$V$12:$V$167,0)) ->  | M11: =INDEX(PO!N$12:N$167,MATCH($A13,PO!$V$12:$V$167,0)) ->  | N11: =IF(ROUND(K13,2)=0,K13,ROUND(K13,2)) ->  | O11: Parcela (%) | P11: =IF($B13,0,P12-IF(ISNUMBER(O12),O12,0)) ->  | Q11: =IF($B13,0,Q12-IF(ISNUMBER(P12),P12,0)) ->  | AC11: =IF($B13,0,AC12-IF(ISNUMBER(AB12),AB12,0)) -> 
O12: Acumulado (%) | P12: =MIN(IF($B13,P11+IF(ISNUMBER(O12),O12,0),P13/$N11),1) ->  | Q12: =MIN(IF($B13,Q11+IF(ISNUMBER(P12),P12,0),Q13/$N11),1) ->  | AC12: =MIN(IF($B13,AC11+IF(ISNUMBER(AB12),AB12,0),AC13/$N11),1) -> 
A13: =OFFSET(A13,-CFF.NumLinha,0)+1 ->  | B13: =$C13>=OFFSET($C13,CFF.NumLinha,0) ->  | C13: =INDEX(PO!A$12:A$167,MATCH($A13,PO!$V$12:$V$167,0)) ->  | D13: =IF(ISERROR(J13),I13,SMALL(I13:J13,1))-1 ->  | E13: =IF($C13=1,OFFSET(E13,-CFF.NumLinha,0)+1,OFFSET(E13,-CFF.NumLinha,0)) ->  | F13: =IF($C13=1,0,IF($C13=2,OFFSET(F13,-CFF.NumLinha,0)+1,OFFSET(F13,-CFF.NumLinha,0))) ->  | G13: =IF(AND($C13<=2,$C13<>0),0,IF($C13=3,OFFSET(G13,-CFF.NumLinha,0)+1,OFFSET(G13,-CFF.NumLinha,0))) ->  | H13: =IF(AND($C13<=3,$C13<>0),0,IF($C13=4,OFFSET(H13,-CFF.NumLinha,0)+1,OFFSET(H13,-CFF.NumLinha,0))) ->  | I13: =MATCH(0,OFFSET($D13,1,$C13,ROW($A$51)-ROW($A13)),0) ->  | J13: =MATCH(OFFSET($D13,0,$C13)+1,OFFSET($D13,1,$C13,ROW($A$51)-ROW($A13)),0) ->  | K13: =ROUND(INDEX(PO!T$12:T$167,MATCH($A13,PO!$V$12:$V$167,0)),2)+10^-12 ->  | O13: Acumulado (R$) | P13: =IF($B13,ROUND(P12*$N11,2),ROUND(SUMIF(OFFSET($B13,1,0,$D13),TRUE,OFFSET(P13,1,0,$D13))/SUMIF(OFFSET($B13,1,0,$D13),TRUE,OFFSET($K13,1,0,$D13))*$N11,2)) ->  | Q13: =IF($B13,ROUND(Q12*$N11,2),ROUND(SUMIF(OFFSET($B13,1,0,$D13),TRUE,OFFSET(Q13,1,0,$D13))/SUMIF(OFFSET($B13,1,0,$D13),TRUE,OFFSET($K13,1,0,$D13))*$N11,2)) ->  | AC13: =IF($B13,ROUND(AC12*$N11,2),ROUND(SUMIF(OFFSET($B13,1,0,$D13),TRUE,OFFSET(AC13,1,0,$D13))/SUMIF(OFFSET($B13,1,0,$D13),TRUE,OFFSET($K13,1,0,$D13))*$N11,2)) -> 
L14: CRONOGRAMA GLOBAL DO LOTE | N14: =IF(PO!$T$12=0,10^-12,PO!$T$12) -> 994610.41 | O14: Parcela (%) | P14: =ROUND(P15/$N14,4) -> 0.2158 | Q14: =ROUND(Q15/$N14,4) -> 0.7842 | R14: 0 | S14: 0 | T14: 0 | U14: 0 | V14: 0 | W14: 0 | AC14: =ROUND(AC15/$N14,4) -> 0
O15: Parcela (R$) | P15: =P17-IF(ISNUMBER(O17),O17,0) -> 214675.62 | Q15: =Q17-IF(ISNUMBER(P17),P17,0) -> 779934.79 | R15: 0 | S15: 0 | T15: 0 | U15: 0 | V15: 0 | W15: 0 | AC15: =AC17-IF(ISNUMBER(AB17),AB17,0) -> 0
O16: Acumulado (%) | P16: =ROUND(P17/$N14,4) -> 0.2158 | Q16: =ROUND(Q17/$N14,4) -> 1 | R16: 1 | S16: 1 | T16: 1 | U16: 1 | V16: 1 | W16: 1 | AC16: =ROUND(AC17/$N14,4) -> 0
A17: 0 | D17: =ROW(D$51)-ROW(D18) -> 33 | O17: Acumulado (R$) | P17: =SUMIF(OFFSET($C17,1,0):$C$51,1,OFFSET(P17,1,0):P$51) -> 214675.62 | Q17: =SUMIF(OFFSET($C17,1,0):$C$51,1,OFFSET(Q17,1,0):Q$51) -> 994610.41 | R17: =SUMIF(OFFSET($C17,1,0):$C$51,1,OFFSET(R17,1,0):R$51) -> 994610.41 | S17: =SUMIF(OFFSET($C17,1,0):$C$51,1,OFFSET(S17,1,0):S$51) -> 994610.41 | T17: =SUMIF(OFFSET($C17,1,0):$C$51,1,OFFSET(T17,1,0):T$51) -> 994610.41 | U17: =SUMIF(OFFSET($C17,1,0):$C$51,1,OFFSET(U17,1,0):U$51) -> 994610.41 | V17: =SUMIF(OFFSET($C17,1,0):$C$51,1,OFFSET(V17,1,0):V$51) -> 994610.41 | W17: =SUMIF(OFFSET($C17,1,0):$C$51,1,OFFSET(W17,1,0):W$51) -> 994610.41 | AC17: =SUMIF(OFFSET($C17,1,0):$C$51,1,OFFSET(AC17,1,0):AC$51) -> 0
L18: =INDEX(PO!K$12:K$167,MATCH($A20,PO!$V$12:$V$167,0)) -> 1. | M18: =INDEX(PO!N$12:N$167,MATCH($A20,PO!$V$12:$V$167,0)) -> CASA DO PRODUTOR | N18: =IF(ROUND(K20,2)=0,K20,ROUND(K20,2)) -> 994610.41 | O18: Parcela (%) | P18: 0.5 | Q18: 0.5 | R18: 0.15 | S18: 0.15 | T18: 0.15 | U18: 0.15 | V18: 0.1 | W18: =IF($B20,0,W19-IF(ISNUMBER(V19),V19,0)) -> 0 | AC18: =IF($B20,0,AC19-IF(ISNUMBER(AB19),AB19,0)) -> 0
O19: Acumulado (%) | P19: =MIN(IF($B20,P18+IF(ISNUMBER(O19),O19,0),P20/$N18),1) -> 0.2158389032 | Q19: 1 | R19: 1 | S19: 1 | T19: 1 | U19: 1 | V19: 1 | W19: 1 | AC19: =MIN(IF($B20,AC18+IF(ISNUMBER(AB19),AB19,0),AC20/$N18),1) -> 0
A20: =OFFSET(A20,-CFF.NumLinha,0)+1 -> 1 | B20: =$C20>=OFFSET($C20,CFF.NumLinha,0) -> FALSE | C20: =INDEX(PO!A$12:A$167,MATCH($A20,PO!$V$12:$V$167,0)) -> 1 | D20: =IF(ISERROR(J20),I20,SMALL(I20:J20,1))-1 -> 30 | E20: =IF($C20=1,OFFSET(E20,-CFF.NumLinha,0)+1,OFFSET(E20,-CFF.NumLinha,0)) -> 1 | F20: =IF($C20=1,0,IF($C20=2,OFFSET(F20,-CFF.NumLinha,0)+1,OFFSET(F20,-CFF.NumLinha,0))) -> 0 | G20: =IF(AND($C20<=2,$C20<>0),0,IF($C20=3,OFFSET(G20,-CFF.NumLinha,0)+1,OFFSET(G20,-CFF.NumLinha,0))) -> 0 | H20: =IF(AND($C20<=3,$C20<>0),0,IF($C20=4,OFFSET(H20,-CFF.NumLinha,0)+1,OFFSET(H20,-CFF.NumLinha,0))) -> 0 | I20: =MATCH(0,OFFSET($D20,1,$C20,ROW($A$51)-ROW($A20)),0) -> 31 | J20: =MATCH(OFFSET($D20,0,$C20)+1,OFFSET($D20,1,$C20,ROW($A$51)-ROW($A20)),0) ->  | K20: =ROUND(INDEX(PO!T$12:T$167,MATCH($A20,PO!$V$12:$V$167,0)),2)+10^-12 -> 994610.41 | O20: Acumulado (R$) | P20: =IF($B20,ROUND(P19*$N18,2),ROUND(SUMIF(OFFSET($B20,1,0,$D20),TRUE,OFFSET(P20,1,0,$D20))/SUMIF(OFFSET($B20,1,0,$D20),TRUE,OFFSET($K20,1,0,$D20))*$N18,2)) -> 214675.62 | Q20: 994610.41 | R20: 994610.41 | S20: 994610.41 | T20: 994610.41 | U20: 994610.41 | V20: 994610.41 | W20: 994610.41 | AC20: =IF($B20,ROUND(AC19*$N18,2),ROUND(SUMIF(OFFSET($B20,1,0,$D20),TRUE,OFFSET(AC20,1,0,$D20))/SUMIF(OFFSET($B20,1,0,$D20),TRUE,OFFSET($K20,1,0,$D20))*$N18,2)) -> 0
L21: =INDEX(PO!K$12:K$167,MATCH($A23,PO!$V$12:$V$167,0)) -> 1.1. | M21: =INDEX(PO!N$12:N$167,MATCH($A23,PO!$V$12:$V$167,0)) -> SERVIÇOS INICIAIS | N21: =IF(ROUND(K23,2)=0,K23,ROUND(K23,2)) -> 2662.77 | O21: Parcela (%) | P21: 1 | Q21: 0.5 | S21: 0.045 | T21: =IF($B23,0,T22-IF(ISNUMBER(S22),S22,0)) -> 0 | U21: =IF($B23,0,U22-IF(ISNUMBER(T22),T22,0)) -> 0 | V21: =IF($B23,0,V22-IF(ISNUMBER(U22),U22,0)) -> 0 | W21: =IF($B23,0,W22-IF(ISNUMBER(V22),V22,0)) -> 0 | AC21: =IF($B23,0,AC22-IF(ISNUMBER(AB22),AB22,0)) -> 0
O22: Acumulado (%) | P22: =MIN(IF($B23,P21+IF(ISNUMBER(O22),O22,0),P23/$N21),1) -> 1 | Q22: =MIN(IF($B23,Q21+IF(ISNUMBER(P22),P22,0),Q23/$N21),1) -> 1 | R22: =MIN(IF($B23,R21+IF(ISNUMBER(Q22),Q22,0),R23/$N21),1) -> 1 | S22: =MIN(IF($B23,S21+IF(ISNUMBER(R22),R22,0),S23/$N21),1) -> 1 | T22: =MIN(IF($B23,T21+IF(ISNUMBER(S22),S22,0),T23/$N21),1) -> 1 | U22: =MIN(IF($B23,U21+IF(ISNUMBER(T22),T22,0),U23/$N21),1) -> 1 | V22: =MIN(IF($B23,V21+IF(ISNUMBER(U22),U22,0),V23/$N21),1) -> 1 | W22: =MIN(IF($B23,W21+IF(ISNUMBER(V22),V22,0),W23/$N21),1) -> 1 | AC22: =MIN(IF($B23,AC21+IF(ISNUMBER(AB22),AB22,0),AC23/$N21),1) -> 0
A23: =OFFSET(A23,-CFF.NumLinha,0)+1 -> 2 | B23: =$C23>=OFFSET($C23,CFF.NumLinha,0) -> TRUE | C23: =INDEX(PO!A$12:A$167,MATCH($A23,PO!$V$12:$V$167,0)) -> 2 | D23: =IF(ISERROR(J23),I23,SMALL(I23:J23,1))-1 -> 2 | E23: =IF($C23=1,OFFSET(E23,-CFF.NumLinha,0)+1,OFFSET(E23,-CFF.NumLinha,0)) -> 1 | F23: =IF($C23=1,0,IF($C23=2,OFFSET(F23,-CFF.NumLinha,0)+1,OFFSET(F23,-CFF.NumLinha,0))) -> 1 | G23: =IF(AND($C23<=2,$C23<>0),0,IF($C23=3,OFFSET(G23,-CFF.NumLinha,0)+1,OFFSET(G23,-CFF.NumLinha,0))) -> 0 | H23: =IF(AND($C23<=3,$C23<>0),0,IF($C23=4,OFFSET(H23,-CFF.NumLinha,0)+1,OFFSET(H23,-CFF.NumLinha,0))) -> 0 | I23: =MATCH(0,OFFSET($D23,1,$C23,ROW($A$51)-ROW($A23)),0) -> 28 | J23: =MATCH(OFFSET($D23,0,$C23)+1,OFFSET($D23,1,$C23,ROW($A$51)-ROW($A23)),0) -> 3 | K23: =ROUND(INDEX(PO!T$12:T$167,MATCH($A23,PO!$V$12:$V$167,0)),2)+10^-12 -> 2662.77 | O23: Acumulado (R$) | P23: =IF($B23,ROUND(P22*$N21,2),ROUND(SUMIF(OFFSET($B23,1,0,$D23),TRUE,OFFSET(P23,1,0,$D23))/SUMIF(OFFSET($B23,1,0,$D23),TRUE,OFFSET($K23,1,0,$D23))*$N21,2)) -> 2662.77 | Q23: 2662.77 | R23: 2662.77 | S23: 2662.77 | T23: 2662.77 | U23: 2662.77 | V23: 2662.77 | W23: 2662.77 | AC23: =IF($B23,ROUND(AC22*$N21,2),ROUND(SUMIF(OFFSET($B23,1,0,$D23),TRUE,OFFSET(AC23,1,0,$D23))/SUMIF(OFFSET($B23,1,0,$D23),TRUE,OFFSET($K23,1,0,$D23))*$N21,2)) -> 0
L24: =INDEX(PO!K$12:K$167,MATCH($A26,PO!$V$12:$V$167,0)) -> 1.2. | M24: =INDEX(PO!N$12:N$167,MATCH($A26,PO!$V$12:$V$167,0)) -> ESCAVAÇÔES E REATERRO | N24: =IF(ROUND(K26,2)=0,K26,ROUND(K26,2)) -> 624.72 | O24: Parcela (%) | P24: 0.5 | Q24: 0.5 | R24: =IF($B26,0,R25-IF(ISNUMBER(Q25),Q25,0)) -> 0 | S24: =IF($B26,0,S25-IF(ISNUMBER(R25),R25,0)) -> 0 | T24: =IF($B26,0,T25-IF(ISNUMBER(S25),S25,0)) -> 0 | U24: =IF($B26,0,U25-IF(ISNUMBER(T25),T25,0)) -> 0 | V24: =IF($B26,0,V25-IF(ISNUMBER(U25),U25,0)) -> 0 | W24: =IF($B26,0,W25-IF(ISNUMBER(V25),V25,0)) -> 0 | AC24: =IF($B26,0,AC25-IF(ISNUMBER(AB25),AB25,0)) -> 0
O25: Acumulado (%) | P25: =MIN(IF($B26,P24+IF(ISNUMBER(O25),O25,0),P26/$N24),1) -> 0.5 | Q25: =MIN(IF($B26,Q24+IF(ISNUMBER(P25),P25,0),Q26/$N24),1) -> 1 | R25: =MIN(IF($B26,R24+IF(ISNUMBER(Q25),Q25,0),R26/$N24),1) -> 1 | S25: =MIN(IF($B26,S24+IF(ISNUMBER(R25),R25,0),S26/$N24),1) -> 1 | T25: =MIN(IF($B26,T24+IF(ISNUMBER(S25),S25,0),T26/$N24),1) -> 1 | U25: =MIN(IF($B26,U24+IF(ISNUMBER(T25),T25,0),U26/$N24),1) -> 1 | V25: =MIN(IF($B26,V24+IF(ISNUMBER(U25),U25,0),V26/$N24),1) -> 1 | W25: =MIN(IF($B26,W24+IF(ISNUMBER(V25),V25,0),W26/$N24),1) -> 1 | AC25: =MIN(IF($B26,AC24+IF(ISNUMBER(AB25),AB25,0),AC26/$N24),1) -> 0
A26: =OFFSET(A26,-CFF.NumLinha,0)+1 -> 3 | B26: =$C26>=OFFSET($C26,CFF.NumLinha,0) -> TRUE | C26: =INDEX(PO!A$12:A$167,MATCH($A26,PO!$V$12:$V$167,0)) -> 2 | D26: =IF(ISERROR(J26),I26,SMALL(I26:J26,1))-1 -> 2 | E26: =IF($C26=1,OFFSET(E26,-CFF.NumLinha,0)+1,OFFSET(E26,-CFF.NumLinha,0)) -> 1 | F26: =IF($C26=1,0,IF($C26=2,OFFSET(F26,-CFF.NumLinha,0)+1,OFFSET(F26,-CFF.NumLinha,0))) -> 2 | G26: =IF(AND($C26<=2,$C26<>0),0,IF($C26=3,OFFSET(G26,-CFF.NumLinha,0)+1,OFFSET(G26,-CFF.NumLinha,0))) -> 0 | H26: =IF(AND($C26<=3,$C26<>0),0,IF($C26=4,OFFSET(H26,-CFF.NumLinha,0)+1,OFFSET(H26,-CFF.NumLinha,0))) -> 0 | I26: =MATCH(0,OFFSET($D26,1,$C26,ROW($A$51)-ROW($A26)),0) -> 25 | J26: =MATCH(OFFSET($D26,0,$C26)+1,OFFSET($D26,1,$C26,ROW($A$51)-ROW($A26)),0) -> 3 | K26: =ROUND(INDEX(PO!T$12:T$167,MATCH($A26,PO!$V$12:$V$167,0)),2)+10^-12 -> 624.72 | O26: Acumulado (R$) | P26: =IF($B26,ROUND(P25*$N24,2),ROUND(SUMIF(OFFSET($B26,1,0,$D26),TRUE,OFFSET(P26,1,0,$D26))/SUMIF(OFFSET($B26,1,0,$D26),TRUE,OFFSET($K26,1,0,$D26))*$N24,2)) -> 312.36 | Q26: 624.72 | R26: 624.72 | S26: 624.72 | T26: 624.72 | U26: 624.72 | V26: 624.72 | W26: 624.72 | AC26: =IF($B26,ROUND(AC25*$N24,2),ROUND(SUMIF(OFFSET($B26,1,0,$D26),TRUE,OFFSET(AC26,1,0,$D26))/SUMIF(OFFSET($B26,1,0,$D26),TRUE,OFFSET($K26,1,0,$D26))*$N24,2)) -> 0
L27: =INDEX(PO!K$12:K$167,MATCH($A29,PO!$V$12:$V$167,0)) -> 1.3. | M27: =INDEX(PO!N$12:N$167,MATCH($A29,PO!$V$12:$V$167,0)) -> FUNDAÇÕES: BLOCOS E BALDRAMES | N27: =IF(ROUND(K29,2)=0,K29,ROUND(K29,2)) -> 73549.06 | O27: Parcela (%) | P27: 0.5 | Q27: 0.5 | R27: =IF($B29,0,R28-IF(ISNUMBER(Q28),Q28,0)) -> 0 | S27: =IF($B29,0,S28-IF(ISNUMBER(R28),R28,0)) -> 0 | T27: =IF($B29,0,T28-IF(ISNUMBER(S28),S28,0)) -> 0 | U27: =IF($B29,0,U28-IF(ISNUMBER(T28),T28,0)) -> 0 | V27: =IF($B29,0,V28-IF(ISNUMBER(U28),U28,0)) -> 0 | W27: =IF($B29,0,W28-IF(ISNUMBER(V28),V28,0)) -> 0 | AC27: =IF($B29,0,AC28-IF(ISNUMBER(AB28),AB28,0)) -> 0
O28: Acumulado (%) | P28: =MIN(IF($B29,P27+IF(ISNUMBER(O28),O28,0),P29/$N27),1) -> 0.5 | Q28: =MIN(IF($B29,Q27+IF(ISNUMBER(P28),P28,0),Q29/$N27),1) -> 1 | R28: =MIN(IF($B29,R27+IF(ISNUMBER(Q28),Q28,0),R29/$N27),1) -> 1 | S28: =MIN(IF($B29,S27+IF(ISNUMBER(R28),R28,0),S29/$N27),1) -> 1 | T28: =MIN(IF($B29,T27+IF(ISNUMBER(S28),S28,0),T29/$N27),1) -> 1 | U28: =MIN(IF($B29,U27+IF(ISNUMBER(T28),T28,0),U29/$N27),1) -> 1 | V28: =MIN(IF($B29,V27+IF(ISNUMBER(U28),U28,0),V29/$N27),1) -> 1 | W28: =MIN(IF($B29,W27+IF(ISNUMBER(V28),V28,0),W29/$N27),1) -> 1 | AC28: =MIN(IF($B29,AC27+IF(ISNUMBER(AB28),AB28,0),AC29/$N27),1) -> 0
A29: =OFFSET(A29,-CFF.NumLinha,0)+1 -> 4 | B29: =$C29>=OFFSET($C29,CFF.NumLinha,0) -> TRUE | C29: =INDEX(PO!A$12:A$167,MATCH($A29,PO!$V$12:$V$167,0)) -> 2 | D29: =IF(ISERROR(J29),I29,SMALL(I29:J29,1))-1 -> 2 | E29: =IF($C29=1,OFFSET(E29,-CFF.NumLinha,0)+1,OFFSET(E29,-CFF.NumLinha,0)) -> 1 | F29: =IF($C29=1,0,IF($C29=2,OFFSET(F29,-CFF.NumLinha,0)+1,OFFSET(F29,-CFF.NumLinha,0))) -> 3 | G29: =IF(AND($C29<=2,$C29<>0),0,IF($C29=3,OFFSET(G29,-CFF.NumLinha,0)+1,OFFSET(G29,-CFF.NumLinha,0))) -> 0 | H29: =IF(AND($C29<=3,$C29<>0),0,IF($C29=4,OFFSET(H29,-CFF.NumLinha,0)+1,OFFSET(H29,-CFF.NumLinha,0))) -> 0 | I29: =MATCH(0,OFFSET($D29,1,$C29,ROW($A$51)-ROW($A29)),0) -> 22 | J29: =MATCH(OFFSET($D29,0,$C29)+1,OFFSET($D29,1,$C29,ROW($A$51)-ROW($A29)),0) -> 3 | K29: =ROUND(INDEX(PO!T$12:T$167,MATCH($A29,PO!$V$12:$V$167,0)),2)+10^-12 -> 73549.06 | O29: Acumulado (R$) | P29: =IF($B29,ROUND(P28*$N27,2),ROUND(SUMIF(OFFSET($B29,1,0,$D29),TRUE,OFFSET(P29,1,0,$D29))/SUMIF(OFFSET($B29,1,0,$D29),TRUE,OFFSET($K29,1,0,$D29))*$N27,2)) -> 36774.53 | Q29: 73549.06 | R29: 73549.06 | S29: 73549.06 | T29: 73549.06 | U29: 73549.06 | V29: 73549.06 | W29: 73549.06 | AC29: =IF($B29,ROUND(AC28*$N27,2),ROUND(SUMIF(OFFSET($B29,1,0,$D29),TRUE,OFFSET(AC29,1,0,$D29))/SUMIF(OFFSET($B29,1,0,$D29),TRUE,OFFSET($K29,1,0,$D29))*$N27,2)) -> 0
L30: =INDEX(PO!K$12:K$167,MATCH($A32,PO!$V$12:$V$167,0)) -> 1.4. | M30: =INDEX(PO!N$12:N$167,MATCH($A32,PO!$V$12:$V$167,0)) -> ESTRUTURA: VIGAS | N30: =IF(ROUND(K32,2)=0,K32,ROUND(K32,2)) -> 59869.26 | O30: Parcela (%) | P30: =IF($B32,0,P31-IF(ISNUMBER(O31),O31,0)) -> 0 | Q30: 1 | R30: =IF($B32,0,R31-IF(ISNUMBER(Q31),Q31,0)) -> 0 | S30: =IF($B32,0,S31-IF(ISNUMBER(R31),R31,0)) -> 0 | T30: =IF($B32,0,T31-IF(ISNUMBER(S31),S31,0)) -> 0 | U30: =IF($B32,0,U31-IF(ISNUMBER(T31),T31,0)) -> 0 | V30: =IF($B32,0,V31-IF(ISNUMBER(U31),U31,0)) -> 0 | W30: =IF($B32,0,W31-IF(ISNUMBER(V31),V31,0)) -> 0 | AC30: =IF($B32,0,AC31-IF(ISNUMBER(AB31),AB31,0)) -> 0
O31: Acumulado (%) | P31: =MIN(IF($B32,P30+IF(ISNUMBER(O31),O31,0),P32/$N30),1) -> 0 | Q31: =MIN(IF($B32,Q30+IF(ISNUMBER(P31),P31,0),Q32/$N30),1) -> 1 | R31: =MIN(IF($B32,R30+IF(ISNUMBER(Q31),Q31,0),R32/$N30),1) -> 1 | S31: =MIN(IF($B32,S30+IF(ISNUMBER(R31),R31,0),S32/$N30),1) -> 1 | T31: =MIN(IF($B32,T30+IF(ISNUMBER(S31),S31,0),T32/$N30),1) -> 1 | U31: =MIN(IF($B32,U30+IF(ISNUMBER(T31),T31,0),U32/$N30),1) -> 1 | V31: =MIN(IF($B32,V30+IF(ISNUMBER(U31),U31,0),V32/$N30),1) -> 1 | W31: =MIN(IF($B32,W30+IF(ISNUMBER(V31),V31,0),W32/$N30),1) -> 1 | AC31: =MIN(IF($B32,AC30+IF(ISNUMBER(AB31),AB31,0),AC32/$N30),1) -> 0
A32: =OFFSET(A32,-CFF.NumLinha,0)+1 -> 5 | B32: =$C32>=OFFSET($C32,CFF.NumLinha,0) -> TRUE | C32: =INDEX(PO!A$12:A$167,MATCH($A32,PO!$V$12:$V$167,0)) -> 2 | D32: =IF(ISERROR(J32),I32,SMALL(I32:J32,1))-1 -> 2 | E32: =IF($C32=1,OFFSET(E32,-CFF.NumLinha,0)+1,OFFSET(E32,-CFF.NumLinha,0)) -> 1 | F32: =IF($C32=1,0,IF($C32=2,OFFSET(F32,-CFF.NumLinha,0)+1,OFFSET(F32,-CFF.NumLinha,0))) -> 4 | G32: =IF(AND($C32<=2,$C32<>0),0,IF($C32=3,OFFSET(G32,-CFF.NumLinha,0)+1,OFFSET(G32,-CFF.NumLinha,0))) -> 0 | H32: =IF(AND($C32<=3,$C32<>0),0,IF($C32=4,OFFSET(H32,-CFF.NumLinha,0)+1,OFFSET(H32,-CFF.NumLinha,0))) -> 0 | I32: =MATCH(0,OFFSET($D32,1,$C32,ROW($A$51)-ROW($A32)),0) -> 19 | J32: =MATCH(OFFSET($D32,0,$C32)+1,OFFSET($D32,1,$C32,ROW($A$51)-ROW($A32)),0) -> 3 | K32: =ROUND(INDEX(PO!T$12:T$167,MATCH($A32,PO!$V$12:$V$167,0)),2)+10^-12 -> 59869.26 | O32: Acumulado (R$) | P32: =IF($B32,ROUND(P31*$N30,2),ROUND(SUMIF(OFFSET($B32,1,0,$D32),TRUE,OFFSET(P32,1,0,$D32))/SUMIF(OFFSET($B32,1,0,$D32),TRUE,OFFSET($K32,1,0,$D32))*$N30,2)) -> 0 | Q32: 59869.26 | R32: 59869.26 | S32: 59869.26 | T32: 59869.26 | U32: 59869.26 | V32: 59869.26 | W32: 59869.26 | AC32: =IF($B32,ROUND(AC31*$N30,2),ROUND(SUMIF(OFFSET($B32,1,0,$D32),TRUE,OFFSET(AC32,1,0,$D32))/SUMIF(OFFSET($B32,1,0,$D32),TRUE,OFFSET($K32,1,0,$D32))*$N30,2)) -> 0
L33: =INDEX(PO!K$12:K$167,MATCH($A35,PO!$V$12:$V$167,0)) -> 1.5. | M33: =INDEX(PO!N$12:N$167,MATCH($A35,PO!$V$12:$V$167,0)) -> ESTRUTURA: PILARES | N33: =IF(ROUND(K35,2)=0,K35,ROUND(K35,2)) -> 50658.61 | O33: Parcela (%) | P33: =IF($B35,0,P34-IF(ISNUMBER(O34),O34,0)) -> 0 | Q33: 1 | R33: =IF($B35,0,R34-IF(ISNUMBER(Q34),Q34,0)) -> 0 | S33: =IF($B35,0,S34-IF(ISNUMBER(R34),R34,0)) -> 0 | T33: =IF($B35,0,T34-IF(ISNUMBER(S34),S34,0)) -> 0 | U33: =IF($B35,0,U34-IF(ISNUMBER(T34),T34,0)) -> 0 | V33: =IF($B35,0,V34-IF(ISNUMBER(U34),U34,0)) -> 0 | W33: =IF($B35,0,W34-IF(ISNUMBER(V34),V34,0)) -> 0 | AC33: =IF($B35,0,AC34-IF(ISNUMBER(AB34),AB34,0)) -> 0
O34: Acumulado (%) | P34: =MIN(IF($B35,P33+IF(ISNUMBER(O34),O34,0),P35/$N33),1) -> 0 | Q34: =MIN(IF($B35,Q33+IF(ISNUMBER(P34),P34,0),Q35/$N33),1) -> 1 | R34: =MIN(IF($B35,R33+IF(ISNUMBER(Q34),Q34,0),R35/$N33),1) -> 1 | S34: =MIN(IF($B35,S33+IF(ISNUMBER(R34),R34,0),S35/$N33),1) -> 1 | T34: =MIN(IF($B35,T33+IF(ISNUMBER(S34),S34,0),T35/$N33),1) -> 1 | U34: =MIN(IF($B35,U33+IF(ISNUMBER(T34),T34,0),U35/$N33),1) -> 1 | V34: =MIN(IF($B35,V33+IF(ISNUMBER(U34),U34,0),V35/$N33),1) -> 1 | W34: =MIN(IF($B35,W33+IF(ISNUMBER(V34),V34,0),W35/$N33),1) -> 1 | AC34: =MIN(IF($B35,AC33+IF(ISNUMBER(AB34),AB34,0),AC35/$N33),1) -> 0
A35: =OFFSET(A35,-CFF.NumLinha,0)+1 -> 6 | B35: =$C35>=OFFSET($C35,CFF.NumLinha,0) -> TRUE | C35: =INDEX(PO!A$12:A$167,MATCH($A35,PO!$V$12:$V$167,0)) -> 2 | D35: =IF(ISERROR(J35),I35,SMALL(I35:J35,1))-1 -> 2 | E35: =IF($C35=1,OFFSET(E35,-CFF.NumLinha,0)+1,OFFSET(E35,-CFF.NumLinha,0)) -> 1 | F35: =IF($C35=1,0,IF($C35=2,OFFSET(F35,-CFF.NumLinha,0)+1,OFFSET(F35,-CFF.NumLinha,0))) -> 5 | G35: =IF(AND($C35<=2,$C35<>0),0,IF($C35=3,OFFSET(G35,-CFF.NumLinha,0)+1,OFFSET(G35,-CFF.NumLinha,0))) -> 0 | H35: =IF(AND($C35<=3,$C35<>0),0,IF($C35=4,OFFSET(H35,-CFF.NumLinha,0)+1,OFFSET(H35,-CFF.NumLinha,0))) -> 0 | I35: =MATCH(0,OFFSET($D35,1,$C35,ROW($A$51)-ROW($A35)),0) -> 16 | J35: =MATCH(OFFSET($D35,0,$C35)+1,OFFSET($D35,1,$C35,ROW($A$51)-ROW($A35)),0) -> 3 | K35: =ROUND(INDEX(PO!T$12:T$167,MATCH($A35,PO!$V$12:$V$167,0)),2)+10^-12 -> 50658.61 | O35: Acumulado (R$) | P35: =IF($B35,ROUND(P34*$N33,2),ROUND(SUMIF(OFFSET($B35,1,0,$D35),TRUE,OFFSET(P35,1,0,$D35))/SUMIF(OFFSET($B35,1,0,$D35),TRUE,OFFSET($K35,1,0,$D35))*$N33,2)) -> 0 | Q35: 50658.61 | R35: 50658.61 | S35: 50658.61 | T35: 50658.61 | U35: 50658.61 | V35: 50658.61 | W35: 50658.61 | AC35: =IF($B35,ROUND(AC34*$N33,2),ROUND(SUMIF(OFFSET($B35,1,0,$D35),TRUE,OFFSET(AC35,1,0,$D35))/SUMIF(OFFSET($B35,1,0,$D35),TRUE,OFFSET($K35,1,0,$D35))*$N33,2)) -> 0
L36: =INDEX(PO!K$12:K$167,MATCH($A38,PO!$V$12:$V$167,0)) -> 1.6. | M36: =INDEX(PO!N$12:N$167,MATCH($A38,PO!$V$12:$V$167,0)) -> ESTRUTURA: ESCADAS | N36: =IF(ROUND(K38,2)=0,K38,ROUND(K38,2)) -> 3542.56 | O36: Parcela (%) | P36: 0.5 | Q36: 0.5 | R36: =IF($B38,0,R37-IF(ISNUMBER(Q37),Q37,0)) -> 0 | S36: =IF($B38,0,S37-IF(ISNUMBER(R37),R37,0)) -> 0 | T36: =IF($B38,0,T37-IF(ISNUMBER(S37),S37,0)) -> 0 | U36: =IF($B38,0,U37-IF(ISNUMBER(T37),T37,0)) -> 0 | V36: =IF($B38,0,V37-IF(ISNUMBER(U37),U37,0)) -> 0 | W36: =IF($B38,0,W37-IF(ISNUMBER(V37),V37,0)) -> 0 | AC36: =IF($B38,0,AC37-IF(ISNUMBER(AB37),AB37,0)) -> 0
O37: Acumulado (%) | P37: =MIN(IF($B38,P36+IF(ISNUMBER(O37),O37,0),P38/$N36),1) -> 0.5 | Q37: =MIN(IF($B38,Q36+IF(ISNUMBER(P37),P37,0),Q38/$N36),1) -> 1 | R37: =MIN(IF($B38,R36+IF(ISNUMBER(Q37),Q37,0),R38/$N36),1) -> 1 | S37: =MIN(IF($B38,S36+IF(ISNUMBER(R37),R37,0),S38/$N36),1) -> 1 | T37: =MIN(IF($B38,T36+IF(ISNUMBER(S37),S37,0),T38/$N36),1) -> 1 | U37: =MIN(IF($B38,U36+IF(ISNUMBER(T37),T37,0),U38/$N36),1) -> 1 | V37: =MIN(IF($B38,V36+IF(ISNUMBER(U37),U37,0),V38/$N36),1) -> 1 | W37: =MIN(IF($B38,W36+IF(ISNUMBER(V37),V37,0),W38/$N36),1) -> 1 | AC37: =MIN(IF($B38,AC36+IF(ISNUMBER(AB37),AB37,0),AC38/$N36),1) -> 0
